Workbook

Sheet Notes
A2: Maternity Friends and Family Test (FFT) Data - September 2023

Sheet Summary
B7: FFT | C7: Number of organisations submitting | D7: Total responses to date | E7: Responses | G7: Percentage Positive | I7: Percentage Negative
C8: 2023-09-01 | D8: 2023-09-01 | E8: 2023-09-01 | F8: 2023-08-27 | G8: 2023-09-01 | H8: 2023-08-27 | I8: 2023-09-01 | J8: 2023-08-27
B9: Maternity Total | C9: NA | D9: 3255495 | E9: 17501 | F9: 18322 | G9: 0.9219473173 | H9: 0.9232616527 | I9: 0.04256899606 | J9: 0.04169850453
B10: Maternity NHS Total | C10: NA | D10: 3252092 | E10: 17501 | F10: 18322 | G10: 0.9219473173 | H10: 0.9232616527 | I10: 0.04256899606 | J10: 0.04169850453
B11: Maternity IS Total | C11: NA | D11: 3403 | E11: 0 | F11: 0 | G11: NA | H11: NA | I11: NA | J11: NA
B12: Antenatal Total | C12: 111 | D12: 683450 | E12: 5429 | F12: 5500 | G12: 0.9117701234 | H12: 0.912 | I12: 0.04899613188 | J12: 0.05054545455
B13: Antenatal NHS | C13: 111 | D13: 682266 | E13: 5429 | F13: 5500 | G13: 0.9117701234 | H13: 0.912 | I13: 0.04899613188 | J13: 0.05054545455
B14: Antenatal IS | C14: 0 | D14: 1184 | E14: 0 | F14: 0 | G14: NA | H14: NA | I14: NA | J14: NA
B15: Birth Total | C15: 116 | D15: 1010448 | E15: 5214 | F15: 5124 | G15: 0.9378596087 | H15: 0.93754879 | I15: 0.03567318757 | J15: 0.03805620609
B16: Birth NHS | C16: 116 | D16: 1010024 | E16: 5214 | F16: 5124 | G16: 0.9378596087 | H16: 0.93754879 | I16: 0.03567318757 | J16: 0.03805620609
B17: Birth IS | C17: 0 | D17: 424 | E17: 0 | F17: 0 | G17: NA | H17: NA | I17: NA | J17: NA
B18: Postnatal Ward Total | C18: 113 | D18: 1110885 | E18: 5552 | F18: 6165 | G18: 0.9194884726 | H18: 0.9229521492 | I18: 0.04196685879 | J18: 0.03811841038
B19: Postnatal Ward Total NHS | C19: 113 | D19: 1110885 | E19: 5552 | F19: 6165 | G19: 0.9194884726 | H19: 0.9229521492 | I19: 0.04196685879 | J19: 0.03811841038
B20: Postnatal Ward Total IS | C20: NA | D20: NA | E20: NA | F20: NA | G20: NA | H20: NA | I20: NA | J20: NA
B21: Postnatal Community Total | C21: 118 | D21: 450712 | E21: 1306 | F21: 1533 | G21: 0.911179173 | H21: 0.9171559035 | I21: 0.04594180704 | J21: 0.03652968037
B22: Postnatal Community NHS | C22: 118 | D22: 448917 | E22: 1306 | F22: 1533 | G22: 0.911179173 | H22: 0.9171559035 | I22: 0.04594180704 | J22: 0.03652968037
B23: Postnatal Community IS | C23: 0 | D23: 1795 | E23: 0 | F23: 0 | G23: NA | H23: NA | I23: NA | J23: NA

Sheet ICB Q1
B6: Sort data by:
A9: ICB Code | B9: ICB Name | C9: Total Responses | D9: Percentage Positive | E9: Percentage Negative | F9: Breakdown of Responses
F10: Very Good | G10: Good | H10: Neither Good nor Poor | I10: Poor | J10: Very Poor | K10: Don't Know
B11: England (including Independent Sector providers) | C11: 5429 | D11: 0.9117701234 | E11: 0.04899613188 | F11: 4040 | G11: 910 | H11: 185 | I11: 134 | J11: 132 | K11: 28
B12: England (excluding Independent Sector providers) | C12: 5429 | D12: 0.9117701234 | E12: 0.04899613188 | F12: 4040 | G12: 910 | H12: 185 | I12: 134 | J12: 132 | K12: 28
B13: Selection (excluding suppressed data) | C13: =SUBTOTAL(9,C14:C55) -> 5429 | D13: =IFERROR((F13+G13)/SUM(F13:K13), "-") -> 0.9118299445 | E13: =IFERROR((I13+J13)/SUM(F13:K13), "-") -> 0.04898336414 | F13: =SUBTOTAL(9,F14:F55) -> 4027 | G13: =SUBTOTAL(9,G14:G55) -> 906 | H13: 184 | I13: 134 | J13: 131 | K13: 28
A14: QE1 | B14: LANCASHIRE AND SOUTH CUMBRIA ICB | C14: 94 | D14: 0.829787234 | E14: 0.1489361702 | F14: 62 | G14: 16 | H14: 2 | I14: 5 | J14: 9 | K14: 0
A15: QF7 | B15: SOUTH YORKSHIRE ICB | C15: 75 | D15: 0.9466666667 | E15: 0.04 | F15: 64 | G15: 7 | H15: 1 | I15: 3 | J15: 0 | K15: 0
A16: QGH | B16: HEREFORDSHIRE AND WORCESTERSHIRE ICB | C16: 3 | D16: * | E16: * | F16: * | G16: * | H16: * | I16: * | J16: * | K16: *
A17: QH8 | B17: MID AND SOUTH ESSEX ICB | C17: 3 | D17: * | E17: * | F17: * | G17: * | H17: * | I17: * | J17: * | K17: *
A18: QHG | B18: BEDFORDSHIRE, LUTON AND MILTON KEYNES ICB | C18: 435 | D18: 0.9264367816 | E18: 0.02298850575 | F18: 266 | G18: 137 | H18: 19 | I18: 6 | J18: 4 | K18: 3
A19: QHL | B19: BIRMINGHAM AND SOLIHULL ICB | C19: 312 | D19: 0.8173076923 | E19: 0.1282051282 | F19: 191 | G19: 64 | H19: 15 | I19: 13 | J19: 27 | K19: 2
A20: QHM | B20: NORTH EAST AND NORTH CUMBRIA ICB | C20: 202 | D20: 0.9504950495 | E20: 0.0396039604 | F20: 158 | G20: 34 | H20: 2 | I20: 5 | J20: 3 | K20: 0
A21: QJ2 | B21: DERBY AND DERBYSHIRE ICB | C21: 147 | D21: 0.8231292517 | E21: 0.1020408163 | F21: 73 | G21: 48 | H21: 11 | I21: 9 | J21: 6 | K21: 0
A22: QJG | B22: SUFFOLK AND NORTH EAST ESSEX ICB | C22: 64 | D22: 0.96875 | E22: 0.015625 | F22: 55 | G22: 7 | H22: 1 | I22: 1 | J22: 0 | K22: 0
A23: QJK | B23: DEVON ICB | C23: 45 | D23: 1 | E23: 0 | F23: 43 | G23: 2 | H23: 0 | I23: 0 | J23: 0 | K23: 0
A24: QJM | B24: LINCOLNSHIRE ICB | C24: 0 | D24: NA | E24: NA | F24: 0 | G24: 0 | H24: 0 | I24: 0 | J24: 0 | K24: 0
A25: QK1 | B25: LEICESTER, LEICESTERSHIRE AND RUTLAND ICB | C25: 135 | D25: 0.9407407407 | E25: 0.007407407407 | F25: 96 | G25: 31 | H25: 4 | I25: 1 | J25: 0 | K25: 3
A26: QKK | B26: SOUTH EAST LONDON ICB | C26: 118 | D26: 0.9406779661 | E26: 0.02542372881 | F26: 84 | G26: 27 | H26: 4 | I26: 2 | J26: 1 | K26: 0
A27: QKS | B27: KENT AND MEDWAY ICB | C27: 501 | D27: 0.9421157685 | E27: 0.03393213573 | F27: 416 | G27: 56 | H27: 10 | I27: 13 | J27: 4 | K27: 2
A28: QM7 | B28: HERTFORDSHIRE AND WEST ESSEX ICB | C28: 28 | D28: 0.8928571429 | E28: 0 | F28: 17 | G28: 8 | H28: 2 | I28: 0 | J28: 0 | K28: 1
A29: QMF | B29: NORTH EAST LONDON ICB | C29: 259 | D29: 0.8841698842 | E29: 0.05791505792 | F29: 192 | G29: 37 | H29: 12 | I29: 6 | J29: 9 | K29: 3
A30: QMJ | B30: NORTH CENTRAL LONDON ICB | C30: 108 | D30: 0.8888888889 | E30: 0.07407407407 | F30: 83 | G30: 13 | H30: 4 | I30: 7 | J30: 1 | K30: 0
A31: QMM | B31: NORFOLK AND WAVENEY ICB | C31: 154 | D31: 0.9025974026 | E31: 0.08441558442 | F31: 101 | G31: 38 | H31: 2 | I31: 7 | J31: 6 | K31: 0
A32: QNC | B32: STAFFORDSHIRE AND STOKE-ON-TRENT ICB | C32: 19 | D32: 0.9473684211 | E32: 0.05263157895 | F32: 15 | G32: 3 | H32: 0 | I32: 0 | J32: 1 | K32: 0
A33: QNQ | B33: FRIMLEY ICB | C33: 11 | D33: 0.9090909091 | E33: 0.09090909091 | F33: 9 | G33: 1 | H33: 0 | I33: 0 | J33: 1 | K33: 0
A34: QNX | B34: SUSSEX ICB | C34: 0 | D34: NA | E34: NA | F34: 0 | G34: 0 | H34: 0 | I34: 0 | J34: 0 | K34: 0
A35: QOC | B35: SHROPSHIRE, TELFORD AND WREKIN ICB | C35: 19 | D35: 1 | E35: 0 | F35: 19 | G35: 0 | H35: 0 | I35: 0 | J35: 0 | K35: 0
A36: QOP | B36: GREATER MANCHESTER ICB | C36: 387 | D36: 0.9483204134 | E36: 0.02583979328 | F36: 322 | G36: 45 | H36: 8 | I36: 5 | J36: 5 | K36: 2
A37: QOQ | B37: HUMBER AND NORTH YORKSHIRE ICB | C37: 7 | D37: 1 | E37: 0 | F37: * | G37: * | H37: * | I37: * | J37: * | K37: *
A38: QOX | B38: BATH AND NORTH EAST SOMERSET, SWINDON AND WILTSHIRE ICB | C38: 44 | D38: 0.8636363636 | E38: 0.06818181818 | F38: 32 | G38: 6 | H38: 3 | I38: 2 | J38: 1 | K38: 0
A39: QPM | B39: NORTHAMPTONSHIRE ICB | C39: 2 | D39: * | E39: * | F39: * | G39: * | H39: * | I39: * | J39: * | K39: *
A40: QR1 | B40: GLOUCESTERSHIRE ICB | C40: 0 | D40: NA | E40: NA | F40: 0 | G40: 0 | H40: 0 | I40: 0 | J40: 0 | K40: 0
A41: QRL | B41: HAMPSHIRE AND ISLE OF WIGHT ICB | C41: 231 | D41: 0.9350649351 | E41: 0.01298701299 | F41: 180 | G41: 36 | H41: 11 | I41: 2 | J41: 1 | K41: 1
A42: QRV | B42: NORTH WEST LONDON ICB | C42: 222 | D42: 0.8558558559 | E42: 0.08558558559 | F42: 154 | G42: 36 | H42: 12 | I42: 8 | J42: 11 | K42: 1
A43: QSL | B43: SOMERSET ICB | C43: 15 | D43: 0.8666666667 | E43: 0.06666666667 | F43: 13 | G43: 0 | H43: 1 | I43: 0 | J43: 1 | K43: 0
A44: QT1 | B44: NOTTINGHAM AND NOTTINGHAMSHIRE ICB | C44: 338 | D44: 0.9437869822 | E44: 0.02071005917 | F44: 282 | G44: 37 | H44: 12 | I44: 4 | J44: 3 | K44: 0
A45: QT6 | B45: CORNWALL AND THE ISLES OF SCILLY ICB | C45: 4 | D45: * | E45: * | F45: * | G45: * | H45: * | I45: * | J45: * | K45: *
A46: QU9 | B46: BUCKINGHAMSHIRE, OXFORDSHIRE AND BERKSHIRE WEST ICB | C46: 182 | D46: 0.8736263736 | E46: 0.06043956044 | F46: 134 | G46: 25 | H46: 11 | I46: 6 | J46: 5 | K46: 1
A47: QUA | B47: BLACK COUNTRY ICB | C47: 133 | D47: 0.8496240602 | E47: 0.0977443609 | F47: 98 | G47: 15 | H47: 4 | I47: 4 | J47: 9 | K47: 3
A48: QUE | B48: CAMBRIDGESHIRE AND PETERBOROUGH ICB | C48: 98 | D48: 0.9795918367 | E48: 0.02040816327 | F48: 93 | G48: 3 | H48: 0 | I48: 1 | J48: 1 | K48: 0
A49: QUY | B49: BRISTOL, NORTH SOMERSET AND SOUTH GLOUCESTERSHIRE ICB | C49: 30 | D49: 1 | E49: 0 | F49: 24 | G49: 6 | H49: 0 | I49: 0 | J49: 0 | K49: 0
A50: QVV | B50: DORSET ICB | C50: 59 | D50: 0.9152542373 | E50: 0.05084745763 | F50: 38 | G50: 16 | H50: 2 | I50: 2 | J50: 1 | K50: 0
A51: QWE | B51: SOUTH WEST LONDON ICB | C51: 115 | D51: 0.8434782609 | E51: 0.06956521739 | F51: 78 | G51: 19 | H51: 8 | I51: 4 | J51: 4 | K51: 2
A52: QWO | B52: WEST YORKSHIRE ICB | C52: 617 | D52: 0.9335494327 | E52: 0.04051863857 | F52: 484 | G52: 92 | H52: 15 | I52: 13 | J52: 12 | K52: 1
A53: QWU | B53: COVENTRY AND WARWICKSHIRE ICB | C53: 80 | D53: 0.8375 | E53: 0.05 | F53: 46 | G53: 21 | H53: 7 | I53: 3 | J53: 1 | K53: 2
A54: QXU | B54: SURREY HEARTLANDS ICB | C54: 9 | D54: 0.8888888889 | E54: 0.1111111111 | F54: 6 | G54: 2 | H54: 0 | I54: 1 | J54: 0 | K54: 0
A55: QYG | B55: CHESHIRE AND MERSEYSIDE ICB | C55: 124 | D55: 0.9435483871 | E55: 0.04032258065 | F55: 99 | G55: 18 | H55: 1 | I55: 1 | J55: 4 | K55: 1

Sheet Trusts Q1
B6: Sort data by:
A9: ICB Code | B9: Trust Code | C9: Trust Name | D9: Total Responses | E9: Percentage Positive | F9: Percentage Negative | G9: Breakdown of Responses | M9: Mode of Collection
G10: Very Good | H10: Good | I10: Neither Good nor Poor | J10: Poor | K10: Very Poor | L10: Don't Know | M10: Mode SMS | N10: Mode Electronic Discharge | O10: Mode Electronic Home | P10: Mode Paper Discharge | Q10: Mode Paper Home | R10: Mode Telephone | S10: Mode Online | T10: Mode Other
C11: England (including Independent Sector providers) | D11: 5429 | E11: 0.9117701234 | F11: 0.04899613188 | G11: 4040 | H11: 910 | I11: 185 | J11: 134 | K11: 132 | L11: 28 | M11: 1670 | N11: 540 | O11: 9 | P11: 1824 | Q11: 73 | R11: 7 | S11: 1258 | T11: 48
C12: England (excluding Independent Sector providers) | D12: 5429 | E12: 0.9117701234 | F12: 0.04899613188 | G12: 4040 | H12: 910 | I12: 185 | J12: 134 | K12: 132 | L12: 28 | M12: 1670 | N12: 540 | O12: 9 | P12: 1824 | Q12: 73 | R12: 7 | S12: 1258 | T12: 48
C13: Selection (excluding suppressed data) | D13: =SUBTOTAL(9,D14:D298) -> 5429 | E13: =IFERROR((G13+H13)/SUM(G13:L13), "-") -> 0.9125490196 | F13: =IFERROR((J13+K13)/SUM(G13:L13), "-") -> 0.04882352941 | G13: =SUBTOTAL(9,G14:G298) -> 3797 | H13: 857 | I13: 172 | J13: 122 | K13: 127 | L13: 25 | M13: 1579 | N13: 477 | O13: 0 | P13: 1708 | Q13: 69 | R13: 7 | S13: 1213 | T13: 47
A14: QE1 | B14: RXN | C14: LANCASHIRE TEACHING HOSPITALS NHS FOUNDATION TRUST | D14: 15 | E14: 0.5333333333 | F14: 0.4666666667 | G14: 6 | H14: 2 | I14: 0 | J14: 5 | K14: 2 | L14: 0 | M14: 15 | N14: 0 | O14: 0 | P14: 0 | Q14: 0 | R14: 0 | S14: 0 | T14: 0
A15: QE1 | B15: RTX | C15: UNIVERSITY HOSPITALS OF MORECAMBE BAY NHS FOUNDATION TRUST | D15: 22 | E15: 0.9090909091 | F15: 0.09090909091 | G15: 17 | H15: 3 | I15: 0 | J15: 0 | K15: 2 | L15: 0 | M15: 0 | N15: 0 | O15: 0 | P15: 0 | Q15: 0 | R15: 0 | S15: 22 | T15: 0
A16: QE1 | B16: RXR | C16: EAST LANCASHIRE HOSPITALS NHS TRUST | D16: 27 | E16: 0.9259259259 | F16: 0.07407407407 | G16: 24 | H16: 1 | I16: 0 | J16: 0 | K16: 2 | L16: 0 | M16: 0 | N16: 0 | O16: 0 | P16: 27 | Q16: 0 | R16: 0 | S16: 0 | T16: 0
A17: QE1 | B17: RXL | C17: BLACKPOOL TEACHING HOSPITALS NHS FOUNDATION TRUST | D17: 30 | E17: 0.8333333333 | F17: 0.1 | G17: 15 | H17: 10 | I17: 2 | J17: 0 | K17: 3 | L17: 0 | M17: 30 | N17: 0 | O17: 0 | P17: 0 | Q17: 0 | R17: 0 | S17: 0 | T17: 0
A18: QF7 | B18: RFR | C18: THE ROTHERHAM NHS FOUNDATION TRUST | D18: 1 | E18: * | F18: * | G18: * | H18: * | I18: * | J18: * | K18: * | L18: * | M18: * | N18: * | O18: * | P18: * | Q18: * | R18: * | S18: * | T18: *
A19: QF7 | B19: RFF | C19: BARNSLEY HOSPITAL NHS FOUNDATION TRUST | D19: 3 | E19: * | F19: * | G19: * | H19: * | I19: * | J19: * | K19: * | L19: * | M19: * | N19: * | O19: * | P19: * | Q19: * | R19: * | S19: * | T19: *
A20: QF7 | B20: RHQ | C20: SHEFFIELD TEACHING HOSPITALS NHS FOUNDATION TRUST | D20: 20 | E20: 0.85 | F20: 0.1 | G20: 12 | H20: 5 | I20: 1 | J20: 2 | K20: 0 | L20: 0 | M20: 10 | N20: 0 | O20: 0 | P20: 0 | Q20: 6 | R20: 0 | S20: 4 | T20: 0
A21: QF7 | B21: RP5 | C21: DONCASTER AND BASSETLAW TEACHING HOSPITALS NHS FOUNDATION TRUST | D21: 51 | E21: 0.9803921569 | F21: 0.01960784314 | G21: 48 | H21: 2 | I21: 0 | J21: 1 | K21: 0 | L21: 0 | M21: 0 | N21: 0 | O21: 0 | P21: 50 | Q21: 0 | R21: 0 | S21: 1 | T21: 0
A22: QGH | B22: RLQ | C22: WYE VALLEY NHS TRUST | D22: 0 | E22: NA | F22: NA | G22: 0 | H22: 0 | I22: 0 | J22: 0 | K22: 0 | L22: 0 | M22: 0 | N22: 0 | O22: 0 | P22: 0 | Q22: 0 | R22: 0 | S22: 0 | T22: 0
A23: QGH | B23: RWP | C23: WORCESTERSHIRE ACUTE HOSPITALS NHS TRUST | D23: 3 | E23: * | F23: * | G23: * | H23: * | I23: * | J23: * | K23: * | L23: * | M23: * | N23: * | O23: * | P23: * | Q23: * | R23: * | S23: * | T23: *
A24: QH8 | B24: RAJ | C24: MID AND SOUTH ESSEX NHS FOUNDATION TRUST | D24: 3 | E24: * | F24: * | G24: * | H24: * | I24: * | J24: * | K24: * | L24: * | M24: * | N24: * | O24: * | P24: * | Q24: * | R24: * | S24: * | T24: *
A25: QHG | B25: RC9 | C25: BEDFORDSHIRE HOSPITALS NHS FOUNDATION TRUST | D25: 171 | E25: 0.9298245614 | F25: 0.01169590643 | G25: 83 | H25: 76 | I25: 9 | J25: 2 | K25: 0 | L25: 1 | M25: 0 | N25: 171 | O25: 0 | P25: 0 | Q25: 0 | R25: 0 | S25: 0 | T25: 0
A26: QHG | B26: RD8 | C26: MILTON KEYNES UNIVERSITY HOSPITAL NHS FOUNDATION TRUST | D26: 264 | E26: 0.9242424242 | F26: 0.0303030303 | G26: 183 | H26: 61 | I26: 10 | J26: 4 | K26: 4 | L26: 2 | M26: 208 | N26: 0 | O26: 0 | P26: 46 | Q26: 0 | R26: 0 | S26: 10 | T26: 0
A27: QHL | B27: RQ3 | C27: BIRMINGHAM WOMEN'S AND CHILDREN'S NHS FOUNDATION TRUST | D27: 118 | E27: 0.8474576271 | F27: 0.1271186441 | G27: 69 | H27: 31 | I27: 3 | J27: 3 | K27: 12 | L27: 0 | M27: 0 | N27: 0 | O27: 0 | P27: 0 | Q27: 0 | R27: 0 | S27: 118 | T27: 0
A28: QHL | B28: RXK | C28: SANDWELL AND WEST BIRMINGHAM HOSPITALS NHS TRUST | D28: 194 | E28: 0.7989690722 | F28: 0.1288659794 | G28: 122 | H28: 33 | I28: 12 | J28: 10 | K28: 15 | L28: 2 | M28: 194 | N28: 0 | O28: 0 | P28: 0 | Q28: 0 | R28: 0 | S28: 0 | T28: 0
A29: QHM | B29: RTD | C29: THE NEWCASTLE UPON TYNE HOSPITALS NHS FOUNDATION TRUST | D29: 1 | E29: * | F29: * | G29: * | H29: * | I29: * | J29: * | K29: * | L29: * | M29: * | N29: * | O29: * | P29: * | Q29: * | R29: * | S29: * | T29: *
A30: QHM | B30: RR7 | C30: GATESHEAD HEALTH NHS FOUNDATION TRUST | D30: 4 | E30: * | F30: * | G30: * | H30: * | I30: * | J30: * | K30: * | L30: * | M30: * | N30: * | O30: * | P30: * | Q30: * | R30: * | S30: * | T30: *
A31: QHM | B31: RVW | C31: NORTH TEES AND HARTLEPOOL NHS FOUNDATION TRUST | D31: 6 | E31: 0.8333333333 | F31: 0.1666666667 | G31: 4 | H31: 1 | I31: 0 | J31: 1 | K31: 0 | L31: 0 | M31: 6 | N31: 0 | O31: 0 | P31: 0 | Q31: 0 | R31: 0 | S31: 0 | T31: 0
A32: QHM | B32: R0B | C32: SOUTH TYNESIDE AND SUNDERLAND NHS FOUNDATION TRUST | D32: 10 | E32: 1 | F32: 0 | G32: 8 | H32: 2 | I32: 0 | J32: 0 | K32: 0 | L32: 0 | M32: 0 | N32: 0 | O32: 0 | P32: 0 | Q32: 0 | R32: 0 | S32: 10 | T32: 0
A33: QHM | B33: RNN | C33: NORTH CUMBRIA INTEGRATED CARE NHS FOUNDATION TRUST | D33: 31 | E33: 1 | F33: 0 | G33: 27 | H33: 4 | I33: 0 | J33: 0 | K33: 0 | L33: 0 | M33: 3 | N33: 0 | O33: 0 | P33: 19 | Q33: 0 | R33: 0 | S33: 9 | T33: 0
A34: QHM | B34: RTR | C34: SOUTH TEES HOSPITALS NHS FOUNDATION TRUST | D34: 150 | E34: 0.94 | F34: 0.04666666667 | G34: 114 | H34: 27 | I34: 2 | J34: 4 | K34: 3 | L34: 0 | M34: 136 | N34: 14 | O34: 0 | P34: 0 | Q34: 0 | R34: 0 | S34: 0 | T34: 0
A35: QJ2 | B35: RTG | C35: UNIVERSITY HOSPITALS OF DERBY AND BURTON NHS FOUNDATION TRUST | D35: 44 | E35: 0.75 | F35: 0.2272727273 | G35: 19 | H35: 14 | I35: 1 | J35: 6 | K35: 4 | L35: 0 | M35: 30 | N35: 0 | O35: 0 | P35: 14 | Q35: 0 | R35: 0 | S35: 0 | T35: 0
A36: QJ2 | B36: RFS | C36: CHESTERFIELD ROYAL HOSPITAL NHS FOUNDATION TRUST | D36: 103 | E36: 0.854368932 | F36: 0.04854368932 | G36: 54 | H36: 34 | I36: 10 | J36: 3 | K36: 2 | L36: 0 | M36: 103 | N36: 0 | O36: 0 | P36: 0 | Q36: 0 | R36: 0 | S36: 0 | T36: 0
A37: QJG | B37: RGR | C37: WEST SUFFOLK NHS FOUNDATION TRUST | D37: 8 | E37: 1 | F37: 0 | G37: 7 | H37: 1 | I37: 0 | J37: 0 | K37: 0 | L37: 0 | M37: 0 | N37: 0 | O37: 0 | P37: 0 | Q37: 0 | R37: 0 | S37: 8 | T37: 0
A38: QJG | B38: RDE | C38: EAST SUFFOLK AND NORTH ESSEX NHS FOUNDATION TRUST | D38: 56 | E38: 0.9642857143 | F38: 0.01785714286 | G38: 48 | H38: 6 | I38: 1 | J38: 1 | K38: 0 | L38: 0 | M38: 0 | N38: 0 | O38: 0 | P38: 0 | Q38: 0 | R38: 0 | S38: 56 | T38: 0
A39: QJK | B39: RA9 | C39: TORBAY AND SOUTH DEVON NHS FOUNDATION TRUST | D39: 0 | E39: NA | F39: NA | G39: 0 | H39: 0 | I39: 0 | J39: 0 | K39: 0 | L39: 0 | M39: 0 | N39: 0 | O39: 0 | P39: 0 | Q39: 0 | R39: 0 | S39: 0 | T39: 0
A40: QJK | B40: RK9 | C40: UNIVERSITY HOSPITALS PLYMOUTH NHS TRUST | D40: 10 | E40: 1 | F40: 0 | G40: 10 | H40: 0 | I40: 0 | J40: 0 | K40: 0 | L40: 0 | M40: 0 | N40: 1 | O40: 0 | P40: 9 | Q40: 0 | R40: 0 | S40: 0 | T40: 0
A41: QJK | B41: RH8 | C41: ROYAL DEVON UNIVERSITY HEALTHCARE NHS FOUNDATION TRUST | D41: 35 | E41: 1 | F41: 0 | G41: 33 | H41: 2 | I41: 0 | J41: 0 | K41: 0 | L41: 0 | M41: 0 | N41: 0 | O41: 0 | P41: 35 | Q41: 0 | R41: 0 | S41: 0 | T41: 0
A42: QJM | B42: RWD | C42: UNITED LINCOLNSHIRE HOSPITALS NHS TRUST | D42: 0 | E42: NA | F42: NA | G42: 0 | H42: 0 | I42: 0 | J42: 0 | K42: 0 | L42: 0 | M42: 0 | N42: 0 | O42: 0 | P42: 0 | Q42: 0 | R42: 0 | S42: 0 | T42: 0
A43: QK1 | B43: RWE | C43: UNIVERSITY HOSPITALS OF LEICESTER NHS TRUST | D43: 135 | E43: 0.9407407407 | F43: 0.007407407407 | G43: 96 | H43: 31 | I43: 4 | J43: 1 | K43: 0 | L43: 3 | M43: 58 | N43: 77 | O43: 0 | P43: 0 | Q43: 0 | R43: 0 | S43: 0 | T43: 0
A44: QKK | B44: RJ1 | C44: GUY'S AND ST THOMAS' NHS FOUNDATION TRUST | D44: 8 | E44: 0.625 | F44: 0.25 | G44: 3 | H44: 2 | I44: 1 | J44: 1 | K44: 1 | L44: 0 | M44: 0 | N44: 0 | O44: 0 | P44: 1 | Q44: 0 | R44: 0 | S44: 7 | T44: 0
A45: QKK | B45: RJZ | C45: KING'S COLLEGE HOSPITAL NHS FOUNDATION TRUST | D45: 19 | E45: 0.9473684211 | F45: 0 | G45: 14 | H45: 4 | I45: 1 | J45: 0 | K45: 0 | L45: 0 | M45: 9 | N45: 4 | O45: 0 | P45: 0 | Q45: 0 | R45: 6 | S45: 0 | T45: 0
A46: QKK | B46: RJ2 | C46: LEWISHAM AND GREENWICH NHS TRUST | D46: 91 | E46: 0.967032967 | F46: 0.01098901099 | G46: 67 | H46: 21 | I46: 2 | J46: 1 | K46: 0 | L46: 0 | M46: 0 | N46: 0 | O46: 0 | P46: 70 | Q46: 0 | R46: 0 | S46: 21 | T46: 0
A47: QKS | B47: RPA | C47: MEDWAY NHS FOUNDATION TRUST | D47: 12 | E47: 0.8333333333 | F47: 0.08333333333 | G47: 8 | H47: 2 | I47: 1 | J47: 0 | K47: 1 | L47: 0 | M47: 0 | N47: 0 | O47: 0 | P47: 0 | Q47: 12 | R47: 0 | S47: 0 | T47: 0
A48: QKS | B48: RN7 | C48: DARTFORD AND GRAVESHAM NHS TRUST | D48: 143 | E48: 0.9160839161 | F48: 0.04895104895 | G48: 110 | H48: 21 | I48: 3 | J48: 7 | K48: 0 | L48: 2 | M48: 0 | N48: 0 | O48: 0 | P48: 0 | Q48: 0 | R48: 0 | S48: 143 | T48: 0
A49: QKS | B49: RVV | C49: EAST KENT HOSPITALS UNIVERSITY NHS FOUNDATION TRUST | D49: 152 | E49: 0.9078947368 | F49: 0.05263157895 | G49: 107 | H49: 31 | I49: 6 | J49: 5 | K49: 3 | L49: 0 | M49: 152 | N49: 0 | O49: 0 | P49: 0 | Q49: 0 | R49: 0 | S49: 0 | T49: 0
A50: QKS | B50: RWF | C50: MAIDSTONE AND TUNBRIDGE WELLS NHS TRUST | D50: 194 | E50: 0.9948453608 | F50: 0.005154639175 | G50: 191 | H50: 2 | I50: 0 | J50: 1 | K50: 0 | L50: 0 | M50: 0 | N50: 0 | O50: 0 | P50: 29 | Q50: 0 | R50: 0 | S50: 165 | T50: 0
A51: QM7 | B51: RQW | C51: THE PRINCESS ALEXANDRA HOSPITAL NHS TRUST | D51: 0 | E51: NA | F51: NA | G51: 0 | H51: 0 | I51: 0 | J51: 0 | K51: 0 | L51: 0 | M51: 0 | N51: 0 | O51: 0 | P51: 0 | Q51: 0 | R51: 0 | S51: 0 | T51: 0
A52: QM7 | B52: RWG | C52: WEST HERTFORDSHIRE TEACHING HOSPITALS NHS TRUST | D52: 3 | E52: * | F52: * | G52: * | H52: * | I52: * | J52: * | K52: * | L52: * | M52: * | N52: * | O52: * | P52: * | Q52: * | R52: * | S52: * | T52: *
A53: QM7 | B53: RWH | C53: EAST AND NORTH HERTFORDSHIRE NHS TRUST | D53: 25 | E53: 0.88 | F53: 0 | G53: * | H53: * | I53: * | J53: * | K53: * | L53: * | M53: * | N53: * | O53: * | P53: * | Q53: * | R53: * | S53: * | T53: *
A54: QMF | B54: RQX | C54: HOMERTON HEALTHCARE NHS FOUNDATION TRUST | D54: 14 | E54: 0.7142857143 | F54: 0.1428571429 | G54: 5 | H54: 5 | I54: 2 | J54: 1 | K54: 1 | L54: 0 | M54: 14 | N54: 0 | O54: 0 | P54: 0 | Q54: 0 | R54: 0 | S54: 0 | T54: 0
A55: QMF | B55: RF4 | C55: BARKING, HAVERING AND REDBRIDGE UNIVERSITY HOSPITALS NHS TRUST | D55: 68 | E55: 0.9558823529 | F55: 0.01470588235 | G55: 56 | H55: 9 | I55: 1 | J55: 0 | K55: 1 | L55: 1 | M55: 0 | N55: 0 | O55: 0 | P55: 67 | Q55: 0 | R55: 0 | S55: 1 | T55: 0
A56: QMF | B56: R1H | C56: BARTS HEALTH NHS TRUST | D56: 177 | E56: 0.8700564972 | F56: 0.06779661017 | G56: 131 | H56: 23 | I56: 9 | J56: 5 | K56: 7 | L56: 2 | M56: 34 | N56: 0 | O56: 0 | P56: 26 | Q56: 0 | R56: 0 | S56: 117 | T56: 0
A57: QMJ | B57: RRV | C57: UNIVERSITY COLLEGE LONDON HOSPITALS NHS FOUNDATION TRUST | D57: 2 | E57: * | F57: * | G57: * | H57: * | I57: * | J57: * | K57: * | L57: * | M57: * | N57: * | O57: * | P57: * | Q57: * | R57: * | S57: * | T57: *
A58: QMJ | B58: RAL | C58: ROYAL FREE LONDON NHS FOUNDATION TRUST | D58: 10 | E58: 0.6 | F58: 0.4 | G58: * | H58: * | I58: * | J58: * | K58: * | L58: * | M58: * | N58: * | O58: * | P58: * | Q58: * | R58: * | S58: * | T58: *
A59: QMJ | B59: RAP | C59: NORTH MIDDLESEX UNIVERSITY HOSPITAL NHS TRUST | D59: 48 | E59: 0.8958333333 | F59: 0.0625 | G59: 34 | H59: 9 | I59: 2 | J59: 3 | K59: 0 | L59: 0 | M59: 45 | N59: 3 | O59: 0 | P59: 0 | Q59: 0 | R59: 0 | S59: 0 | T59: 0
A60: QMJ | B60: RKE | C60: WHITTINGTON HEALTH NHS TRUST | D60: 48 | E60: 0.9375 | F60: 0.02083333333 | G60: 41 | H60: 4 | I60: 2 | J60: 1 | K60: 0 | L60: 0 | M60: 0 | N60: 0 | O60: 0 | P60: 48 | Q60: 0 | R60: 0 | S60: 0 | T60: 0
A61: QMM | B61: RGP | C61: JAMES PAGET UNIVERSITY HOSPITALS NHS FOUNDATION TRUST | D61: 0 | E61: NA | F61: NA | G61: 0 | H61: 0 | I61: 0 | J61: 0 | K61: 0 | L61: 0 | M61: 0 | N61: 0 | O61: 0 | P61: 0 | Q61: 0 | R61: 0 | S61: 0 | T61: 0
A62: QMM | B62: RM1 | C62: NORFOLK AND NORWICH UNIVERSITY HOSPITALS NHS FOUNDATION TRUST | D62: 59 | E62: 0.7966101695 | F62: 0.1694915254 | G62: 28 | H62: 19 | I62: 2 | J62: 5 | K62: 5 | L62: 0 | M62: 0 | N62: 0 | O62: 0 | P62: 9 | Q62: 0 | R62: 0 | S62: 50 | T62: 0
A63: QMM | B63: RCX | C63: THE QUEEN ELIZABETH HOSPITAL, KING'S LYNN, NHS FOUNDATION TRUST | D63: 95 | E63: 0.9684210526 | F63: 0.03157894737 | G63: 73 | H63: 19 | I63: 0 | J63: 2 | K63: 1 | L63: 0 | M63: 0 | N63: 0 | O63: 0 | P63: 93 | Q63: 0 | R63: 0 | S63: 2 | T63: 0
A64: QNC | B64: RJE | C64: UNIVERSITY HOSPITALS OF NORTH MIDLANDS NHS TRUST | D64: 19 | E64: 0.9473684211 | F64: 0.05263157895 | G64: 15 | H64: 3 | I64: 0 | J64: 0 | K64: 1 | L64: 0 | M64: 14 | N64: 0 | O64: 0 | P64: 0 | Q64: 0 | R64: 0 | S64: 5 | T64: 0
A65: QNQ | B65: RDU | C65: FRIMLEY HEALTH NHS FOUNDATION TRUST | D65: 11 | E65: 0.9090909091 | F65: 0.09090909091 | G65: 9 | H65: 1 | I65: 0 | J65: 0 | K65: 1 | L65: 0 | M65: 0 | N65: 0 | O65: 0 | P65: 11 | Q65: 0 | R65: 0 | S65: 0 | T65: 0
A66: QNX | B66: RXC | C66: EAST SUSSEX HEALTHCARE NHS TRUST | D66: 0 | E66: NA | F66: NA | G66: 0 | H66: 0 | I66: 0 | J66: 0 | K66: 0 | L66: 0 | M66: 0 | N66: 0 | O66: 0 | P66: 0 | Q66: 0 | R66: 0 | S66: 0 | T66: 0
A67: QOC | B67: RXW | C67: THE SHREWSBURY AND TELFORD HOSPITAL NHS TRUST | D67: 19 | E67: 1 | F67: 0 | G67: 19 | H67: 0 | I67: 0 | J67: 0 | K67: 0 | L67: 0 | M67: 0 | N67: 0 | O67: 0 | P67: 19 | Q67: 0 | R67: 0 | S67: 0 | T67: 0
A68: QOP | B68: RM3 | C68: NORTHERN CARE ALLIANCE NHS FOUNDATION TRUST | D68: 0 | E68: NA | F68: NA | G68: 0 | H68: 0 | I68: 0 | J68: 0 | K68: 0 | L68: 0 | M68: 0 | N68: 0 | O68: 0 | P68: 0 | Q68: 0 | R68: 0 | S68: 0 | T68: 0
A69: QOP | B69: RRF | C69: WRIGHTINGTON, WIGAN AND LEIGH NHS FOUNDATION TRUST | D69: 2 | E69: * | F69: * | G69: * | H69: * | I69: * | J69: * | K69: * | L69: * | M69: * | N69: * | O69: * | P69: * | Q69: * | R69: * | S69: * | T69: *
A70: QOP | B70: RWJ | C70: STOCKPORT NHS FOUNDATION TRUST | D70: 20 | E70: 0.9 | F70: 0.1 | G70: * | H70: * | I70: * | J70: * | K70: * | L70: * | M70: * | N70: * | O70: * | P70: * | Q70: * | R70: * | S70: * | T70: *
A71: QOP | B71: RMP | C71: TAMESIDE AND GLOSSOP INTEGRATED CARE NHS FOUNDATION TRUST | D71: 22 | E71: 0.9090909091 | F71: 0.04545454545 | G71: 17 | H71: 3 | I71: 1 | J71: 0 | K71: 1 | L71: 0 | M71: 0 | N71: 22 | O71: 0 | P71: 0 | Q71: 0 | R71: 0 | S71: 0 | T71: 0
A72: QOP | B72: RMC | C72: BOLTON NHS FOUNDATION TRUST | D72: 28 | E72: 0.9285714286 | F72: 0.03571428571 | G72: 24 | H72: 2 | I72: 1 | J72: 1 | K72: 0 | L72: 0 | M72: 0 | N72: 4 | O72: 0 | P72: 24 | Q72: 0 | R72: 0 | S72: 0 | T72: 0
A73: QOP | B73: R0A | C73: MANCHESTER UNIVERSITY NHS FOUNDATION TRUST | D73: 315 | E73: 0.9555555556 | F73: 0.01904761905 | G73: 267 | H73: 34 | I73: 6 | J73: 2 | K73: 4 | L73: 2 | M73: 0 | N73: 107 | O73: 0 | P73: 197 | Q73: 0 | R73: 0 | S73: 6 | T73: 5
A74: QOQ | B74: RCB | C74: YORK AND SCARBOROUGH TEACHING HOSPITALS NHS FOUNDATION TRUST | D74: 0 | E74: NA | F74: NA | G74: 0 | H74: 0 | I74: 0 | J74: 0 | K74: 0 | L74: 0 | M74: 0 | N74: 0 | O74: 0 | P74: 0 | Q74: 0 | R74: 0 | S74: 0 | T74: 0
A75: QOQ | B75: RCD | C75: HARROGATE AND DISTRICT NHS FOUNDATION TRUST | D75: 0 | E75: NA | F75: NA | G75: 0 | H75: 0 | I75: 0 | J75: 0 | K75: 0 | L75: 0 | M75: 0 | N75: 0 | O75: 0 | P75: 0 | Q75: 0 | R75: 0 | S75: 0 | T75: 0
A76: QOQ | B76: RWA | C76: HULL UNIVERSITY TEACHING HOSPITALS NHS TRUST | D76: 0 | E76: NA | F76: NA | G76: 0 | H76: 0 | I76: 0 | J76: 0 | K76: 0 | L76: 0 | M76: 0 | N76: 0 | O76: 0 | P76: 0 | Q76: 0 | R76: 0 | S76: 0 | T76: 0
A77: QOQ | B77: RJL | C77: NORTHERN LINCOLNSHIRE AND GOOLE NHS FOUNDATION TRUST | D77: 7 | E77: 1 | F77: 0 | G77: * | H77: * | I77: * | J77: * | K77: * | L77: * | M77: * | N77: * | O77: * | P77: * | Q77: * | R77: * | S77: * | T77: *
A78: QOX | B78: RNZ | C78: SALISBURY NHS FOUNDATION TRUST | D78: 0 | E78: NA | F78: NA | G78: 0 | H78: 0 | I78: 0 | J78: 0 | K78: 0 | L78: 0 | M78: 0 | N78: 0 | O78: 0 | P78: 0 | Q78: 0 | R78: 0 | S78: 0 | T78: 0
A79: QOX | B79: RD1 | C79: ROYAL UNITED HOSPITALS BATH NHS FOUNDATION TRUST | D79: 2 | E79: * | F79: * | G79: * | H79: * | I79: * | J79: * | K79: * | L79: * | M79: * | N79: * | O79: * | P79: * | Q79: * | R79: * | S79: * | T79: *
A80: QOX | B80: RN3 | C80: GREAT WESTERN HOSPITALS NHS FOUNDATION TRUST | D80: 42 | E80: 0.8571428571 | F80: 0.07142857143 | G80: * | H80: * | I80: * | J80: * | K80: * | L80: * | M80: * | N80: * | O80: * | P80: * | Q80: * | R80: * | S80: * | T80: *
A81: QPM | B81: RNS | C81: NORTHAMPTON GENERAL HOSPITAL NHS TRUST | D81: 0 | E81: NA | F81: NA | G81: 0 | H81: 0 | I81: 0 | J81: 0 | K81: 0 | L81: 0 | M81: 0 | N81: 0 | O81: 0 | P81: 0 | Q81: 0 | R81: 0 | S81: 0 | T81: 0
A82: QPM | B82: RNQ | C82: KETTERING GENERAL HOSPITAL NHS FOUNDATION TRUST | D82: 2 | E82: * | F82: * | G82: * | H82: * | I82: * | J82: * | K82: * | L82: * | M82: * | N82: * | O82: * | P82: * | Q82: * | R82: * | S82: * | T82: *
A83: QRL | B83: R1F | C83: ISLE OF WIGHT NHS TRUST | D83: 6 | E83: 1 | F83: 0 | G83: 6 | H83: 0 | I83: 0 | J83: 0 | K83: 0 | L83: 0 | M83: 0 | N83: 0 | O83: 0 | P83: 6 | Q83: 0 | R83: 0 | S83: 0 | T83: 0
A84: QRL | B84: RN5 | C84: HAMPSHIRE HOSPITALS NHS FOUNDATION TRUST | D84: 7 | E84: 0.8571428571 | F84: 0 | G84: 6 | H84: 0 | I84: 1 | J84: 0 | K84: 0 | L84: 0 | M84: 0 | N84: 0 | O84: 0 | P84: 1 | Q84: 0 | R84: 0 | S84: 6 | T84: 0
A85: QRL | B85: RHM | C85: UNIVERSITY HOSPITAL SOUTHAMPTON NHS FOUNDATION TRUST | D85: 109 | E85: 0.8899082569 | F85: 0.02752293578 | G85: 71 | H85: 26 | I85: 8 | J85: 2 | K85: 1 | L85: 1 | M85: 0 | N85: 0 | O85: 0 | P85: 0 | Q85: 2 | R85: 0 | S85: 107 | T85: 0
A86: QRL | B86: RHU | C86: PORTSMOUTH HOSPITALS UNIVERSITY NATIONAL HEALTH SERVICE TRUST | D86: 109 | E86: 0.9816513761 | F86: 0 | G86: 97 | H86: 10 | I86: 2 | J86: 0 | K86: 0 | L86: 0 | M86: 0 | N86: 0 | O86: 0 | P86: 109 | Q86: 0 | R86: 0 | S86: 0 | T86: 0
A87: QRV | B87: R1K | C87: LONDON NORTH WEST UNIVERSITY HEALTHCARE NHS TRUST | D87: 0 | E87: NA | F87: NA | G87: 0 | H87: 0 | I87: 0 | J87: 0 | K87: 0 | L87: 0 | M87: 0 | N87: 0 | O87: 0 | P87: 0 | Q87: 0 | R87: 0 | S87: 0 | T87: 0
A88: QRV | B88: RYJ | C88: IMPERIAL COLLEGE HEALTHCARE NHS TRUST | D88: 49 | E88: 0.9795918367 | F88: 0 | G88: 41 | H88: 7 | I88: 1 | J88: 0 | K88: 0 | L88: 0 | M88: 0 | N88: 0 | O88: 0 | P88: 0 | Q88: 0 | R88: 0 | S88: 49 | T88: 0
A89: QRV | B89: RQM | C89: CHELSEA AND WESTMINSTER HOSPITAL NHS FOUNDATION TRUST | D89: 77 | E89: 0.8051948052 | F89: 0.1428571429 | G89: 53 | H89: 9 | I89: 3 | J89: 5 | K89: 6 | L89: 1 | M89: 54 | N89: 0 | O89: 0 | P89: 17 | Q89: 0 | R89: 0 | S89: 6 | T89: 0
A90: QRV | B90: RAS | C90: THE HILLINGDON HOSPITALS NHS FOUNDATION TRUST | D90: 96 | E90: 0.8333333333 | F90: 0.08333333333 | G90: 60 | H90: 20 | I90: 8 | J90: 3 | K90: 5 | L90: 0 | M90: 0 | N90: 0 | O90: 0 | P90: 0 | Q90: 0 | R90: 0 | S90: 96 | T90: 0
A91: QSL | B91: RH5 | C91: SOMERSET NHS FOUNDATION TRUST | D91: 15 | E91: 0.8666666667 | F91: 0.06666666667 | G91: 13 | H91: 0 | I91: 1 | J91: 0 | K91: 1 | L91: 0 | M91: 14 | N91: 0 | O91: 0 | P91: 1 | Q91: 0 | R91: 0 | S91: 0 | T91: 0
A92: QT1 | B92: RK5 | C92: SHERWOOD FOREST HOSPITALS NHS FOUNDATION TRUST | D92: 9 | E92: 0.8888888889 | F92: 0 | G92: 5 | H92: 3 | I92: 1 | J92: 0 | K92: 0 | L92: 0 | M92: 0 | N92: 0 | O92: 0 | P92: 0 | Q92: 0 | R92: 0 | S92: 9 | T92: 0
A93: QT1 | B93: RX1 | C93: NOTTINGHAM UNIVERSITY HOSPITALS NHS TRUST | D93: 329 | E93: 0.9452887538 | F93: 0.02127659574 | G93: 277 | H93: 34 | I93: 11 | J93: 4 | K93: 3 | L93: 0 | M93: 0 | N93: 11 | O93: 0 | P93: 307 | Q93: 0 | R93: 0 | S93: 11 | T93: 0
A94: QT6 | B94: REF | C94: ROYAL CORNWALL HOSPITALS NHS TRUST | D94: 4 | E94: * | F94: * | G94: * | H94: * | I94: * | J94: * | K94: * | L94: * | M94: * | N94: * | O94: * | P94: * | Q94: * | R94: * | S94: * | T94: *
A95: QU9 | B95: RTH | C95: OXFORD UNIVERSITY HOSPITALS NHS FOUNDATION TRUST | D95: 5 | E95: 0.6 | F95: 0.2 | G95: 3 | H95: 0 | I95: 1 | J95: 0 | K95: 1 | L95: 0 | M95: 0 | N95: 0 | O95: 0 | P95: 0 | Q95: 0 | R95: 0 | S95: 5 | T95: 0
A96: QU9 | B96: RHW | C96: ROYAL BERKSHIRE NHS FOUNDATION TRUST | D96: 32 | E96: 0.875 | F96: 0.0625 | G96: 25 | H96: 3 | I96: 2 | J96: 1 | K96: 1 | L96: 0 | M96: 32 | N96: 0 | O96: 0 | P96: 0 | Q96: 0 | R96: 0 | S96: 0 | T96: 0
A97: QU9 | B97: RXQ | C97: BUCKINGHAMSHIRE HEALTHCARE NHS TRUST | D97: 145 | E97: 0.8827586207 | F97: 0.05517241379 | G97: 106 | H97: 22 | I97: 8 | J97: 5 | K97: 3 | L97: 1 | M97: 145 | N97: 0 | O97: 0 | P97: 0 | Q97: 0 | R97: 0 | S97: 0 | T97: 0
A98: QUA | B98: RL4 | C98: THE ROYAL WOLVERHAMPTON NHS TRUST | D98: 35 | E98: 0.8285714286 | F98: 0.1428571429 | G98: 24 | H98: 5 | I98: 0 | J98: 1 | K98: 4 | L98: 1 | M98: 35 | N98: 0 | O98: 0 | P98: 0 | Q98: 0 | R98: 0 | S98: 0 | T98: 0
A99: QUA | B99: RNA | C99: THE DUDLEY GROUP NHS FOUNDATION TRUST | D99: 39 | E99: 0.8461538462 | F99: 0.07692307692 | G99: 33 | H99: 0 | I99: 1 | J99: 0 | K99: 3 | L99: 2 | M99: 4 | N99: 0 | O99: 0 | P99: 0 | Q99: 35 | R99: 0 | S99: 0 | T99: 0
A100: QUA | B100: RBK | C100: WALSALL HEALTHCARE NHS TRUST | D100: 59 | E100: 0.8644067797 | F100: 0.08474576271 | G100: 41 | H100: 10 | I100: 3 | J100: 3 | K100: 2 | L100: 0 | M100: 42 | N100: 16 | O100: 0 | P100: 0 | Q100: 0 | R100: 1 | S100: 0 | T100: 0
A101: QUE | B101: RGT | C101: CAMBRIDGE UNIVERSITY HOSPITALS NHS FOUNDATION TRUST | D101: 4 | E101: * | F101: * | G101: * | H101: * | I101: * | J101: * | K101: * | L101: * | M101: * | N101: * | O101: * | P101: * | Q101: * | R101: * | S101: * | T101: *
A102: QUE | B102: RGN | C102: NORTH WEST ANGLIA NHS FOUNDATION TRUST | D102: 94 | E102: 0.9787234043 | F102: 0.02127659574 | G102: * | H102: * | I102: * | J102: * | K102: * | L102: * | M102: * | N102: * | O102: * | P102: * | Q102: * | R102: * | S102: * | T102: *
A103: QUY | B103: RVJ | C103: NORTH BRISTOL NHS TRUST | D103: 5 | E103: 1 | F103: 0 | G103: 5 | H103: 0 | I103: 0 | J103: 0 | K103: 0 | L103: 0 | M103: 0 | N103: 0 | O103: 0 | P103: 0 | Q103: 0 | R103: 0 | S103: 5 | T103: 0
A104: QUY | B104: RA7 | C104: UNIVERSITY HOSPITALS BRISTOL AND WESTON NHS FOUNDATION TRUST | D104: 25 | E104: 1 | F104: 0 | G104: 19 | H104: 6 | I104: 0 | J104: 0 | K104: 0 | L104: 0 | M104: 0 | N104: 0 | O104: 0 | P104: 25 | Q104: 0 | R104: 0 | S104: 0 | T104: 0
A105: QVV | B105: RBD | C105: DORSET COUNTY HOSPITAL NHS FOUNDATION TRUST | D105: 17 | E105: 1 | F105: 0 | G105: 14 | H105: 3 | I105: 0 | J105: 0 | K105: 0 | L105: 0 | M105: 17 | N105: 0 | O105: 0 | P105: 0 | Q105: 0 | R105: 0 | S105: 0 | T105: 0
A106: QVV | B106: R0D | C106: UNIVERSITY HOSPITALS DORSET NHS FOUNDATION TRUST | D106: 42 | E106: 0.880952381 | F106: 0.07142857143 | G106: 24 | H106: 13 | I106: 2 | J106: 2 | K106: 1 | L106: 0 | M106: 28 | N106: 0 | O106: 0 | P106: 0 | Q106: 14 | R106: 0 | S106: 0 | T106: 0
A107: QWE | B107: RVR | C107: EPSOM AND ST HELIER UNIVERSITY HOSPITALS NHS TRUST | D107: 15 | E107: 0.7333333333 | F107: 0.1333333333 | G107: 11 | H107: 0 | I107: 0 | J107: 2 | K107: 0 | L107: 2 | M107: 0 | N107: 0 | O107: 0 | P107: 15 | Q107: 0 | R107: 0 | S107: 0 | T107: 0
A108: QWE | B108: RJ7 | C108: ST GEORGE'S UNIVERSITY HOSPITALS NHS FOUNDATION TRUST | D108: 30 | E108: 0.8 | F108: 0.1 | G108: 15 | H108: 9 | I108: 3 | J108: 0 | K108: 3 | L108: 0 | M108: 0 | N108: 0 | O108: 0 | P108: 0 | Q108: 0 | R108: 0 | S108: 0 | T108: 30
A109: QWE | B109: RAX | C109: KINGSTON HOSPITAL NHS FOUNDATION TRUST | D109: 70 | E109: 0.8857142857 | F109: 0.04285714286 | G109: 52 | H109: 10 | I109: 5 | J109: 2 | K109: 1 | L109: 0 | M109: 0 | N109: 35 | O109: 0 | P109: 0 | Q109: 0 | R109: 0 | S109: 35 | T109: 0
A110: QWO | B110: RAE | C110: BRADFORD TEACHING HOSPITALS NHS FOUNDATION TRUST | D110: 42 | E110: 0.8571428571 | F110: 0.1428571429 | G110: 34 | H110: 2 | I110: 0 | J110: 2 | K110: 4 | L110: 0 | M110: 0 | N110: 0 | O110: 0 | P110: 0 | Q110: 0 | R110: 0 | S110: 42 | T110: 0
A111: QWO | B111: RWY | C111: CALDERDALE AND HUDDERSFIELD NHS FOUNDATION TRUST | D111: 61 | E111: 0.9672131148 | F111: 0.01639344262 | G111: 49 | H111: 10 | I111: 1 | J111: 1 | K111: 0 | L111: 0 | M111: 0 | N111: 0 | O111: 0 | P111: 0 | Q111: 0 | R111: 0 | S111: 61 | T111: 0
A112: QWO | B112: RR8 | C112: LEEDS TEACHING HOSPITALS NHS TRUST | D112: 83 | E112: 0.9036144578 | F112: 0.04819277108 | G112: 69 | H112: 6 | I112: 3 | J112: 3 | K112: 1 | L112: 1 | M112: 71 | N112: 12 | O112: 0 | P112: 0 | Q112: 0 | R112: 0 | S112: 0 | T112: 0
A113: QWO | B113: RXF | C113: MID YORKSHIRE TEACHING NHS TRUST | D113: 431 | E113: 0.9419953596 | F113: 0.03248259861 | G113: 332 | H113: 74 | I113: 11 | J113: 7 | K113: 7 | L113: 0 | M113: 25 | N113: 0 | O113: 0 | P113: 397 | Q113: 0 | R113: 0 | S113: 9 | T113: 0
A114: QWU | B114: RLT | C114: GEORGE ELIOT HOSPITAL NHS TRUST | D114: 0 | E114: NA | F114: NA | G114: 0 | H114: 0 | I114: 0 | J114: 0 | K114: 0 | L114: 0 | M114: 0 | N114: 0 | O114: 0 | P114: 0 | Q114: 0 | R114: 0 | S114: 0 | T114: 0
A115: QWU | B115: RJC | C115: SOUTH WARWICKSHIRE UNIVERSITY NHS FOUNDATION TRUST | D115: 3 | E115: * | F115: * | G115: * | H115: * | I115: * | J115: * | K115: * | L115: * | M115: * | N115: * | O115: * | P115: * | Q115: * | R115: * | S115: * | T115: *
A116: QWU | B116: RKB | C116: UNIVERSITY HOSPITALS COVENTRY AND WARWICKSHIRE NHS TRUST | D116: 77 | E116: 0.8441558442 | F116: 0.03896103896 | G116: * | H116: * | I116: * | J116: * | K116: * | L116: * | M116: * | N116: * | O116: * | P116: * | Q116: * | R116: * | S116: * | T116: *
A117: QXU | B117: RTK | C117: ASHFORD AND ST PETER'S HOSPITALS NHS FOUNDATION TRUST | D117: 0 | E117: NA | F117: NA | G117: 0 | H117: 0 | I117: 0 | J117: 0 | K117: 0 | L117: 0 | M117: 0 | N117: 0 | O117: 0 | P117: 0 | Q117: 0 | R117: 0 | S117: 0 | T117: 0
A118: QXU | B118: RTP | C118: SURREY AND SUSSEX HEALTHCARE NHS TRUST | D118: 4 | E118: * | F118: * | G118: * | H118: * | I118: * | J118: * | K118: * | L118: * | M118: * | N118: * | O118: * | P118: * | Q118: * | R118: * | S118: * | T118: *
A119: QXU | B119: RA2 | C119: ROYAL SURREY COUNTY HOSPITAL NHS FOUNDATION TRUST | D119: 5 | E119: 1 | F119: 0 | G119: * | H119: * | I119: * | J119: * | K119: * | L119: * | M119: * | N119: * | O119: * | P119: * | Q119: * | R119: * | S119: * | T119: *
A120: QYG | B120: RWW | C120: WARRINGTON AND HALTON TEACHING HOSPITALS NHS FOUNDATION TRUST | D120: 1 | E120: * | F120: * | G120: * | H120: * | I120: * | J120: * | K120: * | L120: * | M120: * | N120: * | O120: * | P120: * | Q120: * | R120: * | S120: * | T120: *
A121: QYG | B121: RBT | C121: MID CHESHIRE HOSPITALS NHS FOUNDATION TRUST | D121: 7 | E121: 1 | F121: 0 | G121: * | H121: * | I121: * | J121: * | K121: * | L121: * | M121: * | N121: * | O121: * | P121: * | Q121: * | R121: * | S121: * | T121: *
A122: QYG | B122: REP | C122: LIVERPOOL WOMEN'S NHS FOUNDATION TRUST | D122: 12 | E122: 0.9166666667 | F122: 0 | G122: 9 | H122: 2 | I122: 0 | J122: 0 | K122: 0 | L122: 1 | M122: 0 | N122: 0 | O122: 0 | P122: 0 | Q122: 0 | R122: 0 | S122: 0 | T122: 12
A123: QYG | B123: RBL | C123: WIRRAL UNIVERSITY TEACHING HOSPITAL NHS FOUNDATION TRUST | D123: 50 | E123: 0.94 | F123: 0.06 | G123: 40 | H123: 7 | I123: 0 | J123: 1 | K123: 2 | L123: 0 | M123: 50 | N123: 0 | O123: 0 | P123: 0 | Q123: 0 | R123: 0 | S123: 0 | T123: 0
A124: QYG | B124: RBN | C124: MERSEY AND WEST LANCASHIRE TEACHING HOSPITALS NHS TRUST | D124: 54 | E124: 0.9444444444 | F124: 0.03703703704 | G124: 45 | H124: 6 | I124: 1 | J124: 0 | K124: 2 | L124: 0 | M124: 1 | N124: 0 | O124: 0 | P124: 36 | Q124: 0 | R124: 0 | S124: 17 | T124: 0

Sheet Sites Q1
B6: Sort data by:
A9: ICB Code | B9: Trust Code | C9: Trust Name | D9: Site Code | E9: Site Name | F9: Total Responses | G9: Percentage Positive | H9: Percentage Negative | I9: Breakdown of Responses
I10: Very Good | J10: Good | K10: Neither Good nor Poor | L10: Poor | M10: Very Poor | N10: Don't Know
E11: England (including Independent Sector providers) | F11: 5429 | G11: 0.9117701234 | H11: 0.04899613188 | I11: 4040 | J11: 910 | K11: 185 | L11: 134 | M11: 132 | N11: 28
E12: England (excluding Independent Sector providers) | F12: 5429 | G12: 0.9117701234 | H12: 0.04899613188 | I12: 4040 | J12: 910 | K12: 185 | L12: 134 | M12: 132 | N12: 28
E13: Selection (excluding suppressed data) | F13: =SUBTOTAL(9,F14:F297) -> 5429 | G13: =IFERROR((I13+J13)/SUM(I13:N13), "-") -> 0.9104542491 | H13: =IFERROR((L13+M13)/SUM(I13:N13), "-") -> 0.04955444469 | I13: =SUBTOTAL(9,I14:I297) -> 3410 | J13: 779 | K13: 162 | L13: 110 | M13: 118 | N13: 22
A14: QE1 | B14: RXL | C14: BLACKPOOL TEACHING HOSPITALS NHS FOUNDATION TRUST | D14: RXL01 | E14: Blackpool Victoria Hospital | F14: 30 | G14: 0.8333333333 | H14: 0.1 | I14: 15 | J14: 10 | K14: 2 | L14: 0 | M14: 3 | N14: 0
A15: QE1 | B15: RXR | C15: EAST LANCASHIRE HOSPITALS NHS TRUST | D15: RXR20 | E15: Royal Blackburn Hospital | F15: 27 | G15: 0.9259259259 | H15: 0.07407407407 | I15: 24 | J15: 1 | K15: 0 | L15: 0 | M15: 2 | N15: 0
A16: QE1 | B16: RXN | C16: LANCASHIRE TEACHING HOSPITALS NHS FOUNDATION TRUST | D16: RXN01 | E16: Chorley and South Ribble Hospital | F16: 0 | G16: NA | H16: NA | I16: 0 | J16: 0 | K16: 0 | L16: 0 | M16: 0 | N16: 0
A17: QE1 | B17: RXN | C17: LANCASHIRE TEACHING HOSPITALS NHS FOUNDATION TRUST | D17: RXN02 | E17: Royal Preston Hospital | F17: 15 | G17: 0.5333333333 | H17: 0.4666666667 | I17: 6 | J17: 2 | K17: 0 | L17: 5 | M17: 2 | N17: 0
A18: QE1 | B18: RTX | C18: UNIVERSITY HOSPITALS OF MORECAMBE BAY NHS FOUNDATION TRUST | D18: RTXBU | E18: Furness General Hospital | F18: 3 | G18: * | H18: * | I18: * | J18: * | K18: * | L18: * | M18: * | N18: *
A19: QE1 | B19: RTX | C19: UNIVERSITY HOSPITALS OF MORECAMBE BAY NHS FOUNDATION TRUST | D19: RTX02 | E19: Royal Lancaster Infirmary | F19: 19 | G19: 0.8947368421 | H19: 0.1052631579 | I19: * | J19: * | K19: * | L19: * | M19: * | N19: *
A20: QF7 | B20: RFF | C20: BARNSLEY HOSPITAL NHS FOUNDATION TRUST | D20: RFFAA | E20: Barnsley Hospital NHS Foundation Trust HQ | F20: 3 | G20: * | H20: * | I20: * | J20: * | K20: * | L20: * | M20: * | N20: *
A21: QF7 | B21: RP5 | C21: DONCASTER AND BASSETLAW TEACHING HOSPITALS NHS FOUNDATION TRUST | D21: RP5BA | E21: Bassetlaw Hospital | F21: 0 | G21: NA | H21: NA | I21: 0 | J21: 0 | K21: 0 | L21: 0 | M21: 0 | N21: 0
A22: QF7 | B22: RP5 | C22: DONCASTER AND BASSETLAW TEACHING HOSPITALS NHS FOUNDATION TRUST | D22: RP5DR | E22: Doncaster Royal Infirmary | F22: 0 | G22: NA | H22: NA | I22: 0 | J22: 0 | K22: 0 | L22: 0 | M22: 0 | N22: 0
A23: QF7 | B23: RP5 | C23: DONCASTER AND BASSETLAW TEACHING HOSPITALS NHS FOUNDATION TRUST | D23: RP5XXX | E23: Non-hospital site | F23: 51 | G23: 0.9803921569 | H23: 0.01960784314 | I23: 48 | J23: 2 | K23: 0 | L23: 1 | M23: 0 | N23: 0
A24: QF7 | B24: RHQ | C24: SHEFFIELD TEACHING HOSPITALS NHS FOUNDATION TRUST | D24: RHQHH | E24: Royal Hallamshire Hospital | F24: 20 | G24: 0.85 | H24: 0.1 | I24: 12 | J24: 5 | K24: 1 | L24: 2 | M24: 0 | N24: 0
A25: QF7 | B25: RFR | C25: THE ROTHERHAM NHS FOUNDATION TRUST | D25: RFRPA | E25: Rotherham District General Hospital | F25: 1 | G25: * | H25: * | I25: * | J25: * | K25: * | L25: * | M25: * | N25: *
A26: QGH | B26: RWP | C26: WORCESTERSHIRE ACUTE HOSPITALS NHS TRUST | D26: RWP01 | E26: Alexandra Hospital | F26: 0 | G26: NA | H26: NA | I26: 0 | J26: 0 | K26: 0 | L26: 0 | M26: 0 | N26: 0
A27: QGH | B27: RWP | C27: WORCESTERSHIRE ACUTE HOSPITALS NHS TRUST | D27: RWP31 | E27: Kidderminster Hospital | F27: 0 | G27: NA | H27: NA | I27: 0 | J27: 0 | K27: 0 | L27: 0 | M27: 0 | N27: 0
A28: QGH | B28: RWP | C28: WORCESTERSHIRE ACUTE HOSPITALS NHS TRUST | D28: RWP50 | E28: Worcestershire Royal Hospital | F28: 3 | G28: * | H28: * | I28: * | J28: * | K28: * | L28: * | M28: * | N28: *
A29: QGH | B29: RLQ | C29: WYE VALLEY NHS TRUST | D29: RLQ01 | E29: Hereford County Hospital | F29: 0 | G29: NA | H29: NA | I29: 0 | J29: 0 | K29: 0 | L29: 0 | M29: 0 | N29: 0
A30: QH8 | B30: RAJ | C30: MID AND SOUTH ESSEX NHS FOUNDATION TRUST | D30: RAJ12 | E30: BASILDON HOSPITAL | F30: 1 | G30: * | H30: * | I30: * | J30: * | K30: * | L30: * | M30: * | N30: *
A31: QH8 | B31: RAJ | C31: MID AND SOUTH ESSEX NHS FOUNDATION TRUST | D31: RAJ32 | E31: MID ESSEX HOSPITAL | F31: 0 | G31: NA | H31: NA | I31: 0 | J31: 0 | K31: 0 | L31: 0 | M31: 0 | N31: 0
A32: QH8 | B32: RAJ | C32: MID AND SOUTH ESSEX NHS FOUNDATION TRUST | D32: RAJ01 | E32: Southend Hospital | F32: 2 | G32: * | H32: * | I32: * | J32: * | K32: * | L32: * | M32: * | N32: *
A33: QHG | B33: RC9 | C33: BEDFORDSHIRE HOSPITALS NHS FOUNDATION TRUST | D33: RC979 | E33: BEDFORD HOSPITAL SOUTH WING | F33: 93 | G33: 0.9677419355 | H33: 0 | I33: 49 | J33: 41 | K33: 3 | L33: 0 | M33: 0 | N33: 0
A34: QHG | B34: RC9 | C34: BEDFORDSHIRE HOSPITALS NHS FOUNDATION TRUST | D34: RC971 | E34: Luton and Dunstable Hospital | F34: 78 | G34: 0.8846153846 | H34: 0.02564102564 | I34: 34 | J34: 35 | K34: 6 | L34: 2 | M34: 0 | N34: 1
A35: QHG | B35: RD8 | C35: MILTON KEYNES UNIVERSITY HOSPITAL NHS FOUNDATION TRUST | D35: RD816 | E35: Milton Keynes Hospital | F35: 264 | G35: 0.9242424242 | H35: 0.0303030303 | I35: 183 | J35: 61 | K35: 10 | L35: 4 | M35: 4 | N35: 2
A36: QHL | B36: RQ3 | C36: BIRMINGHAM WOMEN'S AND CHILDREN'S NHS FOUNDATION TRUST | D36: RQ370 | E36: Birmingham Women's Hospital | F36: 118 | G36: 0.8474576271 | H36: 0.1271186441 | I36: 69 | J36: 31 | K36: 3 | L36: 3 | M36: 12 | N36: 0
A37: QHL | B37: RXK | C37: SANDWELL AND WEST BIRMINGHAM HOSPITALS NHS TRUST | D37: RXK02 | E37: City Hospital | F37: 128 | G37: 0.796875 | H37: 0.125 | I37: 78 | J37: 24 | K37: 8 | L37: 5 | M37: 11 | N37: 2
A38: QHL | B38: RXK | C38: SANDWELL AND WEST BIRMINGHAM HOSPITALS NHS TRUST | D38: RXK01 | E38: Sandwell General Hospital | F38: 66 | G38: 0.803030303 | H38: 0.1363636364 | I38: 44 | J38: 9 | K38: 4 | L38: 5 | M38: 4 | N38: 0
A39: QHM | B39: RR7 | C39: GATESHEAD HEALTH NHS FOUNDATION TRUST | D39: RR7EN | E39: Queen Elizabeth Hospital | F39: 4 | G39: * | H39: * | I39: * | J39: * | K39: * | L39: * | M39: * | N39: *
A40: QHM | B40: RNN | C40: NORTH CUMBRIA INTEGRATED CARE NHS FOUNDATION TRUST | D40: RNN62 | E40: Cumberland Infirmary | F40: 22 | G40: 1 | H40: 0 | I40: 20 | J40: 2 | K40: 0 | L40: 0 | M40: 0 | N40: 0
A41: QHM | B41: RNN | C41: NORTH CUMBRIA INTEGRATED CARE NHS FOUNDATION TRUST | D41: RNNXXX | E41: Non-hospital site | F41: 2 | G41: * | H41: * | I41: * | J41: * | K41: * | L41: * | M41: * | N41: *
A42: QHM | B42: RNN | C42: NORTH CUMBRIA INTEGRATED CARE NHS FOUNDATION TRUST | D42: RNNBX | E42: West Cumberland Hospital | F42: 7 | G42: 1 | H42: 0 | I42: * | J42: * | K42: * | L42: * | M42: * | N42: *
A43: QHM | B43: RVW | C43: NORTH TEES AND HARTLEPOOL NHS FOUNDATION TRUST | D43: RVWXXX | E43: Non-hospital site | F43: 2 | G43: * | H43: * | I43: * | J43: * | K43: * | L43: * | M43: * | N43: *
A44: QHM | B44: RVW | C44: NORTH TEES AND HARTLEPOOL NHS FOUNDATION TRUST | D44: RVWAE | E44: University Hospital Of North Tees | F44: 4 | G44: * | H44: * | I44: * | J44: * | K44: * | L44: * | M44: * | N44: *
A45: QHM | B45: RTR | C45: SOUTH TEES HOSPITALS NHS FOUNDATION TRUST | D45: RTR45 | E45: Friarage Hospital Site | F45: 3 | G45: * | H45: * | I45: * | J45: * | K45: * | L45: * | M45: * | N45: *
A46: QHM | B46: RTR | C46: SOUTH TEES HOSPITALS NHS FOUNDATION TRUST | D46: RTRAT | E46: The James Cook University Hospital | F46: 147 | G46: 0.9387755102 | H46: 0.04761904762 | I46: * | J46: * | K46: * | L46: * | M46: * | N46: *
A47: QHM | B47: R0B | C47: SOUTH TYNESIDE AND SUNDERLAND NHS FOUNDATION TRUST | D47: R0BXXX | E47: Non-hospital site | F47: 3 | G47: * | H47: * | I47: * | J47: * | K47: * | L47: * | M47: * | N47: *
A48: QHM | B48: R0B | C48: SOUTH TYNESIDE AND SUNDERLAND NHS FOUNDATION TRUST | D48: R0B0Q | E48: South Tyneside District Hospital | F48: 3 | G48: * | H48: * | I48: * | J48: * | K48: * | L48: * | M48: * | N48: *
A49: QHM | B49: R0B | C49: SOUTH TYNESIDE AND SUNDERLAND NHS FOUNDATION TRUST | D49: R0B01 | E49: Sunderland Royal Hospital | F49: 4 | G49: * | H49: * | I49: * | J49: * | K49: * | L49: * | M49: * | N49: *
A50: QHM | B50: RTD | C50: THE NEWCASTLE UPON TYNE HOSPITALS NHS FOUNDATION TRUST | D50: RTD02 | E50: The Royal Victoria Infirmary | F50: 1 | G50: * | H50: * | I50: * | J50: * | K50: * | L50: * | M50: * | N50: *
A51: QJ2 | B51: RFS | C51: CHESTERFIELD ROYAL HOSPITAL NHS FOUNDATION TRUST | D51: RFSDA | E51: Chesterfield Royal Hospital | F51: 103 | G51: 0.854368932 | H51: 0.04854368932 | I51: 54 | J51: 34 | K51: 10 | L51: 3 | M51: 2 | N51: 0
A52: QJ2 | B52: RTG | C52: UNIVERSITY HOSPITALS OF DERBY AND BURTON NHS FOUNDATION TRUST | D52: RTG02 | E52: Queens Hospital, Burton Upon Trent | F52: 26 | G52: 0.9230769231 | H52: 0.07692307692 | I52: 14 | J52: 10 | K52: 0 | L52: 1 | M52: 1 | N52: 0
A53: QJ2 | B53: RTG | C53: UNIVERSITY HOSPITALS OF DERBY AND BURTON NHS FOUNDATION TRUST | D53: RTGFG | E53: Royal Derby Hospital | F53: 18 | G53: 0.5 | H53: 0.4444444444 | I53: 5 | J53: 4 | K53: 1 | L53: 5 | M53: 3 | N53: 0
A54: QJG | B54: RDE | C54: EAST SUFFOLK AND NORTH ESSEX NHS FOUNDATION TRUST | D54: RDEE4 | E54: Colchester General Hospital | F54: 2 | G54: * | H54: * | I54: * | J54: * | K54: * | L54: * | M54: * | N54: *
A55: QJG | B55: RDE | C55: EAST SUFFOLK AND NORTH ESSEX NHS FOUNDATION TRUST | D55: RDE03 | E55: Ipswich Hospital | F55: 54 | G55: 0.9814814815 | H55: 0.01851851852 | I55: * | J55: * | K55: * | L55: * | M55: * | N55: *
A56: QJG | B56: RGR | C56: WEST SUFFOLK NHS FOUNDATION TRUST | D56: RGR50 | E56: West Suffolk Hospital | F56: 8 | G56: 1 | H56: 0 | I56: 7 | J56: 1 | K56: 0 | L56: 0 | M56: 0 | N56: 0
A57: QJK | B57: RH8 | C57: ROYAL DEVON UNIVERSITY HEALTHCARE NHS FOUNDATION TRUST | D57: RH880 | E57: North Devon District Hospital | F57: 12 | G57: 1 | H57: 0 | I57: 11 | J57: 1 | K57: 0 | L57: 0 | M57: 0 | N57: 0
A58: QJK | B58: RH8 | C58: ROYAL DEVON UNIVERSITY HEALTHCARE NHS FOUNDATION TRUST | D58: RH801 | E58: Royal Devon and Exeter Hospital (Wonford) | F58: 23 | G58: 1 | H58: 0 | I58: 22 | J58: 1 | K58: 0 | L58: 0 | M58: 0 | N58: 0
A59: QJK | B59: RA9 | C59: TORBAY AND SOUTH DEVON NHS FOUNDATION TRUST | D59: RA901 | E59: Torbay Hospital | F59: 0 | G59: NA | H59: NA | I59: 0 | J59: 0 | K59: 0 | L59: 0 | M59: 0 | N59: 0
A60: QJK | B60: RK9 | C60: UNIVERSITY HOSPITALS PLYMOUTH NHS TRUST | D60: RK950 | E60: Derriford Hospital | F60: 4 | G60: * | H60: * | I60: * | J60: * | K60: * | L60: * | M60: * | N60: *
A61: QJK | B61: RK9 | C61: UNIVERSITY HOSPITALS PLYMOUTH NHS TRUST | D61: RK9XXX | E61: Non-hospital site | F61: 6 | G61: 1 | H61: 0 | I61: * | J61: * | K61: * | L61: * | M61: * | N61: *
A62: QJM | B62: RWD | C62: UNITED LINCOLNSHIRE HOSPITALS NHS TRUST | D62: RWDLP | E62: Grantham and District Hospital | F62: 0 | G62: NA | H62: NA | I62: 0 | J62: 0 | K62: 0 | L62: 0 | M62: 0 | N62: 0
A63: QJM | B63: RWD | C63: UNITED LINCOLNSHIRE HOSPITALS NHS TRUST | D63: RWDDA | E63: Lincoln County Hospital | F63: 0 | G63: NA | H63: NA | I63: 0 | J63: 0 | K63: 0 | L63: 0 | M63: 0 | N63: 0
A64: QJM | B64: RWD | C64: UNITED LINCOLNSHIRE HOSPITALS NHS TRUST | D64: RWDLA | E64: Pilgrim Hospital | F64: 0 | G64: NA | H64: NA | I64: 0 | J64: 0 | K64: 0 | L64: 0 | M64: 0 | N64: 0
A65: QK1 | B65: RWE | C65: UNIVERSITY HOSPITALS OF LEICESTER NHS TRUST | D65: RWEAK | E65: Leicester General Hospital | F65: 43 | G65: 0.9534883721 | H65: 0 | I65: 32 | J65: 9 | K65: 2 | L65: 0 | M65: 0 | N65: 0
A66: QK1 | B66: RWE | C66: UNIVERSITY HOSPITALS OF LEICESTER NHS TRUST | D66: RWEAA | E66: Leicester Royal Infirmary | F66: 24 | G66: 0.9583333333 | H66: 0 | I66: * | J66: * | K66: * | L66: * | M66: * | N66: *
A67: QK1 | B67: RWE | C67: UNIVERSITY HOSPITALS OF LEICESTER NHS TRUST | D67: RWEXXX | E67: Non-hospital site | F67: 64 | G67: 0.921875 | H67: 0.015625 | I67: 47 | J67: 12 | K67: 1 | L67: 1 | M67: 0 | N67: 3
A68: QK1 | B68: RWE | C68: UNIVERSITY HOSPITALS OF LEICESTER NHS TRUST | D68: RWE10 | E68: St Mary's Hospital | F68: 4 | G68: * | H68: * | I68: * | J68: * | K68: * | L68: * | M68: * | N68: *
A69: QKK | B69: RJ1 | C69: GUY'S AND ST THOMAS' NHS FOUNDATION TRUST | D69: RJ122 | E69: St Thomas' Hospital | F69: 8 | G69: 0.625 | H69: 0.25 | I69: 3 | J69: 2 | K69: 1 | L69: 1 | M69: 1 | N69: 0
A70: QKK | B70: RJZ | C70: KING'S COLLEGE HOSPITAL NHS FOUNDATION TRUST | D70: RJZ01 | E70: King's College Hospital (Denmark Hill) | F70: 17 | G70: 0.9411764706 | H70: 0 | I70: * | J70: * | K70: * | L70: * | M70: * | N70: *
A71: QKK | B71: RJZ | C71: KING'S COLLEGE HOSPITAL NHS FOUNDATION TRUST | D71: RJZ30 | E71: Princess Royal University Hospital | F71: 2 | G71: * | H71: * | I71: * | J71: * | K71: * | L71: * | M71: * | N71: *
A72: QKK | B72: RJ2 | C72: LEWISHAM AND GREENWICH NHS TRUST | D72: RJ231 | E72: Queen Elizabeth Hospital | F72: 19 | G72: 0.8421052632 | H72: 0.05263157895 | I72: 12 | J72: 4 | K72: 2 | L72: 1 | M72: 0 | N72: 0
A73: QKK | B73: RJ2 | C73: LEWISHAM AND GREENWICH NHS TRUST | D73: RJ224 | E73: University Hospital Lewisham | F73: 72 | G73: 1 | H73: 0 | I73: 55 | J73: 17 | K73: 0 | L73: 0 | M73: 0 | N73: 0
A74: QKS | B74: RN7 | C74: DARTFORD AND GRAVESHAM NHS TRUST | D74: RN707 | E74: Darent Valley Hospital | F74: 143 | G74: 0.9160839161 | H74: 0.04895104895 | I74: 110 | J74: 21 | K74: 3 | L74: 7 | M74: 0 | N74: 2
A75: QKS | B75: RVV | C75: EAST KENT HOSPITALS UNIVERSITY NHS FOUNDATION TRUST | D75: RVV01 | E75: William Harvey Hospital (Ashford) | F75: 152 | G75: 0.9078947368 | H75: 0.05263157895 | I75: 107 | J75: 31 | K75: 6 | L75: 5 | M75: 3 | N75: 0
A76: QKS | B76: RWF | C76: MAIDSTONE AND TUNBRIDGE WELLS NHS TRUST | D76: RWF03 | E76: Maidstone District General Hospital | F76: 40 | G76: 1 | H76: 0 | I76: 40 | J76: 0 | K76: 0 | L76: 0 | M76: 0 | N76: 0
A77: QKS | B77: RWF | C77: MAIDSTONE AND TUNBRIDGE WELLS NHS TRUST | D77: RWFXXX | E77: Non-hospital site | F77: 25 | G77: 1 | H77: 0 | I77: 25 | J77: 0 | K77: 0 | L77: 0 | M77: 0 | N77: 0
A78: QKS | B78: RWF | C78: MAIDSTONE AND TUNBRIDGE WELLS NHS TRUST | D78: RWFTW | E78: The Tunbridge Wells Hospital | F78: 129 | G78: 0.992248062 | H78: 0.007751937984 | I78: 126 | J78: 2 | K78: 0 | L78: 1 | M78: 0 | N78: 0
A79: QKS | B79: RPA | C79: MEDWAY NHS FOUNDATION TRUST | D79: RPA02 | E79: Medway Maritime Hospital | F79: 12 | G79: 0.8333333333 | H79: 0.08333333333 | I79: 8 | J79: 2 | K79: 1 | L79: 0 | M79: 1 | N79: 0
A80: QM7 | B80: RWH | C80: EAST AND NORTH HERTFORDSHIRE NHS TRUST | D80: RWH01 | E80: Lister Hospital | F80: 25 | G80: 0.88 | H80: 0 | I80: * | J80: * | K80: * | L80: * | M80: * | N80: *
A81: QM7 | B81: RWH | C81: EAST AND NORTH HERTFORDSHIRE NHS TRUST | D81: RWHXXX | E81: Non-hospital site | F81: 0 | G81: NA | H81: NA | I81: 0 | J81: 0 | K81: 0 | L81: 0 | M81: 0 | N81: 0
A82: QM7 | B82: RQW | C82: THE PRINCESS ALEXANDRA HOSPITAL NHS TRUST | D82: RQWG0 | E82: Princess Alexandra Hospital | F82: 0 | G82: NA | H82: NA | I82: 0 | J82: 0 | K82: 0 | L82: 0 | M82: 0 | N82: 0
A83: QM7 | B83: RWG | C83: WEST HERTFORDSHIRE TEACHING HOSPITALS NHS TRUST | D83: RWG02 | E83: Watford General Hospital | F83: 3 | G83: * | H83: * | I83: * | J83: * | K83: * | L83: * | M83: * | N83: *
A84: QMF | B84: RF4 | C84: BARKING, HAVERING AND REDBRIDGE UNIVERSITY HOSPITALS NHS TRUST | D84: RF4XXX | E84: Non-hospital site | F84: 68 | G84: 0.9558823529 | H84: 0.01470588235 | I84: 56 | J84: 9 | K84: 1 | L84: 0 | M84: 1 | N84: 1
A85: QMF | B85: R1H | C85: BARTS HEALTH NHS TRUST | D85: R1HNH | E85: Newham General Hospital | F85: 91 | G85: 0.8241758242 | H85: 0.1098901099 | I85: 63 | J85: 12 | K85: 6 | L85: 4 | M85: 6 | N85: 0
A86: QMF | B86: R1H | C86: BARTS HEALTH NHS TRUST | D86: R1H12 | E86: The Royal London Hospital | F86: 25 | G86: 0.84 | H86: 0.08 | I86: 16 | J86: 5 | K86: 0 | L86: 1 | M86: 1 | N86: 2
A87: QMF | B87: R1H | C87: BARTS HEALTH NHS TRUST | D87: R1HKH | E87: Whipps Cross University Hospital | F87: 61 | G87: 0.9508196721 | H87: 0 | I87: 52 | J87: 6 | K87: 3 | L87: 0 | M87: 0 | N87: 0
A88: QMF | B88: RQX | C88: HOMERTON HEALTHCARE NHS FOUNDATION TRUST | D88: RQXM1 | E88: Homerton University Hospital | F88: 14 | G88: 0.7142857143 | H88: 0.1428571429 | I88: 5 | J88: 5 | K88: 2 | L88: 1 | M88: 1 | N88: 0
A89: QMJ | B89: RAP | C89: NORTH MIDDLESEX UNIVERSITY HOSPITAL NHS TRUST | D89: RAPNM | E89: North Middlesex Hospital | F89: 48 | G89: 0.8958333333 | H89: 0.0625 | I89: 34 | J89: 9 | K89: 2 | L89: 3 | M89: 0 | N89: 0
A90: QMJ | B90: RAL | C90: ROYAL FREE LONDON NHS FOUNDATION TRUST | D90: RAL26 | E90: Barnet Hospital | F90: 9 | G90: 0.5555555556 | H90: 0.4444444444 | I90: * | J90: * | K90: * | L90: * | M90: * | N90: *
A91: QMJ | B91: RAL | C91: ROYAL FREE LONDON NHS FOUNDATION TRUST | D91: RAL01 | E91: Royal Free Hospital | F91: 1 | G91: * | H91: * | I91: * | J91: * | K91: * | L91: * | M91: * | N91: *
A92: QMJ | B92: RRV | C92: UNIVERSITY COLLEGE LONDON HOSPITALS NHS FOUNDATION TRUST | D92: RRV11 | E92: University College Hospital Elizabeth Garrett Anderson Wing | F92: 2 | G92: * | H92: * | I92: * | J92: * | K92: * | L92: * | M92: * | N92: *
A93: QMJ | B93: RKE | C93: WHITTINGTON HEALTH NHS TRUST | D93: RKEXXX | E93: Non-hospital site | F93: 40 | G93: 0.925 | H93: 0.025 | I93: 33 | J93: 4 | K93: 2 | L93: 1 | M93: 0 | N93: 0
A94: QMJ | B94: RKE | C94: WHITTINGTON HEALTH NHS TRUST | D94: RKEQ4 | E94: The Whittington Hospital | F94: 8 | G94: 1 | H94: 0 | I94: 8 | J94: 0 | K94: 0 | L94: 0 | M94: 0 | N94: 0
A95: QMM | B95: RGP | C95: JAMES PAGET UNIVERSITY HOSPITALS NHS FOUNDATION TRUST | D95: RGP75 | E95: James Paget University Hospital | F95: 0 | G95: NA | H95: NA | I95: 0 | J95: 0 | K95: 0 | L95: 0 | M95: 0 | N95: 0
A96: QMM | B96: RM1 | C96: NORFOLK AND NORWICH UNIVERSITY HOSPITALS NHS FOUNDATION TRUST | D96: RM102 | E96: Norfolk and Norwich University Hospital | F96: 59 | G96: 0.7966101695 | H96: 0.1694915254 | I96: 28 | J96: 19 | K96: 2 | L96: 5 | M96: 5 | N96: 0
A97: QMM | B97: RCX | C97: THE QUEEN ELIZABETH HOSPITAL, KING'S LYNN, NHS FOUNDATION TRUST | D97: RCXXXX | E97: Non-hospital site | F97: 41 | G97: 1 | H97: 0 | I97: 35 | J97: 6 | K97: 0 | L97: 0 | M97: 0 | N97: 0
A98: QMM | B98: RCX | C98: THE QUEEN ELIZABETH HOSPITAL, KING'S LYNN, NHS FOUNDATION TRUST | D98: RCX66 | E98: North Cambridgeshire Hospital | F98: 0 | G98: NA | H98: NA | I98: 0 | J98: 0 | K98: 0 | L98: 0 | M98: 0 | N98: 0
A99: QMM | B99: RCX | C99: THE QUEEN ELIZABETH HOSPITAL, KING'S LYNN, NHS FOUNDATION TRUST | D99: RCX70 | E99: The Queen Elizabeth Hospital | F99: 54 | G99: 0.9444444444 | H99: 0.05555555556 | I99: 38 | J99: 13 | K99: 0 | L99: 2 | M99: 1 | N99: 0
A100: QNC | B100: RJE | C100: UNIVERSITY HOSPITALS OF NORTH MIDLANDS NHS TRUST | D100: RJEXXX | E100: Non-hospital site | F100: 6 | G100: 1 | H100: 0 | I100: 6 | J100: 0 | K100: 0 | L100: 0 | M100: 0 | N100: 0
A101: QNC | B101: RJE | C101: UNIVERSITY HOSPITALS OF NORTH MIDLANDS NHS TRUST | D101: RJE01 | E101: Royal Stoke University Hospital | F101: 13 | G101: 0.9230769231 | H101: 0.07692307692 | I101: 9 | J101: 3 | K101: 0 | L101: 0 | M101: 1 | N101: 0
A102: QNQ | B102: RDU | C102: FRIMLEY HEALTH NHS FOUNDATION TRUST | D102: RDU01 | E102: Frimley Park Hospital | F102: 11 | G102: 0.9090909091 | H102: 0.09090909091 | I102: 9 | J102: 1 | K102: 0 | L102: 0 | M102: 1 | N102: 0
A103: QNX | B103: RXC | C103: EAST SUSSEX HEALTHCARE NHS TRUST | D103: RXC01 | E103: Conquest Hospital | F103: 0 | G103: NA | H103: NA | I103: 0 | J103: 0 | K103: 0 | L103: 0 | M103: 0 | N103: 0
A104: QNX | B104: RXC | C104: EAST SUSSEX HEALTHCARE NHS TRUST | D104: RXC02 | E104: Eastbourne District General Hospital | F104: 0 | G104: NA | H104: NA | I104: 0 | J104: 0 | K104: 0 | L104: 0 | M104: 0 | N104: 0
A105: QNX | B105: RXC | C105: EAST SUSSEX HEALTHCARE NHS TRUST | D105: RXCXXX | E105: Non-hospital site | F105: 0 | G105: NA | H105: NA | I105: 0 | J105: 0 | K105: 0 | L105: 0 | M105: 0 | N105: 0
A106: QOC | B106: RXW | C106: THE SHREWSBURY AND TELFORD HOSPITAL NHS TRUST | D106: RXWXXX | E106: Non-hospital site | F106: 19 | G106: 1 | H106: 0 | I106: 19 | J106: 0 | K106: 0 | L106: 0 | M106: 0 | N106: 0
A107: QOP | B107: RMC | C107: BOLTON NHS FOUNDATION TRUST | D107: RMC01 | E107: Royal Bolton Hospital | F107: 28 | G107: 0.9285714286 | H107: 0.03571428571 | I107: 24 | J107: 2 | K107: 1 | L107: 1 | M107: 0 | N107: 0
A108: QOP | B108: R0A | C108: MANCHESTER UNIVERSITY NHS FOUNDATION TRUST | D108: R0A05 | E108: St Mary's Hospital | F108: 315 | G108: 0.9555555556 | H108: 0.01904761905 | I108: 267 | J108: 34 | K108: 6 | L108: 2 | M108: 4 | N108: 2
A109: QOP | B109: RM3 | C109: NORTHERN CARE ALLIANCE NHS FOUNDATION TRUST | D109: RW603 | E109: Royal Oldham Hospital | F109: 0 | G109: NA | H109: NA | I109: 0 | J109: 0 | K109: 0 | L109: 0 | M109: 0 | N109: 0
A110: QOP | B110: RWJ | C110: STOCKPORT NHS FOUNDATION TRUST | D110: RWJ09 | E110: Stepping Hill Hospital | F110: 20 | G110: 0.9 | H110: 0.1 | I110: * | J110: * | K110: * | L110: * | M110: * | N110: *
A111: QOP | B111: RMP | C111: TAMESIDE AND GLOSSOP INTEGRATED CARE NHS FOUNDATION TRUST | D111: RMP01 | E111: Tameside General Hospital | F111: 22 | G111: 0.9090909091 | H111: 0.04545454545 | I111: 17 | J111: 3 | K111: 1 | L111: 0 | M111: 1 | N111: 0
A112: QOP | B112: RRF | C112: WRIGHTINGTON, WIGAN AND LEIGH NHS FOUNDATION TRUST | D112: RRF02 | E112: Royal Albert Edward Infirmary | F112: 2 | G112: * | H112: * | I112: * | J112: * | K112: * | L112: * | M112: * | N112: *
A113: QOQ | B113: RCD | C113: HARROGATE AND DISTRICT NHS FOUNDATION TRUST | D113: RCD01 | E113: Harrogate District Hospital | F113: 0 | G113: NA | H113: NA | I113: 0 | J113: 0 | K113: 0 | L113: 0 | M113: 0 | N113: 0
A114: QOQ | B114: RWA | C114: HULL UNIVERSITY TEACHING HOSPITALS NHS TRUST | D114: RWA01 | E114: Hull Royal Infirmary | F114: 0 | G114: NA | H114: NA | I114: 0 | J114: 0 | K114: 0 | L114: 0 | M114: 0 | N114: 0
A115: QOQ | B115: RJL | C115: NORTHERN LINCOLNSHIRE AND GOOLE NHS FOUNDATION TRUST | D115: RJL30 | E115: Diana, Princess Of Wales Hospital | F115: 4 | G115: * | H115: * | I115: * | J115: * | K115: * | L115: * | M115: * | N115: *
A116: QOQ | B116: RJL | C116: NORTHERN LINCOLNSHIRE AND GOOLE NHS FOUNDATION TRUST | D116: RJL32 | E116: Scunthorpe General Hospital | F116: 3 | G116: * | H116: * | I116: * | J116: * | K116: * | L116: * | M116: * | N116: *
A117: QOQ | B117: RCB | C117: YORK AND SCARBOROUGH TEACHING HOSPITALS NHS FOUNDATION TRUST | D117: RCBCA | E117: Scarborough General Hospital | F117: 0 | G117: NA | H117: NA | I117: 0 | J117: 0 | K117: 0 | L117: 0 | M117: 0 | N117: 0
A118: QOQ | B118: RCB | C118: YORK AND SCARBOROUGH TEACHING HOSPITALS NHS FOUNDATION TRUST | D118: RCB55 | E118: York Hospital | F118: 0 | G118: NA | H118: NA | I118: 0 | J118: 0 | K118: 0 | L118: 0 | M118: 0 | N118: 0
A119: QOX | B119: RN3 | C119: GREAT WESTERN HOSPITALS NHS FOUNDATION TRUST | D119: RN325 | E119: The Great Western Hospital | F119: 42 | G119: 0.8571428571 | H119: 0.07142857143 | I119: * | J119: * | K119: * | L119: * | M119: * | N119: *
A120: QOX | B120: RD1 | C120: ROYAL UNITED HOSPITALS BATH NHS FOUNDATION TRUST | D120: RD130 | E120: Princess Anne Wing RUH | F120: 1 | G120: * | H120: * | I120: * | J120: * | K120: * | L120: * | M120: * | N120: *
A121: QOX | B121: RD1 | C121: ROYAL UNITED HOSPITALS BATH NHS FOUNDATION TRUST | D121: RD108 | E121: Trowbridge Community Hospital | F121: 1 | G121: * | H121: * | I121: * | J121: * | K121: * | L121: * | M121: * | N121: *
A122: QOX | B122: RNZ | C122: SALISBURY NHS FOUNDATION TRUST | D122: RNZ02 | E122: Salisbury District Hospital | F122: 0 | G122: NA | H122: NA | I122: 0 | J122: 0 | K122: 0 | L122: 0 | M122: 0 | N122: 0
A123: QPM | B123: RNQ | C123: KETTERING GENERAL HOSPITAL NHS FOUNDATION TRUST | D123: RNQ51 | E123: Kettering General Hospital | F123: 2 | G123: * | H123: * | I123: * | J123: * | K123: * | L123: * | M123: * | N123: *
A124: QPM | B124: RNS | C124: NORTHAMPTON GENERAL HOSPITAL NHS TRUST | D124: RNS01 | E124: Northampton General Hospital (Acute) | F124: 0 | G124: NA | H124: NA | I124: 0 | J124: 0 | K124: 0 | L124: 0 | M124: 0 | N124: 0
A125: QRL | B125: RN5 | C125: HAMPSHIRE HOSPITALS NHS FOUNDATION TRUST | D125: RN542 | E125: Andover War Memorial Hospital | F125: 3 | G125: * | H125: * | I125: * | J125: * | K125: * | L125: * | M125: * | N125: *
A126: QRL | B126: RN5 | C126: HAMPSHIRE HOSPITALS NHS FOUNDATION TRUST | D126: RN506 | E126: Basingstoke and North Hampshire Hospital | F126: 2 | G126: * | H126: * | I126: * | J126: * | K126: * | L126: * | M126: * | N126: *
A127: QRL | B127: RN5 | C127: HAMPSHIRE HOSPITALS NHS FOUNDATION TRUST | D127: RN541 | E127: Royal Hampshire County Hospital | F127: 2 | G127: * | H127: * | I127: * | J127: * | K127: * | L127: * | M127: * | N127: *
A128: QRL | B128: R1F | C128: ISLE OF WIGHT NHS TRUST | D128: R1F01 | E128: St Mary's Hospital | F128: 6 | G128: 1 | H128: 0 | I128: 6 | J128: 0 | K128: 0 | L128: 0 | M128: 0 | N128: 0
A129: QRL | B129: RHU | C129: PORTSMOUTH HOSPITALS UNIVERSITY NATIONAL HEALTH SERVICE TRUST | D129: RHU10 | E129: Gosport War Memorial Hospital | F129: 45 | G129: 1 | H129: 0 | I129: * | J129: * | K129: * | L129: * | M129: * | N129: *
A130: QRL | B130: RHU | C130: PORTSMOUTH HOSPITALS UNIVERSITY NATIONAL HEALTH SERVICE TRUST | D130: RHU03 | E130: Queen Alexandra Hospital | F130: 1 | G130: * | H130: * | I130: * | J130: * | K130: * | L130: * | M130: * | N130: *
A131: QRL | B131: RHU | C131: PORTSMOUTH HOSPITALS UNIVERSITY NATIONAL HEALTH SERVICE TRUST | D131: RHU02 | E131: St Mary's Hospital | F131: 63 | G131: 0.9682539683 | H131: 0 | I131: 55 | J131: 6 | K131: 2 | L131: 0 | M131: 0 | N131: 0
A132: QRL | B132: RHM | C132: UNIVERSITY HOSPITAL SOUTHAMPTON NHS FOUNDATION TRUST | D132: RHM01 | E132: Southampton General Hospital | F132: 109 | G132: 0.8899082569 | H132: 0.02752293578 | I132: 71 | J132: 26 | K132: 8 | L132: 2 | M132: 1 | N132: 1
A133: QRV | B133: RQM | C133: CHELSEA AND WESTMINSTER HOSPITAL NHS FOUNDATION TRUST | D133: RQM01 | E133: Chelsea and Westminster Hospital | F133: 60 | G133: 0.85 | H133: 0.08333333333 | I133: 45 | J133: 6 | K133: 3 | L133: 1 | M133: 4 | N133: 1
A134: QRV | B134: RQM | C134: CHELSEA AND WESTMINSTER HOSPITAL NHS FOUNDATION TRUST | D134: RQM91 | E134: West Middlesex University Hospital | F134: 17 | G134: 0.6470588235 | H134: 0.3529411765 | I134: 8 | J134: 3 | K134: 0 | L134: 4 | M134: 2 | N134: 0
A135: QRV | B135: RYJ | C135: IMPERIAL COLLEGE HEALTHCARE NHS TRUST | D135: RYJ04 | E135: Queen Charlotte's Hospital | F135: 30 | G135: 1 | H135: 0 | I135: 25 | J135: 5 | K135: 0 | L135: 0 | M135: 0 | N135: 0
A136: QRV | B136: RYJ | C136: IMPERIAL COLLEGE HEALTHCARE NHS TRUST | D136: RYJ01 | E136: St Mary's Hospital (HQ) | F136: 19 | G136: 0.9473684211 | H136: 0 | I136: 16 | J136: 2 | K136: 1 | L136: 0 | M136: 0 | N136: 0
A137: QRV | B137: R1K | C137: LONDON NORTH WEST UNIVERSITY HEALTHCARE NHS TRUST | D137: R1K01 | E137: Northwick Park Hospital | F137: 0 | G137: NA | H137: NA | I137: 0 | J137: 0 | K137: 0 | L137: 0 | M137: 0 | N137: 0
A138: QRV | B138: RAS | C138: THE HILLINGDON HOSPITALS NHS FOUNDATION TRUST | D138: RAS01 | E138: Hillingdon Hospital | F138: 96 | G138: 0.8333333333 | H138: 0.08333333333 | I138: 60 | J138: 20 | K138: 8 | L138: 3 | M138: 5 | N138: 0
A139: QSL | B139: RH5 | C139: SOMERSET NHS FOUNDATION TRUST | D139: RH5K6 | E139: Bridgwater Hospital | F139: 1 | G139: * | H139: * | I139: * | J139: * | K139: * | L139: * | M139: * | N139: *
A140: QSL | B140: RH5 | C140: SOMERSET NHS FOUNDATION TRUST | D140: RH5A8 | E140: MUSGROVE PARK HOSPITAL | F140: 0 | G140: NA | H140: NA | I140: 0 | J140: 0 | K140: 0 | L140: 0 | M140: 0 | N140: 0
A141: QSL | B141: RH5 | C141: SOMERSET NHS FOUNDATION TRUST | D141: RH5XXXX | E141: Non-hospital site home/in-transit births | F141: 0 | G141: NA | H141: NA | I141: 0 | J141: 0 | K141: 0 | L141: 0 | M141: 0 | N141: 0
A142: QSL | B142: RH5 | C142: SOMERSET NHS FOUNDATION TRUST | D142: RH5O4 | E142: Yeovil District Hospital | F142: 14 | G142: 0.9285714286 | H142: 0 | I142: * | J142: * | K142: * | L142: * | M142: * | N142: *
A143: QT1 | B143: RX1 | C143: NOTTINGHAM UNIVERSITY HOSPITALS NHS TRUST | D143: RX1XXX | E143: Non-hospital site | F143: 329 | G143: 0.9452887538 | H143: 0.02127659574 | I143: 277 | J143: 34 | K143: 11 | L143: 4 | M143: 3 | N143: 0
A144: QT1 | B144: RK5 | C144: SHERWOOD FOREST HOSPITALS NHS FOUNDATION TRUST | D144: RK5BC | E144: King's Mill Hospital | F144: 9 | G144: 0.8888888889 | H144: 0 | I144: 5 | J144: 3 | K144: 1 | L144: 0 | M144: 0 | N144: 0
A145: QT6 | B145: REF | C145: ROYAL CORNWALL HOSPITALS NHS TRUST | D145: REFXXX | E145: Non-hospital site | F145: 0 | G145: NA | H145: NA | I145: 0 | J145: 0 | K145: 0 | L145: 0 | M145: 0 | N145: 0
A146: QT6 | B146: REF | C146: ROYAL CORNWALL HOSPITALS NHS TRUST | D146: REF12 | E146: Royal Cornwall Hospital (Treliske) | F146: 4 | G146: * | H146: * | I146: * | J146: * | K146: * | L146: * | M146: * | N146: *
A147: QU9 | B147: RXQ | C147: BUCKINGHAMSHIRE HEALTHCARE NHS TRUST | D147: RXQ02 | E147: Stoke Mandeville Hospital | F147: 93 | G147: 0.8924731183 | H147: 0.05376344086 | I147: 70 | J147: 13 | K147: 4 | L147: 3 | M147: 2 | N147: 1
A148: QU9 | B148: RXQ | C148: BUCKINGHAMSHIRE HEALTHCARE NHS TRUST | D148: RXQ50 | E148: Wycombe Hospital | F148: 52 | G148: 0.8653846154 | H148: 0.05769230769 | I148: 36 | J148: 9 | K148: 4 | L148: 2 | M148: 1 | N148: 0
A149: QU9 | B149: RTH | C149: OXFORD UNIVERSITY HOSPITALS NHS FOUNDATION TRUST | D149: RTH05 | E149: Horton General Hospital | F149: 5 | G149: 0.6 | H149: 0.2 | I149: 3 | J149: 0 | K149: 1 | L149: 0 | M149: 1 | N149: 0
A150: QU9 | B150: RHW | C150: ROYAL BERKSHIRE NHS FOUNDATION TRUST | D150: RHW01 | E150: Royal Berkshire Hospital | F150: 32 | G150: 0.875 | H150: 0.0625 | I150: 25 | J150: 3 | K150: 2 | L150: 1 | M150: 1 | N150: 0
A151: QUA | B151: RNA | C151: THE DUDLEY GROUP NHS FOUNDATION TRUST | D151: RNAXXX | E151: Non-hospital site | F151: 13 | G151: 1 | H151: 0 | I151: 13 | J151: 0 | K151: 0 | L151: 0 | M151: 0 | N151: 0
A152: QUA | B152: RNA | C152: THE DUDLEY GROUP NHS FOUNDATION TRUST | D152: RNA01 | E152: Russells Hall Hospital | F152: 26 | G152: 0.7692307692 | H152: 0.1153846154 | I152: 20 | J152: 0 | K152: 1 | L152: 0 | M152: 3 | N152: 2
A153: QUA | B153: RL4 | C153: THE ROYAL WOLVERHAMPTON NHS TRUST | D153: RL403 | E153: New Cross Hospital | F153: 35 | G153: 0.8285714286 | H153: 0.1428571429 | I153: 24 | J153: 5 | K153: 0 | L153: 1 | M153: 4 | N153: 1
A154: QUA | B154: RBK | C154: WALSALL HEALTHCARE NHS TRUST | D154: RBK02 | E154: Manor Hospital | F154: 59 | G154: 0.8644067797 | H154: 0.08474576271 | I154: 41 | J154: 10 | K154: 3 | L154: 3 | M154: 2 | N154: 0
A155: QUE | B155: RGT | C155: CAMBRIDGE UNIVERSITY HOSPITALS NHS FOUNDATION TRUST | D155: RGT32 | E155: Rosie Hospital | F155: 4 | G155: * | H155: * | I155: * | J155: * | K155: * | L155: * | M155: * | N155: *
A156: QUE | B156: RGN | C156: NORTH WEST ANGLIA NHS FOUNDATION TRUST | D156: RGN90 | E156: Hinchingbrooke Hospital | F156: 74 | G156: 0.972972973 | H156: 0.02702702703 | I156: * | J156: * | K156: * | L156: * | M156: * | N156: *
A157: QUE | B157: RGN | C157: NORTH WEST ANGLIA NHS FOUNDATION TRUST | D157: RGN80 | E157: Peterborough City Hospital | F157: 20 | G157: 1 | H157: 0 | I157: * | J157: * | K157: * | L157: * | M157: * | N157: *
A158: QUY | B158: RVJ | C158: NORTH BRISTOL NHS TRUST | D158: RVJ01 | E158: Southmead Hospital | F158: 5 | G158: 1 | H158: 0 | I158: 5 | J158: 0 | K158: 0 | L158: 0 | M158: 0 | N158: 0
A159: QUY | B159: RA7 | C159: UNIVERSITY HOSPITALS BRISTOL AND WESTON NHS FOUNDATION TRUST | D159: RA707 | E159: St Michael's Hospital | F159: 25 | G159: 1 | H159: 0 | I159: 19 | J159: 6 | K159: 0 | L159: 0 | M159: 0 | N159: 0
A160: QVV | B160: RBD | C160: DORSET COUNTY HOSPITAL NHS FOUNDATION TRUST | D160: RBD01 | E160: Dorset County Hospital | F160: 17 | G160: 1 | H160: 0 | I160: 14 | J160: 3 | K160: 0 | L160: 0 | M160: 0 | N160: 0
A161: QVV | B161: R0D | C161: UNIVERSITY HOSPITALS DORSET NHS FOUNDATION TRUST | D161: R0D01 | E161: Poole Hospital | F161: 41 | G161: 0.8780487805 | H161: 0.07317073171 | I161: * | J161: * | K161: * | L161: * | M161: * | N161: *
A162: QVV | B162: R0D | C162: UNIVERSITY HOSPITALS DORSET NHS FOUNDATION TRUST | D162: R0D02 | E162: Royal Bournemouth Hospital | F162: 1 | G162: * | H162: * | I162: * | J162: * | K162: * | L162: * | M162: * | N162: *
A163: QWE | B163: RVR | C163: EPSOM AND ST HELIER UNIVERSITY HOSPITALS NHS TRUST | D163: RVR50 | E163: Epsom Hospital | F163: 1 | G163: * | H163: * | I163: * | J163: * | K163: * | L163: * | M163: * | N163: *
A164: QWE | B164: RVR | C164: EPSOM AND ST HELIER UNIVERSITY HOSPITALS NHS TRUST | D164: RVRXXX | E164: Non-hospital site | F164: 0 | G164: NA | H164: NA | I164: 0 | J164: 0 | K164: 0 | L164: 0 | M164: 0 | N164: 0
A165: QWE | B165: RVR | C165: EPSOM AND ST HELIER UNIVERSITY HOSPITALS NHS TRUST | D165: RVR05 | E165: St Helier Hospital | F165: 14 | G165: 0.7857142857 | H165: 0.1428571429 | I165: * | J165: * | K165: * | L165: * | M165: * | N165: *
A166: QWE | B166: RAX | C166: KINGSTON HOSPITAL NHS FOUNDATION TRUST | D166: RAX01 | E166: Kingston Hospital | F166: 70 | G166: 0.8857142857 | H166: 0.04285714286 | I166: 52 | J166: 10 | K166: 5 | L166: 2 | M166: 1 | N166: 0
A167: QWE | B167: RJ7 | C167: ST GEORGE'S UNIVERSITY HOSPITALS NHS FOUNDATION TRUST | D167: RJ701 | E167: St George's Hospital (Tooting) | F167: 30 | G167: 0.8 | H167: 0.1 | I167: 15 | J167: 9 | K167: 3 | L167: 0 | M167: 3 | N167: 0
A168: QWO | B168: RAE | C168: BRADFORD TEACHING HOSPITALS NHS FOUNDATION TRUST | D168: RAE01 | E168: Bradford Royal Infirmary | F168: 42 | G168: 0.8571428571 | H168: 0.1428571429 | I168: 34 | J168: 2 | K168: 0 | L168: 2 | M168: 4 | N168: 0
A169: QWO | B169: RWY | C169: CALDERDALE AND HUDDERSFIELD NHS FOUNDATION TRUST | D169: RWY02 | E169: Calderdale Royal Hospital | F169: 49 | G169: 0.9591836735 | H169: 0.02040816327 | I169: 37 | J169: 10 | K169: 1 | L169: 1 | M169: 0 | N169: 0
A170: QWO | B170: RWY | C170: CALDERDALE AND HUDDERSFIELD NHS FOUNDATION TRUST | D170: RWY01 | E170: Huddersfield Royal Infirmary | F170: 12 | G170: 1 | H170: 0 | I170: 12 | J170: 0 | K170: 0 | L170: 0 | M170: 0 | N170: 0
A171: QWO | B171: RWY | C171: CALDERDALE AND HUDDERSFIELD NHS FOUNDATION TRUST | D171: RWYXXX | E171: Non-hospital site | F171: 0 | G171: NA | H171: NA | I171: 0 | J171: 0 | K171: 0 | L171: 0 | M171: 0 | N171: 0
A172: QWO | B172: RR8 | C172: LEEDS TEACHING HOSPITALS NHS TRUST | D172: RR801 | E172: Leeds General Infirmary | F172: 73 | G172: 0.9315068493 | H172: 0.02739726027 | I172: 62 | J172: 6 | K172: 3 | L172: 1 | M172: 1 | N172: 0
A173: QWO | B173: RR8 | C173: LEEDS TEACHING HOSPITALS NHS TRUST | D173: RR8XXX | E173: Non-hospital site | F173: 7 | G173: 0.7142857143 | H173: 0.2857142857 | I173: * | J173: * | K173: * | L173: * | M173: * | N173: *
A174: QWO | B174: RR8 | C174: LEEDS TEACHING HOSPITALS NHS TRUST | D174: RR813 | E174: St James's University Hospital | F174: 3 | G174: * | H174: * | I174: * | J174: * | K174: * | L174: * | M174: * | N174: *
A175: QWO | B175: RXF | C175: MID YORKSHIRE TEACHING NHS TRUST | D175: RXF10 | E175: Dewsbury and District Hospital | F175: 130 | G175: 0.9538461538 | H175: 0.007692307692 | I175: 94 | J175: 30 | K175: 5 | L175: 0 | M175: 1 | N175: 0
A176: QWO | B176: RXF | C176: MID YORKSHIRE TEACHING NHS TRUST | D176: RXF05 | E176: Pinderfields General Hospital | F176: 201 | G176: 0.9303482587 | H176: 0.04975124378 | I176: 152 | J176: 35 | K176: 4 | L176: 5 | M176: 5 | N176: 0
A177: QWO | B177: RXF | C177: MID YORKSHIRE TEACHING NHS TRUST | D177: RXF03 | E177: Pontefract General Infirmary | F177: 100 | G177: 0.95 | H177: 0.03 | I177: 86 | J177: 9 | K177: 2 | L177: 2 | M177: 1 | N177: 0
A178: QWU | B178: RLT | C178: GEORGE ELIOT HOSPITAL NHS TRUST | D178: RLT01 | E178: George Eliot Hospital - Acute Services | F178: 0 | G178: NA | H178: NA | I178: 0 | J178: 0 | K178: 0 | L178: 0 | M178: 0 | N178: 0
A179: QWU | B179: RJC | C179: SOUTH WARWICKSHIRE UNIVERSITY NHS FOUNDATION TRUST | D179: RJCXXX | E179: Non-hospital site | F179: 1 | G179: * | H179: * | I179: * | J179: * | K179: * | L179: * | M179: * | N179: *
A180: QWU | B180: RJC | C180: SOUTH WARWICKSHIRE UNIVERSITY NHS FOUNDATION TRUST | D180: RJC02 | E180: Warwick Hospital | F180: 2 | G180: * | H180: * | I180: * | J180: * | K180: * | L180: * | M180: * | N180: *
A181: QWU | B181: RKB | C181: UNIVERSITY HOSPITALS COVENTRY AND WARWICKSHIRE NHS TRUST | D181: RKB03 | E181: Hospital Of St Cross | F181: 0 | G181: NA | H181: NA | I181: 0 | J181: 0 | K181: 0 | L181: 0 | M181: 0 | N181: 0
A182: QWU | B182: RKB | C182: UNIVERSITY HOSPITALS COVENTRY AND WARWICKSHIRE NHS TRUST | D182: RKBXXX | E182: Non-hospital site | F182: 22 | G182: 0.8636363636 | H182: 0.04545454545 | I182: * | J182: * | K182: * | L182: * | M182: * | N182: *
A183: QWU | B183: RKB | C183: UNIVERSITY HOSPITALS COVENTRY AND WARWICKSHIRE NHS TRUST | D183: RKB01 | E183: University Hospital (Coventry) | F183: 55 | G183: 0.8363636364 | H183: 0.03636363636 | I183: * | J183: * | K183: * | L183: * | M183: * | N183: *
A184: QXU | B184: RTK | C184: ASHFORD AND ST PETER'S HOSPITALS NHS FOUNDATION TRUST | D184: RTK02 | E184: Ashford Hospital | F184: 0 | G184: NA | H184: NA | I184: 0 | J184: 0 | K184: 0 | L184: 0 | M184: 0 | N184: 0
A185: QXU | B185: RA2 | C185: ROYAL SURREY COUNTY HOSPITAL NHS FOUNDATION TRUST | D185: RA201 | E185: Royal Surrey County Hospital | F185: 5 | G185: 1 | H185: 0 | I185: * | J185: * | K185: * | L185: * | M185: * | N185: *
A186: QXU | B186: RTP | C186: SURREY AND SUSSEX HEALTHCARE NHS TRUST | D186: RTP04 | E186: East Surrey Hospital | F186: 4 | G186: * | H186: * | I186: * | J186: * | K186: * | L186: * | M186: * | N186: *
A187: QYG | B187: REP | C187: LIVERPOOL WOMEN'S NHS FOUNDATION TRUST | D187: REP01 | E187: Liverpool Womens Hospital | F187: 12 | G187: 0.9166666667 | H187: 0 | I187: 9 | J187: 2 | K187: 0 | L187: 0 | M187: 0 | N187: 1
A188: QYG | B188: RBN | C188: MERSEY AND WEST LANCASHIRE TEACHING HOSPITALS NHS TRUST | D188: RBN52 | E188: Ormskirk and District General Hospital | F188: 3 | G188: * | H188: * | I188: * | J188: * | K188: * | L188: * | M188: * | N188: *
A189: QYG | B189: RBN | C189: MERSEY AND WEST LANCASHIRE TEACHING HOSPITALS NHS TRUST | D189: RBN01 | E189: Whiston Hospital | F189: 51 | G189: 0.9411764706 | H189: 0.03921568627 | I189: * | J189: * | K189: * | L189: * | M189: * | N189: *
A190: QYG | B190: RBT | C190: MID CHESHIRE HOSPITALS NHS FOUNDATION TRUST | D190: RBT20 | E190: Leighton Hospital | F190: 7 | G190: 1 | H190: 0 | I190: * | J190: * | K190: * | L190: * | M190: * | N190: *
A191: QYG | B191: RWW | C191: WARRINGTON AND HALTON TEACHING HOSPITALS NHS FOUNDATION TRUST | D191: RWWWH | E191: Warrington Hospital | F191: 1 | G191: * | H191: * | I191: * | J191: * | K191: * | L191: * | M191: * | N191: *
A192: QYG | B192: RBL | C192: WIRRAL UNIVERSITY TEACHING HOSPITAL NHS FOUNDATION TRUST | D192: RBL14 | E192: Arrowe Park Hospital | F192: 50 | G192: 0.94 | H192: 0.06 | I192: 40 | J192: 7 | K192: 0 | L192: 1 | M192: 2 | N192: 0

Sheet ICB Q2
B6: Sort data by:
A9: ICB Code | B9: ICB Name | C9: Total Responses | D9: Total Eligible | E9: Percentage Positive | F9: Percentage Negative | G9: Breakdown of Responses
G10: Very Good | H10: Good | I10: Neither Good nor Poor | J10: Poor | K10: Very Poor | L10: Don't Know
B11: England (including Independent Sector providers) | C11: 5214 | D11: 42614 | E11: 0.9378596087 | F11: 0.03567318757 | G11: 4180 | H11: 710 | I11: 109 | J11: 77 | K11: 109 | L11: 29
B12: England (excluding Independent Sector providers) | C12: 5214 | D12: 42614 | E12: 0.9378596087 | F12: 0.03567318757 | G12: 4180 | H12: 710 | I12: 109 | J12: 77 | K12: 109 | L12: 29
B13: Selection (excluding suppressed data) | C13: =SUBTOTAL(9,C14:C55) -> 5214 | D13: =SUBTOTAL(9,D14:D55) -> 42614 | E13: =IFERROR((G13+H13)/SUM(G13:L13), "-") -> 0.9378596087 | F13: =IFERROR((J13+K13)/SUM(G13:L13), "-") -> 0.03567318757 | G13: =SUBTOTAL(9,G14:G55) -> 4180 | H13: =SUBTOTAL(9,H14:H55) -> 710 | I13: 109 | J13: 77 | K13: 109 | L13: 29
A14: QE1 | B14: LANCASHIRE AND SOUTH CUMBRIA ICB | C14: 86 | D14: 1186 | E14: 0.9534883721 | F14: 0.01162790698 | G14: 73 | H14: 9 | I14: 3 | J14: 0 | K14: 1 | L14: 0
A15: QF7 | B15: SOUTH YORKSHIRE ICB | C15: 63 | D15: 1305 | E15: 0.9523809524 | F15: 0.04761904762 | G15: 53 | H15: 7 | I15: 0 | J15: 1 | K15: 2 | L15: 0
A16: QGH | B16: HEREFORDSHIRE AND WORCESTERSHIRE ICB | C16: 31 | D16: 123 | E16: 0.9677419355 | F16: 0.03225806452 | G16: 24 | H16: 6 | I16: 0 | J16: 0 | K16: 1 | L16: 0
A17: QH8 | B17: MID AND SOUTH ESSEX ICB | C17: 123 | D17: 451 | E17: 0.9024390244 | F17: 0.06504065041 | G17: 94 | H17: 17 | I17: 3 | J17: 3 | K17: 5 | L17: 1
A18: QHG | B18: BEDFORDSHIRE, LUTON AND MILTON KEYNES ICB | C18: 79 | D18: 1399 | E18: 0.9493670886 | F18: 0.03797468354 | G18: 62 | H18: 13 | I18: 1 | J18: 1 | K18: 2 | L18: 0
A19: QHL | B19: BIRMINGHAM AND SOLIHULL ICB | C19: 124 | D19: 1792 | E19: 0.7741935484 | F19: 0.1693548387 | G19: 72 | H19: 24 | I19: 4 | J19: 9 | K19: 12 | L19: 3
A20: QHM | B20: NORTH EAST AND NORTH CUMBRIA ICB | C20: 294 | D20: 2390 | E20: 0.925170068 | F20: 0.04081632653 | G20: 227 | H20: 45 | I20: 9 | J20: 5 | K20: 7 | L20: 1
A21: QJ2 | B21: DERBY AND DERBYSHIRE ICB | C21: 165 | D21: 822 | E21: 0.9636363636 | F21: 0.01818181818 | G21: 126 | H21: 33 | I21: 2 | J21: 2 | K21: 1 | L21: 1
A22: QJG | B22: SUFFOLK AND NORTH EAST ESSEX ICB | C22: 43 | D22: 832 | E22: 0.976744186 | F22: 0 | G22: 37 | H22: 5 | I22: 1 | J22: 0 | K22: 0 | L22: 0
A23: QJK | B23: DEVON ICB | C23: 15 | D23: 613 | E23: 1 | F23: 0 | G23: 12 | H23: 3 | I23: 0 | J23: 0 | K23: 0 | L23: 0
A24: QJM | B24: LINCOLNSHIRE ICB | C24: 56 | D24: 354 | E24: 0.9642857143 | F24: 0.01785714286 | G24: 49 | H24: 5 | I24: 1 | J24: 1 | K24: 0 | L24: 0
A25: QK1 | B25: LEICESTER, LEICESTERSHIRE AND RUTLAND ICB | C25: 192 | D25: 751 | E25: 0.921875 | F25: 0.03645833333 | G25: 143 | H25: 34 | I25: 5 | J25: 3 | K25: 4 | L25: 3
A26: QKK | B26: SOUTH EAST LONDON ICB | C26: 228 | D26: 1607 | E26: 0.9298245614 | F26: 0.0350877193 | G26: 159 | H26: 53 | I26: 8 | J26: 5 | K26: 3 | L26: 0
A27: QKS | B27: KENT AND MEDWAY ICB | C27: 136 | D27: 1166 | E27: 0.9779411765 | F27: 0.01470588235 | G27: 127 | H27: 6 | I27: 1 | J27: 1 | K27: 1 | L27: 0
A28: QM7 | B28: HERTFORDSHIRE AND WEST ESSEX ICB | C28: 27 | D28: 966 | E28: 0.8888888889 | F28: 0.03703703704 | G28: 20 | H28: 4 | I28: 2 | J28: 0 | K28: 1 | L28: 0
A29: QMF | B29: NORTH EAST LONDON ICB | C29: 270 | D29: 2174 | E29: 0.9592592593 | F29: 0.02962962963 | G29: 201 | H29: 58 | I29: 2 | J29: 3 | K29: 5 | L29: 1
A30: QMJ | B30: NORTH CENTRAL LONDON ICB | C30: 208 | D30: 1403 | E30: 0.9230769231 | F30: 0.03846153846 | G30: 156 | H30: 36 | I30: 8 | J30: 2 | K30: 6 | L30: 0
A31: QMM | B31: NORFOLK AND WAVENEY ICB | C31: 57 | D31: 727 | E31: 0.9649122807 | F31: 0.0350877193 | G31: 52 | H31: 3 | I31: 0 | J31: 2 | K31: 0 | L31: 0
A32: QNC | B32: STAFFORDSHIRE AND STOKE-ON-TRENT ICB | C32: 20 | D32: 386 | E32: 1 | F32: 0 | G32: 16 | H32: 4 | I32: 0 | J32: 0 | K32: 0 | L32: 0
A33: QNQ | B33: FRIMLEY ICB | C33: 12 | D33: 0 | E33: 1 | F33: 0 | G33: 12 | H33: 0 | I33: 0 | J33: 0 | K33: 0 | L33: 0
A34: QNX | B34: SUSSEX ICB | C34: 92 | D34: 958 | E34: 0.9456521739 | F34: 0.05434782609 | G34: 80 | H34: 7 | I34: 0 | J34: 2 | K34: 3 | L34: 0
A35: QOC | B35: SHROPSHIRE, TELFORD AND WREKIN ICB | C35: 22 | D35: 338 | E35: 1 | F35: 0 | G35: 21 | H35: 1 | I35: 0 | J35: 0 | K35: 0 | L35: 0
A36: QOP | B36: GREATER MANCHESTER ICB | C36: 328 | D36: 4040 | E36: 0.9603658537 | F36: 0.02743902439 | G36: 264 | H36: 51 | I36: 4 | J36: 2 | K36: 7 | L36: 0
A37: QOQ | B37: HUMBER AND NORTH YORKSHIRE ICB | C37: 82 | D37: 1114 | E37: 0.9756097561 | F37: 0 | G37: 77 | H37: 3 | I37: 2 | J37: 0 | K37: 0 | L37: 0
A38: QOX | B38: BATH AND NORTH EAST SOMERSET, SWINDON AND WILTSHIRE ICB | C38: 79 | D38: 779 | E38: 0.8607594937 | F38: 0.1139240506 | G38: 51 | H38: 17 | I38: 2 | J38: 6 | K38: 3 | L38: 0
A39: QPM | B39: NORTHAMPTONSHIRE ICB | C39: 54 | D39: 636 | E39: 0.8703703704 | F39: 0.09259259259 | G39: 40 | H39: 7 | I39: 2 | J39: 3 | K39: 2 | L39: 0
A40: QR1 | B40: GLOUCESTERSHIRE ICB | C40: 89 | D40: 240 | E40: 0.8988764045 | F40: 0.03370786517 | G40: 63 | H40: 17 | I40: 5 | J40: 1 | K40: 2 | L40: 1
A41: QRL | B41: HAMPSHIRE AND ISLE OF WIGHT ICB | C41: 269 | D41: 1249 | E41: 0.9628252788 | F41: 0.01115241636 | G41: 238 | H41: 21 | I41: 4 | J41: 1 | K41: 2 | L41: 3
A42: QRV | B42: NORTH WEST LONDON ICB | C42: 245 | D42: 1465 | E42: 0.9183673469 | F42: 0.05306122449 | G42: 187 | H42: 38 | I42: 7 | J42: 4 | K42: 9 | L42: 0
A43: QSL | B43: SOMERSET ICB | C43: 0 | D43: 345 | E43: NA | F43: NA | G43: 0 | H43: 0 | I43: 0 | J43: 0 | K43: 0 | L43: 0
A44: QT1 | B44: NOTTINGHAM AND NOTTINGHAMSHIRE ICB | C44: 70 | D44: 653 | E44: 0.9428571429 | F44: 0.04285714286 | G44: 56 | H44: 10 | I44: 1 | J44: 2 | K44: 1 | L44: 0
A45: QT6 | B45: CORNWALL AND THE ISLES OF SCILLY ICB | C45: 6 | D45: 284 | E45: 0.8333333333 | F45: 0 | G45: 4 | H45: 1 | I45: 1 | J45: 0 | K45: 0 | L45: 0
A46: QU9 | B46: BUCKINGHAMSHIRE, OXFORDSHIRE AND BERKSHIRE WEST ICB | C46: 179 | D46: 1112 | E46: 0.8715083799 | F46: 0.06703910615 | G46: 126 | H46: 30 | I46: 11 | J46: 5 | K46: 7 | L46: 0
A47: QUA | B47: BLACK COUNTRY ICB | C47: 118 | D47: 1025 | E47: 0.8813559322 | F47: 0.03389830508 | G47: 90 | H47: 14 | I47: 1 | J47: 1 | K47: 3 | L47: 9
A48: QUE | B48: CAMBRIDGESHIRE AND PETERBOROUGH ICB | C48: 63 | D48: 950 | E48: 0.9682539683 | F48: 0 | G48: 56 | H48: 5 | I48: 2 | J48: 0 | K48: 0 | L48: 0
A49: QUY | B49: BRISTOL, NORTH SOMERSET AND SOUTH GLOUCESTERSHIRE ICB | C49: 150 | D49: 699 | E49: 0.9733333333 | F49: 0.006666666667 | G49: 124 | H49: 22 | I49: 3 | J49: 1 | K49: 0 | L49: 0
A50: QVV | B50: DORSET ICB | C50: 125 | D50: 401 | E50: 0.96 | F50: 0.016 | G50: 105 | H50: 15 | I50: 1 | J50: 0 | K50: 2 | L50: 2
A51: QWE | B51: SOUTH WEST LONDON ICB | C51: 117 | D51: 1171 | E51: 0.9230769231 | F51: 0.04273504274 | G51: 97 | H51: 11 | I51: 4 | J51: 1 | K51: 4 | L51: 0
A52: QWO | B52: WEST YORKSHIRE ICB | C52: 491 | D52: 1578 | E52: 0.983706721 | F52: 0.01018329939 | G52: 446 | H52: 37 | I52: 3 | J52: 1 | K52: 4 | L52: 0
A53: QWU | B53: COVENTRY AND WARWICKSHIRE ICB | C53: 111 | D53: 743 | E53: 0.954954955 | F53: 0.03603603604 | G53: 93 | H53: 13 | I53: 1 | J53: 3 | K53: 1 | L53: 0
A54: QXU | B54: SURREY HEARTLANDS ICB | C54: 42 | D54: 839 | E54: 0.880952381 | F54: 0.02380952381 | G54: 34 | H54: 3 | I54: 2 | J54: 1 | K54: 0 | L54: 2
A55: QYG | B55: CHESHIRE AND MERSEYSIDE ICB | C55: 253 | D55: 1548 | E55: 0.9288537549 | F55: 0.05138339921 | G55: 213 | H55: 22 | I55: 3 | J55: 5 | K55: 8 | L55: 2

Sheet Trusts Q2
B6: Sort data by:
A9: ICB Code | B9: Trust Code | C9: Trust Name | D9: Total Responses | E9: Total Eligible | F9: Percentage Positive | G9: Percentage Negative | H9: Breakdown of Responses | N9: Mode of Collection
H10: Very Good | I10: Good | J10: Neither Good nor Poor | K10: Poor | L10: Very Poor | M10: Don't Know | N10: Mode SMS | O10: Mode Electronic Discharge | P10: Mode Electronic Home | Q10: Mode Paper Discharge | R10: Mode Paper Home | S10: Mode Telephone | T10: Mode Online | U10: Mode Other
C11: England (including Independent Sector providers) | D11: 5214 | E11: 42614 | F11: 0.9378596087 | G11: 0.03567318757 | H11: 4180 | I11: 710 | J11: 109 | K11: 77 | L11: 109 | M11: 29 | N11: 2047 | O11: 719 | P11: 64 | Q11: 1376 | R11: 42 | S11: 21 | T11: 728 | U11: 217
C12: England (excluding Independent Sector providers) | D12: 5214 | E12: 42614 | F12: 0.9378596087 | G12: 0.03567318757 | H12: 4180 | I12: 710 | J12: 109 | K12: 77 | L12: 109 | M12: 29 | N12: 2047 | O12: 719 | P12: 64 | Q12: 1376 | R12: 42 | S12: 21 | T12: 728 | U12: 217
C13: Selection (excluding suppressed data) | D13: =SUBTOTAL(9,D14:D299) -> 5214 | E13: =SUBTOTAL(9,E14:E299) -> 42614 | F13: =IFERROR((H13+I13)/SUM(H13:M13), "-") -> 0.9369655995 | G13: =IFERROR((K13+L13)/SUM(H13:M13), "-") -> 0.03619009743 | H13: =SUBTOTAL(9,H14:H299) -> 4021 | I13: =SUBTOTAL(9,I14:I299) -> 691 | J13: 106 | K13: 76 | L13: 106 | M13: 29 | N13: 1933 | O13: 694 | P13: 64 | Q13: 1343 | R13: 42 | S13: 21 | T13: 718 | U13: 214
A14: QE1 | B14: RXL | C14: BLACKPOOL TEACHING HOSPITALS NHS FOUNDATION TRUST | D14: 31 | E14: 213 | F14: 0.9677419355 | G14: 0 | H14: 24 | I14: 6 | J14: 1 | K14: 0 | L14: 0 | M14: 0 | N14: 31 | O14: 0 | P14: 0 | Q14: 0 | R14: 0 | S14: 0 | T14: 0 | U14: 0
A15: QE1 | B15: RXR | C15: EAST LANCASHIRE HOSPITALS NHS TRUST | D15: 10 | E15: 485 | F15: 0.9 | G15: 0.1 | H15: 9 | I15: 0 | J15: 0 | K15: 0 | L15: 1 | M15: 0 | N15: 0 | O15: 0 | P15: 0 | Q15: 10 | R15: 0 | S15: 0 | T15: 0 | U15: 0
A16: QE1 | B16: RXN | C16: LANCASHIRE TEACHING HOSPITALS NHS FOUNDATION TRUST | D16: 11 | E16: 169 | F16: 0.8181818182 | G16: 0 | H16: 6 | I16: 3 | J16: 2 | K16: 0 | L16: 0 | M16: 0 | N16: 11 | O16: 0 | P16: 0 | Q16: 0 | R16: 0 | S16: 0 | T16: 0 | U16: 0
A17: QE1 | B17: RTX | C17: UNIVERSITY HOSPITALS OF MORECAMBE BAY NHS FOUNDATION TRUST | D17: 34 | E17: 319 | F17: 1 | G17: 0 | H17: 34 | I17: 0 | J17: 0 | K17: 0 | L17: 0 | M17: 0 | N17: 28 | O17: 0 | P17: 0 | Q17: 0 | R17: 0 | S17: 0 | T17: 6 | U17: 0
A18: QF7 | B18: RFF | C18: BARNSLEY HOSPITAL NHS FOUNDATION TRUST | D18: 16 | E18: 245 | F18: 1 | G18: 0 | H18: 16 | I18: 0 | J18: 0 | K18: 0 | L18: 0 | M18: 0 | N18: 0 | O18: 16 | P18: 0 | Q18: 0 | R18: 0 | S18: 0 | T18: 0 | U18: 0
A19: QF7 | B19: RP5 | C19: DONCASTER AND BASSETLAW TEACHING HOSPITALS NHS FOUNDATION TRUST | D19: 7 | E19: 379 | F19: 0.8571428571 | G19: 0.1428571429 | H19: 5 | I19: 1 | J19: 0 | K19: 1 | L19: 0 | M19: 0 | N19: 0 | O19: 0 | P19: 0 | Q19: 4 | R19: 0 | S19: 0 | T19: 3 | U19: 0
A20: QF7 | B20: RHQ | C20: SHEFFIELD TEACHING HOSPITALS NHS FOUNDATION TRUST | D20: 22 | E20: 485 | F20: 0.9090909091 | G20: 0.09090909091 | H20: 14 | I20: 6 | J20: 0 | K20: 0 | L20: 2 | M20: 0 | N20: 2 | O20: 0 | P20: 0 | Q20: 17 | R20: 0 | S20: 0 | T20: 3 | U20: 0
A21: QF7 | B21: RFR | C21: THE ROTHERHAM NHS FOUNDATION TRUST | D21: 18 | E21: 196 | F21: 1 | G21: 0 | H21: 18 | I21: 0 | J21: 0 | K21: 0 | L21: 0 | M21: 0 | N21: 0 | O21: 0 | P21: 0 | Q21: 14 | R21: 0 | S21: 0 | T21: 4 | U21: 0
A22: QGH | B22: RWP | C22: WORCESTERSHIRE ACUTE HOSPITALS NHS TRUST | D22: 4 | E22: 123 | F22: * | G22: * | H22: * | I22: * | J22: * | K22: * | L22: * | M22: * | N22: * | O22: * | P22: * | Q22: * | R22: * | S22: * | T22: * | U22: *
A23: QGH | B23: RLQ | C23: WYE VALLEY NHS TRUST | D23: 27 | E23: 0 | F23: 0.962962963 | G23: 0.03703703704 | H23: * | I23: * | J23: * | K23: * | L23: * | M23: * | N23: * | O23: * | P23: * | Q23: * | R23: * | S23: * | T23: * | U23: *
A24: QH8 | B24: RAJ | C24: MID AND SOUTH ESSEX NHS FOUNDATION TRUST | D24: 123 | E24: 451 | F24: 0.9024390244 | G24: 0.06504065041 | H24: 94 | I24: 17 | J24: 3 | K24: 3 | L24: 5 | M24: 1 | N24: 120 | O24: 0 | P24: 0 | Q24: 0 | R24: 0 | S24: 0 | T24: 3 | U24: 0
A25: QHG | B25: RC9 | C25: BEDFORDSHIRE HOSPITALS NHS FOUNDATION TRUST | D25: 36 | E25: 1082 | F25: 0.9722222222 | G25: 0 | H25: 31 | I25: 4 | J25: 1 | K25: 0 | L25: 0 | M25: 0 | N25: 0 | O25: 35 | P25: 0 | Q25: 0 | R25: 0 | S25: 0 | T25: 1 | U25: 0
A26: QHG | B26: RD8 | C26: MILTON KEYNES UNIVERSITY HOSPITAL NHS FOUNDATION TRUST | D26: 43 | E26: 317 | F26: 0.9302325581 | G26: 0.06976744186 | H26: 31 | I26: 9 | J26: 0 | K26: 1 | L26: 2 | M26: 0 | N26: 6 | O26: 0 | P26: 0 | Q26: 26 | R26: 0 | S26: 0 | T26: 11 | U26: 0
A27: QHL | B27: RQ3 | C27: BIRMINGHAM WOMEN'S AND CHILDREN'S NHS FOUNDATION TRUST | D27: 7 | E27: 542 | F27: 0.8571428571 | G27: 0.1428571429 | H27: 5 | I27: 1 | J27: 0 | K27: 1 | L27: 0 | M27: 0 | N27: 0 | O27: 0 | P27: 0 | Q27: 0 | R27: 0 | S27: 0 | T27: 7 | U27: 0
A28: QHL | B28: RXK | C28: SANDWELL AND WEST BIRMINGHAM HOSPITALS NHS TRUST | D28: 19 | E28: 395 | F28: 0.6842105263 | G28: 0.1578947368 | H28: 13 | I28: 0 | J28: 2 | K28: 1 | L28: 2 | M28: 1 | N28: 19 | O28: 0 | P28: 0 | Q28: 0 | R28: 0 | S28: 0 | T28: 0 | U28: 0
A29: QHL | B29: RRK | C29: UNIVERSITY HOSPITALS BIRMINGHAM NHS FOUNDATION TRUST | D29: 98 | E29: 855 | F29: 0.7857142857 | G29: 0.1734693878 | H29: 54 | I29: 23 | J29: 2 | K29: 7 | L29: 10 | M29: 2 | N29: 98 | O29: 0 | P29: 0 | Q29: 0 | R29: 0 | S29: 0 | T29: 0 | U29: 0
A30: QHM | B30: RXP | C30: COUNTY DURHAM AND DARLINGTON NHS FOUNDATION TRUST | D30: 92 | E30: 348 | F30: 0.9891304348 | G30: 0 | H30: 73 | I30: 18 | J30: 1 | K30: 0 | L30: 0 | M30: 0 | N30: 0 | O30: 0 | P30: 0 | Q30: 92 | R30: 0 | S30: 0 | T30: 0 | U30: 0
A31: QHM | B31: RR7 | C31: GATESHEAD HEALTH NHS FOUNDATION TRUST | D31: 4 | E31: 158 | F31: * | G31: * | H31: * | I31: * | J31: * | K31: * | L31: * | M31: * | N31: * | O31: * | P31: * | Q31: * | R31: * | S31: * | T31: * | U31: *
A32: QHM | B32: RNN | C32: NORTH CUMBRIA INTEGRATED CARE NHS FOUNDATION TRUST | D32: 29 | E32: 219 | F32: 1 | G32: 0 | H32: 26 | I32: 3 | J32: 0 | K32: 0 | L32: 0 | M32: 0 | N32: 3 | O32: 0 | P32: 0 | Q32: 17 | R32: 0 | S32: 0 | T32: 9 | U32: 0
A33: QHM | B33: RVW | C33: NORTH TEES AND HARTLEPOOL NHS FOUNDATION TRUST | D33: 1 | E33: 350 | F33: * | G33: * | H33: * | I33: * | J33: * | K33: * | L33: * | M33: * | N33: * | O33: * | P33: * | Q33: * | R33: * | S33: * | T33: * | U33: *
A34: QHM | B34: RTF | C34: NORTHUMBRIA HEALTHCARE NHS FOUNDATION TRUST | D34: 75 | E34: 266 | F34: 0.88 | G34: 0.1066666667 | H34: 55 | I34: 11 | J34: 1 | K34: 4 | L34: 4 | M34: 0 | N34: 49 | O34: 0 | P34: 0 | Q34: 26 | R34: 0 | S34: 0 | T34: 0 | U34: 0
A35: QHM | B35: RTR | C35: SOUTH TEES HOSPITALS NHS FOUNDATION TRUST | D35: 84 | E35: 297 | F35: 0.869047619 | G35: 0.04761904762 | H35: 63 | I35: 10 | J35: 6 | K35: 1 | L35: 3 | M35: 1 | N35: 80 | O35: 0 | P35: 4 | Q35: 0 | R35: 0 | S35: 0 | T35: 0 | U35: 0
A36: QHM | B36: R0B | C36: SOUTH TYNESIDE AND SUNDERLAND NHS FOUNDATION TRUST | D36: 6 | E36: 282 | F36: 1 | G36: 0 | H36: 5 | I36: 1 | J36: 0 | K36: 0 | L36: 0 | M36: 0 | N36: 0 | O36: 0 | P36: 0 | Q36: 3 | R36: 0 | S36: 0 | T36: 3 | U36: 0
A37: QHM | B37: RTD | C37: THE NEWCASTLE UPON TYNE HOSPITALS NHS FOUNDATION TRUST | D37: 3 | E37: 470 | F37: * | G37: * | H37: * | I37: * | J37: * | K37: * | L37: * | M37: * | N37: * | O37: * | P37: * | Q37: * | R37: * | S37: * | T37: * | U37: *
A38: QJ2 | B38: RFS | C38: CHESTERFIELD ROYAL HOSPITAL NHS FOUNDATION TRUST | D38: 128 | E38: 130 | F38: 0.984375 | G38: 0.0078125 | H38: 103 | I38: 23 | J38: 0 | K38: 1 | L38: 0 | M38: 1 | N38: 65 | O38: 25 | P38: 38 | Q38: 0 | R38: 0 | S38: 0 | T38: 0 | U38: 0
A39: QJ2 | B39: RTG | C39: UNIVERSITY HOSPITALS OF DERBY AND BURTON NHS FOUNDATION TRUST | D39: 37 | E39: 692 | F39: 0.8918918919 | G39: 0.05405405405 | H39: 23 | I39: 10 | J39: 2 | K39: 1 | L39: 1 | M39: 0 | N39: 23 | O39: 0 | P39: 0 | Q39: 14 | R39: 0 | S39: 0 | T39: 0 | U39: 0
A40: QJG | B40: RDE | C40: EAST SUFFOLK AND NORTH ESSEX NHS FOUNDATION TRUST | D40: 15 | E40: 517 | F40: 0.9333333333 | G40: 0 | H40: 12 | I40: 2 | J40: 1 | K40: 0 | L40: 0 | M40: 0 | N40: 0 | O40: 0 | P40: 0 | Q40: 0 | R40: 0 | S40: 0 | T40: 15 | U40: 0
A41: QJG | B41: RGR | C41: WEST SUFFOLK NHS FOUNDATION TRUST | D41: 28 | E41: 315 | F41: 1 | G41: 0 | H41: 25 | I41: 3 | J41: 0 | K41: 0 | L41: 0 | M41: 0 | N41: 0 | O41: 27 | P41: 0 | Q41: 0 | R41: 0 | S41: 0 | T41: 1 | U41: 0
A42: QJK | B42: RH8 | C42: ROYAL DEVON UNIVERSITY HEALTHCARE NHS FOUNDATION TRUST | D42: 3 | E42: 396 | F42: * | G42: * | H42: * | I42: * | J42: * | K42: * | L42: * | M42: * | N42: * | O42: * | P42: * | Q42: * | R42: * | S42: * | T42: * | U42: *
A43: QJK | B43: RA9 | C43: TORBAY AND SOUTH DEVON NHS FOUNDATION TRUST | D43: 0 | E43: 141 | F43: NA | G43: NA | H43: 0 | I43: 0 | J43: 0 | K43: 0 | L43: 0 | M43: 0 | N43: 0 | O43: 0 | P43: 0 | Q43: 0 | R43: 0 | S43: 0 | T43: 0 | U43: 0
A44: QJK | B44: RK9 | C44: UNIVERSITY HOSPITALS PLYMOUTH NHS TRUST | D44: 12 | E44: 76 | F44: 1 | G44: 0 | H44: * | I44: * | J44: * | K44: * | L44: * | M44: * | N44: * | O44: * | P44: * | Q44: * | R44: * | S44: * | T44: * | U44: *
A45: QJM | B45: RWD | C45: UNITED LINCOLNSHIRE HOSPITALS NHS TRUST | D45: 56 | E45: 354 | F45: 0.9642857143 | G45: 0.01785714286 | H45: 49 | I45: 5 | J45: 1 | K45: 1 | L45: 0 | M45: 0 | N45: 0 | O45: 0 | P45: 0 | Q45: 56 | R45: 0 | S45: 0 | T45: 0 | U45: 0
A46: QK1 | B46: RWE | C46: UNIVERSITY HOSPITALS OF LEICESTER NHS TRUST | D46: 192 | E46: 751 | F46: 0.921875 | G46: 0.03645833333 | H46: 143 | I46: 34 | J46: 5 | K46: 3 | L46: 4 | M46: 3 | N46: 0 | O46: 192 | P46: 0 | Q46: 0 | R46: 0 | S46: 0 | T46: 0 | U46: 0
A47: QKK | B47: RJ1 | C47: GUY'S AND ST THOMAS' NHS FOUNDATION TRUST | D47: 60 | E47: 524 | F47: 0.9666666667 | G47: 0 | H47: 46 | I47: 12 | J47: 2 | K47: 0 | L47: 0 | M47: 0 | N47: 0 | O47: 0 | P47: 0 | Q47: 57 | R47: 0 | S47: 0 | T47: 3 | U47: 0
A48: QKK | B48: RJZ | C48: KING'S COLLEGE HOSPITAL NHS FOUNDATION TRUST | D48: 99 | E48: 562 | F48: 0.8686868687 | G48: 0.07070707071 | H48: 65 | I48: 21 | J48: 6 | K48: 5 | L48: 2 | M48: 0 | N48: 45 | O48: 33 | P48: 0 | Q48: 0 | R48: 0 | S48: 21 | T48: 0 | U48: 0
A49: QKK | B49: RJ2 | C49: LEWISHAM AND GREENWICH NHS TRUST | D49: 69 | E49: 521 | F49: 0.9855072464 | G49: 0.01449275362 | H49: 48 | I49: 20 | J49: 0 | K49: 0 | L49: 1 | M49: 0 | N49: 0 | O49: 0 | P49: 0 | Q49: 28 | R49: 0 | S49: 0 | T49: 41 | U49: 0
A50: QKS | B50: RN7 | C50: DARTFORD AND GRAVESHAM NHS TRUST | D50: 14 | E50: 372 | F50: 0.9285714286 | G50: 0.07142857143 | H50: 12 | I50: 1 | J50: 0 | K50: 1 | L50: 0 | M50: 0 | N50: 0 | O50: 0 | P50: 0 | Q50: 0 | R50: 0 | S50: 0 | T50: 14 | U50: 0
A51: QKS | B51: RWF | C51: MAIDSTONE AND TUNBRIDGE WELLS NHS TRUST | D51: 91 | E51: 464 | F51: 1 | G51: 0 | H51: 89 | I51: 2 | J51: 0 | K51: 0 | L51: 0 | M51: 0 | N51: 0 | O51: 0 | P51: 0 | Q51: 0 | R51: 0 | S51: 0 | T51: 91 | U51: 0
A52: QKS | B52: RPA | C52: MEDWAY NHS FOUNDATION TRUST | D52: 31 | E52: 330 | F52: 0.935483871 | G52: 0.03225806452 | H52: 26 | I52: 3 | J52: 1 | K52: 0 | L52: 1 | M52: 0 | N52: 0 | O52: 0 | P52: 0 | Q52: 0 | R52: 0 | S52: 0 | T52: 31 | U52: 0
A53: QM7 | B53: RWH | C53: EAST AND NORTH HERTFORDSHIRE NHS TRUST | D53: 18 | E53: 383 | F53: 0.9444444444 | G53: 0 | H53: 14 | I53: 3 | J53: 1 | K53: 0 | L53: 0 | M53: 0 | N53: 0 | O53: 4 | P53: 8 | Q53: 2 | R53: 0 | S53: 0 | T53: 4 | U53: 0
A54: QM7 | B54: RQW | C54: THE PRINCESS ALEXANDRA HOSPITAL NHS TRUST | D54: 3 | E54: 300 | F54: * | G54: * | H54: * | I54: * | J54: * | K54: * | L54: * | M54: * | N54: * | O54: * | P54: * | Q54: * | R54: * | S54: * | T54: * | U54: *
A55: QM7 | B55: RWG | C55: WEST HERTFORDSHIRE TEACHING HOSPITALS NHS TRUST | D55: 6 | E55: 283 | F55: 1 | G55: 0 | H55: * | I55: * | J55: * | K55: * | L55: * | M55: * | N55: * | O55: * | P55: * | Q55: * | R55: * | S55: * | T55: * | U55: *
A56: QMF | B56: RF4 | C56: BARKING, HAVERING AND REDBRIDGE UNIVERSITY HOSPITALS NHS TRUST | D56: 69 | E56: 555 | F56: 0.9420289855 | G56: 0.04347826087 | H56: 58 | I56: 7 | J56: 0 | K56: 0 | L56: 3 | M56: 1 | N56: 0 | O56: 0 | P56: 0 | Q56: 65 | R56: 0 | S56: 0 | T56: 4 | U56: 0
A57: QMF | B57: R1H | C57: BARTS HEALTH NHS TRUST | D57: 130 | E57: 1136 | F57: 0.9692307692 | G57: 0.02307692308 | H57: 109 | I57: 17 | J57: 1 | K57: 1 | L57: 2 | M57: 0 | N57: 18 | O57: 0 | P57: 0 | Q57: 111 | R57: 0 | S57: 0 | T57: 1 | U57: 0
A58: QMF | B58: RQX | C58: HOMERTON HEALTHCARE NHS FOUNDATION TRUST | D58: 71 | E58: 483 | F58: 0.9577464789 | G58: 0.02816901408 | H58: 34 | I58: 34 | J58: 1 | K58: 2 | L58: 0 | M58: 0 | N58: 68 | O58: 0 | P58: 0 | Q58: 0 | R58: 0 | S58: 0 | T58: 3 | U58: 0
A59: QMJ | B59: RAP | C59: NORTH MIDDLESEX UNIVERSITY HOSPITAL NHS TRUST | D59: 25 | E59: 282 | F59: 0.8 | G59: 0.2 | H59: 17 | I59: 3 | J59: 0 | K59: 0 | L59: 5 | M59: 0 | N59: 21 | O59: 0 | P59: 0 | Q59: 4 | R59: 0 | S59: 0 | T59: 0 | U59: 0
A60: QMJ | B60: RAL | C60: ROYAL FREE LONDON NHS FOUNDATION TRUST | D60: 140 | E60: 665 | F60: 0.9357142857 | G60: 0.02142857143 | H60: 105 | I60: 26 | J60: 6 | K60: 2 | L60: 1 | M60: 0 | N60: 0 | O60: 140 | P60: 0 | Q60: 0 | R60: 0 | S60: 0 | T60: 0 | U60: 0
A61: QMJ | B61: RRV | C61: UNIVERSITY COLLEGE LONDON HOSPITALS NHS FOUNDATION TRUST | D61: 29 | E61: 215 | F61: 0.9310344828 | G61: 0 | H61: 21 | I61: 6 | J61: 2 | K61: 0 | L61: 0 | M61: 0 | N61: 0 | O61: 0 | P61: 0 | Q61: 0 | R61: 0 | S61: 0 | T61: 29 | U61: 0
A62: QMJ | B62: RKE | C62: WHITTINGTON HEALTH NHS TRUST | D62: 14 | E62: 241 | F62: 1 | G62: 0 | H62: 13 | I62: 1 | J62: 0 | K62: 0 | L62: 0 | M62: 0 | N62: 0 | O62: 0 | P62: 0 | Q62: 8 | R62: 0 | S62: 0 | T62: 6 | U62: 0
A63: QMM | B63: RGP | C63: JAMES PAGET UNIVERSITY HOSPITALS NHS FOUNDATION TRUST | D63: 19 | E63: 152 | F63: 0.9473684211 | G63: 0.05263157895 | H63: 17 | I63: 1 | J63: 0 | K63: 1 | L63: 0 | M63: 0 | N63: 0 | O63: 0 | P63: 0 | Q63: 19 | R63: 0 | S63: 0 | T63: 0 | U63: 0
A64: QMM | B64: RM1 | C64: NORFOLK AND NORWICH UNIVERSITY HOSPITALS NHS FOUNDATION TRUST | D64: 12 | E64: 415 | F64: 1 | G64: 0 | H64: 11 | I64: 1 | J64: 0 | K64: 0 | L64: 0 | M64: 0 | N64: 0 | O64: 0 | P64: 0 | Q64: 0 | R64: 0 | S64: 0 | T64: 12 | U64: 0
A65: QMM | B65: RCX | C65: THE QUEEN ELIZABETH HOSPITAL, KING'S LYNN, NHS FOUNDATION TRUST | D65: 26 | E65: 160 | F65: 0.9615384615 | G65: 0.03846153846 | H65: 24 | I65: 1 | J65: 0 | K65: 1 | L65: 0 | M65: 0 | N65: 0 | O65: 0 | P65: 0 | Q65: 24 | R65: 0 | S65: 0 | T65: 2 | U65: 0
A66: QNC | B66: RJE | C66: UNIVERSITY HOSPITALS OF NORTH MIDLANDS NHS TRUST | D66: 20 | E66: 386 | F66: 1 | G66: 0 | H66: 16 | I66: 4 | J66: 0 | K66: 0 | L66: 0 | M66: 0 | N66: 0 | O66: 0 | P66: 0 | Q66: 20 | R66: 0 | S66: 0 | T66: 0 | U66: 0
A67: QNQ | B67: RDU | C67: FRIMLEY HEALTH NHS FOUNDATION TRUST | D67: 12 | E67: 0 | F67: 1 | G67: 0 | H67: 12 | I67: 0 | J67: 0 | K67: 0 | L67: 0 | M67: 0 | N67: 0 | O67: 0 | P67: 0 | Q67: 12 | R67: 0 | S67: 0 | T67: 0 | U67: 0
A68: QNX | B68: RXC | C68: EAST SUSSEX HEALTHCARE NHS TRUST | D68: 35 | E68: 221 | F68: 0.9714285714 | G68: 0.02857142857 | H68: 31 | I68: 3 | J68: 0 | K68: 0 | L68: 1 | M68: 0 | N68: 0 | O68: 0 | P68: 0 | Q68: 35 | R68: 0 | S68: 0 | T68: 0 | U68: 0
A69: QNX | B69: RYR | C69: UNIVERSITY HOSPITALS SUSSEX NHS FOUNDATION TRUST | D69: 57 | E69: 737 | F69: 0.9298245614 | G69: 0.0701754386 | H69: 49 | I69: 4 | J69: 0 | K69: 2 | L69: 2 | M69: 0 | N69: 57 | O69: 0 | P69: 0 | Q69: 0 | R69: 0 | S69: 0 | T69: 0 | U69: 0
A70: QOC | B70: RXW | C70: THE SHREWSBURY AND TELFORD HOSPITAL NHS TRUST | D70: 22 | E70: 338 | F70: 1 | G70: 0 | H70: 21 | I70: 1 | J70: 0 | K70: 0 | L70: 0 | M70: 0 | N70: 0 | O70: 0 | P70: 0 | Q70: 22 | R70: 0 | S70: 0 | T70: 0 | U70: 0
A71: QOP | B71: RMC | C71: BOLTON NHS FOUNDATION TRUST | D71: 224 | E71: 422 | F71: 0.9508928571 | G71: 0.03571428571 | H71: 189 | I71: 24 | J71: 3 | K71: 1 | L71: 7 | M71: 0 | N71: 136 | O71: 0 | P71: 0 | Q71: 88 | R71: 0 | S71: 0 | T71: 0 | U71: 0
A72: QOP | B72: R0A | C72: MANCHESTER UNIVERSITY NHS FOUNDATION TRUST | D72: 56 | E72: 3026 | F72: 1 | G72: 0 | H72: 33 | I72: 23 | J72: 0 | K72: 0 | L72: 0 | M72: 0 | N72: 0 | O72: 46 | P72: 0 | Q72: 7 | R72: 0 | S72: 0 | T72: 3 | U72: 0
A73: QOP | B73: RWJ | C73: STOCKPORT NHS FOUNDATION TRUST | D73: 8 | E73: 230 | F73: 1 | G73: 0 | H73: 8 | I73: 0 | J73: 0 | K73: 0 | L73: 0 | M73: 0 | N73: 0 | O73: 0 | P73: 0 | Q73: 8 | R73: 0 | S73: 0 | T73: 0 | U73: 0
A74: QOP | B74: RMP | C74: TAMESIDE AND GLOSSOP INTEGRATED CARE NHS FOUNDATION TRUST | D74: 6 | E74: 160 | F74: 0.8333333333 | G74: 0.1666666667 | H74: 5 | I74: 0 | J74: 0 | K74: 1 | L74: 0 | M74: 0 | N74: 0 | O74: 6 | P74: 0 | Q74: 0 | R74: 0 | S74: 0 | T74: 0 | U74: 0
A75: QOP | B75: RRF | C75: WRIGHTINGTON, WIGAN AND LEIGH NHS FOUNDATION TRUST | D75: 34 | E75: 202 | F75: 0.9705882353 | G75: 0 | H75: 29 | I75: 4 | J75: 1 | K75: 0 | L75: 0 | M75: 0 | N75: 0 | O75: 0 | P75: 0 | Q75: 32 | R75: 0 | S75: 0 | T75: 2 | U75: 0
A76: QOQ | B76: RCD | C76: HARROGATE AND DISTRICT NHS FOUNDATION TRUST | D76: 4 | E76: 85 | F76: * | G76: * | H76: * | I76: * | J76: * | K76: * | L76: * | M76: * | N76: * | O76: * | P76: * | Q76: * | R76: * | S76: * | T76: * | U76: *
A77: QOQ | B77: RWA | C77: HULL UNIVERSITY TEACHING HOSPITALS NHS TRUST | D77: 35 | E77: 431 | F77: 0.9428571429 | G77: 0 | H77: 33 | I77: 0 | J77: 2 | K77: 0 | L77: 0 | M77: 0 | N77: 7 | O77: 0 | P77: 0 | Q77: 26 | R77: 0 | S77: 0 | T77: 2 | U77: 0
A78: QOQ | B78: RJL | C78: NORTHERN LINCOLNSHIRE AND GOOLE NHS FOUNDATION TRUST | D78: 24 | E78: 286 | F78: 1 | G78: 0 | H78: 21 | I78: 3 | J78: 0 | K78: 0 | L78: 0 | M78: 0 | N78: 0 | O78: 0 | P78: 0 | Q78: 24 | R78: 0 | S78: 0 | T78: 0 | U78: 0
A79: QOQ | B79: RCB | C79: YORK AND SCARBOROUGH TEACHING HOSPITALS NHS FOUNDATION TRUST | D79: 19 | E79: 312 | F79: 1 | G79: 0 | H79: * | I79: * | J79: * | K79: * | L79: * | M79: * | N79: * | O79: * | P79: * | Q79: * | R79: * | S79: * | T79: * | U79: *
A80: QOX | B80: RN3 | C80: GREAT WESTERN HOSPITALS NHS FOUNDATION TRUST | D80: 68 | E80: 287 | F80: 0.8676470588 | G80: 0.1176470588 | H80: 45 | I80: 14 | J80: 1 | K80: 5 | L80: 3 | M80: 0 | N80: 68 | O80: 0 | P80: 0 | Q80: 0 | R80: 0 | S80: 0 | T80: 0 | U80: 0
A81: QOX | B81: RD1 | C81: ROYAL UNITED HOSPITALS BATH NHS FOUNDATION TRUST | D81: 11 | E81: 333 | F81: 0.8181818182 | G81: 0.09090909091 | H81: 6 | I81: 3 | J81: 1 | K81: 1 | L81: 0 | M81: 0 | N81: 0 | O81: 0 | P81: 0 | Q81: 8 | R81: 0 | S81: 0 | T81: 3 | U81: 0
A82: QOX | B82: RNZ | C82: SALISBURY NHS FOUNDATION TRUST | D82: 0 | E82: 159 | F82: NA | G82: NA | H82: 0 | I82: 0 | J82: 0 | K82: 0 | L82: 0 | M82: 0 | N82: 0 | O82: 0 | P82: 0 | Q82: 0 | R82: 0 | S82: 0 | T82: 0 | U82: 0
A83: QPM | B83: RNQ | C83: KETTERING GENERAL HOSPITAL NHS FOUNDATION TRUST | D83: 5 | E83: 277 | F83: 0.6 | G83: 0 | H83: 2 | I83: 1 | J83: 2 | K83: 0 | L83: 0 | M83: 0 | N83: 0 | O83: 0 | P83: 0 | Q83: 0 | R83: 0 | S83: 0 | T83: 5 | U83: 0
A84: QPM | B84: RNS | C84: NORTHAMPTON GENERAL HOSPITAL NHS TRUST | D84: 49 | E84: 359 | F84: 0.8979591837 | G84: 0.1020408163 | H84: 38 | I84: 6 | J84: 0 | K84: 3 | L84: 2 | M84: 0 | N84: 43 | O84: 0 | P84: 0 | Q84: 0 | R84: 6 | S84: 0 | T84: 0 | U84: 0
A85: QR1 | B85: RTE | C85: GLOUCESTERSHIRE HOSPITALS NHS FOUNDATION TRUST | D85: 89 | E85: 240 | F85: 0.8988764045 | G85: 0.03370786517 | H85: 63 | I85: 17 | J85: 5 | K85: 1 | L85: 2 | M85: 1 | N85: 89 | O85: 0 | P85: 0 | Q85: 0 | R85: 0 | S85: 0 | T85: 0 | U85: 0
A86: QRL | B86: RN5 | C86: HAMPSHIRE HOSPITALS NHS FOUNDATION TRUST | D86: 122 | E86: 349 | F86: 0.9918032787 | G86: 0 | H86: 110 | I86: 11 | J86: 0 | K86: 0 | L86: 0 | M86: 1 | N86: 0 | O86: 0 | P86: 0 | Q86: 117 | R86: 0 | S86: 0 | T86: 5 | U86: 0
A87: QRL | B87: R1F | C87: ISLE OF WIGHT NHS TRUST | D87: 5 | E87: 80 | F87: 1 | G87: 0 | H87: 5 | I87: 0 | J87: 0 | K87: 0 | L87: 0 | M87: 0 | N87: 0 | O87: 0 | P87: 0 | Q87: 5 | R87: 0 | S87: 0 | T87: 0 | U87: 0
A88: QRL | B88: RHU | C88: PORTSMOUTH HOSPITALS UNIVERSITY NATIONAL HEALTH SERVICE TRUST | D88: 32 | E88: 427 | F88: 1 | G88: 0 | H88: 30 | I88: 2 | J88: 0 | K88: 0 | L88: 0 | M88: 0 | N88: 0 | O88: 0 | P88: 0 | Q88: 0 | R88: 31 | S88: 0 | T88: 1 | U88: 0
A89: QRL | B89: RHM | C89: UNIVERSITY HOSPITAL SOUTHAMPTON NHS FOUNDATION TRUST | D89: 110 | E89: 393 | F89: 0.9181818182 | G89: 0.02727272727 | H89: 93 | I89: 8 | J89: 4 | K89: 1 | L89: 2 | M89: 2 | N89: 0 | O89: 0 | P89: 0 | Q89: 0 | R89: 2 | S89: 0 | T89: 108 | U89: 0
A90: QRV | B90: RQM | C90: CHELSEA AND WESTMINSTER HOSPITAL NHS FOUNDATION TRUST | D90: 91 | E90: 148 | F90: 0.9230769231 | G90: 0.06593406593 | H90: 76 | I90: 8 | J90: 1 | K90: 2 | L90: 4 | M90: 0 | N90: 64 | O90: 0 | P90: 0 | Q90: 16 | R90: 0 | S90: 0 | T90: 11 | U90: 0
A91: QRV | B91: RYJ | C91: IMPERIAL COLLEGE HEALTHCARE NHS TRUST | D91: 114 | E91: 681 | F91: 0.9298245614 | G91: 0.0350877193 | H91: 86 | I91: 20 | J91: 4 | K91: 1 | L91: 3 | M91: 0 | N91: 0 | O91: 0 | P91: 0 | Q91: 42 | R91: 0 | S91: 0 | T91: 72 | U91: 0
A92: QRV | B92: R1K | C92: LONDON NORTH WEST UNIVERSITY HEALTHCARE NHS TRUST | D92: 0 | E92: 301 | F92: NA | G92: NA | H92: 0 | I92: 0 | J92: 0 | K92: 0 | L92: 0 | M92: 0 | N92: 0 | O92: 0 | P92: 0 | Q92: 0 | R92: 0 | S92: 0 | T92: 0 | U92: 0
A93: QRV | B93: RAS | C93: THE HILLINGDON HOSPITALS NHS FOUNDATION TRUST | D93: 40 | E93: 335 | F93: 0.875 | G93: 0.075 | H93: 25 | I93: 10 | J93: 2 | K93: 1 | L93: 2 | M93: 0 | N93: 0 | O93: 0 | P93: 0 | Q93: 3 | R93: 0 | S93: 0 | T93: 37 | U93: 0
A94: QSL | B94: RH5 | C94: SOMERSET NHS FOUNDATION TRUST | D94: 0 | E94: 345 | F94: NA | G94: NA | H94: 0 | I94: 0 | J94: 0 | K94: 0 | L94: 0 | M94: 0 | N94: 0 | O94: 0 | P94: 0 | Q94: 0 | R94: 0 | S94: 0 | T94: 0 | U94: 0
A95: QT1 | B95: RX1 | C95: NOTTINGHAM UNIVERSITY HOSPITALS NHS TRUST | D95: 38 | E95: 377 | F95: 0.9736842105 | G95: 0.02631578947 | H95: 33 | I95: 4 | J95: 0 | K95: 1 | L95: 0 | M95: 0 | N95: 0 | O95: 7 | P95: 0 | Q95: 26 | R95: 0 | S95: 0 | T95: 5 | U95: 0
A96: QT1 | B96: RK5 | C96: SHERWOOD FOREST HOSPITALS NHS FOUNDATION TRUST | D96: 32 | E96: 276 | F96: 0.90625 | G96: 0.0625 | H96: 23 | I96: 6 | J96: 1 | K96: 1 | L96: 1 | M96: 0 | N96: 0 | O96: 0 | P96: 0 | Q96: 0 | R96: 0 | S96: 0 | T96: 32 | U96: 0
A97: QT6 | B97: REF | C97: ROYAL CORNWALL HOSPITALS NHS TRUST | D97: 6 | E97: 284 | F97: 0.8333333333 | G97: 0 | H97: 4 | I97: 1 | J97: 1 | K97: 0 | L97: 0 | M97: 0 | N97: 0 | O97: 6 | P97: 0 | Q97: 0 | R97: 0 | S97: 0 | T97: 0 | U97: 0
A98: QU9 | B98: RXQ | C98: BUCKINGHAMSHIRE HEALTHCARE NHS TRUST | D98: 33 | E98: 308 | F98: 0.8787878788 | G98: 0.0303030303 | H98: 22 | I98: 7 | J98: 3 | K98: 0 | L98: 1 | M98: 0 | N98: 33 | O98: 0 | P98: 0 | Q98: 0 | R98: 0 | S98: 0 | T98: 0 | U98: 0
A99: QU9 | B99: RTH | C99: OXFORD UNIVERSITY HOSPITALS NHS FOUNDATION TRUST | D99: 81 | E99: 439 | F99: 0.8148148148 | G99: 0.1234567901 | H99: 50 | I99: 16 | J99: 5 | K99: 5 | L99: 5 | M99: 0 | N99: 70 | O99: 0 | P99: 0 | Q99: 0 | R99: 0 | S99: 0 | T99: 11 | U99: 0
A100: QU9 | B100: RHW | C100: ROYAL BERKSHIRE NHS FOUNDATION TRUST | D100: 65 | E100: 365 | F100: 0.9384615385 | G100: 0.01538461538 | H100: 54 | I100: 7 | J100: 3 | K100: 0 | L100: 1 | M100: 0 | N100: 2 | O100: 0 | P100: 0 | Q100: 63 | R100: 0 | S100: 0 | T100: 0 | U100: 0
A101: QUA | B101: RNA | C101: THE DUDLEY GROUP NHS FOUNDATION TRUST | D101: 26 | E101: 331 | F101: 0.6153846154 | G101: 0.03846153846 | H101: 16 | I101: 0 | J101: 0 | K101: 0 | L101: 1 | M101: 9 | N101: 1 | O101: 0 | P101: 0 | Q101: 22 | R101: 0 | S101: 0 | T101: 3 | U101: 0
A102: QUA | B102: RL4 | C102: THE ROYAL WOLVERHAMPTON NHS TRUST | D102: 57 | E102: 412 | F102: 0.9649122807 | G102: 0.0350877193 | H102: 50 | I102: 5 | J102: 0 | K102: 1 | L102: 1 | M102: 0 | N102: 57 | O102: 0 | P102: 0 | Q102: 0 | R102: 0 | S102: 0 | T102: 0 | U102: 0
A103: QUA | B103: RBK | C103: WALSALL HEALTHCARE NHS TRUST | D103: 35 | E103: 282 | F103: 0.9428571429 | G103: 0.02857142857 | H103: 24 | I103: 9 | J103: 1 | K103: 0 | L103: 1 | M103: 0 | N103: 20 | O103: 15 | P103: 0 | Q103: 0 | R103: 0 | S103: 0 | T103: 0 | U103: 0
A104: QUE | B104: RGT | C104: CAMBRIDGE UNIVERSITY HOSPITALS NHS FOUNDATION TRUST | D104: 40 | E104: 433 | F104: 0.95 | G104: 0 | H104: 35 | I104: 3 | J104: 2 | K104: 0 | L104: 0 | M104: 0 | N104: 0 | O104: 39 | P104: 0 | Q104: 1 | R104: 0 | S104: 0 | T104: 0 | U104: 0
A105: QUE | B105: RGN | C105: NORTH WEST ANGLIA NHS FOUNDATION TRUST | D105: 23 | E105: 517 | F105: 1 | G105: 0 | H105: 21 | I105: 2 | J105: 0 | K105: 0 | L105: 0 | M105: 0 | N105: 0 | O105: 0 | P105: 0 | Q105: 20 | R105: 0 | S105: 0 | T105: 3 | U105: 0
A106: QUY | B106: RVJ | C106: NORTH BRISTOL NHS TRUST | D106: 98 | E106: 358 | F106: 0.9795918367 | G106: 0.01020408163 | H106: 83 | I106: 13 | J106: 1 | K106: 1 | L106: 0 | M106: 0 | N106: 98 | O106: 0 | P106: 0 | Q106: 0 | R106: 0 | S106: 0 | T106: 0 | U106: 0
A107: QUY | B107: RA7 | C107: UNIVERSITY HOSPITALS BRISTOL AND WESTON NHS FOUNDATION TRUST | D107: 52 | E107: 341 | F107: 0.9615384615 | G107: 0 | H107: 41 | I107: 9 | J107: 2 | K107: 0 | L107: 0 | M107: 0 | N107: 0 | O107: 0 | P107: 0 | Q107: 52 | R107: 0 | S107: 0 | T107: 0 | U107: 0
A108: QVV | B108: RBD | C108: DORSET COUNTY HOSPITAL NHS FOUNDATION TRUST | D108: 42 | E108: 91 | F108: 0.9523809524 | G108: 0.04761904762 | H108: 35 | I108: 5 | J108: 0 | K108: 0 | L108: 2 | M108: 0 | N108: 42 | O108: 0 | P108: 0 | Q108: 0 | R108: 0 | S108: 0 | T108: 0 | U108: 0
A109: QVV | B109: R0D | C109: UNIVERSITY HOSPITALS DORSET NHS FOUNDATION TRUST | D109: 83 | E109: 310 | F109: 0.9638554217 | G109: 0 | H109: 70 | I109: 10 | J109: 1 | K109: 0 | L109: 0 | M109: 2 | N109: 80 | O109: 0 | P109: 0 | Q109: 0 | R109: 3 | S109: 0 | T109: 0 | U109: 0
A110: QWE | B110: RJ6 | C110: CROYDON HEALTH SERVICES NHS TRUST | D110: 17 | E110: 250 | F110: 0.8823529412 | G110: 0.05882352941 | H110: 11 | I110: 4 | J110: 1 | K110: 0 | L110: 1 | M110: 0 | N110: 17 | O110: 0 | P110: 0 | Q110: 0 | R110: 0 | S110: 0 | T110: 0 | U110: 0
A111: QWE | B111: RVR | C111: EPSOM AND ST HELIER UNIVERSITY HOSPITALS NHS TRUST | D111: 25 | E111: 324 | F111: 0.96 | G111: 0.04 | H111: 23 | I111: 1 | J111: 0 | K111: 1 | L111: 0 | M111: 0 | N111: 12 | O111: 6 | P111: 0 | Q111: 4 | R111: 0 | S111: 0 | T111: 3 | U111: 0
A112: QWE | B112: RAX | C112: KINGSTON HOSPITAL NHS FOUNDATION TRUST | D112: 34 | E112: 398 | F112: 0.9411764706 | G112: 0 | H112: 29 | I112: 3 | J112: 2 | K112: 0 | L112: 0 | M112: 0 | N112: 0 | O112: 0 | P112: 14 | Q112: 0 | R112: 0 | S112: 0 | T112: 20 | U112: 0
A113: QWE | B113: RJ7 | C113: ST GEORGE'S UNIVERSITY HOSPITALS NHS FOUNDATION TRUST | D113: 41 | E113: 199 | F113: 0.9024390244 | G113: 0.07317073171 | H113: 34 | I113: 3 | J113: 1 | K113: 0 | L113: 3 | M113: 0 | N113: 0 | O113: 4 | P113: 0 | Q113: 0 | R113: 0 | S113: 0 | T113: 37 | U113: 0
A114: QWO | B114: RCF | C114: AIREDALE NHS FOUNDATION TRUST | D114: 23 | E114: 121 | F114: 0.8695652174 | G114: 0.04347826087 | H114: 17 | I114: 3 | J114: 2 | K114: 0 | L114: 1 | M114: 0 | N114: 23 | O114: 0 | P114: 0 | Q114: 0 | R114: 0 | S114: 0 | T114: 0 | U114: 0
A115: QWO | B115: RAE | C115: BRADFORD TEACHING HOSPITALS NHS FOUNDATION TRUST | D115: 182 | E115: 113 | F115: 1 | G115: 0 | H115: 166 | I115: 16 | J115: 0 | K115: 0 | L115: 0 | M115: 0 | N115: 0 | O115: 0 | P115: 0 | Q115: 0 | R115: 0 | S115: 0 | T115: 16 | U115: 166
A116: QWO | B116: RWY | C116: CALDERDALE AND HUDDERSFIELD NHS FOUNDATION TRUST | D116: 16 | E116: 284 | F116: 1 | G116: 0 | H116: 16 | I116: 0 | J116: 0 | K116: 0 | L116: 0 | M116: 0 | N116: 0 | O116: 0 | P116: 0 | Q116: 0 | R116: 0 | S116: 0 | T116: 16 | U116: 0
A117: QWO | B117: RR8 | C117: LEEDS TEACHING HOSPITALS NHS TRUST | D117: 214 | E117: 625 | F117: 0.9813084112 | G117: 0.01401869159 | H117: 196 | I117: 14 | J117: 1 | K117: 1 | L117: 2 | M117: 0 | N117: 174 | O117: 31 | P117: 0 | Q117: 0 | R117: 0 | S117: 0 | T117: 9 | U117: 0
A118: QWO | B118: RXF | C118: MID YORKSHIRE TEACHING NHS TRUST | D118: 56 | E118: 435 | F118: 0.9821428571 | G118: 0.01785714286 | H118: 51 | I118: 4 | J118: 0 | K118: 0 | L118: 1 | M118: 0 | N118: 4 | O118: 0 | P118: 0 | Q118: 47 | R118: 0 | S118: 0 | T118: 5 | U118: 0
A119: QWU | B119: RLT | C119: GEORGE ELIOT HOSPITAL NHS TRUST | D119: 62 | E119: 229 | F119: 0.9516129032 | G119: 0.04838709677 | H119: 49 | I119: 10 | J119: 0 | K119: 2 | L119: 1 | M119: 0 | N119: 62 | O119: 0 | P119: 0 | Q119: 0 | R119: 0 | S119: 0 | T119: 0 | U119: 0
A120: QWU | B120: RJC | C120: SOUTH WARWICKSHIRE UNIVERSITY NHS FOUNDATION TRUST | D120: 2 | E120: 0 | F120: * | G120: * | H120: * | I120: * | J120: * | K120: * | L120: * | M120: * | N120: * | O120: * | P120: * | Q120: * | R120: * | S120: * | T120: * | U120: *
A121: QWU | B121: RKB | C121: UNIVERSITY HOSPITALS COVENTRY AND WARWICKSHIRE NHS TRUST | D121: 47 | E121: 514 | F121: 0.9574468085 | G121: 0.02127659574 | H121: * | I121: * | J121: * | K121: * | L121: * | M121: * | N121: * | O121: * | P121: * | Q121: * | R121: * | S121: * | T121: * | U121: *
A122: QXU | B122: RTK | C122: ASHFORD AND ST PETER'S HOSPITALS NHS FOUNDATION TRUST | D122: 30 | E122: 242 | F122: 0.8333333333 | G122: 0.03333333333 | H122: 23 | I122: 2 | J122: 2 | K122: 1 | L122: 0 | M122: 2 | N122: 0 | O122: 30 | P122: 0 | Q122: 0 | R122: 0 | S122: 0 | T122: 0 | U122: 0
A123: QXU | B123: RA2 | C123: ROYAL SURREY COUNTY HOSPITAL NHS FOUNDATION TRUST | D123: 1 | E123: 249 | F123: * | G123: * | H123: * | I123: * | J123: * | K123: * | L123: * | M123: * | N123: * | O123: * | P123: * | Q123: * | R123: * | S123: * | T123: * | U123: *
A124: QXU | B124: RTP | C124: SURREY AND SUSSEX HEALTHCARE NHS TRUST | D124: 11 | E124: 348 | F124: 1 | G124: 0 | H124: * | I124: * | J124: * | K124: * | L124: * | M124: * | N124: * | O124: * | P124: * | Q124: * | R124: * | S124: * | T124: * | U124: *
A125: QYG | B125: REP | C125: LIVERPOOL WOMEN'S NHS FOUNDATION TRUST | D125: 48 | E125: 571 | F125: 0.8125 | G125: 0.125 | H125: 35 | I125: 4 | J125: 2 | K125: 3 | L125: 3 | M125: 1 | N125: 0 | O125: 0 | P125: 0 | Q125: 0 | R125: 0 | S125: 0 | T125: 0 | U125: 48
A126: QYG | B126: RBN | C126: MERSEY AND WEST LANCASHIRE TEACHING HOSPITALS NHS TRUST | D126: 89 | E126: 490 | F126: 0.9438202247 | G126: 0.04494382022 | H126: 75 | I126: 9 | J126: 1 | K126: 2 | L126: 2 | M126: 0 | N126: 87 | O126: 0 | P126: 0 | Q126: 0 | R126: 0 | S126: 0 | T126: 2 | U126: 0
A127: QYG | B127: RBT | C127: MID CHESHIRE HOSPITALS NHS FOUNDATION TRUST | D127: 37 | E127: 240 | F127: 0.972972973 | G127: 0.02702702703 | H127: * | I127: * | J127: * | K127: * | L127: * | M127: * | N127: * | O127: * | P127: * | Q127: * | R127: * | S127: * | T127: * | U127: *
A128: QYG | B128: RWW | C128: WARRINGTON AND HALTON TEACHING HOSPITALS NHS FOUNDATION TRUST | D128: 1 | E128: 1 | F128: * | G128: * | H128: * | I128: * | J128: * | K128: * | L128: * | M128: * | N128: * | O128: * | P128: * | Q128: * | R128: * | S128: * | T128: * | U128: *
A129: QYG | B129: RBL | C129: WIRRAL UNIVERSITY TEACHING HOSPITAL NHS FOUNDATION TRUST | D129: 78 | E129: 246 | F129: 0.9615384615 | G129: 0.02564102564 | H129: 69 | I129: 6 | J129: 0 | K129: 0 | L129: 2 | M129: 1 | N129: 0 | O129: 32 | P129: 0 | Q129: 46 | R129: 0 | S129: 0 | T129: 0 | U129: 0

Sheet Sites Q2
B6: Sort data by:
A9: ICB Code | B9: Trust Code | C9: Trust Name | D9: Site Code | E9: Site Name | F9: Total Responses | G9: Percentage Positive | H9: Percentage Negative | I9: Breakdown of Responses
I10: Very Good | J10: Good | K10: Neither Good nor Poor | L10: Poor | M10: Very Poor | N10: Don't Know
E11: England (including Independent Sector providers) | F11: 5214 | G11: 0.9378596087 | H11: 0.03567318757 | I11: 4180 | J11: 710 | K11: 109 | L11: 77 | M11: 109 | N11: 29
E12: England (excluding Independent Sector providers) | F12: 5214 | G12: 0.9378596087 | H12: 0.03567318757 | I12: 4180 | J12: 710 | K12: 109 | L12: 77 | M12: 109 | N12: 29
E13: Selection (excluding suppressed data) | F13: =SUBTOTAL(9,F14:F299) -> 5214 | G13: =IFERROR((I13+J13)/SUM(I13:N13), "-") -> 0.9347586511 | H13: =IFERROR((L13+M13)/SUM(I13:N13), "-") -> 0.03791051356 | I13: =SUBTOTAL(9,I14:I299) -> 3609 | J13: =SUBTOTAL(9,J14:J299) -> 632 | K13: 98 | L13: 70 | M13: 102 | N13: 26
A14: QE1 | B14: RXL | C14: BLACKPOOL TEACHING HOSPITALS NHS FOUNDATION TRUST | D14: RXL01 | E14: Blackpool Victoria Hospital | F14: 31 | G14: 0.9677419355 | H14: 0 | I14: 24 | J14: 6 | K14: 1 | L14: 0 | M14: 0 | N14: 0
A15: QE1 | B15: RXR | C15: EAST LANCASHIRE HOSPITALS NHS TRUST | D15: RXR20 | E15: Royal Blackburn Hospital | F15: 10 | G15: 0.9 | H15: 0.1 | I15: 9 | J15: 0 | K15: 0 | L15: 0 | M15: 1 | N15: 0
A16: QE1 | B16: RXN | C16: LANCASHIRE TEACHING HOSPITALS NHS FOUNDATION TRUST | D16: RXN01 | E16: Chorley and South Ribble Hospital | F16: 0 | G16: NA | H16: NA | I16: 0 | J16: 0 | K16: 0 | L16: 0 | M16: 0 | N16: 0
A17: QE1 | B17: RXN | C17: LANCASHIRE TEACHING HOSPITALS NHS FOUNDATION TRUST | D17: RXN02 | E17: Royal Preston Hospital | F17: 11 | G17: 0.8181818182 | H17: 0 | I17: 6 | J17: 3 | K17: 2 | L17: 0 | M17: 0 | N17: 0
A18: QE1 | B18: RTX | C18: UNIVERSITY HOSPITALS OF MORECAMBE BAY NHS FOUNDATION TRUST | D18: RTXBU | E18: Furness General Hospital | F18: 20 | G18: 1 | H18: 0 | I18: 20 | J18: 0 | K18: 0 | L18: 0 | M18: 0 | N18: 0
A19: QE1 | B19: RTX | C19: UNIVERSITY HOSPITALS OF MORECAMBE BAY NHS FOUNDATION TRUST | D19: RTX02 | E19: Royal Lancaster Infirmary | F19: 14 | G19: 1 | H19: 0 | I19: 14 | J19: 0 | K19: 0 | L19: 0 | M19: 0 | N19: 0
A20: QE1 | B20: RTX | C20: UNIVERSITY HOSPITALS OF MORECAMBE BAY NHS FOUNDATION TRUST | D20: RTXBW | E20: Westmorland General Hospital | F20: 0 | G20: NA | H20: NA | I20: 0 | J20: 0 | K20: 0 | L20: 0 | M20: 0 | N20: 0
A21: QF7 | B21: RFF | C21: BARNSLEY HOSPITAL NHS FOUNDATION TRUST | D21: RFFAA | E21: Barnsley Hospital NHS Foundation Trust HQ | F21: 16 | G21: 1 | H21: 0 | I21: 16 | J21: 0 | K21: 0 | L21: 0 | M21: 0 | N21: 0
A22: QF7 | B22: RP5 | C22: DONCASTER AND BASSETLAW TEACHING HOSPITALS NHS FOUNDATION TRUST | D22: RP5BA | E22: Bassetlaw Hospital | F22: 2 | G22: * | H22: * | I22: * | J22: * | K22: * | L22: * | M22: * | N22: *
A23: QF7 | B23: RP5 | C23: DONCASTER AND BASSETLAW TEACHING HOSPITALS NHS FOUNDATION TRUST | D23: RP5DR | E23: Doncaster Royal Infirmary | F23: 4 | G23: * | H23: * | I23: * | J23: * | K23: * | L23: * | M23: * | N23: *
A24: QF7 | B24: RP5 | C24: DONCASTER AND BASSETLAW TEACHING HOSPITALS NHS FOUNDATION TRUST | D24: RP5XXX | E24: Non-hospital site | F24: 1 | G24: * | H24: * | I24: * | J24: * | K24: * | L24: * | M24: * | N24: *
A25: QF7 | B25: RHQ | C25: SHEFFIELD TEACHING HOSPITALS NHS FOUNDATION TRUST | D25: RHQHH | E25: Royal Hallamshire Hospital | F25: 22 | G25: 0.9090909091 | H25: 0.09090909091 | I25: 14 | J25: 6 | K25: 0 | L25: 0 | M25: 2 | N25: 0
A26: QF7 | B26: RFR | C26: THE ROTHERHAM NHS FOUNDATION TRUST | D26: RFRPA | E26: Rotherham District General Hospital | F26: 18 | G26: 1 | H26: 0 | I26: 18 | J26: 0 | K26: 0 | L26: 0 | M26: 0 | N26: 0
A27: QGH | B27: RWP | C27: WORCESTERSHIRE ACUTE HOSPITALS NHS TRUST | D27: RWP50 | E27: Worcestershire Royal Hospital | F27: 4 | G27: * | H27: * | I27: * | J27: * | K27: * | L27: * | M27: * | N27: *
A28: QGH | B28: RLQ | C28: WYE VALLEY NHS TRUST | D28: RLQ01 | E28: Hereford County Hospital | F28: 27 | G28: 0.962962963 | H28: 0.03703703704 | I28: * | J28: * | K28: * | L28: * | M28: * | N28: *
A29: QH8 | B29: RAJ | C29: MID AND SOUTH ESSEX NHS FOUNDATION TRUST | D29: RAJ12 | E29: BASILDON HOSPITAL | F29: 31 | G29: 0.8709677419 | H29: 0.09677419355 | I29: 21 | J29: 6 | K29: 1 | L29: 2 | M29: 1 | N29: 0
A30: QH8 | B30: RAJ | C30: MID AND SOUTH ESSEX NHS FOUNDATION TRUST | D30: RAJ32 | E30: MID ESSEX HOSPITAL | F30: 45 | G30: 0.8444444444 | H30: 0.08888888889 | I30: 34 | J30: 4 | K30: 2 | L30: 1 | M30: 3 | N30: 1
A31: QH8 | B31: RAJ | C31: MID AND SOUTH ESSEX NHS FOUNDATION TRUST | D31: RAJ01 | E31: Southend Hospital | F31: 47 | G31: 0.9787234043 | H31: 0.02127659574 | I31: 39 | J31: 7 | K31: 0 | L31: 0 | M31: 1 | N31: 0
A32: QHG | B32: RC9 | C32: BEDFORDSHIRE HOSPITALS NHS FOUNDATION TRUST | D32: RC979 | E32: BEDFORD HOSPITAL SOUTH WING | F32: 22 | G32: 1 | H32: 0 | I32: 21 | J32: 1 | K32: 0 | L32: 0 | M32: 0 | N32: 0
A33: QHG | B33: RC9 | C33: BEDFORDSHIRE HOSPITALS NHS FOUNDATION TRUST | D33: RC971 | E33: Luton and Dunstable Hospital | F33: 14 | G33: 0.9285714286 | H33: 0 | I33: 10 | J33: 3 | K33: 1 | L33: 0 | M33: 0 | N33: 0
A34: QHG | B34: RD8 | C34: MILTON KEYNES UNIVERSITY HOSPITAL NHS FOUNDATION TRUST | D34: RD816 | E34: Milton Keynes Hospital | F34: 43 | G34: 0.9302325581 | H34: 0.06976744186 | I34: 31 | J34: 9 | K34: 0 | L34: 1 | M34: 2 | N34: 0
A35: QHL | B35: RQ3 | C35: BIRMINGHAM WOMEN'S AND CHILDREN'S NHS FOUNDATION TRUST | D35: RQ370 | E35: Birmingham Women's Hospital | F35: 7 | G35: 0.8571428571 | H35: 0.1428571429 | I35: 5 | J35: 1 | K35: 0 | L35: 1 | M35: 0 | N35: 0
A36: QHL | B36: RXK | C36: SANDWELL AND WEST BIRMINGHAM HOSPITALS NHS TRUST | D36: RXK02 | E36: City Hospital | F36: 19 | G36: 0.6842105263 | H36: 0.1578947368 | I36: 13 | J36: 0 | K36: 2 | L36: 1 | M36: 2 | N36: 1
A37: QHL | B37: RRK | C37: UNIVERSITY HOSPITALS BIRMINGHAM NHS FOUNDATION TRUST | D37: RRK98 | E37: Good Hope Hospital | F37: 45 | G37: 0.7777777778 | H37: 0.1555555556 | I37: 22 | J37: 13 | K37: 2 | L37: 2 | M37: 5 | N37: 1
A38: QHL | B38: RRK | C38: UNIVERSITY HOSPITALS BIRMINGHAM NHS FOUNDATION TRUST | D38: RRK97 | E38: Heartlands Hospital | F38: 53 | G38: 0.7924528302 | H38: 0.1886792453 | I38: 32 | J38: 10 | K38: 0 | L38: 5 | M38: 5 | N38: 1
A39: QHL | B39: RRK | C39: UNIVERSITY HOSPITALS BIRMINGHAM NHS FOUNDATION TRUST | D39: RRK99 | E39: Solihull Hospital | F39: 0 | G39: NA | H39: NA | I39: 0 | J39: 0 | K39: 0 | L39: 0 | M39: 0 | N39: 0
A40: QHM | B40: RXP | C40: COUNTY DURHAM AND DARLINGTON NHS FOUNDATION TRUST | D40: RXPDA | E40: Darlington Memorial Hospital | F40: 71 | G40: 0.985915493 | H40: 0 | I40: 57 | J40: 13 | K40: 1 | L40: 0 | M40: 0 | N40: 0
A41: QHM | B41: RXP | C41: COUNTY DURHAM AND DARLINGTON NHS FOUNDATION TRUST | D41: RXPCP | E41: University Hospital Of North Durham | F41: 21 | G41: 1 | H41: 0 | I41: 16 | J41: 5 | K41: 0 | L41: 0 | M41: 0 | N41: 0
A42: QHM | B42: RR7 | C42: GATESHEAD HEALTH NHS FOUNDATION TRUST | D42: RR7EN | E42: Queen Elizabeth Hospital | F42: 4 | G42: * | H42: * | I42: * | J42: * | K42: * | L42: * | M42: * | N42: *
A43: QHM | B43: RNN | C43: NORTH CUMBRIA INTEGRATED CARE NHS FOUNDATION TRUST | D43: RNN62 | E43: Cumberland Infirmary | F43: 22 | G43: 1 | H43: 0 | I43: 20 | J43: 2 | K43: 0 | L43: 0 | M43: 0 | N43: 0
A44: QHM | B44: RNN | C44: NORTH CUMBRIA INTEGRATED CARE NHS FOUNDATION TRUST | D44: RNNBX | E44: West Cumberland Hospital | F44: 7 | G44: 1 | H44: 0 | I44: 6 | J44: 1 | K44: 0 | L44: 0 | M44: 0 | N44: 0
A45: QHM | B45: RVW | C45: NORTH TEES AND HARTLEPOOL NHS FOUNDATION TRUST | D45: RVWXXX | E45: Non-hospital site | F45: 1 | G45: * | H45: * | I45: * | J45: * | K45: * | L45: * | M45: * | N45: *
A46: QHM | B46: RTF | C46: NORTHUMBRIA HEALTHCARE NHS FOUNDATION TRUST | D46: RTFDJ | E46: Alnwick Infirmary | F46: 0 | G46: NA | H46: NA | I46: 0 | J46: 0 | K46: 0 | L46: 0 | M46: 0 | N46: 0
A47: QHM | B47: RTF | C47: NORTHUMBRIA HEALTHCARE NHS FOUNDATION TRUST | D47: RTFDH | E47: Berwick Infirmary | F47: 0 | G47: NA | H47: NA | I47: 0 | J47: 0 | K47: 0 | L47: 0 | M47: 0 | N47: 0
A48: QHM | B48: RTF | C48: NORTHUMBRIA HEALTHCARE NHS FOUNDATION TRUST | D48: RTFDR | E48: Hexham General Hospital | F48: 0 | G48: NA | H48: NA | I48: 0 | J48: 0 | K48: 0 | L48: 0 | M48: 0 | N48: 0
A49: QHM | B49: RTF | C49: NORTHUMBRIA HEALTHCARE NHS FOUNDATION TRUST | D49: RTFXXX | E49: Non-hospital site | F49: 0 | G49: NA | H49: NA | I49: 0 | J49: 0 | K49: 0 | L49: 0 | M49: 0 | N49: 0
A50: QHM | B50: RTF | C50: NORTHUMBRIA HEALTHCARE NHS FOUNDATION TRUST | D50: RTF86 | E50: The Northumbria | F50: 75 | G50: 0.88 | H50: 0.1066666667 | I50: 55 | J50: 11 | K50: 1 | L50: 4 | M50: 4 | N50: 0
A51: QHM | B51: RTR | C51: SOUTH TEES HOSPITALS NHS FOUNDATION TRUST | D51: RTR45 | E51: Friarage Hospital Site | F51: 7 | G51: 0.7142857143 | H51: 0.1428571429 | I51: 5 | J51: 0 | K51: 1 | L51: 0 | M51: 1 | N51: 0
A52: QHM | B52: RTR | C52: SOUTH TEES HOSPITALS NHS FOUNDATION TRUST | D52: RTRAT | E52: The James Cook University Hospital | F52: 77 | G52: 0.8831168831 | H52: 0.03896103896 | I52: 58 | J52: 10 | K52: 5 | L52: 1 | M52: 2 | N52: 1
A53: QHM | B53: R0B | C53: SOUTH TYNESIDE AND SUNDERLAND NHS FOUNDATION TRUST | D53: R0B0Q | E53: South Tyneside District Hospital | F53: 0 | G53: NA | H53: NA | I53: 0 | J53: 0 | K53: 0 | L53: 0 | M53: 0 | N53: 0
A54: QHM | B54: R0B | C54: SOUTH TYNESIDE AND SUNDERLAND NHS FOUNDATION TRUST | D54: R0B01 | E54: Sunderland Royal Hospital | F54: 6 | G54: 1 | H54: 0 | I54: 5 | J54: 1 | K54: 0 | L54: 0 | M54: 0 | N54: 0
A55: QHM | B55: RTD | C55: THE NEWCASTLE UPON TYNE HOSPITALS NHS FOUNDATION TRUST | D55: RTD02 | E55: The Royal Victoria Infirmary | F55: 3 | G55: * | H55: * | I55: * | J55: * | K55: * | L55: * | M55: * | N55: *
A56: QJ2 | B56: RFS | C56: CHESTERFIELD ROYAL HOSPITAL NHS FOUNDATION TRUST | D56: RFSDA | E56: Chesterfield Royal Hospital | F56: 128 | G56: 0.984375 | H56: 0.0078125 | I56: 103 | J56: 23 | K56: 0 | L56: 1 | M56: 0 | N56: 1
A57: QJ2 | B57: RTG | C57: UNIVERSITY HOSPITALS OF DERBY AND BURTON NHS FOUNDATION TRUST | D57: RTG02 | E57: Queens Hospital, Burton Upon Trent | F57: 21 | G57: 1 | H57: 0 | I57: 13 | J57: 8 | K57: 0 | L57: 0 | M57: 0 | N57: 0
A58: QJ2 | B58: RTG | C58: UNIVERSITY HOSPITALS OF DERBY AND BURTON NHS FOUNDATION TRUST | D58: RTGFG | E58: Royal Derby Hospital | F58: 16 | G58: 0.75 | H58: 0.125 | I58: 10 | J58: 2 | K58: 2 | L58: 1 | M58: 1 | N58: 0
A59: QJG | B59: RDE | C59: EAST SUFFOLK AND NORTH ESSEX NHS FOUNDATION TRUST | D59: RDEE2 | E59: Clacton and District Hospital | F59: 0 | G59: NA | H59: NA | I59: 0 | J59: 0 | K59: 0 | L59: 0 | M59: 0 | N59: 0
A60: QJG | B60: RDE | C60: EAST SUFFOLK AND NORTH ESSEX NHS FOUNDATION TRUST | D60: RDEE4 | E60: Colchester General Hospital | F60: 0 | G60: NA | H60: NA | I60: 0 | J60: 0 | K60: 0 | L60: 0 | M60: 0 | N60: 0
A61: QJG | B61: RDE | C61: EAST SUFFOLK AND NORTH ESSEX NHS FOUNDATION TRUST | D61: RDE03 | E61: Ipswich Hospital | F61: 15 | G61: 0.9333333333 | H61: 0 | I61: 12 | J61: 2 | K61: 1 | L61: 0 | M61: 0 | N61: 0
A62: QJG | B62: RDE | C62: EAST SUFFOLK AND NORTH ESSEX NHS FOUNDATION TRUST | D62: RDEXXX | E62: Non-hospital site | F62: 0 | G62: NA | H62: NA | I62: 0 | J62: 0 | K62: 0 | L62: 0 | M62: 0 | N62: 0
A63: QJG | B63: RGR | C63: WEST SUFFOLK NHS FOUNDATION TRUST | D63: RGR50 | E63: West Suffolk Hospital | F63: 28 | G63: 1 | H63: 0 | I63: 25 | J63: 3 | K63: 0 | L63: 0 | M63: 0 | N63: 0
A64: QJK | B64: RH8 | C64: ROYAL DEVON UNIVERSITY HEALTHCARE NHS FOUNDATION TRUST | D64: RH8XXX | E64: Non-hospital site | F64: 0 | G64: NA | H64: NA | I64: 0 | J64: 0 | K64: 0 | L64: 0 | M64: 0 | N64: 0
A65: QJK | B65: RH8 | C65: ROYAL DEVON UNIVERSITY HEALTHCARE NHS FOUNDATION TRUST | D65: RH880 | E65: North Devon District Hospital | F65: 3 | G65: * | H65: * | I65: * | J65: * | K65: * | L65: * | M65: * | N65: *
A66: QJK | B66: RH8 | C66: ROYAL DEVON UNIVERSITY HEALTHCARE NHS FOUNDATION TRUST | D66: RH801 | E66: Royal Devon and Exeter Hospital (Wonford) | F66: 0 | G66: NA | H66: NA | I66: 0 | J66: 0 | K66: 0 | L66: 0 | M66: 0 | N66: 0
A67: QJK | B67: RH8 | C67: ROYAL DEVON UNIVERSITY HEALTHCARE NHS FOUNDATION TRUST | D67: RH853 | E67: Tiverton and District Hospital | F67: 0 | G67: NA | H67: NA | I67: 0 | J67: 0 | K67: 0 | L67: 0 | M67: 0 | N67: 0
A68: QJK | B68: RA9 | C68: TORBAY AND SOUTH DEVON NHS FOUNDATION TRUST | D68: RA901 | E68: Torbay Hospital | F68: 0 | G68: NA | H68: NA | I68: 0 | J68: 0 | K68: 0 | L68: 0 | M68: 0 | N68: 0
A69: QJK | B69: RK9 | C69: UNIVERSITY HOSPITALS PLYMOUTH NHS TRUST | D69: RK950 | E69: Derriford Hospital | F69: 12 | G69: 1 | H69: 0 | I69: * | J69: * | K69: * | L69: * | M69: * | N69: *
A70: QJM | B70: RWD | C70: UNITED LINCOLNSHIRE HOSPITALS NHS TRUST | D70: RWDLP | E70: Grantham and District Hospital | F70: 0 | G70: NA | H70: NA | I70: 0 | J70: 0 | K70: 0 | L70: 0 | M70: 0 | N70: 0
A71: QJM | B71: RWD | C71: UNITED LINCOLNSHIRE HOSPITALS NHS TRUST | D71: RWDDA | E71: Lincoln County Hospital | F71: 32 | G71: 0.9375 | H71: 0.03125 | I71: 27 | J71: 3 | K71: 1 | L71: 1 | M71: 0 | N71: 0
A72: QJM | B72: RWD | C72: UNITED LINCOLNSHIRE HOSPITALS NHS TRUST | D72: RWDLA | E72: Pilgrim Hospital | F72: 24 | G72: 1 | H72: 0 | I72: 22 | J72: 2 | K72: 0 | L72: 0 | M72: 0 | N72: 0
A73: QK1 | B73: RWE | C73: UNIVERSITY HOSPITALS OF LEICESTER NHS TRUST | D73: RWEAK | E73: Leicester General Hospital | F73: 51 | G73: 0.9607843137 | H73: 0.03921568627 | I73: 42 | J73: 7 | K73: 0 | L73: 1 | M73: 1 | N73: 0
A74: QK1 | B74: RWE | C74: UNIVERSITY HOSPITALS OF LEICESTER NHS TRUST | D74: RWEAA | E74: Leicester Royal Infirmary | F74: 128 | G74: 0.9140625 | H74: 0.0390625 | I74: 91 | J74: 26 | K74: 4 | L74: 2 | M74: 3 | N74: 2
A75: QK1 | B75: RWE | C75: UNIVERSITY HOSPITALS OF LEICESTER NHS TRUST | D75: RWEXXX | E75: Non-hospital site | F75: 13 | G75: 0.8461538462 | H75: 0 | I75: 10 | J75: 1 | K75: 1 | L75: 0 | M75: 0 | N75: 1
A76: QK1 | B76: RWE | C76: UNIVERSITY HOSPITALS OF LEICESTER NHS TRUST | D76: RWE10 | E76: St Mary's Hospital | F76: 0 | G76: NA | H76: NA | I76: 0 | J76: 0 | K76: 0 | L76: 0 | M76: 0 | N76: 0
A77: QKK | B77: RJ1 | C77: GUY'S AND ST THOMAS' NHS FOUNDATION TRUST | D77: RJ1XXX | E77: Non-hospital site | F77: 0 | G77: NA | H77: NA | I77: 0 | J77: 0 | K77: 0 | L77: 0 | M77: 0 | N77: 0
A78: QKK | B78: RJ1 | C78: GUY'S AND ST THOMAS' NHS FOUNDATION TRUST | D78: RJ122 | E78: St Thomas' Hospital | F78: 60 | G78: 0.9666666667 | H78: 0 | I78: 46 | J78: 12 | K78: 2 | L78: 0 | M78: 0 | N78: 0
A79: QKK | B79: RJZ | C79: KING'S COLLEGE HOSPITAL NHS FOUNDATION TRUST | D79: RJZ01 | E79: King's College Hospital (Denmark Hill) | F79: 43 | G79: 0.8139534884 | H79: 0.1395348837 | I79: 22 | J79: 13 | K79: 2 | L79: 4 | M79: 2 | N79: 0
A80: QKK | B80: RJZ | C80: KING'S COLLEGE HOSPITAL NHS FOUNDATION TRUST | D80: RJZ30 | E80: Princess Royal University Hospital | F80: 56 | G80: 0.9107142857 | H80: 0.01785714286 | I80: 43 | J80: 8 | K80: 4 | L80: 1 | M80: 0 | N80: 0
A81: QKK | B81: RJ2 | C81: LEWISHAM AND GREENWICH NHS TRUST | D81: RJ231 | E81: Queen Elizabeth Hospital | F81: 40 | G81: 1 | H81: 0 | I81: 31 | J81: 9 | K81: 0 | L81: 0 | M81: 0 | N81: 0
A82: QKK | B82: RJ2 | C82: LEWISHAM AND GREENWICH NHS TRUST | D82: RJ224 | E82: University Hospital Lewisham | F82: 29 | G82: 0.9655172414 | H82: 0.03448275862 | I82: 17 | J82: 11 | K82: 0 | L82: 0 | M82: 1 | N82: 0
A83: QKS | B83: RN7 | C83: DARTFORD AND GRAVESHAM NHS TRUST | D83: RN707 | E83: Darent Valley Hospital | F83: 14 | G83: 0.9285714286 | H83: 0.07142857143 | I83: 12 | J83: 1 | K83: 0 | L83: 1 | M83: 0 | N83: 0
A84: QKS | B84: RWF | C84: MAIDSTONE AND TUNBRIDGE WELLS NHS TRUST | D84: RWF08 | E84: Crowborough Birthing Centre | F84: 6 | G84: 1 | H84: 0 | I84: * | J84: * | K84: * | L84: * | M84: * | N84: *
A85: QKS | B85: RWF | C85: MAIDSTONE AND TUNBRIDGE WELLS NHS TRUST | D85: RWF03 | E85: Maidstone District General Hospital | F85: 56 | G85: 1 | H85: 0 | I85: 55 | J85: 1 | K85: 0 | L85: 0 | M85: 0 | N85: 0
A86: QKS | B86: RWF | C86: MAIDSTONE AND TUNBRIDGE WELLS NHS TRUST | D86: RWFXXX | E86: Non-hospital site | F86: 4 | G86: * | H86: * | I86: * | J86: * | K86: * | L86: * | M86: * | N86: *
A87: QKS | B87: RWF | C87: MAIDSTONE AND TUNBRIDGE WELLS NHS TRUST | D87: RWFTW | E87: The Tunbridge Wells Hospital | F87: 25 | G87: 1 | H87: 0 | I87: 24 | J87: 1 | K87: 0 | L87: 0 | M87: 0 | N87: 0
A88: QKS | B88: RPA | C88: MEDWAY NHS FOUNDATION TRUST | D88: RPA02 | E88: Medway Maritime Hospital | F88: 31 | G88: 0.935483871 | H88: 0.03225806452 | I88: 26 | J88: 3 | K88: 1 | L88: 0 | M88: 1 | N88: 0
A89: QM7 | B89: RWH | C89: EAST AND NORTH HERTFORDSHIRE NHS TRUST | D89: RWH01 | E89: Lister Hospital | F89: 18 | G89: 0.9444444444 | H89: 0 | I89: 14 | J89: 3 | K89: 1 | L89: 0 | M89: 0 | N89: 0
A90: QM7 | B90: RWH | C90: EAST AND NORTH HERTFORDSHIRE NHS TRUST | D90: RWHXXX | E90: Non-hospital site | F90: 0 | G90: NA | H90: NA | I90: 0 | J90: 0 | K90: 0 | L90: 0 | M90: 0 | N90: 0
A91: QM7 | B91: RQW | C91: THE PRINCESS ALEXANDRA HOSPITAL NHS TRUST | D91: RQWG0 | E91: Princess Alexandra Hospital | F91: 3 | G91: * | H91: * | I91: * | J91: * | K91: * | L91: * | M91: * | N91: *
A92: QM7 | B92: RWG | C92: WEST HERTFORDSHIRE TEACHING HOSPITALS NHS TRUST | D92: RWG02 | E92: Watford General Hospital | F92: 6 | G92: 1 | H92: 0 | I92: * | J92: * | K92: * | L92: * | M92: * | N92: *
A93: QMF | B93: RF4 | C93: BARKING, HAVERING AND REDBRIDGE UNIVERSITY HOSPITALS NHS TRUST | D93: RF4QH | E93: Queen's Hospital | F93: 69 | G93: 0.9420289855 | H93: 0.04347826087 | I93: 58 | J93: 7 | K93: 0 | L93: 0 | M93: 3 | N93: 1
A94: QMF | B94: R1H | C94: BARTS HEALTH NHS TRUST | D94: R1HNH | E94: Newham General Hospital | F94: 56 | G94: 0.9642857143 | H94: 0.01785714286 | I94: * | J94: * | K94: * | L94: * | M94: * | N94: *
A95: QMF | B95: R1H | C95: BARTS HEALTH NHS TRUST | D95: R1H12 | E95: The Royal London Hospital | F95: 2 | G95: * | H95: * | I95: * | J95: * | K95: * | L95: * | M95: * | N95: *
A96: QMF | B96: R1H | C96: BARTS HEALTH NHS TRUST | D96: R1HKH | E96: Whipps Cross University Hospital | F96: 72 | G96: 1 | H96: 0 | I96: 62 | J96: 10 | K96: 0 | L96: 0 | M96: 0 | N96: 0
A97: QMF | B97: RQX | C97: HOMERTON HEALTHCARE NHS FOUNDATION TRUST | D97: RQXM1 | E97: Homerton University Hospital | F97: 71 | G97: 0.9577464789 | H97: 0.02816901408 | I97: 34 | J97: 34 | K97: 1 | L97: 2 | M97: 0 | N97: 0
A98: QMJ | B98: RAP | C98: NORTH MIDDLESEX UNIVERSITY HOSPITAL NHS TRUST | D98: RAPNM | E98: North Middlesex Hospital | F98: 25 | G98: 0.8 | H98: 0.2 | I98: 17 | J98: 3 | K98: 0 | L98: 0 | M98: 5 | N98: 0
A99: QMJ | B99: RAL | C99: ROYAL FREE LONDON NHS FOUNDATION TRUST | D99: RAL26 | E99: Barnet Hospital | F99: 44 | G99: 0.9772727273 | H99: 0 | I99: 35 | J99: 8 | K99: 1 | L99: 0 | M99: 0 | N99: 0
A100: QMJ | B100: RAL | C100: ROYAL FREE LONDON NHS FOUNDATION TRUST | D100: RAL01 | E100: Royal Free Hospital | F100: 96 | G100: 0.9166666667 | H100: 0.03125 | I100: 70 | J100: 18 | K100: 5 | L100: 2 | M100: 1 | N100: 0
A101: QMJ | B101: RRV | C101: UNIVERSITY COLLEGE LONDON HOSPITALS NHS FOUNDATION TRUST | D101: RRV03 | E101: University College Hospital | F101: 29 | G101: 0.9310344828 | H101: 0 | I101: 21 | J101: 6 | K101: 2 | L101: 0 | M101: 0 | N101: 0
A102: QMJ | B102: RKE | C102: WHITTINGTON HEALTH NHS TRUST | D102: RKEXXX | E102: Non-hospital site | F102: 0 | G102: NA | H102: NA | I102: 0 | J102: 0 | K102: 0 | L102: 0 | M102: 0 | N102: 0
A103: QMJ | B103: RKE | C103: WHITTINGTON HEALTH NHS TRUST | D103: RKEQ4 | E103: The Whittington Hospital | F103: 14 | G103: 1 | H103: 0 | I103: 13 | J103: 1 | K103: 0 | L103: 0 | M103: 0 | N103: 0
A104: QMM | B104: RGP | C104: JAMES PAGET UNIVERSITY HOSPITALS NHS FOUNDATION TRUST | D104: RGP75 | E104: James Paget University Hospital | F104: 19 | G104: 0.9473684211 | H104: 0.05263157895 | I104: 17 | J104: 1 | K104: 0 | L104: 1 | M104: 0 | N104: 0
A105: QMM | B105: RM1 | C105: NORFOLK AND NORWICH UNIVERSITY HOSPITALS NHS FOUNDATION TRUST | D105: RM102 | E105: Norfolk and Norwich University Hospital | F105: 12 | G105: 1 | H105: 0 | I105: 11 | J105: 1 | K105: 0 | L105: 0 | M105: 0 | N105: 0
A106: QMM | B106: RCX | C106: THE QUEEN ELIZABETH HOSPITAL, KING'S LYNN, NHS FOUNDATION TRUST | D106: RCXXXX | E106: Non-hospital site | F106: 0 | G106: NA | H106: NA | I106: 0 | J106: 0 | K106: 0 | L106: 0 | M106: 0 | N106: 0
A107: QMM | B107: RCX | C107: THE QUEEN ELIZABETH HOSPITAL, KING'S LYNN, NHS FOUNDATION TRUST | D107: RCX70 | E107: The Queen Elizabeth Hospital | F107: 26 | G107: 0.9615384615 | H107: 0.03846153846 | I107: 24 | J107: 1 | K107: 0 | L107: 1 | M107: 0 | N107: 0
A108: QNC | B108: RJE | C108: UNIVERSITY HOSPITALS OF NORTH MIDLANDS NHS TRUST | D108: RJE01 | E108: Royal Stoke University Hospital | F108: 20 | G108: 1 | H108: 0 | I108: 16 | J108: 4 | K108: 0 | L108: 0 | M108: 0 | N108: 0
A109: QNQ | B109: RDU | C109: FRIMLEY HEALTH NHS FOUNDATION TRUST | D109: RDU01 | E109: Frimley Park Hospital | F109: 11 | G109: 1 | H109: 0 | I109: * | J109: * | K109: * | L109: * | M109: * | N109: *
A110: QNQ | B110: RDU | C110: FRIMLEY HEALTH NHS FOUNDATION TRUST | D110: RDU50 | E110: Wexham Park Hospital | F110: 1 | G110: * | H110: * | I110: * | J110: * | K110: * | L110: * | M110: * | N110: *
A111: QNX | B111: RXC | C111: EAST SUSSEX HEALTHCARE NHS TRUST | D111: RXC01 | E111: Conquest Hospital | F111: 35 | G111: 0.9714285714 | H111: 0.02857142857 | I111: 31 | J111: 3 | K111: 0 | L111: 0 | M111: 1 | N111: 0
A112: QNX | B112: RXC | C112: EAST SUSSEX HEALTHCARE NHS TRUST | D112: RXC02 | E112: Eastbourne District General Hospital | F112: 0 | G112: NA | H112: NA | I112: 0 | J112: 0 | K112: 0 | L112: 0 | M112: 0 | N112: 0
A113: QNX | B113: RXC | C113: EAST SUSSEX HEALTHCARE NHS TRUST | D113: RXCXXX | E113: Non-hospital site | F113: 0 | G113: NA | H113: NA | I113: 0 | J113: 0 | K113: 0 | L113: 0 | M113: 0 | N113: 0
A114: QNX | B114: RYR | C114: UNIVERSITY HOSPITALS SUSSEX NHS FOUNDATION TRUST | D114: N6J7V | E114: Princess Royal Hospital | F114: 21 | G114: 0.9047619048 | H114: 0.09523809524 | I114: 17 | J114: 2 | K114: 0 | L114: 1 | M114: 1 | N114: 0
A115: QNX | B115: RYR | C115: UNIVERSITY HOSPITALS SUSSEX NHS FOUNDATION TRUST | D115: E0A3H | E115: Royal Sussex County Hospital | F115: 16 | G115: 0.9375 | H115: 0.0625 | I115: 15 | J115: 0 | K115: 0 | L115: 1 | M115: 0 | N115: 0
A116: QNX | B116: RYR | C116: UNIVERSITY HOSPITALS SUSSEX NHS FOUNDATION TRUST | D116: RYR16 | E116: St Richard's Hospital | F116: 10 | G116: 1 | H116: 0 | I116: 10 | J116: 0 | K116: 0 | L116: 0 | M116: 0 | N116: 0
A117: QNX | B117: RYR | C117: UNIVERSITY HOSPITALS SUSSEX NHS FOUNDATION TRUST | D117: RYR18 | E117: Worthing Hospital | F117: 10 | G117: 0.9 | H117: 0.1 | I117: 7 | J117: 2 | K117: 0 | L117: 0 | M117: 1 | N117: 0
A118: QOC | B118: RXW | C118: THE SHREWSBURY AND TELFORD HOSPITAL NHS TRUST | D118: RXWMB | E118: Bridgnorth Hospital (Maternity) | F118: 0 | G118: NA | H118: NA | I118: 0 | J118: 0 | K118: 0 | L118: 0 | M118: 0 | N118: 0
A119: QOC | B119: RXW | C119: THE SHREWSBURY AND TELFORD HOSPITAL NHS TRUST | D119: RXWML | E119: Ludlow Hospital (Maternity) | F119: 0 | G119: NA | H119: NA | I119: 0 | J119: 0 | K119: 0 | L119: 0 | M119: 0 | N119: 0
A120: QOC | B120: RXW | C120: THE SHREWSBURY AND TELFORD HOSPITAL NHS TRUST | D120: RXWXXX | E120: Non-hospital site | F120: 0 | G120: NA | H120: NA | I120: 0 | J120: 0 | K120: 0 | L120: 0 | M120: 0 | N120: 0
A121: QOC | B121: RXW | C121: THE SHREWSBURY AND TELFORD HOSPITAL NHS TRUST | D121: RXWMJ | E121: Robert Jones & Agnes Hunt Orthopaedic & District Hospital | F121: 0 | G121: NA | H121: NA | I121: 0 | J121: 0 | K121: 0 | L121: 0 | M121: 0 | N121: 0
A122: QOC | B122: RXW | C122: THE SHREWSBURY AND TELFORD HOSPITAL NHS TRUST | D122: RXWAS | E122: Royal Shrewsbury Hospital | F122: 8 | G122: 1 | H122: 0 | I122: 7 | J122: 1 | K122: 0 | L122: 0 | M122: 0 | N122: 0
A123: QOC | B123: RXW | C123: THE SHREWSBURY AND TELFORD HOSPITAL NHS TRUST | D123: RXWAT | E123: The Princess Royal Hospital | F123: 14 | G123: 1 | H123: 0 | I123: 14 | J123: 0 | K123: 0 | L123: 0 | M123: 0 | N123: 0
A124: QOP | B124: RMC | C124: BOLTON NHS FOUNDATION TRUST | D124: RMC01 | E124: Royal Bolton Hospital | F124: 224 | G124: 0.9508928571 | H124: 0.03571428571 | I124: 189 | J124: 24 | K124: 3 | L124: 1 | M124: 7 | N124: 0
A125: QOP | B125: R0A | C125: MANCHESTER UNIVERSITY NHS FOUNDATION TRUST | D125: R0A05 | E125: St Mary's Hospital | F125: 56 | G125: 1 | H125: 0 | I125: 33 | J125: 23 | K125: 0 | L125: 0 | M125: 0 | N125: 0
A126: QOP | B126: RWJ | C126: STOCKPORT NHS FOUNDATION TRUST | D126: RWJXXX | E126: Non-hospital site | F126: 0 | G126: NA | H126: NA | I126: 0 | J126: 0 | K126: 0 | L126: 0 | M126: 0 | N126: 0
A127: QOP | B127: RWJ | C127: STOCKPORT NHS FOUNDATION TRUST | D127: RWJ09 | E127: Stepping Hill Hospital | F127: 8 | G127: 1 | H127: 0 | I127: 8 | J127: 0 | K127: 0 | L127: 0 | M127: 0 | N127: 0
A128: QOP | B128: RMP | C128: TAMESIDE AND GLOSSOP INTEGRATED CARE NHS FOUNDATION TRUST | D128: RMP01 | E128: Tameside General Hospital | F128: 6 | G128: 0.8333333333 | H128: 0.1666666667 | I128: 5 | J128: 0 | K128: 0 | L128: 1 | M128: 0 | N128: 0
A129: QOP | B129: RRF | C129: WRIGHTINGTON, WIGAN AND LEIGH NHS FOUNDATION TRUST | D129: RRF02 | E129: Royal Albert Edward Infirmary | F129: 34 | G129: 0.9705882353 | H129: 0 | I129: 29 | J129: 4 | K129: 1 | L129: 0 | M129: 0 | N129: 0
A130: QOQ | B130: RCD | C130: HARROGATE AND DISTRICT NHS FOUNDATION TRUST | D130: RCD01 | E130: Harrogate District Hospital | F130: 4 | G130: * | H130: * | I130: * | J130: * | K130: * | L130: * | M130: * | N130: *
A131: QOQ | B131: RWA | C131: HULL UNIVERSITY TEACHING HOSPITALS NHS TRUST | D131: RWA01 | E131: Hull Royal Infirmary | F131: 35 | G131: 0.9428571429 | H131: 0 | I131: 33 | J131: 0 | K131: 2 | L131: 0 | M131: 0 | N131: 0
A132: QOQ | B132: RJL | C132: NORTHERN LINCOLNSHIRE AND GOOLE NHS FOUNDATION TRUST | D132: RJL30 | E132: Diana, Princess Of Wales Hospital | F132: 24 | G132: 1 | H132: 0 | I132: 21 | J132: 3 | K132: 0 | L132: 0 | M132: 0 | N132: 0
A133: QOQ | B133: RJL | C133: NORTHERN LINCOLNSHIRE AND GOOLE NHS FOUNDATION TRUST | D133: RJL32 | E133: Scunthorpe General Hospital | F133: 0 | G133: NA | H133: NA | I133: 0 | J133: 0 | K133: 0 | L133: 0 | M133: 0 | N133: 0
A134: QOQ | B134: RCB | C134: YORK AND SCARBOROUGH TEACHING HOSPITALS NHS FOUNDATION TRUST | D134: RCBCA | E134: Scarborough General Hospital | F134: 0 | G134: NA | H134: NA | I134: 0 | J134: 0 | K134: 0 | L134: 0 | M134: 0 | N134: 0
A135: QOQ | B135: RCB | C135: YORK AND SCARBOROUGH TEACHING HOSPITALS NHS FOUNDATION TRUST | D135: RCB55 | E135: York Hospital | F135: 19 | G135: 1 | H135: 0 | I135: * | J135: * | K135: * | L135: * | M135: * | N135: *
A136: QOX | B136: RN3 | C136: GREAT WESTERN HOSPITALS NHS FOUNDATION TRUST | D136: RN3XXX | E136: Non-hospital site | F136: 0 | G136: NA | H136: NA | I136: 0 | J136: 0 | K136: 0 | L136: 0 | M136: 0 | N136: 0
A137: QOX | B137: RN3 | C137: GREAT WESTERN HOSPITALS NHS FOUNDATION TRUST | D137: RN325 | E137: The Great Western Hospital | F137: 68 | G137: 0.8676470588 | H137: 0.1176470588 | I137: 45 | J137: 14 | K137: 1 | L137: 5 | M137: 3 | N137: 0
A138: QOX | B138: RD1 | C138: ROYAL UNITED HOSPITALS BATH NHS FOUNDATION TRUST | D138: RD102 | E138: Chippenham Community Hospital | F138: 0 | G138: NA | H138: NA | I138: 0 | J138: 0 | K138: 0 | L138: 0 | M138: 0 | N138: 0
A139: QOX | B139: RD1 | C139: ROYAL UNITED HOSPITALS BATH NHS FOUNDATION TRUST | D139: RD121 | E139: Frome Community Hospital | F139: 0 | G139: NA | H139: NA | I139: 0 | J139: 0 | K139: 0 | L139: 0 | M139: 0 | N139: 0
A140: QOX | B140: RD1 | C140: ROYAL UNITED HOSPITALS BATH NHS FOUNDATION TRUST | D140: RD1XXX | E140: Non Hospital Site | F140: 0 | G140: NA | H140: NA | I140: 0 | J140: 0 | K140: 0 | L140: 0 | M140: 0 | N140: 0
A141: QOX | B141: RD1 | C141: ROYAL UNITED HOSPITALS BATH NHS FOUNDATION TRUST | D141: RD130 | E141: Princess Anne Wing RUH | F141: 11 | G141: 0.8181818182 | H141: 0.09090909091 | I141: 6 | J141: 3 | K141: 1 | L141: 1 | M141: 0 | N141: 0
A142: QOX | B142: RNZ | C142: SALISBURY NHS FOUNDATION TRUST | D142: RNZXXX | E142: Non-hospital site | F142: 0 | G142: NA | H142: NA | I142: 0 | J142: 0 | K142: 0 | L142: 0 | M142: 0 | N142: 0
A143: QOX | B143: RNZ | C143: SALISBURY NHS FOUNDATION TRUST | D143: RNZ02 | E143: Salisbury District Hospital | F143: 0 | G143: NA | H143: NA | I143: 0 | J143: 0 | K143: 0 | L143: 0 | M143: 0 | N143: 0
A144: QPM | B144: RNQ | C144: KETTERING GENERAL HOSPITAL NHS FOUNDATION TRUST | D144: RNQ51 | E144: Kettering General Hospital | F144: 5 | G144: 0.6 | H144: 0 | I144: 2 | J144: 1 | K144: 2 | L144: 0 | M144: 0 | N144: 0
A145: QPM | B145: RNS | C145: NORTHAMPTON GENERAL HOSPITAL NHS TRUST | D145: RNS01 | E145: Northampton General Hospital (Acute) | F145: 49 | G145: 0.8979591837 | H145: 0.1020408163 | I145: 38 | J145: 6 | K145: 0 | L145: 3 | M145: 2 | N145: 0
A146: QR1 | B146: RTE | C146: GLOUCESTERSHIRE HOSPITALS NHS FOUNDATION TRUST | D146: RTE03 | E146: Gloucestershire Royal Hospital | F146: 88 | G146: 0.9090909091 | H146: 0.03409090909 | I146: * | J146: * | K146: * | L146: * | M146: * | N146: *
A147: QR1 | B147: RTE | C147: GLOUCESTERSHIRE HOSPITALS NHS FOUNDATION TRUST | D147: RTEXXX | E147: Non-hospital site | F147: 1 | G147: * | H147: * | I147: * | J147: * | K147: * | L147: * | M147: * | N147: *
A148: QRL | B148: RN5 | C148: HAMPSHIRE HOSPITALS NHS FOUNDATION TRUST | D148: RN542 | E148: Andover War Memorial Hospital | F148: 0 | G148: NA | H148: NA | I148: 0 | J148: 0 | K148: 0 | L148: 0 | M148: 0 | N148: 0
A149: QRL | B149: RN5 | C149: HAMPSHIRE HOSPITALS NHS FOUNDATION TRUST | D149: RN506 | E149: Basingstoke and North Hampshire Hospital | F149: 28 | G149: 1 | H149: 0 | I149: 26 | J149: 2 | K149: 0 | L149: 0 | M149: 0 | N149: 0
A150: QRL | B150: RN5 | C150: HAMPSHIRE HOSPITALS NHS FOUNDATION TRUST | D150: RN541 | E150: Royal Hampshire County Hospital | F150: 94 | G150: 0.9893617021 | H150: 0 | I150: 84 | J150: 9 | K150: 0 | L150: 0 | M150: 0 | N150: 1
A151: QRL | B151: R1F | C151: ISLE OF WIGHT NHS TRUST | D151: R1F01 | E151: St Mary's Hospital | F151: 5 | G151: 1 | H151: 0 | I151: 5 | J151: 0 | K151: 0 | L151: 0 | M151: 0 | N151: 0
A152: QRL | B152: RHU | C152: PORTSMOUTH HOSPITALS UNIVERSITY NATIONAL HEALTH SERVICE TRUST | D152: RHU03 | E152: Queen Alexandra Hospital | F152: 32 | G152: 1 | H152: 0 | I152: 30 | J152: 2 | K152: 0 | L152: 0 | M152: 0 | N152: 0
A153: QRL | B153: RHM | C153: UNIVERSITY HOSPITAL SOUTHAMPTON NHS FOUNDATION TRUST | D153: RHM01 | E153: Southampton General Hospital | F153: 110 | G153: 0.9181818182 | H153: 0.02727272727 | I153: 93 | J153: 8 | K153: 4 | L153: 1 | M153: 2 | N153: 2
A154: QRV | B154: RQM | C154: CHELSEA AND WESTMINSTER HOSPITAL NHS FOUNDATION TRUST | D154: RQM01 | E154: Chelsea and Westminster Hospital | F154: 56 | G154: 0.9107142857 | H154: 0.08928571429 | I154: 46 | J154: 5 | K154: 0 | L154: 1 | M154: 4 | N154: 0
A155: QRV | B155: RQM | C155: CHELSEA AND WESTMINSTER HOSPITAL NHS FOUNDATION TRUST | D155: RQM91 | E155: West Middlesex University Hospital | F155: 35 | G155: 0.9428571429 | H155: 0.02857142857 | I155: 30 | J155: 3 | K155: 1 | L155: 1 | M155: 0 | N155: 0
A156: QRV | B156: RYJ | C156: IMPERIAL COLLEGE HEALTHCARE NHS TRUST | D156: RYJ04 | E156: Queen Charlotte's Hospital | F156: 83 | G156: 0.9397590361 | H156: 0.02409638554 | I156: 59 | J156: 19 | K156: 3 | L156: 0 | M156: 2 | N156: 0
A157: QRV | B157: RYJ | C157: IMPERIAL COLLEGE HEALTHCARE NHS TRUST | D157: RYJ01 | E157: St Mary's Hospital (HQ) | F157: 31 | G157: 0.9032258065 | H157: 0.06451612903 | I157: 27 | J157: 1 | K157: 1 | L157: 1 | M157: 1 | N157: 0
A158: QRV | B158: R1K | C158: LONDON NORTH WEST UNIVERSITY HEALTHCARE NHS TRUST | D158: R1K01 | E158: Northwick Park Hospital | F158: 0 | G158: NA | H158: NA | I158: 0 | J158: 0 | K158: 0 | L158: 0 | M158: 0 | N158: 0
A159: QRV | B159: RAS | C159: THE HILLINGDON HOSPITALS NHS FOUNDATION TRUST | D159: RAS01 | E159: Hillingdon Hospital | F159: 35 | G159: 0.8571428571 | H159: 0.08571428571 | I159: 20 | J159: 10 | K159: 2 | L159: 1 | M159: 2 | N159: 0
A160: QRV | B160: RAS | C160: THE HILLINGDON HOSPITALS NHS FOUNDATION TRUST | D160: RASXXX | E160: Non-hospital site | F160: 5 | G160: 1 | H160: 0 | I160: 5 | J160: 0 | K160: 0 | L160: 0 | M160: 0 | N160: 0
A161: QSL | B161: RH5 | C161: SOMERSET NHS FOUNDATION TRUST | D161: RH5K6 | E161: Bridgwater Hospital | F161: 0 | G161: NA | H161: NA | I161: 0 | J161: 0 | K161: 0 | L161: 0 | M161: 0 | N161: 0
A162: QSL | B162: RH5 | C162: SOMERSET NHS FOUNDATION TRUST | D162: RH5A8 | E162: MUSGROVE PARK HOSPITAL | F162: 0 | G162: NA | H162: NA | I162: 0 | J162: 0 | K162: 0 | L162: 0 | M162: 0 | N162: 0
A163: QSL | B163: RH5 | C163: SOMERSET NHS FOUNDATION TRUST | D163: RH5XXXX | E163: Non-hospital site home/in-transit births | F163: 0 | G163: NA | H163: NA | I163: 0 | J163: 0 | K163: 0 | L163: 0 | M163: 0 | N163: 0
A164: QSL | B164: RH5 | C164: SOMERSET NHS FOUNDATION TRUST | D164: RH5O4 | E164: Yeovil District Hospital | F164: 0 | G164: NA | H164: NA | I164: 0 | J164: 0 | K164: 0 | L164: 0 | M164: 0 | N164: 0
A165: QT1 | B165: RX1 | C165: NOTTINGHAM UNIVERSITY HOSPITALS NHS TRUST | D165: RX1XXX | E165: Non-hospital site | F165: 0 | G165: NA | H165: NA | I165: 0 | J165: 0 | K165: 0 | L165: 0 | M165: 0 | N165: 0
A166: QT1 | B166: RX1 | C166: NOTTINGHAM UNIVERSITY HOSPITALS NHS TRUST | D166: RX1CC | E166: Nottingham University Hospitals NHS Trust - City Campus | F166: 5 | G166: 0.8 | H166: 0.2 | I166: 4 | J166: 0 | K166: 0 | L166: 1 | M166: 0 | N166: 0
A167: QT1 | B167: RX1 | C167: NOTTINGHAM UNIVERSITY HOSPITALS NHS TRUST | D167: RX1RA | E167: Nottingham University Hospitals NHS Trust - Queen's Medical Centre Campus | F167: 33 | G167: 1 | H167: 0 | I167: 29 | J167: 4 | K167: 0 | L167: 0 | M167: 0 | N167: 0
A168: QT1 | B168: RK5 | C168: SHERWOOD FOREST HOSPITALS NHS FOUNDATION TRUST | D168: RK5BC | E168: King's Mill Hospital | F168: 32 | G168: 0.90625 | H168: 0.0625 | I168: 23 | J168: 6 | K168: 1 | L168: 1 | M168: 1 | N168: 0
A169: QT1 | B169: RK5 | C169: SHERWOOD FOREST HOSPITALS NHS FOUNDATION TRUST | D169: RK5XXX | E169: Non-hospital site | F169: 0 | G169: NA | H169: NA | I169: 0 | J169: 0 | K169: 0 | L169: 0 | M169: 0 | N169: 0
A170: QT6 | B170: REF | C170: ROYAL CORNWALL HOSPITALS NHS TRUST | D170: REFXXX | E170: Non-hospital site | F170: 0 | G170: NA | H170: NA | I170: 0 | J170: 0 | K170: 0 | L170: 0 | M170: 0 | N170: 0
A171: QT6 | B171: REF | C171: ROYAL CORNWALL HOSPITALS NHS TRUST | D171: REF12 | E171: Royal Cornwall Hospital (Treliske) | F171: 6 | G171: 0.8333333333 | H171: 0 | I171: 4 | J171: 1 | K171: 1 | L171: 0 | M171: 0 | N171: 0
A172: QU9 | B172: RXQ | C172: BUCKINGHAMSHIRE HEALTHCARE NHS TRUST | D172: RXQ02 | E172: Stoke Mandeville Hospital | F172: 33 | G172: 0.8787878788 | H172: 0.0303030303 | I172: 22 | J172: 7 | K172: 3 | L172: 0 | M172: 1 | N172: 0
A173: QU9 | B173: RTH | C173: OXFORD UNIVERSITY HOSPITALS NHS FOUNDATION TRUST | D173: RTH19 | E173: Chipping Norton Community Hospital | F173: 1 | G173: * | H173: * | I173: * | J173: * | K173: * | L173: * | M173: * | N173: *
A174: QU9 | B174: RTH | C174: OXFORD UNIVERSITY HOSPITALS NHS FOUNDATION TRUST | D174: RTH05 | E174: Horton General Hospital | F174: 1 | G174: * | H174: * | I174: * | J174: * | K174: * | L174: * | M174: * | N174: *
A175: QU9 | B175: RTH | C175: OXFORD UNIVERSITY HOSPITALS NHS FOUNDATION TRUST | D175: RTH08 | E175: John Radcliffe Hospital | F175: 79 | G175: 0.8101265823 | H175: 0.1265822785 | I175: 48 | J175: 16 | K175: 5 | L175: 5 | M175: 5 | N175: 0
A176: QU9 | B176: RTH | C176: OXFORD UNIVERSITY HOSPITALS NHS FOUNDATION TRUST | D176: RTH16 | E176: Wallingford Community Hospital | F176: 0 | G176: NA | H176: NA | I176: 0 | J176: 0 | K176: 0 | L176: 0 | M176: 0 | N176: 0
A177: QU9 | B177: RHW | C177: ROYAL BERKSHIRE NHS FOUNDATION TRUST | D177: RHW01 | E177: Royal Berkshire Hospital | F177: 65 | G177: 0.9384615385 | H177: 0.01538461538 | I177: 54 | J177: 7 | K177: 3 | L177: 0 | M177: 1 | N177: 0
A178: QUA | B178: RNA | C178: THE DUDLEY GROUP NHS FOUNDATION TRUST | D178: RNA01 | E178: Russells Hall Hospital | F178: 26 | G178: 0.6153846154 | H178: 0.03846153846 | I178: 16 | J178: 0 | K178: 0 | L178: 0 | M178: 1 | N178: 9
A179: QUA | B179: RL4 | C179: THE ROYAL WOLVERHAMPTON NHS TRUST | D179: RL403 | E179: New Cross Hospital | F179: 57 | G179: 0.9649122807 | H179: 0.0350877193 | I179: 50 | J179: 5 | K179: 0 | L179: 1 | M179: 1 | N179: 0
A180: QUA | B180: RBK | C180: WALSALL HEALTHCARE NHS TRUST | D180: RBK02 | E180: Manor Hospital | F180: 35 | G180: 0.9428571429 | H180: 0.02857142857 | I180: 24 | J180: 9 | K180: 1 | L180: 0 | M180: 1 | N180: 0
A181: QUE | B181: RGT | C181: CAMBRIDGE UNIVERSITY HOSPITALS NHS FOUNDATION TRUST | D181: RGT32 | E181: Rosie Hospital | F181: 40 | G181: 0.95 | H181: 0 | I181: 35 | J181: 3 | K181: 2 | L181: 0 | M181: 0 | N181: 0
A182: QUE | B182: RGN | C182: NORTH WEST ANGLIA NHS FOUNDATION TRUST | D182: RGN90 | E182: Hinchingbrooke Hospital | F182: 21 | G182: 1 | H182: 0 | I182: * | J182: * | K182: * | L182: * | M182: * | N182: *
A183: QUE | B183: RGN | C183: NORTH WEST ANGLIA NHS FOUNDATION TRUST | D183: RGN80 | E183: Peterborough City Hospital | F183: 2 | G183: * | H183: * | I183: * | J183: * | K183: * | L183: * | M183: * | N183: *
A184: QUY | B184: RVJ | C184: NORTH BRISTOL NHS TRUST | D184: RVJXXX | E184: Non-hospital site | F184: 1 | G184: * | H184: * | I184: * | J184: * | K184: * | L184: * | M184: * | N184: *
A185: QUY | B185: RVJ | C185: NORTH BRISTOL NHS TRUST | D185: RVJ01 | E185: Southmead Hospital | F185: 97 | G185: 0.9793814433 | H185: 0.01030927835 | I185: * | J185: * | K185: * | L185: * | M185: * | N185: *
A186: QUY | B186: RA7 | C186: UNIVERSITY HOSPITALS BRISTOL AND WESTON NHS FOUNDATION TRUST | D186: RA707 | E186: St Michael's Hospital | F186: 52 | G186: 0.9615384615 | H186: 0 | I186: 41 | J186: 9 | K186: 2 | L186: 0 | M186: 0 | N186: 0
A187: QVV | B187: RBD | C187: DORSET COUNTY HOSPITAL NHS FOUNDATION TRUST | D187: RBD01 | E187: Dorset County Hospital | F187: 42 | G187: 0.9523809524 | H187: 0.04761904762 | I187: 35 | J187: 5 | K187: 0 | L187: 0 | M187: 2 | N187: 0
A188: QVV | B188: R0D | C188: UNIVERSITY HOSPITALS DORSET NHS FOUNDATION TRUST | D188: R0D01 | E188: Poole Hospital | F188: 82 | G188: 0.9634146341 | H188: 0 | I188: * | J188: * | K188: * | L188: * | M188: * | N188: *
A189: QVV | B189: R0D | C189: UNIVERSITY HOSPITALS DORSET NHS FOUNDATION TRUST | D189: R0D02 | E189: Royal Bournemouth Hospital | F189: 1 | G189: * | H189: * | I189: * | J189: * | K189: * | L189: * | M189: * | N189: *
A190: QWE | B190: RJ6 | C190: CROYDON HEALTH SERVICES NHS TRUST | D190: RJ611 | E190: Croydon University Hospital | F190: 17 | G190: 0.8823529412 | H190: 0.05882352941 | I190: 11 | J190: 4 | K190: 1 | L190: 0 | M190: 1 | N190: 0
A191: QWE | B191: RVR | C191: EPSOM AND ST HELIER UNIVERSITY HOSPITALS NHS TRUST | D191: RVR50 | E191: Epsom Hospital | F191: 16 | G191: 1 | H191: 0 | I191: 15 | J191: 1 | K191: 0 | L191: 0 | M191: 0 | N191: 0
A192: QWE | B192: RVR | C192: EPSOM AND ST HELIER UNIVERSITY HOSPITALS NHS TRUST | D192: RVRXXX | E192: Non-hospital site | F192: 2 | G192: * | H192: * | I192: * | J192: * | K192: * | L192: * | M192: * | N192: *
A193: QWE | B193: RVR | C193: EPSOM AND ST HELIER UNIVERSITY HOSPITALS NHS TRUST | D193: RVR05 | E193: St Helier Hospital | F193: 7 | G193: 0.8571428571 | H193: 0.1428571429 | I193: * | J193: * | K193: * | L193: * | M193: * | N193: *
A194: QWE | B194: RAX | C194: KINGSTON HOSPITAL NHS FOUNDATION TRUST | D194: RAX01 | E194: Kingston Hospital | F194: 34 | G194: 0.9411764706 | H194: 0 | I194: 29 | J194: 3 | K194: 2 | L194: 0 | M194: 0 | N194: 0
A195: QWE | B195: RJ7 | C195: ST GEORGE'S UNIVERSITY HOSPITALS NHS FOUNDATION TRUST | D195: RJ701 | E195: St George's Hospital (Tooting) | F195: 41 | G195: 0.9024390244 | H195: 0.07317073171 | I195: 34 | J195: 3 | K195: 1 | L195: 0 | M195: 3 | N195: 0
A196: QWO | B196: RCF | C196: AIREDALE NHS FOUNDATION TRUST | D196: RCF22 | E196: Airedale General Hospital | F196: 23 | G196: 0.8695652174 | H196: 0.04347826087 | I196: 17 | J196: 3 | K196: 2 | L196: 0 | M196: 1 | N196: 0
A197: QWO | B197: RAE | C197: BRADFORD TEACHING HOSPITALS NHS FOUNDATION TRUST | D197: RAE01 | E197: Bradford Royal Infirmary | F197: 182 | G197: 1 | H197: 0 | I197: 166 | J197: 16 | K197: 0 | L197: 0 | M197: 0 | N197: 0
A198: QWO | B198: RWY | C198: CALDERDALE AND HUDDERSFIELD NHS FOUNDATION TRUST | D198: RWY02 | E198: Calderdale Royal Hospital | F198: 16 | G198: 1 | H198: 0 | I198: 16 | J198: 0 | K198: 0 | L198: 0 | M198: 0 | N198: 0
A199: QWO | B199: RWY | C199: CALDERDALE AND HUDDERSFIELD NHS FOUNDATION TRUST | D199: RWYXXX | E199: Non-hospital site | F199: 0 | G199: NA | H199: NA | I199: 0 | J199: 0 | K199: 0 | L199: 0 | M199: 0 | N199: 0
A200: QWO | B200: RR8 | C200: LEEDS TEACHING HOSPITALS NHS TRUST | D200: RR801 | E200: Leeds General Infirmary | F200: 113 | G200: 0.9734513274 | H200: 0.01769911504 | I200: 105 | J200: 5 | K200: 1 | L200: 0 | M200: 2 | N200: 0
A201: QWO | B201: RR8 | C201: LEEDS TEACHING HOSPITALS NHS TRUST | D201: RR8XXX | E201: Non-hospital site | F201: 2 | G201: * | H201: * | I201: * | J201: * | K201: * | L201: * | M201: * | N201: *
A202: QWO | B202: RR8 | C202: LEEDS TEACHING HOSPITALS NHS TRUST | D202: RR813 | E202: St James's University Hospital | F202: 99 | G202: 0.9898989899 | H202: 0.0101010101 | I202: * | J202: * | K202: * | L202: * | M202: * | N202: *
A203: QWO | B203: RXF | C203: MID YORKSHIRE TEACHING NHS TRUST | D203: RXF10 | E203: Dewsbury and District Hospital | F203: 7 | G203: 1 | H203: 0 | I203: 7 | J203: 0 | K203: 0 | L203: 0 | M203: 0 | N203: 0
A204: QWO | B204: RXF | C204: MID YORKSHIRE TEACHING NHS TRUST | D204: RXFXXX | E204: Non-hospital site | F204: 0 | G204: NA | H204: NA | I204: 0 | J204: 0 | K204: 0 | L204: 0 | M204: 0 | N204: 0
A205: QWO | B205: RXF | C205: MID YORKSHIRE TEACHING NHS TRUST | D205: RXF05 | E205: Pinderfields General Hospital | F205: 49 | G205: 0.9795918367 | H205: 0.02040816327 | I205: 44 | J205: 4 | K205: 0 | L205: 0 | M205: 1 | N205: 0
A206: QWO | B206: RXF | C206: MID YORKSHIRE TEACHING NHS TRUST | D206: RXF03 | E206: Pontefract General Infirmary | F206: 0 | G206: NA | H206: NA | I206: 0 | J206: 0 | K206: 0 | L206: 0 | M206: 0 | N206: 0
A207: QWU | B207: RLT | C207: GEORGE ELIOT HOSPITAL NHS TRUST | D207: RLT01 | E207: George Eliot Hospital - Acute Services | F207: 62 | G207: 0.9516129032 | H207: 0.04838709677 | I207: 49 | J207: 10 | K207: 0 | L207: 2 | M207: 1 | N207: 0
... 13 more rows

Sheet ICB Q3
B6: Sort data by:
A9: ICB Code | B9: ICB Name | C9: Total Responses | D9: Percentage Positive | E9: Percentage Negative | F9: Breakdown of Responses
F10: Very Good | G10: Good | H10: Neither Good nor Poor | I10: Poor | J10: Very Poor | K10: Don't Know
B11: England (including Independent Sector providers) | C11: 5552 | D11: 0.9194884726 | E11: 0.04196685879 | F11: 4031 | G11: 1074 | H11: 176 | I11: 117 | J11: 116 | K11: 38
B12: England (excluding Independent Sector providers) | C12: 5552 | D12: 0.9194884726 | E12: 0.04196685879 | F12: 4031 | G12: 1074 | H12: 176 | I12: 117 | J12: 116 | K12: 38
B13: Selection (excluding suppressed data) | C13: =SUBTOTAL(9,C14:C55) -> 5552 | D13: =IFERROR((F13+G13)/SUM(F13:K13), "-") -> 0.9194800506 | E13: =IFERROR((I13+J13)/SUM(F13:K13), "-") -> 0.04188481675 | F13: =SUBTOTAL(9,F14:F55) -> 4020 | G13: =SUBTOTAL(9,G14:G55) -> 1073 | H13: 176 | I13: 116 | J13: 116 | K13: 38
A14: QE1 | B14: LANCASHIRE AND SOUTH CUMBRIA ICB | C14: 87 | D14: 0.8735632184 | E14: 0.05747126437 | F14: 58 | G14: 18 | H14: 6 | I14: 2 | J14: 3 | K14: 0
A15: QF7 | B15: SOUTH YORKSHIRE ICB | C15: 88 | D15: 0.9545454545 | E15: 0.03409090909 | F15: 69 | G15: 15 | H15: 0 | I15: 2 | J15: 1 | K15: 1
A16: QGH | B16: HEREFORDSHIRE AND WORCESTERSHIRE ICB | C16: 2 | D16: * | E16: * | F16: * | G16: * | H16: * | I16: * | J16: * | K16: *
A17: QH8 | B17: MID AND SOUTH ESSEX ICB | C17: 49 | D17: 0.8571428571 | E17: 0.1020408163 | F17: 29 | G17: 13 | H17: 2 | I17: 4 | J17: 1 | K17: 0
A18: QHG | B18: BEDFORDSHIRE, LUTON AND MILTON KEYNES ICB | C18: 249 | D18: 0.9156626506 | E18: 0.04016064257 | F18: 156 | G18: 72 | H18: 10 | I18: 5 | J18: 5 | K18: 1
A19: QHL | B19: BIRMINGHAM AND SOLIHULL ICB | C19: 17 | D19: 0.7058823529 | E19: 0.2352941176 | F19: 6 | G19: 6 | H19: 1 | I19: 2 | J19: 2 | K19: 0
A20: QHM | B20: NORTH EAST AND NORTH CUMBRIA ICB | C20: 288 | D20: 0.9513888889 | E20: 0.04166666667 | F20: 227 | G20: 47 | H20: 2 | I20: 6 | J20: 6 | K20: 0
A21: QJ2 | B21: DERBY AND DERBYSHIRE ICB | C21: 127 | D21: 0.9606299213 | E21: 0.0157480315 | F21: 97 | G21: 25 | H21: 2 | I21: 2 | J21: 0 | K21: 1
A22: QJG | B22: SUFFOLK AND NORTH EAST ESSEX ICB | C22: 74 | D22: 0.972972973 | E22: 0.01351351351 | F22: 58 | G22: 14 | H22: 1 | I22: 1 | J22: 0 | K22: 0
A23: QJK | B23: DEVON ICB | C23: 93 | D23: 1 | E23: 0 | F23: 85 | G23: 8 | H23: 0 | I23: 0 | J23: 0 | K23: 0
A24: QJM | B24: LINCOLNSHIRE ICB | C24: 59 | D24: 0.9830508475 | E24: 0 | F24: 48 | G24: 10 | H24: 1 | I24: 0 | J24: 0 | K24: 0
A25: QK1 | B25: LEICESTER, LEICESTERSHIRE AND RUTLAND ICB | C25: 171 | D25: 0.9064327485 | E25: 0.0350877193 | F25: 113 | G25: 42 | H25: 9 | I25: 3 | J25: 3 | K25: 1
A26: QKK | B26: SOUTH EAST LONDON ICB | C26: 114 | D26: 0.9035087719 | E26: 0.0350877193 | F26: 61 | G26: 42 | H26: 6 | I26: 3 | J26: 1 | K26: 1
A27: QKS | B27: KENT AND MEDWAY ICB | C27: 133 | D27: 0.962406015 | E27: 0.03007518797 | F27: 101 | G27: 27 | H27: 1 | I27: 2 | J27: 2 | K27: 0
A28: QM7 | B28: HERTFORDSHIRE AND WEST ESSEX ICB | C28: 66 | D28: 0.9090909091 | E28: 0.01515151515 | F28: 47 | G28: 13 | H28: 4 | I28: 0 | J28: 1 | K28: 1
A29: QMF | B29: NORTH EAST LONDON ICB | C29: 184 | D29: 0.8967391304 | E29: 0.0652173913 | F29: 126 | G29: 39 | H29: 5 | I29: 3 | J29: 9 | K29: 2
A30: QMJ | B30: NORTH CENTRAL LONDON ICB | C30: 419 | D30: 0.9284009547 | E30: 0.02625298329 | F30: 296 | G30: 93 | H30: 19 | I30: 7 | J30: 4 | K30: 0
A31: QMM | B31: NORFOLK AND WAVENEY ICB | C31: 43 | D31: 0.9069767442 | E31: 0.09302325581 | F31: 34 | G31: 5 | H31: 0 | I31: 1 | J31: 3 | K31: 0
A32: QNC | B32: STAFFORDSHIRE AND STOKE-ON-TRENT ICB | C32: 35 | D32: 0.9428571429 | E32: 0.02857142857 | F32: 30 | G32: 3 | H32: 1 | I32: 0 | J32: 1 | K32: 0
A33: QNQ | B33: FRIMLEY ICB | C33: 0 | D33: NA | E33: NA | F33: 0 | G33: 0 | H33: 0 | I33: 0 | J33: 0 | K33: 0
A34: QNX | B34: SUSSEX ICB | C34: 121 | D34: 0.9504132231 | E34: 0.04132231405 | F34: 100 | G34: 15 | H34: 1 | I34: 2 | J34: 3 | K34: 0
A35: QOC | B35: SHROPSHIRE, TELFORD AND WREKIN ICB | C35: 9 | D35: 1 | E35: 0 | F35: * | G35: * | H35: * | I35: * | J35: * | K35: *
A36: QOP | B36: GREATER MANCHESTER ICB | C36: 430 | D36: 0.9534883721 | E36: 0.02558139535 | F36: 354 | G36: 56 | H36: 7 | I36: 7 | J36: 4 | K36: 2
A37: QOQ | B37: HUMBER AND NORTH YORKSHIRE ICB | C37: 120 | D37: 0.9 | E37: 0.075 | F37: 92 | G37: 16 | H37: 3 | I37: 3 | J37: 6 | K37: 0
A38: QOX | B38: BATH AND NORTH EAST SOMERSET, SWINDON AND WILTSHIRE ICB | C38: 85 | D38: 0.8470588235 | E38: 0.07058823529 | F38: 57 | G38: 15 | H38: 7 | I38: 3 | J38: 3 | K38: 0
A39: QPM | B39: NORTHAMPTONSHIRE ICB | C39: 27 | D39: 1 | E39: 0 | F39: 24 | G39: 3 | H39: 0 | I39: 0 | J39: 0 | K39: 0
A40: QR1 | B40: GLOUCESTERSHIRE ICB | C40: 77 | D40: 0.7662337662 | E40: 0.1038961039 | F40: 34 | G40: 25 | H40: 10 | I40: 5 | J40: 3 | K40: 0
A41: QRL | B41: HAMPSHIRE AND ISLE OF WIGHT ICB | C41: 325 | D41: 0.9015384615 | E41: 0.03384615385 | F41: 229 | G41: 64 | H41: 17 | I41: 7 | J41: 4 | K41: 4
A42: QRV | B42: NORTH WEST LONDON ICB | C42: 514 | D42: 0.9105058366 | E42: 0.05447470817 | F42: 369 | G42: 99 | H42: 17 | I42: 16 | J42: 12 | K42: 1
A43: QSL | B43: SOMERSET ICB | C43: 0 | D43: NA | E43: NA | F43: 0 | G43: 0 | H43: 0 | I43: 0 | J43: 0 | K43: 0
A44: QT1 | B44: NOTTINGHAM AND NOTTINGHAMSHIRE ICB | C44: 87 | D44: 0.9885057471 | E44: 0.01149425287 | F44: 59 | G44: 27 | H44: 0 | I44: 0 | J44: 1 | K44: 0
A45: QT6 | B45: CORNWALL AND THE ISLES OF SCILLY ICB | C45: 2 | D45: * | E45: * | F45: * | G45: * | H45: * | I45: * | J45: * | K45: *
A46: QU9 | B46: BUCKINGHAMSHIRE, OXFORDSHIRE AND BERKSHIRE WEST ICB | C46: 78 | D46: 0.9230769231 | E46: 0.07692307692 | F46: 56 | G46: 16 | H46: 0 | I46: 5 | J46: 1 | K46: 0
A47: QUA | B47: BLACK COUNTRY ICB | C47: 180 | D47: 0.7944444444 | E47: 0.08333333333 | F47: 107 | G47: 36 | H47: 7 | I47: 4 | J47: 11 | K47: 15
A48: QUE | B48: CAMBRIDGESHIRE AND PETERBOROUGH ICB | C48: 115 | D48: 0.9217391304 | E48: 0.04347826087 | F48: 90 | G48: 16 | H48: 3 | I48: 4 | J48: 1 | K48: 1
A49: QUY | B49: BRISTOL, NORTH SOMERSET AND SOUTH GLOUCESTERSHIRE ICB | C49: 133 | D49: 0.9022556391 | E49: 0.05263157895 | F49: 89 | G49: 31 | H49: 6 | I49: 3 | J49: 4 | K49: 0
A50: QVV | B50: DORSET ICB | C50: 88 | D50: 0.875 | E50: 0.05681818182 | F50: 60 | G50: 17 | H50: 3 | I50: 3 | J50: 2 | K50: 3
A51: QWE | B51: SOUTH WEST LONDON ICB | C51: 144 | D51: 0.9305555556 | E51: 0.02083333333 | F51: 93 | G51: 41 | H51: 6 | I51: 1 | J51: 2 | K51: 1
A52: QWO | B52: WEST YORKSHIRE ICB | C52: 271 | D52: 0.9557195572 | E52: 0.0295202952 | F52: 223 | G52: 36 | H52: 3 | I52: 1 | J52: 7 | K52: 1
A53: QWU | B53: COVENTRY AND WARWICKSHIRE ICB | C53: 102 | D53: 0.8529411765 | E53: 0.03921568627 | F53: 58 | G53: 29 | H53: 11 | I53: 3 | J53: 1 | K53: 0
A54: QXU | B54: SURREY HEARTLANDS ICB | C54: 25 | D54: 0.88 | E54: 0 | F54: 18 | G54: 4 | H54: 3 | I54: 0 | J54: 0 | K54: 0
A55: QYG | B55: CHESHIRE AND MERSEYSIDE ICB | C55: 321 | D55: 0.9408099688 | E55: 0.04672897196 | F55: 267 | G55: 35 | H55: 2 | I55: 6 | J55: 9 | K55: 2

Sheet Trusts Q3
B6: Sort data by:
A9: ICB Code | B9: Trust Code | C9: Trust Name | D9: Total Responses | E9: Percentage Positive | F9: Percentage Negative | G9: Breakdown of Responses | M9: Mode of Collection
G10: Very Good | H10: Good | I10: Neither Good nor Poor | J10: Poor | K10: Very Poor | L10: Don't Know | M10: Mode SMS | N10: Mode Electronic Discharge | O10: Mode Electronic Home | P10: Mode Paper Discharge | Q10: Mode Paper Home | R10: Mode Telephone | S10: Mode Online | T10: Mode Other
C11: England (including Independent Sector providers) | D11: 5552 | E11: 0.9194884726 | F11: 0.04196685879 | G11: 4031 | H11: 1074 | I11: 176 | J11: 117 | K11: 116 | L11: 38 | M11: 1353 | N11: 1438 | O11: 74 | P11: 1907 | Q11: 104 | R11: 0 | S11: 635 | T11: 41
C12: England (excluding Independent Sector providers) | D12: 5552 | E12: 0.9194884726 | F12: 0.04196685879 | G12: 4031 | H12: 1074 | I12: 176 | J12: 117 | K12: 116 | L12: 38 | M12: 1353 | N12: 1438 | O12: 74 | P12: 1907 | Q12: 104 | R12: 0 | S12: 635 | T12: 41
C13: Selection (excluding suppressed data) | D13: =SUBTOTAL(9,D14:D299) -> 5552 | E13: =IFERROR((G13+H13)/SUM(G13:L13), "-") -> 0.9205616465 | F13: =IFERROR((J13+K13)/SUM(G13:L13), "-") -> 0.04212348529 | G13: =SUBTOTAL(9,G14:G299) -> 3792 | H13: 994 | I13: 157 | J13: 112 | K13: 107 | L13: 37 | M13: 1285 | N13: 1327 | O13: 43 | P13: 1802 | Q13: 99 | R13: 0 | S13: 606 | T13: 37
A14: QE1 | B14: RXR | C14: EAST LANCASHIRE HOSPITALS NHS TRUST | D14: 2 | E14: * | F14: * | G14: * | H14: * | I14: * | J14: * | K14: * | L14: * | M14: * | N14: * | O14: * | P14: * | Q14: * | R14: * | S14: * | T14: *
A15: QE1 | B15: RXN | C15: LANCASHIRE TEACHING HOSPITALS NHS FOUNDATION TRUST | D15: 11 | E15: 0.8181818182 | F15: 0.09090909091 | G15: * | H15: * | I15: * | J15: * | K15: * | L15: * | M15: * | N15: * | O15: * | P15: * | Q15: * | R15: * | S15: * | T15: *
A16: QE1 | B16: RXL | C16: BLACKPOOL TEACHING HOSPITALS NHS FOUNDATION TRUST | D16: 36 | E16: 0.75 | F16: 0.1111111111 | G16: 20 | H16: 7 | I16: 5 | J16: 2 | K16: 2 | L16: 0 | M16: 23 | N16: 0 | O16: 0 | P16: 13 | Q16: 0 | R16: 0 | S16: 0 | T16: 0
A17: QE1 | B17: RTX | C17: UNIVERSITY HOSPITALS OF MORECAMBE BAY NHS FOUNDATION TRUST | D17: 38 | E17: 1 | F17: 0 | G17: 32 | H17: 6 | I17: 0 | J17: 0 | K17: 0 | L17: 0 | M17: 37 | N17: 0 | O17: 0 | P17: 0 | Q17: 0 | R17: 0 | S17: 1 | T17: 0
A18: QF7 | B18: RFF | C18: BARNSLEY HOSPITAL NHS FOUNDATION TRUST | D18: 10 | E18: 0.8 | F18: 0.2 | G18: 8 | H18: 0 | I18: 0 | J18: 1 | K18: 1 | L18: 0 | M18: 0 | N18: 10 | O18: 0 | P18: 0 | Q18: 0 | R18: 0 | S18: 0 | T18: 0
A19: QF7 | B19: RP5 | C19: DONCASTER AND BASSETLAW TEACHING HOSPITALS NHS FOUNDATION TRUST | D19: 14 | E19: 1 | F19: 0 | G19: 14 | H19: 0 | I19: 0 | J19: 0 | K19: 0 | L19: 0 | M19: 0 | N19: 0 | O19: 0 | P19: 14 | Q19: 0 | R19: 0 | S19: 0 | T19: 0
A20: QF7 | B20: RFR | C20: THE ROTHERHAM NHS FOUNDATION TRUST | D20: 15 | E20: 0.9333333333 | F20: 0 | G20: 9 | H20: 5 | I20: 0 | J20: 0 | K20: 0 | L20: 1 | M20: 0 | N20: 0 | O20: 0 | P20: 10 | Q20: 0 | R20: 0 | S20: 5 | T20: 0
A21: QF7 | B21: RHQ | C21: SHEFFIELD TEACHING HOSPITALS NHS FOUNDATION TRUST | D21: 49 | E21: 0.9795918367 | F21: 0.02040816327 | G21: 38 | H21: 10 | I21: 0 | J21: 1 | K21: 0 | L21: 0 | M21: 0 | N21: 0 | O21: 0 | P21: 42 | Q21: 0 | R21: 0 | S21: 7 | T21: 0
A22: QGH | B22: RLQ | C22: WYE VALLEY NHS TRUST | D22: 0 | E22: NA | F22: NA | G22: 0 | H22: 0 | I22: 0 | J22: 0 | K22: 0 | L22: 0 | M22: 0 | N22: 0 | O22: 0 | P22: 0 | Q22: 0 | R22: 0 | S22: 0 | T22: 0
A23: QGH | B23: RWP | C23: WORCESTERSHIRE ACUTE HOSPITALS NHS TRUST | D23: 2 | E23: * | F23: * | G23: * | H23: * | I23: * | J23: * | K23: * | L23: * | M23: * | N23: * | O23: * | P23: * | Q23: * | R23: * | S23: * | T23: *
A24: QH8 | B24: RAJ | C24: MID AND SOUTH ESSEX NHS FOUNDATION TRUST | D24: 49 | E24: 0.8571428571 | F24: 0.1020408163 | G24: 29 | H24: 13 | I24: 2 | J24: 4 | K24: 1 | L24: 0 | M24: 47 | N24: 0 | O24: 0 | P24: 0 | Q24: 0 | R24: 0 | S24: 2 | T24: 0
A25: QHG | B25: RD8 | C25: MILTON KEYNES UNIVERSITY HOSPITAL NHS FOUNDATION TRUST | D25: 67 | E25: 0.8805970149 | F25: 0.08955223881 | G25: 42 | H25: 17 | I25: 2 | J25: 3 | K25: 3 | L25: 0 | M25: 6 | N25: 0 | O25: 0 | P25: 51 | Q25: 0 | R25: 0 | S25: 10 | T25: 0
A26: QHG | B26: RC9 | C26: BEDFORDSHIRE HOSPITALS NHS FOUNDATION TRUST | D26: 182 | E26: 0.9285714286 | F26: 0.02197802198 | G26: 114 | H26: 55 | I26: 8 | J26: 2 | K26: 2 | L26: 1 | M26: 0 | N26: 181 | O26: 0 | P26: 0 | Q26: 0 | R26: 0 | S26: 1 | T26: 0
A27: QHL | B27: RXK | C27: SANDWELL AND WEST BIRMINGHAM HOSPITALS NHS TRUST | D27: 1 | E27: * | F27: * | G27: * | H27: * | I27: * | J27: * | K27: * | L27: * | M27: * | N27: * | O27: * | P27: * | Q27: * | R27: * | S27: * | T27: *
A28: QHL | B28: RRK | C28: UNIVERSITY HOSPITALS BIRMINGHAM NHS FOUNDATION TRUST | D28: 2 | E28: * | F28: * | G28: * | H28: * | I28: * | J28: * | K28: * | L28: * | M28: * | N28: * | O28: * | P28: * | Q28: * | R28: * | S28: * | T28: *
A29: QHL | B29: RQ3 | C29: BIRMINGHAM WOMEN'S AND CHILDREN'S NHS FOUNDATION TRUST | D29: 14 | E29: 0.6428571429 | F29: 0.2857142857 | G29: 3 | H29: 6 | I29: 1 | J29: 2 | K29: 2 | L29: 0 | M29: 0 | N29: 0 | O29: 0 | P29: 0 | Q29: 0 | R29: 0 | S29: 14 | T29: 0
A30: QHM | B30: RTD | C30: THE NEWCASTLE UPON TYNE HOSPITALS NHS FOUNDATION TRUST | D30: 1 | E30: * | F30: * | G30: * | H30: * | I30: * | J30: * | K30: * | L30: * | M30: * | N30: * | O30: * | P30: * | Q30: * | R30: * | S30: * | T30: *
A31: QHM | B31: R0B | C31: SOUTH TYNESIDE AND SUNDERLAND NHS FOUNDATION TRUST | D31: 3 | E31: * | F31: * | G31: * | H31: * | I31: * | J31: * | K31: * | L31: * | M31: * | N31: * | O31: * | P31: * | Q31: * | R31: * | S31: * | T31: *
A32: QHM | B32: RVW | C32: NORTH TEES AND HARTLEPOOL NHS FOUNDATION TRUST | D32: 3 | E32: * | F32: * | G32: * | H32: * | I32: * | J32: * | K32: * | L32: * | M32: * | N32: * | O32: * | P32: * | Q32: * | R32: * | S32: * | T32: *
A33: QHM | B33: RR7 | C33: GATESHEAD HEALTH NHS FOUNDATION TRUST | D33: 4 | E33: * | F33: * | G33: * | H33: * | I33: * | J33: * | K33: * | L33: * | M33: * | N33: * | O33: * | P33: * | Q33: * | R33: * | S33: * | T33: *
A34: QHM | B34: RNN | C34: NORTH CUMBRIA INTEGRATED CARE NHS FOUNDATION TRUST | D34: 29 | E34: 1 | F34: 0 | G34: 26 | H34: 3 | I34: 0 | J34: 0 | K34: 0 | L34: 0 | M34: 3 | N34: 0 | O34: 0 | P34: 17 | Q34: 0 | R34: 0 | S34: 9 | T34: 0
A35: QHM | B35: RTR | C35: SOUTH TEES HOSPITALS NHS FOUNDATION TRUST | D35: 29 | E35: 1 | F35: 0 | G35: 25 | H35: 4 | I35: 0 | J35: 0 | K35: 0 | L35: 0 | M35: 16 | N35: 8 | O35: 5 | P35: 0 | Q35: 0 | R35: 0 | S35: 0 | T35: 0
A36: QHM | B36: RTF | C36: NORTHUMBRIA HEALTHCARE NHS FOUNDATION TRUST | D36: 75 | E36: 0.88 | F36: 0.1066666667 | G36: 55 | H36: 11 | I36: 1 | J36: 4 | K36: 4 | L36: 0 | M36: 49 | N36: 0 | O36: 0 | P36: 26 | Q36: 0 | R36: 0 | S36: 0 | T36: 0
A37: QHM | B37: RXP | C37: COUNTY DURHAM AND DARLINGTON NHS FOUNDATION TRUST | D37: 144 | E37: 0.9861111111 | F37: 0.006944444444 | G37: 114 | H37: 28 | I37: 1 | J37: 1 | K37: 0 | L37: 0 | M37: 0 | N37: 0 | O37: 0 | P37: 144 | Q37: 0 | R37: 0 | S37: 0 | T37: 0
A38: QJ2 | B38: RTG | C38: UNIVERSITY HOSPITALS OF DERBY AND BURTON NHS FOUNDATION TRUST | D38: 21 | E38: 0.9047619048 | F38: 0.09523809524 | G38: 14 | H38: 5 | I38: 0 | J38: 2 | K38: 0 | L38: 0 | M38: 7 | N38: 0 | O38: 0 | P38: 14 | Q38: 0 | R38: 0 | S38: 0 | T38: 0
A39: QJ2 | B39: RFS | C39: CHESTERFIELD ROYAL HOSPITAL NHS FOUNDATION TRUST | D39: 106 | E39: 0.9716981132 | F39: 0 | G39: 83 | H39: 20 | I39: 2 | J39: 0 | K39: 0 | L39: 1 | M39: 41 | N39: 25 | O39: 38 | P39: 0 | Q39: 0 | R39: 0 | S39: 2 | T39: 0
A40: QJG | B40: RGR | C40: WEST SUFFOLK NHS FOUNDATION TRUST | D40: 34 | E40: 1 | F40: 0 | G40: 30 | H40: 4 | I40: 0 | J40: 0 | K40: 0 | L40: 0 | M40: 0 | N40: 32 | O40: 0 | P40: 0 | Q40: 0 | R40: 0 | S40: 2 | T40: 0
A41: QJG | B41: RDE | C41: EAST SUFFOLK AND NORTH ESSEX NHS FOUNDATION TRUST | D41: 40 | E41: 0.95 | F41: 0.025 | G41: 28 | H41: 10 | I41: 1 | J41: 1 | K41: 0 | L41: 0 | M41: 0 | N41: 0 | O41: 0 | P41: 0 | Q41: 0 | R41: 0 | S41: 40 | T41: 0
A42: QJK | B42: RA9 | C42: TORBAY AND SOUTH DEVON NHS FOUNDATION TRUST | D42: 0 | E42: NA | F42: NA | G42: 0 | H42: 0 | I42: 0 | J42: 0 | K42: 0 | L42: 0 | M42: 0 | N42: 0 | O42: 0 | P42: 0 | Q42: 0 | R42: 0 | S42: 0 | T42: 0
A43: QJK | B43: RK9 | C43: UNIVERSITY HOSPITALS PLYMOUTH NHS TRUST | D43: 46 | E43: 1 | F43: 0 | G43: 38 | H43: 8 | I43: 0 | J43: 0 | K43: 0 | L43: 0 | M43: 0 | N43: 45 | O43: 0 | P43: 1 | Q43: 0 | R43: 0 | S43: 0 | T43: 0
A44: QJK | B44: RH8 | C44: ROYAL DEVON UNIVERSITY HEALTHCARE NHS FOUNDATION TRUST | D44: 47 | E44: 1 | F44: 0 | G44: 47 | H44: 0 | I44: 0 | J44: 0 | K44: 0 | L44: 0 | M44: 0 | N44: 0 | O44: 0 | P44: 47 | Q44: 0 | R44: 0 | S44: 0 | T44: 0
A45: QJM | B45: RWD | C45: UNITED LINCOLNSHIRE HOSPITALS NHS TRUST | D45: 59 | E45: 0.9830508475 | F45: 0 | G45: 48 | H45: 10 | I45: 1 | J45: 0 | K45: 0 | L45: 0 | M45: 0 | N45: 0 | O45: 0 | P45: 59 | Q45: 0 | R45: 0 | S45: 0 | T45: 0
A46: QK1 | B46: RWE | C46: UNIVERSITY HOSPITALS OF LEICESTER NHS TRUST | D46: 171 | E46: 0.9064327485 | F46: 0.0350877193 | G46: 113 | H46: 42 | I46: 9 | J46: 3 | K46: 3 | L46: 1 | M46: 34 | N46: 137 | O46: 0 | P46: 0 | Q46: 0 | R46: 0 | S46: 0 | T46: 0
A47: QKK | B47: RJZ | C47: KING'S COLLEGE HOSPITAL NHS FOUNDATION TRUST | D47: 0 | E47: NA | F47: NA | G47: 0 | H47: 0 | I47: 0 | J47: 0 | K47: 0 | L47: 0 | M47: 0 | N47: 0 | O47: 0 | P47: 0 | Q47: 0 | R47: 0 | S47: 0 | T47: 0
A48: QKK | B48: RJ2 | C48: LEWISHAM AND GREENWICH NHS TRUST | D48: 56 | E48: 0.8928571429 | F48: 0.03571428571 | G48: 30 | H48: 20 | I48: 3 | J48: 2 | K48: 0 | L48: 1 | M48: 0 | N48: 0 | O48: 0 | P48: 18 | Q48: 0 | R48: 0 | S48: 38 | T48: 0
A49: QKK | B49: RJ1 | C49: GUY'S AND ST THOMAS' NHS FOUNDATION TRUST | D49: 58 | E49: 0.9137931034 | F49: 0.03448275862 | G49: 31 | H49: 22 | I49: 3 | J49: 1 | K49: 1 | L49: 0 | M49: 0 | N49: 0 | O49: 0 | P49: 55 | Q49: 0 | R49: 0 | S49: 3 | T49: 0
A50: QKS | B50: RN7 | C50: DARTFORD AND GRAVESHAM NHS TRUST | D50: 25 | E50: 1 | F50: 0 | G50: 23 | H50: 2 | I50: 0 | J50: 0 | K50: 0 | L50: 0 | M50: 0 | N50: 5 | O50: 0 | P50: 0 | Q50: 0 | R50: 0 | S50: 20 | T50: 0
A51: QKS | B51: RWF | C51: MAIDSTONE AND TUNBRIDGE WELLS NHS TRUST | D51: 49 | E51: 0.9795918367 | F51: 0 | G51: 38 | H51: 10 | I51: 1 | J51: 0 | K51: 0 | L51: 0 | M51: 0 | N51: 0 | O51: 0 | P51: 14 | Q51: 0 | R51: 0 | S51: 35 | T51: 0
A52: QKS | B52: RPA | C52: MEDWAY NHS FOUNDATION TRUST | D52: 59 | E52: 0.9322033898 | F52: 0.06779661017 | G52: 40 | H52: 15 | I52: 0 | J52: 2 | K52: 2 | L52: 0 | M52: 0 | N52: 0 | O52: 0 | P52: 0 | Q52: 0 | R52: 0 | S52: 59 | T52: 0
A53: QM7 | B53: RWG | C53: WEST HERTFORDSHIRE TEACHING HOSPITALS NHS TRUST | D53: 0 | E53: NA | F53: NA | G53: 0 | H53: 0 | I53: 0 | J53: 0 | K53: 0 | L53: 0 | M53: 0 | N53: 0 | O53: 0 | P53: 0 | Q53: 0 | R53: 0 | S53: 0 | T53: 0
A54: QM7 | B54: RQW | C54: THE PRINCESS ALEXANDRA HOSPITAL NHS TRUST | D54: 3 | E54: * | F54: * | G54: * | H54: * | I54: * | J54: * | K54: * | L54: * | M54: * | N54: * | O54: * | P54: * | Q54: * | R54: * | S54: * | T54: *
A55: QM7 | B55: RWH | C55: EAST AND NORTH HERTFORDSHIRE NHS TRUST | D55: 63 | E55: 0.9365079365 | F55: 0 | G55: * | H55: * | I55: * | J55: * | K55: * | L55: * | M55: * | N55: * | O55: * | P55: * | Q55: * | R55: * | S55: * | T55: *
A56: QMF | B56: RQX | C56: HOMERTON HEALTHCARE NHS FOUNDATION TRUST | D56: 10 | E56: 0.6 | F56: 0.1 | G56: 3 | H56: 3 | I56: 3 | J56: 0 | K56: 1 | L56: 0 | M56: 10 | N56: 0 | O56: 0 | P56: 0 | Q56: 0 | R56: 0 | S56: 0 | T56: 0
A57: QMF | B57: R1H | C57: BARTS HEALTH NHS TRUST | D57: 65 | E57: 0.8769230769 | F57: 0.1076923077 | G57: 42 | H57: 15 | I57: 1 | J57: 3 | K57: 4 | L57: 0 | M57: 13 | N57: 0 | O57: 0 | P57: 46 | Q57: 0 | R57: 0 | S57: 6 | T57: 0
A58: QMF | B58: RF4 | C58: BARKING, HAVERING AND REDBRIDGE UNIVERSITY HOSPITALS NHS TRUST | D58: 109 | E58: 0.9357798165 | F58: 0.03669724771 | G58: 81 | H58: 21 | I58: 1 | J58: 0 | K58: 4 | L58: 2 | M58: 0 | N58: 0 | O58: 0 | P58: 109 | Q58: 0 | R58: 0 | S58: 0 | T58: 0
A59: QMJ | B59: RKE | C59: WHITTINGTON HEALTH NHS TRUST | D59: 16 | E59: 0.9375 | F59: 0.0625 | G59: 13 | H59: 2 | I59: 0 | J59: 1 | K59: 0 | L59: 0 | M59: 0 | N59: 0 | O59: 0 | P59: 6 | Q59: 0 | R59: 0 | S59: 10 | T59: 0
A60: QMJ | B60: RAP | C60: NORTH MIDDLESEX UNIVERSITY HOSPITAL NHS TRUST | D60: 120 | E60: 0.8666666667 | F60: 0.05833333333 | G60: 51 | H60: 53 | I60: 9 | J60: 5 | K60: 2 | L60: 0 | M60: 16 | N60: 104 | O60: 0 | P60: 0 | Q60: 0 | R60: 0 | S60: 0 | T60: 0
A61: QMJ | B61: RAL | C61: ROYAL FREE LONDON NHS FOUNDATION TRUST | D61: 283 | E61: 0.9540636042 | F61: 0.01060070671 | G61: 232 | H61: 38 | I61: 10 | J61: 1 | K61: 2 | L61: 0 | M61: 0 | N61: 283 | O61: 0 | P61: 0 | Q61: 0 | R61: 0 | S61: 0 | T61: 0
A62: QMM | B62: RM1 | C62: NORFOLK AND NORWICH UNIVERSITY HOSPITALS NHS FOUNDATION TRUST | D62: 4 | E62: * | F62: * | G62: * | H62: * | I62: * | J62: * | K62: * | L62: * | M62: * | N62: * | O62: * | P62: * | Q62: * | R62: * | S62: * | T62: *
A63: QMM | B63: RGP | C63: JAMES PAGET UNIVERSITY HOSPITALS NHS FOUNDATION TRUST | D63: 17 | E63: 0.8823529412 | F63: 0.1176470588 | G63: * | H63: * | I63: * | J63: * | K63: * | L63: * | M63: * | N63: * | O63: * | P63: * | Q63: * | R63: * | S63: * | T63: *
A64: QMM | B64: RCX | C64: THE QUEEN ELIZABETH HOSPITAL, KING'S LYNN, NHS FOUNDATION TRUST | D64: 22 | E64: 0.9545454545 | F64: 0.04545454545 | G64: 16 | H64: 5 | I64: 0 | J64: 1 | K64: 0 | L64: 0 | M64: 0 | N64: 0 | O64: 0 | P64: 21 | Q64: 0 | R64: 0 | S64: 1 | T64: 0
A65: QNC | B65: RJE | C65: UNIVERSITY HOSPITALS OF NORTH MIDLANDS NHS TRUST | D65: 35 | E65: 0.9428571429 | F65: 0.02857142857 | G65: 30 | H65: 3 | I65: 1 | J65: 0 | K65: 1 | L65: 0 | M65: 7 | N65: 0 | O65: 0 | P65: 27 | Q65: 0 | R65: 0 | S65: 1 | T65: 0
A66: QNX | B66: RXC | C66: EAST SUSSEX HEALTHCARE NHS TRUST | D66: 35 | E66: 1 | F66: 0 | G66: 32 | H66: 3 | I66: 0 | J66: 0 | K66: 0 | L66: 0 | M66: 0 | N66: 0 | O66: 0 | P66: 35 | Q66: 0 | R66: 0 | S66: 0 | T66: 0
A67: QNX | B67: RYR | C67: UNIVERSITY HOSPITALS SUSSEX NHS FOUNDATION TRUST | D67: 86 | E67: 0.9302325581 | F67: 0.05813953488 | G67: 68 | H67: 12 | I67: 1 | J67: 2 | K67: 3 | L67: 0 | M67: 86 | N67: 0 | O67: 0 | P67: 0 | Q67: 0 | R67: 0 | S67: 0 | T67: 0
A68: QOC | B68: RXW | C68: THE SHREWSBURY AND TELFORD HOSPITAL NHS TRUST | D68: 9 | E68: 1 | F68: 0 | G68: * | H68: * | I68: * | J68: * | K68: * | L68: * | M68: * | N68: * | O68: * | P68: * | Q68: * | R68: * | S68: * | T68: *
A69: QOP | B69: RMP | C69: TAMESIDE AND GLOSSOP INTEGRATED CARE NHS FOUNDATION TRUST | D69: 11 | E69: 1 | F69: 0 | G69: 11 | H69: 0 | I69: 0 | J69: 0 | K69: 0 | L69: 0 | M69: 0 | N69: 11 | O69: 0 | P69: 0 | Q69: 0 | R69: 0 | S69: 0 | T69: 0
A70: QOP | B70: RM3 | C70: NORTHERN CARE ALLIANCE NHS FOUNDATION TRUST | D70: 13 | E70: 1 | F70: 0 | G70: 11 | H70: 2 | I70: 0 | J70: 0 | K70: 0 | L70: 0 | M70: 0 | N70: 0 | O70: 0 | P70: 0 | Q70: 0 | R70: 0 | S70: 13 | T70: 0
A71: QOP | B71: RWJ | C71: STOCKPORT NHS FOUNDATION TRUST | D71: 23 | E71: 1 | F71: 0 | G71: 18 | H71: 5 | I71: 0 | J71: 0 | K71: 0 | L71: 0 | M71: 0 | N71: 0 | O71: 0 | P71: 23 | Q71: 0 | R71: 0 | S71: 0 | T71: 0
A72: QOP | B72: RRF | C72: WRIGHTINGTON, WIGAN AND LEIGH NHS FOUNDATION TRUST | D72: 29 | E72: 0.8965517241 | F72: 0 | G72: 24 | H72: 2 | I72: 1 | J72: 0 | K72: 0 | L72: 2 | M72: 0 | N72: 0 | O72: 0 | P72: 0 | Q72: 29 | R72: 0 | S72: 0 | T72: 0
A73: QOP | B73: RMC | C73: BOLTON NHS FOUNDATION TRUST | D73: 127 | E73: 0.968503937 | F73: 0.02362204724 | G73: 106 | H73: 17 | I73: 1 | J73: 3 | K73: 0 | L73: 0 | M73: 56 | N73: 60 | O73: 0 | P73: 11 | Q73: 0 | R73: 0 | S73: 0 | T73: 0
A74: QOP | B74: R0A | C74: MANCHESTER UNIVERSITY NHS FOUNDATION TRUST | D74: 227 | E74: 0.9427312775 | F74: 0.03524229075 | G74: 184 | H74: 30 | I74: 5 | J74: 4 | K74: 4 | L74: 0 | M74: 0 | N74: 107 | O74: 0 | P74: 113 | Q74: 0 | R74: 0 | S74: 3 | T74: 4
A75: QOQ | B75: RCD | C75: HARROGATE AND DISTRICT NHS FOUNDATION TRUST | D75: 0 | E75: NA | F75: NA | G75: 0 | H75: 0 | I75: 0 | J75: 0 | K75: 0 | L75: 0 | M75: 0 | N75: 0 | O75: 0 | P75: 0 | Q75: 0 | R75: 0 | S75: 0 | T75: 0
A76: QOQ | B76: RJL | C76: NORTHERN LINCOLNSHIRE AND GOOLE NHS FOUNDATION TRUST | D76: 0 | E76: NA | F76: NA | G76: 0 | H76: 0 | I76: 0 | J76: 0 | K76: 0 | L76: 0 | M76: 0 | N76: 0 | O76: 0 | P76: 0 | Q76: 0 | R76: 0 | S76: 0 | T76: 0
A77: QOQ | B77: RCB | C77: YORK AND SCARBOROUGH TEACHING HOSPITALS NHS FOUNDATION TRUST | D77: 56 | E77: 1 | F77: 0 | G77: 48 | H77: 8 | I77: 0 | J77: 0 | K77: 0 | L77: 0 | M77: 0 | N77: 0 | O77: 0 | P77: 0 | Q77: 56 | R77: 0 | S77: 0 | T77: 0
A78: QOQ | B78: RWA | C78: HULL UNIVERSITY TEACHING HOSPITALS NHS TRUST | D78: 64 | E78: 0.8125 | F78: 0.140625 | G78: 44 | H78: 8 | I78: 3 | J78: 3 | K78: 6 | L78: 0 | M78: 63 | N78: 0 | O78: 0 | P78: 0 | Q78: 0 | R78: 0 | S78: 1 | T78: 0
A79: QOX | B79: RNZ | C79: SALISBURY NHS FOUNDATION TRUST | D79: 2 | E79: * | F79: * | G79: * | H79: * | I79: * | J79: * | K79: * | L79: * | M79: * | N79: * | O79: * | P79: * | Q79: * | R79: * | S79: * | T79: *
A80: QOX | B80: RD1 | C80: ROYAL UNITED HOSPITALS BATH NHS FOUNDATION TRUST | D80: 35 | E80: 0.9142857143 | F80: 0 | G80: * | H80: * | I80: * | J80: * | K80: * | L80: * | M80: * | N80: * | O80: * | P80: * | Q80: * | R80: * | S80: * | T80: *
A81: QOX | B81: RN3 | C81: GREAT WESTERN HOSPITALS NHS FOUNDATION TRUST | D81: 48 | E81: 0.7916666667 | F81: 0.125 | G81: 27 | H81: 11 | I81: 4 | J81: 3 | K81: 3 | L81: 0 | M81: 48 | N81: 0 | O81: 0 | P81: 0 | Q81: 0 | R81: 0 | S81: 0 | T81: 0
A82: QPM | B82: RNQ | C82: KETTERING GENERAL HOSPITAL NHS FOUNDATION TRUST | D82: 9 | E82: 1 | F82: 0 | G82: 6 | H82: 3 | I82: 0 | J82: 0 | K82: 0 | L82: 0 | M82: 0 | N82: 0 | O82: 0 | P82: 0 | Q82: 0 | R82: 0 | S82: 9 | T82: 0
A83: QPM | B83: RNS | C83: NORTHAMPTON GENERAL HOSPITAL NHS TRUST | D83: 18 | E83: 1 | F83: 0 | G83: 18 | H83: 0 | I83: 0 | J83: 0 | K83: 0 | L83: 0 | M83: 5 | N83: 0 | O83: 0 | P83: 0 | Q83: 12 | R83: 0 | S83: 1 | T83: 0
A84: QR1 | B84: RTE | C84: GLOUCESTERSHIRE HOSPITALS NHS FOUNDATION TRUST | D84: 77 | E84: 0.7662337662 | F84: 0.1038961039 | G84: 34 | H84: 25 | I84: 10 | J84: 5 | K84: 3 | L84: 0 | M84: 77 | N84: 0 | O84: 0 | P84: 0 | Q84: 0 | R84: 0 | S84: 0 | T84: 0
A85: QRL | B85: R1F | C85: ISLE OF WIGHT NHS TRUST | D85: 0 | E85: NA | F85: NA | G85: 0 | H85: 0 | I85: 0 | J85: 0 | K85: 0 | L85: 0 | M85: 0 | N85: 0 | O85: 0 | P85: 0 | Q85: 0 | R85: 0 | S85: 0 | T85: 0
A86: QRL | B86: RHU | C86: PORTSMOUTH HOSPITALS UNIVERSITY NATIONAL HEALTH SERVICE TRUST | D86: 86 | E86: 0.9651162791 | F86: 0 | G86: 77 | H86: 6 | I86: 3 | J86: 0 | K86: 0 | L86: 0 | M86: 0 | N86: 0 | O86: 0 | P86: 86 | Q86: 0 | R86: 0 | S86: 0 | T86: 0
A87: QRL | B87: RHM | C87: UNIVERSITY HOSPITAL SOUTHAMPTON NHS FOUNDATION TRUST | D87: 109 | E87: 0.7798165138 | F87: 0.1009174312 | G87: 51 | H87: 34 | I87: 11 | J87: 7 | K87: 4 | L87: 2 | M87: 0 | N87: 0 | O87: 0 | P87: 0 | Q87: 2 | R87: 0 | S87: 107 | T87: 0
A88: QRL | B88: RN5 | C88: HAMPSHIRE HOSPITALS NHS FOUNDATION TRUST | D88: 130 | E88: 0.9615384615 | F88: 0 | G88: 101 | H88: 24 | I88: 3 | J88: 0 | K88: 0 | L88: 2 | M88: 0 | N88: 0 | O88: 0 | P88: 126 | Q88: 0 | R88: 0 | S88: 4 | T88: 0
A89: QRV | B89: RAS | C89: THE HILLINGDON HOSPITALS NHS FOUNDATION TRUST | D89: 67 | E89: 0.8656716418 | F89: 0.1044776119 | G89: 43 | H89: 15 | I89: 2 | J89: 4 | K89: 3 | L89: 0 | M89: 0 | N89: 0 | O89: 0 | P89: 40 | Q89: 0 | R89: 0 | S89: 27 | T89: 0
A90: QRV | B90: R1K | C90: LONDON NORTH WEST UNIVERSITY HEALTHCARE NHS TRUST | D90: 96 | E90: 1 | F90: 0 | G90: 78 | H90: 18 | I90: 0 | J90: 0 | K90: 0 | L90: 0 | M90: 0 | N90: 0 | O90: 0 | P90: 96 | Q90: 0 | R90: 0 | S90: 0 | T90: 0
A91: QRV | B91: RYJ | C91: IMPERIAL COLLEGE HEALTHCARE NHS TRUST | D91: 114 | E91: 0.8859649123 | F91: 0.0701754386 | G91: 73 | H91: 28 | I91: 5 | J91: 6 | K91: 2 | L91: 0 | M91: 0 | N91: 30 | O91: 0 | P91: 44 | Q91: 0 | R91: 0 | S91: 40 | T91: 0
A92: QRV | B92: RQM | C92: CHELSEA AND WESTMINSTER HOSPITAL NHS FOUNDATION TRUST | D92: 237 | E92: 0.8987341772 | F92: 0.05485232068 | G92: 175 | H92: 38 | I92: 10 | J92: 6 | K92: 7 | L92: 1 | M92: 168 | N92: 0 | O92: 0 | P92: 43 | Q92: 0 | R92: 0 | S92: 26 | T92: 0
A93: QSL | B93: RH5 | C93: SOMERSET NHS FOUNDATION TRUST | D93: 0 | E93: NA | F93: NA | G93: 0 | H93: 0 | I93: 0 | J93: 0 | K93: 0 | L93: 0 | M93: 0 | N93: 0 | O93: 0 | P93: 0 | Q93: 0 | R93: 0 | S93: 0 | T93: 0
A94: QT1 | B94: RK5 | C94: SHERWOOD FOREST HOSPITALS NHS FOUNDATION TRUST | D94: 4 | E94: * | F94: * | G94: * | H94: * | I94: * | J94: * | K94: * | L94: * | M94: * | N94: * | O94: * | P94: * | Q94: * | R94: * | S94: * | T94: *
A95: QT1 | B95: RX1 | C95: NOTTINGHAM UNIVERSITY HOSPITALS NHS TRUST | D95: 83 | E95: 1 | F95: 0 | G95: * | H95: * | I95: * | J95: * | K95: * | L95: * | M95: * | N95: * | O95: * | P95: * | Q95: * | R95: * | S95: * | T95: *
A96: QT6 | B96: REF | C96: ROYAL CORNWALL HOSPITALS NHS TRUST | D96: 2 | E96: * | F96: * | G96: * | H96: * | I96: * | J96: * | K96: * | L96: * | M96: * | N96: * | O96: * | P96: * | Q96: * | R96: * | S96: * | T96: *
A97: QU9 | B97: RTH | C97: OXFORD UNIVERSITY HOSPITALS NHS FOUNDATION TRUST | D97: 0 | E97: NA | F97: NA | G97: 0 | H97: 0 | I97: 0 | J97: 0 | K97: 0 | L97: 0 | M97: 0 | N97: 0 | O97: 0 | P97: 0 | Q97: 0 | R97: 0 | S97: 0 | T97: 0
A98: QU9 | B98: RXQ | C98: BUCKINGHAMSHIRE HEALTHCARE NHS TRUST | D98: 21 | E98: 0.7142857143 | F98: 0.2857142857 | G98: 10 | H98: 5 | I98: 0 | J98: 5 | K98: 1 | L98: 0 | M98: 21 | N98: 0 | O98: 0 | P98: 0 | Q98: 0 | R98: 0 | S98: 0 | T98: 0
A99: QU9 | B99: RHW | C99: ROYAL BERKSHIRE NHS FOUNDATION TRUST | D99: 57 | E99: 1 | F99: 0 | G99: 46 | H99: 11 | I99: 0 | J99: 0 | K99: 0 | L99: 0 | M99: 0 | N99: 0 | O99: 0 | P99: 57 | Q99: 0 | R99: 0 | S99: 0 | T99: 0
A100: QUA | B100: RNA | C100: THE DUDLEY GROUP NHS FOUNDATION TRUST | D100: 26 | E100: 0.5 | F100: 0 | G100: 9 | H100: 4 | I100: 0 | J100: 0 | K100: 0 | L100: 13 | M100: 1 | N100: 0 | O100: 0 | P100: 22 | Q100: 0 | R100: 0 | S100: 3 | T100: 0
A101: QUA | B101: RL4 | C101: THE ROYAL WOLVERHAMPTON NHS TRUST | D101: 46 | E101: 0.8043478261 | F101: 0.1304347826 | G101: 26 | H101: 11 | I101: 3 | J101: 1 | K101: 5 | L101: 0 | M101: 46 | N101: 0 | O101: 0 | P101: 0 | Q101: 0 | R101: 0 | S101: 0 | T101: 0
A102: QUA | B102: RBK | C102: WALSALL HEALTHCARE NHS TRUST | D102: 108 | E102: 0.8611111111 | F102: 0.08333333333 | G102: 72 | H102: 21 | I102: 4 | J102: 3 | K102: 6 | L102: 2 | M102: 15 | N102: 93 | O102: 0 | P102: 0 | Q102: 0 | R102: 0 | S102: 0 | T102: 0
A103: QUE | B103: RGT | C103: CAMBRIDGE UNIVERSITY HOSPITALS NHS FOUNDATION TRUST | D103: 47 | E103: 0.8510638298 | F103: 0.1063829787 | G103: 35 | H103: 5 | I103: 1 | J103: 4 | K103: 1 | L103: 1 | M103: 0 | N103: 35 | O103: 0 | P103: 0 | Q103: 0 | R103: 0 | S103: 12 | T103: 0
A104: QUE | B104: RGN | C104: NORTH WEST ANGLIA NHS FOUNDATION TRUST | D104: 68 | E104: 0.9705882353 | F104: 0 | G104: 55 | H104: 11 | I104: 2 | J104: 0 | K104: 0 | L104: 0 | M104: 0 | N104: 0 | O104: 0 | P104: 52 | Q104: 0 | R104: 0 | S104: 16 | T104: 0
A105: QUY | B105: RA7 | C105: UNIVERSITY HOSPITALS BRISTOL AND WESTON NHS FOUNDATION TRUST | D105: 52 | E105: 0.9807692308 | F105: 0 | G105: 42 | H105: 9 | I105: 1 | J105: 0 | K105: 0 | L105: 0 | M105: 1 | N105: 0 | O105: 0 | P105: 51 | Q105: 0 | R105: 0 | S105: 0 | T105: 0
A106: QUY | B106: RVJ | C106: NORTH BRISTOL NHS TRUST | D106: 81 | E106: 0.8518518519 | F106: 0.08641975309 | G106: 47 | H106: 22 | I106: 5 | J106: 3 | K106: 4 | L106: 0 | M106: 81 | N106: 0 | O106: 0 | P106: 0 | Q106: 0 | R106: 0 | S106: 0 | T106: 0
A107: QVV | B107: RBD | C107: DORSET COUNTY HOSPITAL NHS FOUNDATION TRUST | D107: 26 | E107: 0.8846153846 | F107: 0.07692307692 | G107: 21 | H107: 2 | I107: 1 | J107: 1 | K107: 1 | L107: 0 | M107: 26 | N107: 0 | O107: 0 | P107: 0 | Q107: 0 | R107: 0 | S107: 0 | T107: 0
A108: QVV | B108: R0D | C108: UNIVERSITY HOSPITALS DORSET NHS FOUNDATION TRUST | D108: 62 | E108: 0.8709677419 | F108: 0.04838709677 | G108: 39 | H108: 15 | I108: 2 | J108: 2 | K108: 1 | L108: 3 | M108: 62 | N108: 0 | O108: 0 | P108: 0 | Q108: 0 | R108: 0 | S108: 0 | T108: 0
A109: QWE | B109: RVR | C109: EPSOM AND ST HELIER UNIVERSITY HOSPITALS NHS TRUST | D109: 20 | E109: 1 | F109: 0 | G109: 18 | H109: 2 | I109: 0 | J109: 0 | K109: 0 | L109: 0 | M109: 0 | N109: 0 | O109: 0 | P109: 20 | Q109: 0 | R109: 0 | S109: 0 | T109: 0
A110: QWE | B110: RAX | C110: KINGSTON HOSPITAL NHS FOUNDATION TRUST | D110: 50 | E110: 0.96 | F110: 0 | G110: 37 | H110: 11 | I110: 1 | J110: 0 | K110: 0 | L110: 1 | M110: 0 | N110: 46 | O110: 0 | P110: 0 | Q110: 0 | R110: 0 | S110: 4 | T110: 0
A111: QWE | B111: RJ7 | C111: ST GEORGE'S UNIVERSITY HOSPITALS NHS FOUNDATION TRUST | D111: 74 | E111: 0.8918918919 | F111: 0.04054054054 | G111: 38 | H111: 28 | I111: 5 | J111: 1 | K111: 2 | L111: 0 | M111: 0 | N111: 73 | O111: 0 | P111: 0 | Q111: 0 | R111: 0 | S111: 1 | T111: 0
A112: QWO | B112: RAE | C112: BRADFORD TEACHING HOSPITALS NHS FOUNDATION TRUST | D112: 12 | E112: 0.6666666667 | F112: 0.3333333333 | G112: 8 | H112: 0 | I112: 0 | J112: 0 | K112: 4 | L112: 0 | M112: 0 | N112: 0 | O112: 0 | P112: 0 | Q112: 0 | R112: 0 | S112: 12 | T112: 0
A113: QWO | B113: RWY | C113: CALDERDALE AND HUDDERSFIELD NHS FOUNDATION TRUST | D113: 44 | E113: 1 | F113: 0 | G113: 37 | H113: 7 | I113: 0 | J113: 0 | K113: 0 | L113: 0 | M113: 0 | N113: 0 | O113: 0 | P113: 0 | Q113: 0 | R113: 0 | S113: 44 | T113: 0
A114: QWO | B114: RXF | C114: MID YORKSHIRE TEACHING NHS TRUST | D114: 102 | E114: 0.9509803922 | F114: 0.01960784314 | G114: 76 | H114: 21 | I114: 2 | J114: 0 | K114: 2 | L114: 1 | M114: 1 | N114: 0 | O114: 0 | P114: 99 | Q114: 0 | R114: 0 | S114: 2 | T114: 0
A115: QWO | B115: RR8 | C115: LEEDS TEACHING HOSPITALS NHS TRUST | D115: 113 | E115: 0.9734513274 | F115: 0.01769911504 | G115: 102 | H115: 8 | I115: 1 | J115: 1 | K115: 1 | L115: 0 | M115: 101 | N115: 10 | O115: 0 | P115: 0 | Q115: 0 | R115: 0 | S115: 2 | T115: 0
A116: QWU | B116: RLT | C116: GEORGE ELIOT HOSPITAL NHS TRUST | D116: 0 | E116: NA | F116: NA | G116: 0 | H116: 0 | I116: 0 | J116: 0 | K116: 0 | L116: 0 | M116: 0 | N116: 0 | O116: 0 | P116: 0 | Q116: 0 | R116: 0 | S116: 0 | T116: 0
A117: QWU | B117: RJC | C117: SOUTH WARWICKSHIRE UNIVERSITY NHS FOUNDATION TRUST | D117: 2 | E117: * | F117: * | G117: * | H117: * | I117: * | J117: * | K117: * | L117: * | M117: * | N117: * | O117: * | P117: * | Q117: * | R117: * | S117: * | T117: *
A118: QWU | B118: RKB | C118: UNIVERSITY HOSPITALS COVENTRY AND WARWICKSHIRE NHS TRUST | D118: 100 | E118: 0.85 | F118: 0.04 | G118: * | H118: * | I118: * | J118: * | K118: * | L118: * | M118: * | N118: * | O118: * | P118: * | Q118: * | R118: * | S118: * | T118: *
A119: QXU | B119: RTK | C119: ASHFORD AND ST PETER'S HOSPITALS NHS FOUNDATION TRUST | D119: 0 | E119: NA | F119: NA | G119: 0 | H119: 0 | I119: 0 | J119: 0 | K119: 0 | L119: 0 | M119: 0 | N119: 0 | O119: 0 | P119: 0 | Q119: 0 | R119: 0 | S119: 0 | T119: 0
A120: QXU | B120: RTP | C120: SURREY AND SUSSEX HEALTHCARE NHS TRUST | D120: 9 | E120: 1 | F120: 0 | G120: 6 | H120: 3 | I120: 0 | J120: 0 | K120: 0 | L120: 0 | M120: 3 | N120: 0 | O120: 0 | P120: 4 | Q120: 0 | R120: 0 | S120: 2 | T120: 0
A121: QXU | B121: RA2 | C121: ROYAL SURREY COUNTY HOSPITAL NHS FOUNDATION TRUST | D121: 16 | E121: 0.8125 | F121: 0 | G121: 12 | H121: 1 | I121: 3 | J121: 0 | K121: 0 | L121: 0 | M121: 0 | N121: 0 | O121: 0 | P121: 13 | Q121: 0 | R121: 0 | S121: 3 | T121: 0
A122: QYG | B122: REP | C122: LIVERPOOL WOMEN'S NHS FOUNDATION TRUST | D122: 33 | E122: 0.8181818182 | F122: 0.1818181818 | G122: 22 | H122: 5 | I122: 0 | J122: 3 | K122: 3 | L122: 0 | M122: 0 | N122: 0 | O122: 0 | P122: 0 | Q122: 0 | R122: 0 | S122: 0 | T122: 33
A123: QYG | B123: RBN | C123: MERSEY AND WEST LANCASHIRE TEACHING HOSPITALS NHS TRUST | D123: 37 | E123: 0.8648648649 | F123: 0.08108108108 | G123: 28 | H123: 4 | I123: 2 | J123: 1 | K123: 2 | L123: 0 | M123: 29 | N123: 0 | O123: 0 | P123: 1 | Q123: 0 | R123: 0 | S123: 7 | T123: 0
A124: QYG | B124: RBL | C124: WIRRAL UNIVERSITY TEACHING HOSPITAL NHS FOUNDATION TRUST | D124: 78 | E124: 0.9615384615 | F124: 0.02564102564 | G124: 69 | H124: 6 | I124: 0 | J124: 0 | K124: 2 | L124: 1 | M124: 0 | N124: 32 | O124: 0 | P124: 46 | Q124: 0 | R124: 0 | S124: 0 | T124: 0
A125: QYG | B125: RBT | C125: MID CHESHIRE HOSPITALS NHS FOUNDATION TRUST | D125: 86 | E125: 0.9534883721 | F125: 0.04651162791 | G125: 72 | H125: 10 | I125: 0 | J125: 2 | K125: 2 | L125: 0 | M125: 86 | N125: 0 | O125: 0 | P125: 0 | Q125: 0 | R125: 0 | S125: 0 | T125: 0
A126: QYG | B126: RWW | C126: WARRINGTON AND HALTON TEACHING HOSPITALS NHS FOUNDATION TRUST | D126: 87 | E126: 0.9885057471 | F126: 0 | G126: 76 | H126: 10 | I126: 0 | J126: 0 | K126: 0 | L126: 1 | M126: 0 | N126: 0 | O126: 0 | P126: 86 | Q126: 0 | R126: 0 | S126: 1 | T126: 0

Sheet Sites Q3
B6: Sort data by:
A9: ICB Code | B9: Trust Code | C9: Trust Name | D9: Site Code | E9: Site Name | F9: Total Responses | G9: Percentage Positive | H9: Percentage Negative | I9: Breakdown of Responses
I10: Very Good | J10: Good | K10: Neither Good nor Poor | L10: Poor | M10: Very Poor | N10: Don't Know
E11: England (including Independent Sector providers) | F11: 5552 | G11: 0.9194884726 | H11: 0.04196685879 | I11: 4031 | J11: 1074 | K11: 176 | L11: 117 | M11: 116 | N11: 38
E12: England (excluding Independent Sector providers) | F12: 5552 | G12: 0.9194884726 | H12: 0.04196685879 | I12: 4031 | J12: 1074 | K12: 176 | L12: 117 | M12: 116 | N12: 38
E13: Selection (excluding suppressed data) | F13: =SUBTOTAL(9,F14:F298) -> 5552 | G13: =IFERROR((I13+J13)/SUM(I13:N13), "-") -> 0.9200859711 | H13: =IFERROR((L13+M13)/SUM(I13:N13), "-") -> 0.04200859711 | I13: =SUBTOTAL(9,I14:I298) -> 3731 | J13: 978 | K13: 157 | L13: 108 | M13: 107 | N13: 37
A14: QE1 | B14: RXL | C14: BLACKPOOL TEACHING HOSPITALS NHS FOUNDATION TRUST | D14: RXL01 | E14: Blackpool Victoria Hospital | F14: 36 | G14: 0.75 | H14: 0.1111111111 | I14: 20 | J14: 7 | K14: 5 | L14: 2 | M14: 2 | N14: 0
A15: QE1 | B15: RXR | C15: EAST LANCASHIRE HOSPITALS NHS TRUST | D15: RXR20 | E15: Royal Blackburn Hospital | F15: 2 | G15: * | H15: * | I15: * | J15: * | K15: * | L15: * | M15: * | N15: *
A16: QE1 | B16: RXN | C16: LANCASHIRE TEACHING HOSPITALS NHS FOUNDATION TRUST | D16: RXN01 | E16: Chorley and South Ribble Hospital | F16: 0 | G16: NA | H16: NA | I16: 0 | J16: 0 | K16: 0 | L16: 0 | M16: 0 | N16: 0
A17: QE1 | B17: RXN | C17: LANCASHIRE TEACHING HOSPITALS NHS FOUNDATION TRUST | D17: RXN02 | E17: Royal Preston Hospital | F17: 11 | G17: 0.8181818182 | H17: 0.09090909091 | I17: * | J17: * | K17: * | L17: * | M17: * | N17: *
A18: QE1 | B18: RTX | C18: UNIVERSITY HOSPITALS OF MORECAMBE BAY NHS FOUNDATION TRUST | D18: RTXBU | E18: Furness General Hospital | F18: 11 | G18: 1 | H18: 0 | I18: 9 | J18: 2 | K18: 0 | L18: 0 | M18: 0 | N18: 0
A19: QE1 | B19: RTX | C19: UNIVERSITY HOSPITALS OF MORECAMBE BAY NHS FOUNDATION TRUST | D19: RTX02 | E19: Royal Lancaster Infirmary | F19: 27 | G19: 1 | H19: 0 | I19: 23 | J19: 4 | K19: 0 | L19: 0 | M19: 0 | N19: 0
A20: QF7 | B20: RFF | C20: BARNSLEY HOSPITAL NHS FOUNDATION TRUST | D20: RFFAA | E20: Barnsley Hospital NHS Foundation Trust HQ | F20: 10 | G20: 0.8 | H20: 0.2 | I20: 8 | J20: 0 | K20: 0 | L20: 1 | M20: 1 | N20: 0
A21: QF7 | B21: RP5 | C21: DONCASTER AND BASSETLAW TEACHING HOSPITALS NHS FOUNDATION TRUST | D21: RP5BA | E21: Bassetlaw Hospital | F21: 13 | G21: 1 | H21: 0 | I21: * | J21: * | K21: * | L21: * | M21: * | N21: *
A22: QF7 | B22: RP5 | C22: DONCASTER AND BASSETLAW TEACHING HOSPITALS NHS FOUNDATION TRUST | D22: RP5DR | E22: Doncaster Royal Infirmary | F22: 1 | G22: * | H22: * | I22: * | J22: * | K22: * | L22: * | M22: * | N22: *
A23: QF7 | B23: RHQ | C23: SHEFFIELD TEACHING HOSPITALS NHS FOUNDATION TRUST | D23: RHQHH | E23: Royal Hallamshire Hospital | F23: 49 | G23: 0.9795918367 | H23: 0.02040816327 | I23: 38 | J23: 10 | K23: 0 | L23: 1 | M23: 0 | N23: 0
A24: QF7 | B24: RFR | C24: THE ROTHERHAM NHS FOUNDATION TRUST | D24: RFRPA | E24: Rotherham District General Hospital | F24: 15 | G24: 0.9333333333 | H24: 0 | I24: 9 | J24: 5 | K24: 0 | L24: 0 | M24: 0 | N24: 1
A25: QGH | B25: RWP | C25: WORCESTERSHIRE ACUTE HOSPITALS NHS TRUST | D25: RWP50 | E25: Worcestershire Royal Hospital | F25: 2 | G25: * | H25: * | I25: * | J25: * | K25: * | L25: * | M25: * | N25: *
A26: QGH | B26: RLQ | C26: WYE VALLEY NHS TRUST | D26: RLQ01 | E26: Hereford County Hospital | F26: 0 | G26: NA | H26: NA | I26: 0 | J26: 0 | K26: 0 | L26: 0 | M26: 0 | N26: 0
A27: QH8 | B27: RAJ | C27: MID AND SOUTH ESSEX NHS FOUNDATION TRUST | D27: RAJ12 | E27: BASILDON HOSPITAL | F27: 17 | G27: 0.7647058824 | H27: 0.1764705882 | I27: 9 | J27: 4 | K27: 1 | L27: 2 | M27: 1 | N27: 0
A28: QH8 | B28: RAJ | C28: MID AND SOUTH ESSEX NHS FOUNDATION TRUST | D28: RAJ32 | E28: MID ESSEX HOSPITAL | F28: 9 | G28: 0.8888888889 | H28: 0.1111111111 | I28: 5 | J28: 3 | K28: 0 | L28: 1 | M28: 0 | N28: 0
A29: QH8 | B29: RAJ | C29: MID AND SOUTH ESSEX NHS FOUNDATION TRUST | D29: RAJ01 | E29: Southend Hospital | F29: 23 | G29: 0.9130434783 | H29: 0.04347826087 | I29: 15 | J29: 6 | K29: 1 | L29: 1 | M29: 0 | N29: 0
A30: QHG | B30: RC9 | C30: BEDFORDSHIRE HOSPITALS NHS FOUNDATION TRUST | D30: RC979 | E30: BEDFORD HOSPITAL SOUTH WING | F30: 32 | G30: 0.875 | H30: 0.0625 | I30: 24 | J30: 4 | K30: 1 | L30: 1 | M30: 1 | N30: 1
A31: QHG | B31: RC9 | C31: BEDFORDSHIRE HOSPITALS NHS FOUNDATION TRUST | D31: RC971 | E31: Luton and Dunstable Hospital | F31: 150 | G31: 0.94 | H31: 0.01333333333 | I31: 90 | J31: 51 | K31: 7 | L31: 1 | M31: 1 | N31: 0
A32: QHG | B32: RD8 | C32: MILTON KEYNES UNIVERSITY HOSPITAL NHS FOUNDATION TRUST | D32: RD816 | E32: Milton Keynes Hospital | F32: 67 | G32: 0.8805970149 | H32: 0.08955223881 | I32: 42 | J32: 17 | K32: 2 | L32: 3 | M32: 3 | N32: 0
A33: QHL | B33: RQ3 | C33: BIRMINGHAM WOMEN'S AND CHILDREN'S NHS FOUNDATION TRUST | D33: RQ370 | E33: Birmingham Women's Hospital | F33: 14 | G33: 0.6428571429 | H33: 0.2857142857 | I33: 3 | J33: 6 | K33: 1 | L33: 2 | M33: 2 | N33: 0
A34: QHL | B34: RXK | C34: SANDWELL AND WEST BIRMINGHAM HOSPITALS NHS TRUST | D34: RXKTC | E34: Birmingham Treatment Centre | F34: 0 | G34: NA | H34: NA | I34: 0 | J34: 0 | K34: 0 | L34: 0 | M34: 0 | N34: 0
A35: QHL | B35: RXK | C35: SANDWELL AND WEST BIRMINGHAM HOSPITALS NHS TRUST | D35: RXK02 | E35: City Hospital | F35: 1 | G35: * | H35: * | I35: * | J35: * | K35: * | L35: * | M35: * | N35: *
A36: QHL | B36: RRK | C36: UNIVERSITY HOSPITALS BIRMINGHAM NHS FOUNDATION TRUST | D36: RRK98 | E36: Good Hope Hospital | F36: 1 | G36: * | H36: * | I36: * | J36: * | K36: * | L36: * | M36: * | N36: *
A37: QHL | B37: RRK | C37: UNIVERSITY HOSPITALS BIRMINGHAM NHS FOUNDATION TRUST | D37: RRK97 | E37: Heartlands Hospital | F37: 1 | G37: * | H37: * | I37: * | J37: * | K37: * | L37: * | M37: * | N37: *
A38: QHL | B38: RRK | C38: UNIVERSITY HOSPITALS BIRMINGHAM NHS FOUNDATION TRUST | D38: RRK99 | E38: Solihull Hospital | F38: 0 | G38: NA | H38: NA | I38: 0 | J38: 0 | K38: 0 | L38: 0 | M38: 0 | N38: 0
A39: QHM | B39: RXP | C39: COUNTY DURHAM AND DARLINGTON NHS FOUNDATION TRUST | D39: RXPDA | E39: Darlington Memorial Hospital | F39: 74 | G39: 0.9864864865 | H39: 0 | I39: 53 | J39: 20 | K39: 1 | L39: 0 | M39: 0 | N39: 0
A40: QHM | B40: RXP | C40: COUNTY DURHAM AND DARLINGTON NHS FOUNDATION TRUST | D40: RXPCP | E40: University Hospital Of North Durham | F40: 70 | G40: 0.9857142857 | H40: 0.01428571429 | I40: 61 | J40: 8 | K40: 0 | L40: 1 | M40: 0 | N40: 0
A41: QHM | B41: RR7 | C41: GATESHEAD HEALTH NHS FOUNDATION TRUST | D41: RR7EN | E41: Queen Elizabeth Hospital | F41: 4 | G41: * | H41: * | I41: * | J41: * | K41: * | L41: * | M41: * | N41: *
A42: QHM | B42: RNN | C42: NORTH CUMBRIA INTEGRATED CARE NHS FOUNDATION TRUST | D42: RNN62 | E42: Cumberland Infirmary | F42: 22 | G42: 1 | H42: 0 | I42: 20 | J42: 2 | K42: 0 | L42: 0 | M42: 0 | N42: 0
A43: QHM | B43: RNN | C43: NORTH CUMBRIA INTEGRATED CARE NHS FOUNDATION TRUST | D43: RNNBX | E43: West Cumberland Hospital | F43: 7 | G43: 1 | H43: 0 | I43: 6 | J43: 1 | K43: 0 | L43: 0 | M43: 0 | N43: 0
A44: QHM | B44: RVW | C44: NORTH TEES AND HARTLEPOOL NHS FOUNDATION TRUST | D44: RVWAE | E44: University Hospital Of North Tees | F44: 3 | G44: * | H44: * | I44: * | J44: * | K44: * | L44: * | M44: * | N44: *
A45: QHM | B45: RTF | C45: NORTHUMBRIA HEALTHCARE NHS FOUNDATION TRUST | D45: RTF86 | E45: The Northumbria | F45: 75 | G45: 0.88 | H45: 0.1066666667 | I45: 55 | J45: 11 | K45: 1 | L45: 4 | M45: 4 | N45: 0
A46: QHM | B46: RTR | C46: SOUTH TEES HOSPITALS NHS FOUNDATION TRUST | D46: RTR45 | E46: Friarage Hospital Site | F46: 0 | G46: NA | H46: NA | I46: 0 | J46: 0 | K46: 0 | L46: 0 | M46: 0 | N46: 0
A47: QHM | B47: RTR | C47: SOUTH TEES HOSPITALS NHS FOUNDATION TRUST | D47: RTRAT | E47: The James Cook University Hospital | F47: 29 | G47: 1 | H47: 0 | I47: 25 | J47: 4 | K47: 0 | L47: 0 | M47: 0 | N47: 0
A48: QHM | B48: R0B | C48: SOUTH TYNESIDE AND SUNDERLAND NHS FOUNDATION TRUST | D48: R0B01 | E48: Sunderland Royal Hospital | F48: 3 | G48: * | H48: * | I48: * | J48: * | K48: * | L48: * | M48: * | N48: *
A49: QHM | B49: RTD | C49: THE NEWCASTLE UPON TYNE HOSPITALS NHS FOUNDATION TRUST | D49: RTD02 | E49: The Royal Victoria Infirmary | F49: 1 | G49: * | H49: * | I49: * | J49: * | K49: * | L49: * | M49: * | N49: *
A50: QJ2 | B50: RFS | C50: CHESTERFIELD ROYAL HOSPITAL NHS FOUNDATION TRUST | D50: RFSDA | E50: Chesterfield Royal Hospital | F50: 106 | G50: 0.9716981132 | H50: 0 | I50: 83 | J50: 20 | K50: 2 | L50: 0 | M50: 0 | N50: 1
A51: QJ2 | B51: RTG | C51: UNIVERSITY HOSPITALS OF DERBY AND BURTON NHS FOUNDATION TRUST | D51: RTG02 | E51: Queens Hospital, Burton Upon Trent | F51: 17 | G51: 1 | H51: 0 | I51: * | J51: * | K51: * | L51: * | M51: * | N51: *
A52: QJ2 | B52: RTG | C52: UNIVERSITY HOSPITALS OF DERBY AND BURTON NHS FOUNDATION TRUST | D52: RTGFG | E52: Royal Derby Hospital | F52: 4 | G52: * | H52: * | I52: * | J52: * | K52: * | L52: * | M52: * | N52: *
A53: QJG | B53: RDE | C53: EAST SUFFOLK AND NORTH ESSEX NHS FOUNDATION TRUST | D53: RDEE4 | E53: Colchester General Hospital | F53: 9 | G53: 0.8888888889 | H53: 0.1111111111 | I53: 7 | J53: 1 | K53: 0 | L53: 1 | M53: 0 | N53: 0
A54: QJG | B54: RDE | C54: EAST SUFFOLK AND NORTH ESSEX NHS FOUNDATION TRUST | D54: RDE03 | E54: Ipswich Hospital | F54: 31 | G54: 0.9677419355 | H54: 0 | I54: 21 | J54: 9 | K54: 1 | L54: 0 | M54: 0 | N54: 0
A55: QJG | B55: RGR | C55: WEST SUFFOLK NHS FOUNDATION TRUST | D55: RGR50 | E55: West Suffolk Hospital | F55: 34 | G55: 1 | H55: 0 | I55: 30 | J55: 4 | K55: 0 | L55: 0 | M55: 0 | N55: 0
A56: QJK | B56: RH8 | C56: ROYAL DEVON UNIVERSITY HEALTHCARE NHS FOUNDATION TRUST | D56: RH880 | E56: North Devon District Hospital | F56: 23 | G56: 1 | H56: 0 | I56: 23 | J56: 0 | K56: 0 | L56: 0 | M56: 0 | N56: 0
A57: QJK | B57: RH8 | C57: ROYAL DEVON UNIVERSITY HEALTHCARE NHS FOUNDATION TRUST | D57: RH801 | E57: Royal Devon and Exeter Hospital (Wonford) | F57: 24 | G57: 1 | H57: 0 | I57: 24 | J57: 0 | K57: 0 | L57: 0 | M57: 0 | N57: 0
A58: QJK | B58: RA9 | C58: TORBAY AND SOUTH DEVON NHS FOUNDATION TRUST | D58: RA901 | E58: Torbay Hospital | F58: 0 | G58: NA | H58: NA | I58: 0 | J58: 0 | K58: 0 | L58: 0 | M58: 0 | N58: 0
A59: QJK | B59: RK9 | C59: UNIVERSITY HOSPITALS PLYMOUTH NHS TRUST | D59: RK950 | E59: Derriford Hospital | F59: 46 | G59: 1 | H59: 0 | I59: 38 | J59: 8 | K59: 0 | L59: 0 | M59: 0 | N59: 0
A60: QJM | B60: RWD | C60: UNITED LINCOLNSHIRE HOSPITALS NHS TRUST | D60: RWDLP | E60: Grantham and District Hospital | F60: 0 | G60: NA | H60: NA | I60: 0 | J60: 0 | K60: 0 | L60: 0 | M60: 0 | N60: 0
A61: QJM | B61: RWD | C61: UNITED LINCOLNSHIRE HOSPITALS NHS TRUST | D61: RWDDA | E61: Lincoln County Hospital | F61: 32 | G61: 0.96875 | H61: 0 | I61: 24 | J61: 7 | K61: 1 | L61: 0 | M61: 0 | N61: 0
A62: QJM | B62: RWD | C62: UNITED LINCOLNSHIRE HOSPITALS NHS TRUST | D62: RWDLA | E62: Pilgrim Hospital | F62: 27 | G62: 1 | H62: 0 | I62: 24 | J62: 3 | K62: 0 | L62: 0 | M62: 0 | N62: 0
A63: QK1 | B63: RWE | C63: UNIVERSITY HOSPITALS OF LEICESTER NHS TRUST | D63: RWEAK | E63: Leicester General Hospital | F63: 44 | G63: 0.9545454545 | H63: 0.04545454545 | I63: * | J63: * | K63: * | L63: * | M63: * | N63: *
A64: QK1 | B64: RWE | C64: UNIVERSITY HOSPITALS OF LEICESTER NHS TRUST | D64: RWEAA | E64: Leicester Royal Infirmary | F64: 125 | G64: 0.888 | H64: 0.032 | I64: 80 | J64: 31 | K64: 9 | L64: 1 | M64: 3 | N64: 1
A65: QK1 | B65: RWE | C65: UNIVERSITY HOSPITALS OF LEICESTER NHS TRUST | D65: RWE10 | E65: St Mary's Hospital | F65: 2 | G65: * | H65: * | I65: * | J65: * | K65: * | L65: * | M65: * | N65: *
A66: QKK | B66: RJ1 | C66: GUY'S AND ST THOMAS' NHS FOUNDATION TRUST | D66: RJ122 | E66: St Thomas' Hospital | F66: 58 | G66: 0.9137931034 | H66: 0.03448275862 | I66: 31 | J66: 22 | K66: 3 | L66: 1 | M66: 1 | N66: 0
A67: QKK | B67: RJZ | C67: KING'S COLLEGE HOSPITAL NHS FOUNDATION TRUST | D67: RJZ01 | E67: King's College Hospital (Denmark Hill) | F67: 0 | G67: NA | H67: NA | I67: 0 | J67: 0 | K67: 0 | L67: 0 | M67: 0 | N67: 0
A68: QKK | B68: RJZ | C68: KING'S COLLEGE HOSPITAL NHS FOUNDATION TRUST | D68: RJZ30 | E68: Princess Royal University Hospital | F68: 0 | G68: NA | H68: NA | I68: 0 | J68: 0 | K68: 0 | L68: 0 | M68: 0 | N68: 0
A69: QKK | B69: RJ2 | C69: LEWISHAM AND GREENWICH NHS TRUST | D69: RJ231 | E69: Queen Elizabeth Hospital | F69: 32 | G69: 0.875 | H69: 0.03125 | I69: 17 | J69: 11 | K69: 2 | L69: 1 | M69: 0 | N69: 1
A70: QKK | B70: RJ2 | C70: LEWISHAM AND GREENWICH NHS TRUST | D70: RJ224 | E70: University Hospital Lewisham | F70: 24 | G70: 0.9166666667 | H70: 0.04166666667 | I70: 13 | J70: 9 | K70: 1 | L70: 1 | M70: 0 | N70: 0
A71: QKS | B71: RN7 | C71: DARTFORD AND GRAVESHAM NHS TRUST | D71: RN707 | E71: Darent Valley Hospital | F71: 25 | G71: 1 | H71: 0 | I71: 23 | J71: 2 | K71: 0 | L71: 0 | M71: 0 | N71: 0
A72: QKS | B72: RWF | C72: MAIDSTONE AND TUNBRIDGE WELLS NHS TRUST | D72: RWFTW | E72: The Tunbridge Wells Hospital | F72: 49 | G72: 0.9795918367 | H72: 0 | I72: 38 | J72: 10 | K72: 1 | L72: 0 | M72: 0 | N72: 0
A73: QKS | B73: RPA | C73: MEDWAY NHS FOUNDATION TRUST | D73: RPA02 | E73: Medway Maritime Hospital | F73: 59 | G73: 0.9322033898 | H73: 0.06779661017 | I73: 40 | J73: 15 | K73: 0 | L73: 2 | M73: 2 | N73: 0
A74: QM7 | B74: RWH | C74: EAST AND NORTH HERTFORDSHIRE NHS TRUST | D74: RWH01 | E74: Lister Hospital | F74: 63 | G74: 0.9365079365 | H74: 0 | I74: * | J74: * | K74: * | L74: * | M74: * | N74: *
A75: QM7 | B75: RQW | C75: THE PRINCESS ALEXANDRA HOSPITAL NHS TRUST | D75: RQWG0 | E75: Princess Alexandra Hospital | F75: 3 | G75: * | H75: * | I75: * | J75: * | K75: * | L75: * | M75: * | N75: *
A76: QM7 | B76: RWG | C76: WEST HERTFORDSHIRE TEACHING HOSPITALS NHS TRUST | D76: RWG02 | E76: Watford General Hospital | F76: 0 | G76: NA | H76: NA | I76: 0 | J76: 0 | K76: 0 | L76: 0 | M76: 0 | N76: 0
A77: QMF | B77: RF4 | C77: BARKING, HAVERING AND REDBRIDGE UNIVERSITY HOSPITALS NHS TRUST | D77: RF4QH | E77: Queen's Hospital | F77: 109 | G77: 0.9357798165 | H77: 0.03669724771 | I77: 81 | J77: 21 | K77: 1 | L77: 0 | M77: 4 | N77: 2
A78: QMF | B78: R1H | C78: BARTS HEALTH NHS TRUST | D78: R1HNH | E78: Newham General Hospital | F78: 17 | G78: 0.8235294118 | H78: 0.1176470588 | I78: 10 | J78: 4 | K78: 1 | L78: 0 | M78: 2 | N78: 0
A79: QMF | B79: R1H | C79: BARTS HEALTH NHS TRUST | D79: R1H12 | E79: The Royal London Hospital | F79: 5 | G79: 0.6 | H79: 0.4 | I79: 3 | J79: 0 | K79: 0 | L79: 1 | M79: 1 | N79: 0
A80: QMF | B80: R1H | C80: BARTS HEALTH NHS TRUST | D80: R1HKH | E80: Whipps Cross University Hospital | F80: 43 | G80: 0.9302325581 | H80: 0.06976744186 | I80: 29 | J80: 11 | K80: 0 | L80: 2 | M80: 1 | N80: 0
A81: QMF | B81: RQX | C81: HOMERTON HEALTHCARE NHS FOUNDATION TRUST | D81: RQXM1 | E81: Homerton University Hospital | F81: 10 | G81: 0.6 | H81: 0.1 | I81: 3 | J81: 3 | K81: 3 | L81: 0 | M81: 1 | N81: 0
A82: QMJ | B82: RAP | C82: NORTH MIDDLESEX UNIVERSITY HOSPITAL NHS TRUST | D82: RAPNM | E82: North Middlesex Hospital | F82: 120 | G82: 0.8666666667 | H82: 0.05833333333 | I82: 51 | J82: 53 | K82: 9 | L82: 5 | M82: 2 | N82: 0
A83: QMJ | B83: RAL | C83: ROYAL FREE LONDON NHS FOUNDATION TRUST | D83: RAL26 | E83: Barnet Hospital | F83: 191 | G83: 0.9842931937 | H83: 0.01570680628 | I83: 176 | J83: 12 | K83: 0 | L83: 1 | M83: 2 | N83: 0
A84: QMJ | B84: RAL | C84: ROYAL FREE LONDON NHS FOUNDATION TRUST | D84: RAL01 | E84: Royal Free Hospital | F84: 92 | G84: 0.8913043478 | H84: 0 | I84: 56 | J84: 26 | K84: 10 | L84: 0 | M84: 0 | N84: 0
A85: QMJ | B85: RKE | C85: WHITTINGTON HEALTH NHS TRUST | D85: RKEXXX | E85: Non-hospital site | F85: 0 | G85: NA | H85: NA | I85: 0 | J85: 0 | K85: 0 | L85: 0 | M85: 0 | N85: 0
A86: QMJ | B86: RKE | C86: WHITTINGTON HEALTH NHS TRUST | D86: RKEQ4 | E86: The Whittington Hospital | F86: 16 | G86: 0.9375 | H86: 0.0625 | I86: 13 | J86: 2 | K86: 0 | L86: 1 | M86: 0 | N86: 0
A87: QMM | B87: RGP | C87: JAMES PAGET UNIVERSITY HOSPITALS NHS FOUNDATION TRUST | D87: RGP75 | E87: James Paget University Hospital | F87: 17 | G87: 0.8823529412 | H87: 0.1176470588 | I87: * | J87: * | K87: * | L87: * | M87: * | N87: *
A88: QMM | B88: RM1 | C88: NORFOLK AND NORWICH UNIVERSITY HOSPITALS NHS FOUNDATION TRUST | D88: RM102 | E88: Norfolk and Norwich University Hospital | F88: 4 | G88: * | H88: * | I88: * | J88: * | K88: * | L88: * | M88: * | N88: *
A89: QMM | B89: RCX | C89: THE QUEEN ELIZABETH HOSPITAL, KING'S LYNN, NHS FOUNDATION TRUST | D89: RCX70 | E89: The Queen Elizabeth Hospital | F89: 22 | G89: 0.9545454545 | H89: 0.04545454545 | I89: 16 | J89: 5 | K89: 0 | L89: 1 | M89: 0 | N89: 0
A90: QNC | B90: RJE | C90: UNIVERSITY HOSPITALS OF NORTH MIDLANDS NHS TRUST | D90: RJE01 | E90: Royal Stoke University Hospital | F90: 35 | G90: 0.9428571429 | H90: 0.02857142857 | I90: 30 | J90: 3 | K90: 1 | L90: 0 | M90: 1 | N90: 0
A91: QNX | B91: RXC | C91: EAST SUSSEX HEALTHCARE NHS TRUST | D91: RXC01 | E91: Conquest Hospital | F91: 35 | G91: 1 | H91: 0 | I91: 32 | J91: 3 | K91: 0 | L91: 0 | M91: 0 | N91: 0
A92: QNX | B92: RXC | C92: EAST SUSSEX HEALTHCARE NHS TRUST | D92: RXC02 | E92: Eastbourne District General Hospital | F92: 0 | G92: NA | H92: NA | I92: 0 | J92: 0 | K92: 0 | L92: 0 | M92: 0 | N92: 0
A93: QNX | B93: RYR | C93: UNIVERSITY HOSPITALS SUSSEX NHS FOUNDATION TRUST | D93: N6J7V | E93: Princess Royal Hospital | F93: 33 | G93: 1 | H93: 0 | I93: 29 | J93: 4 | K93: 0 | L93: 0 | M93: 0 | N93: 0
A94: QNX | B94: RYR | C94: UNIVERSITY HOSPITALS SUSSEX NHS FOUNDATION TRUST | D94: E0A3H | E94: Royal Sussex County Hospital | F94: 20 | G94: 0.9 | H94: 0.05 | I94: 15 | J94: 3 | K94: 1 | L94: 0 | M94: 1 | N94: 0
A95: QNX | B95: RYR | C95: UNIVERSITY HOSPITALS SUSSEX NHS FOUNDATION TRUST | D95: RYR16 | E95: St Richard's Hospital | F95: 16 | G95: 1 | H95: 0 | I95: 14 | J95: 2 | K95: 0 | L95: 0 | M95: 0 | N95: 0
A96: QNX | B96: RYR | C96: UNIVERSITY HOSPITALS SUSSEX NHS FOUNDATION TRUST | D96: RYR18 | E96: Worthing Hospital | F96: 17 | G96: 0.7647058824 | H96: 0.2352941176 | I96: 10 | J96: 3 | K96: 0 | L96: 2 | M96: 2 | N96: 0
A97: QOC | B97: RXW | C97: THE SHREWSBURY AND TELFORD HOSPITAL NHS TRUST | D97: RXWMB | E97: Bridgnorth Hospital (Maternity) | F97: 0 | G97: NA | H97: NA | I97: 0 | J97: 0 | K97: 0 | L97: 0 | M97: 0 | N97: 0
A98: QOC | B98: RXW | C98: THE SHREWSBURY AND TELFORD HOSPITAL NHS TRUST | D98: RXWML | E98: Ludlow Hospital (Maternity) | F98: 0 | G98: NA | H98: NA | I98: 0 | J98: 0 | K98: 0 | L98: 0 | M98: 0 | N98: 0
A99: QOC | B99: RXW | C99: THE SHREWSBURY AND TELFORD HOSPITAL NHS TRUST | D99: RXWMJ | E99: Robert Jones & Agnes Hunt Orthopaedic & District Hospital | F99: 0 | G99: NA | H99: NA | I99: 0 | J99: 0 | K99: 0 | L99: 0 | M99: 0 | N99: 0
A100: QOC | B100: RXW | C100: THE SHREWSBURY AND TELFORD HOSPITAL NHS TRUST | D100: RXWAS | E100: Royal Shrewsbury Hospital | F100: 0 | G100: NA | H100: NA | I100: 0 | J100: 0 | K100: 0 | L100: 0 | M100: 0 | N100: 0
A101: QOC | B101: RXW | C101: THE SHREWSBURY AND TELFORD HOSPITAL NHS TRUST | D101: RXWAT | E101: The Princess Royal Hospital | F101: 9 | G101: 1 | H101: 0 | I101: * | J101: * | K101: * | L101: * | M101: * | N101: *
A102: QOP | B102: RMC | C102: BOLTON NHS FOUNDATION TRUST | D102: RMC01 | E102: Royal Bolton Hospital | F102: 127 | G102: 0.968503937 | H102: 0.02362204724 | I102: 106 | J102: 17 | K102: 1 | L102: 3 | M102: 0 | N102: 0
A103: QOP | B103: R0A | C103: MANCHESTER UNIVERSITY NHS FOUNDATION TRUST | D103: R0A05 | E103: St Mary's Hospital | F103: 227 | G103: 0.9427312775 | H103: 0.03524229075 | I103: 184 | J103: 30 | K103: 5 | L103: 4 | M103: 4 | N103: 0
A104: QOP | B104: RM3 | C104: NORTHERN CARE ALLIANCE NHS FOUNDATION TRUST | D104: RW603 | E104: Royal Oldham Hospital | F104: 13 | G104: 1 | H104: 0 | I104: 11 | J104: 2 | K104: 0 | L104: 0 | M104: 0 | N104: 0
A105: QOP | B105: RWJ | C105: STOCKPORT NHS FOUNDATION TRUST | D105: RWJ09 | E105: Stepping Hill Hospital | F105: 23 | G105: 1 | H105: 0 | I105: 18 | J105: 5 | K105: 0 | L105: 0 | M105: 0 | N105: 0
A106: QOP | B106: RMP | C106: TAMESIDE AND GLOSSOP INTEGRATED CARE NHS FOUNDATION TRUST | D106: RMP01 | E106: Tameside General Hospital | F106: 11 | G106: 1 | H106: 0 | I106: 11 | J106: 0 | K106: 0 | L106: 0 | M106: 0 | N106: 0
A107: QOP | B107: RRF | C107: WRIGHTINGTON, WIGAN AND LEIGH NHS FOUNDATION TRUST | D107: RRF02 | E107: Royal Albert Edward Infirmary | F107: 29 | G107: 0.8965517241 | H107: 0 | I107: 24 | J107: 2 | K107: 1 | L107: 0 | M107: 0 | N107: 2
A108: QOQ | B108: RCD | C108: HARROGATE AND DISTRICT NHS FOUNDATION TRUST | D108: RCD01 | E108: Harrogate District Hospital | F108: 0 | G108: NA | H108: NA | I108: 0 | J108: 0 | K108: 0 | L108: 0 | M108: 0 | N108: 0
A109: QOQ | B109: RWA | C109: HULL UNIVERSITY TEACHING HOSPITALS NHS TRUST | D109: RWA01 | E109: Hull Royal Infirmary | F109: 64 | G109: 0.8125 | H109: 0.140625 | I109: 44 | J109: 8 | K109: 3 | L109: 3 | M109: 6 | N109: 0
A110: QOQ | B110: RJL | C110: NORTHERN LINCOLNSHIRE AND GOOLE NHS FOUNDATION TRUST | D110: RJL32 | E110: Scunthorpe General Hospital | F110: 0 | G110: NA | H110: NA | I110: 0 | J110: 0 | K110: 0 | L110: 0 | M110: 0 | N110: 0
A111: QOQ | B111: RCB | C111: YORK AND SCARBOROUGH TEACHING HOSPITALS NHS FOUNDATION TRUST | D111: RCBCA | E111: Scarborough General Hospital | F111: 23 | G111: 1 | H111: 0 | I111: 22 | J111: 1 | K111: 0 | L111: 0 | M111: 0 | N111: 0
A112: QOQ | B112: RCB | C112: YORK AND SCARBOROUGH TEACHING HOSPITALS NHS FOUNDATION TRUST | D112: RCB55 | E112: York Hospital | F112: 33 | G112: 1 | H112: 0 | I112: 26 | J112: 7 | K112: 0 | L112: 0 | M112: 0 | N112: 0
A113: QOX | B113: RN3 | C113: GREAT WESTERN HOSPITALS NHS FOUNDATION TRUST | D113: RN325 | E113: The Great Western Hospital | F113: 48 | G113: 0.7916666667 | H113: 0.125 | I113: 27 | J113: 11 | K113: 4 | L113: 3 | M113: 3 | N113: 0
A114: QOX | B114: RD1 | C114: ROYAL UNITED HOSPITALS BATH NHS FOUNDATION TRUST | D114: RD102 | E114: Chippenham Community Hospital | F114: 1 | G114: * | H114: * | I114: * | J114: * | K114: * | L114: * | M114: * | N114: *
A115: QOX | B115: RD1 | C115: ROYAL UNITED HOSPITALS BATH NHS FOUNDATION TRUST | D115: RD130 | E115: Princess Anne Wing RUH | F115: 34 | G115: 0.9117647059 | H115: 0 | I115: * | J115: * | K115: * | L115: * | M115: * | N115: *
A116: QOX | B116: RNZ | C116: SALISBURY NHS FOUNDATION TRUST | D116: RNZ02 | E116: Salisbury District Hospital | F116: 2 | G116: * | H116: * | I116: * | J116: * | K116: * | L116: * | M116: * | N116: *
A117: QPM | B117: RNQ | C117: KETTERING GENERAL HOSPITAL NHS FOUNDATION TRUST | D117: RNQ51 | E117: Kettering General Hospital | F117: 9 | G117: 1 | H117: 0 | I117: 6 | J117: 3 | K117: 0 | L117: 0 | M117: 0 | N117: 0
A118: QPM | B118: RNS | C118: NORTHAMPTON GENERAL HOSPITAL NHS TRUST | D118: RNS01 | E118: Northampton General Hospital (Acute) | F118: 18 | G118: 1 | H118: 0 | I118: 18 | J118: 0 | K118: 0 | L118: 0 | M118: 0 | N118: 0
A119: QR1 | B119: RTE | C119: GLOUCESTERSHIRE HOSPITALS NHS FOUNDATION TRUST | D119: RTE03 | E119: Gloucestershire Royal Hospital | F119: 77 | G119: 0.7662337662 | H119: 0.1038961039 | I119: 34 | J119: 25 | K119: 10 | L119: 5 | M119: 3 | N119: 0
A120: QRL | B120: RN5 | C120: HAMPSHIRE HOSPITALS NHS FOUNDATION TRUST | D120: RN506 | E120: Basingstoke and North Hampshire Hospital | F120: 36 | G120: 1 | H120: 0 | I120: 31 | J120: 5 | K120: 0 | L120: 0 | M120: 0 | N120: 0
A121: QRL | B121: RN5 | C121: HAMPSHIRE HOSPITALS NHS FOUNDATION TRUST | D121: RN541 | E121: Royal Hampshire County Hospital | F121: 94 | G121: 0.9468085106 | H121: 0 | I121: 70 | J121: 19 | K121: 3 | L121: 0 | M121: 0 | N121: 2
A122: QRL | B122: R1F | C122: ISLE OF WIGHT NHS TRUST | D122: R1F01 | E122: St Mary's Hospital | F122: 0 | G122: NA | H122: NA | I122: 0 | J122: 0 | K122: 0 | L122: 0 | M122: 0 | N122: 0
A123: QRL | B123: RHU | C123: PORTSMOUTH HOSPITALS UNIVERSITY NATIONAL HEALTH SERVICE TRUST | D123: RHU03 | E123: Queen Alexandra Hospital | F123: 81 | G123: 0.962962963 | H123: 0 | I123: 72 | J123: 6 | K123: 3 | L123: 0 | M123: 0 | N123: 0
A124: QRL | B124: RHU | C124: PORTSMOUTH HOSPITALS UNIVERSITY NATIONAL HEALTH SERVICE TRUST | D124: RHU02 | E124: St Mary's Hospital | F124: 5 | G124: 1 | H124: 0 | I124: 5 | J124: 0 | K124: 0 | L124: 0 | M124: 0 | N124: 0
A125: QRL | B125: RHM | C125: UNIVERSITY HOSPITAL SOUTHAMPTON NHS FOUNDATION TRUST | D125: RHM01 | E125: Southampton General Hospital | F125: 109 | G125: 0.7798165138 | H125: 0.1009174312 | I125: 51 | J125: 34 | K125: 11 | L125: 7 | M125: 4 | N125: 2
A126: QRV | B126: RQM | C126: CHELSEA AND WESTMINSTER HOSPITAL NHS FOUNDATION TRUST | D126: RQM01 | E126: Chelsea and Westminster Hospital | F126: 151 | G126: 0.9072847682 | H126: 0.05298013245 | I126: 111 | J126: 26 | K126: 6 | L126: 4 | M126: 4 | N126: 0
A127: QRV | B127: RQM | C127: CHELSEA AND WESTMINSTER HOSPITAL NHS FOUNDATION TRUST | D127: RQM91 | E127: West Middlesex University Hospital | F127: 86 | G127: 0.8837209302 | H127: 0.05813953488 | I127: 64 | J127: 12 | K127: 4 | L127: 2 | M127: 3 | N127: 1
A128: QRV | B128: RYJ | C128: IMPERIAL COLLEGE HEALTHCARE NHS TRUST | D128: RYJ04 | E128: Queen Charlotte's Hospital | F128: 75 | G128: 0.8666666667 | H128: 0.08 | I128: 47 | J128: 18 | K128: 4 | L128: 5 | M128: 1 | N128: 0
A129: QRV | B129: RYJ | C129: IMPERIAL COLLEGE HEALTHCARE NHS TRUST | D129: RYJ01 | E129: St Mary's Hospital (HQ) | F129: 39 | G129: 0.9230769231 | H129: 0.05128205128 | I129: 26 | J129: 10 | K129: 1 | L129: 1 | M129: 1 | N129: 0
A130: QRV | B130: R1K | C130: LONDON NORTH WEST UNIVERSITY HEALTHCARE NHS TRUST | D130: R1K01 | E130: Northwick Park Hospital | F130: 96 | G130: 1 | H130: 0 | I130: 78 | J130: 18 | K130: 0 | L130: 0 | M130: 0 | N130: 0
A131: QRV | B131: RAS | C131: THE HILLINGDON HOSPITALS NHS FOUNDATION TRUST | D131: RAS01 | E131: Hillingdon Hospital | F131: 67 | G131: 0.8656716418 | H131: 0.1044776119 | I131: 43 | J131: 15 | K131: 2 | L131: 4 | M131: 3 | N131: 0
A132: QSL | B132: RH5 | C132: SOMERSET NHS FOUNDATION TRUST | D132: RH5K6 | E132: Bridgwater Hospital | F132: 0 | G132: NA | H132: NA | I132: 0 | J132: 0 | K132: 0 | L132: 0 | M132: 0 | N132: 0
A133: QSL | B133: RH5 | C133: SOMERSET NHS FOUNDATION TRUST | D133: RH5A8 | E133: MUSGROVE PARK HOSPITAL | F133: 0 | G133: NA | H133: NA | I133: 0 | J133: 0 | K133: 0 | L133: 0 | M133: 0 | N133: 0
A134: QSL | B134: RH5 | C134: SOMERSET NHS FOUNDATION TRUST | D134: RH5XXXX | E134: Non-hospital site home/in-transit births | F134: 0 | G134: NA | H134: NA | I134: 0 | J134: 0 | K134: 0 | L134: 0 | M134: 0 | N134: 0
A135: QSL | B135: RH5 | C135: SOMERSET NHS FOUNDATION TRUST | D135: RH5O4 | E135: Yeovil District Hospital | F135: 0 | G135: NA | H135: NA | I135: 0 | J135: 0 | K135: 0 | L135: 0 | M135: 0 | N135: 0
A136: QT1 | B136: RX1 | C136: NOTTINGHAM UNIVERSITY HOSPITALS NHS TRUST | D136: RX1CC | E136: Nottingham University Hospitals NHS Trust - City Campus | F136: 12 | G136: 1 | H136: 0 | I136: * | J136: * | K136: * | L136: * | M136: * | N136: *
A137: QT1 | B137: RX1 | C137: NOTTINGHAM UNIVERSITY HOSPITALS NHS TRUST | D137: RX1RA | E137: Nottingham University Hospitals NHS Trust - Queen's Medical Centre Campus | F137: 71 | G137: 1 | H137: 0 | I137: * | J137: * | K137: * | L137: * | M137: * | N137: *
A138: QT1 | B138: RK5 | C138: SHERWOOD FOREST HOSPITALS NHS FOUNDATION TRUST | D138: RK5BC | E138: King's Mill Hospital | F138: 4 | G138: * | H138: * | I138: * | J138: * | K138: * | L138: * | M138: * | N138: *
A139: QT6 | B139: REF | C139: ROYAL CORNWALL HOSPITALS NHS TRUST | D139: REF12 | E139: Royal Cornwall Hospital (Treliske) | F139: 2 | G139: * | H139: * | I139: * | J139: * | K139: * | L139: * | M139: * | N139: *
A140: QU9 | B140: RXQ | C140: BUCKINGHAMSHIRE HEALTHCARE NHS TRUST | D140: RXQ02 | E140: Stoke Mandeville Hospital | F140: 21 | G140: 0.7142857143 | H140: 0.2857142857 | I140: 10 | J140: 5 | K140: 0 | L140: 5 | M140: 1 | N140: 0
A141: QU9 | B141: RTH | C141: OXFORD UNIVERSITY HOSPITALS NHS FOUNDATION TRUST | D141: RTH19 | E141: Chipping Norton Community Hospital | F141: 0 | G141: NA | H141: NA | I141: 0 | J141: 0 | K141: 0 | L141: 0 | M141: 0 | N141: 0
A142: QU9 | B142: RTH | C142: OXFORD UNIVERSITY HOSPITALS NHS FOUNDATION TRUST | D142: RTH05 | E142: Horton General Hospital | F142: 0 | G142: NA | H142: NA | I142: 0 | J142: 0 | K142: 0 | L142: 0 | M142: 0 | N142: 0
A143: QU9 | B143: RTH | C143: OXFORD UNIVERSITY HOSPITALS NHS FOUNDATION TRUST | D143: RTH08 | E143: John Radcliffe Hospital | F143: 0 | G143: NA | H143: NA | I143: 0 | J143: 0 | K143: 0 | L143: 0 | M143: 0 | N143: 0
A144: QU9 | B144: RTH | C144: OXFORD UNIVERSITY HOSPITALS NHS FOUNDATION TRUST | D144: RTH16 | E144: Wallingford Community Hospital | F144: 0 | G144: NA | H144: NA | I144: 0 | J144: 0 | K144: 0 | L144: 0 | M144: 0 | N144: 0
A145: QU9 | B145: RHW | C145: ROYAL BERKSHIRE NHS FOUNDATION TRUST | D145: RHW01 | E145: Royal Berkshire Hospital | F145: 57 | G145: 1 | H145: 0 | I145: 46 | J145: 11 | K145: 0 | L145: 0 | M145: 0 | N145: 0
A146: QUA | B146: RNA | C146: THE DUDLEY GROUP NHS FOUNDATION TRUST | D146: RNA01 | E146: Russells Hall Hospital | F146: 26 | G146: 0.5 | H146: 0 | I146: 9 | J146: 4 | K146: 0 | L146: 0 | M146: 0 | N146: 13
A147: QUA | B147: RL4 | C147: THE ROYAL WOLVERHAMPTON NHS TRUST | D147: RL403 | E147: New Cross Hospital | F147: 46 | G147: 0.8043478261 | H147: 0.1304347826 | I147: 26 | J147: 11 | K147: 3 | L147: 1 | M147: 5 | N147: 0
A148: QUA | B148: RBK | C148: WALSALL HEALTHCARE NHS TRUST | D148: RBK02 | E148: Manor Hospital | F148: 108 | G148: 0.8611111111 | H148: 0.08333333333 | I148: 72 | J148: 21 | K148: 4 | L148: 3 | M148: 6 | N148: 2
A149: QUE | B149: RGT | C149: CAMBRIDGE UNIVERSITY HOSPITALS NHS FOUNDATION TRUST | D149: RGT32 | E149: Rosie Hospital | F149: 47 | G149: 0.8510638298 | H149: 0.1063829787 | I149: 35 | J149: 5 | K149: 1 | L149: 4 | M149: 1 | N149: 1
A150: QUE | B150: RGN | C150: NORTH WEST ANGLIA NHS FOUNDATION TRUST | D150: RGN90 | E150: Hinchingbrooke Hospital | F150: 52 | G150: 0.9807692308 | H150: 0 | I150: 42 | J150: 9 | K150: 1 | L150: 0 | M150: 0 | N150: 0
A151: QUE | B151: RGN | C151: NORTH WEST ANGLIA NHS FOUNDATION TRUST | D151: RGN80 | E151: Peterborough City Hospital | F151: 16 | G151: 0.9375 | H151: 0 | I151: 13 | J151: 2 | K151: 1 | L151: 0 | M151: 0 | N151: 0
A152: QUY | B152: RVJ | C152: NORTH BRISTOL NHS TRUST | D152: RVJ01 | E152: Southmead Hospital | F152: 81 | G152: 0.8518518519 | H152: 0.08641975309 | I152: 47 | J152: 22 | K152: 5 | L152: 3 | M152: 4 | N152: 0
A153: QUY | B153: RA7 | C153: UNIVERSITY HOSPITALS BRISTOL AND WESTON NHS FOUNDATION TRUST | D153: RA707 | E153: St Michael's Hospital | F153: 52 | G153: 0.9807692308 | H153: 0 | I153: 42 | J153: 9 | K153: 1 | L153: 0 | M153: 0 | N153: 0
A154: QVV | B154: RBD | C154: DORSET COUNTY HOSPITAL NHS FOUNDATION TRUST | D154: RBD01 | E154: Dorset County Hospital | F154: 26 | G154: 0.8846153846 | H154: 0.07692307692 | I154: 21 | J154: 2 | K154: 1 | L154: 1 | M154: 1 | N154: 0
A155: QVV | B155: R0D | C155: UNIVERSITY HOSPITALS DORSET NHS FOUNDATION TRUST | D155: R0D01 | E155: Poole Hospital | F155: 62 | G155: 0.8709677419 | H155: 0.04838709677 | I155: 39 | J155: 15 | K155: 2 | L155: 2 | M155: 1 | N155: 3
A156: QVV | B156: R0D | C156: UNIVERSITY HOSPITALS DORSET NHS FOUNDATION TRUST | D156: R0D02 | E156: Royal Bournemouth Hospital | F156: 0 | G156: NA | H156: NA | I156: 0 | J156: 0 | K156: 0 | L156: 0 | M156: 0 | N156: 0
A157: QWE | B157: RVR | C157: EPSOM AND ST HELIER UNIVERSITY HOSPITALS NHS TRUST | D157: RVR50 | E157: Epsom Hospital | F157: 0 | G157: NA | H157: NA | I157: 0 | J157: 0 | K157: 0 | L157: 0 | M157: 0 | N157: 0
A158: QWE | B158: RVR | C158: EPSOM AND ST HELIER UNIVERSITY HOSPITALS NHS TRUST | D158: RVR05 | E158: St Helier Hospital | F158: 20 | G158: 1 | H158: 0 | I158: 18 | J158: 2 | K158: 0 | L158: 0 | M158: 0 | N158: 0
A159: QWE | B159: RAX | C159: KINGSTON HOSPITAL NHS FOUNDATION TRUST | D159: RAX01 | E159: Kingston Hospital | F159: 50 | G159: 0.96 | H159: 0 | I159: 37 | J159: 11 | K159: 1 | L159: 0 | M159: 0 | N159: 1
A160: QWE | B160: RJ7 | C160: ST GEORGE'S UNIVERSITY HOSPITALS NHS FOUNDATION TRUST | D160: RJ701 | E160: St George's Hospital (Tooting) | F160: 74 | G160: 0.8918918919 | H160: 0.04054054054 | I160: 38 | J160: 28 | K160: 5 | L160: 1 | M160: 2 | N160: 0
A161: QWO | B161: RAE | C161: BRADFORD TEACHING HOSPITALS NHS FOUNDATION TRUST | D161: RAE01 | E161: Bradford Royal Infirmary | F161: 12 | G161: 0.6666666667 | H161: 0.3333333333 | I161: 8 | J161: 0 | K161: 0 | L161: 0 | M161: 4 | N161: 0
A162: QWO | B162: RWY | C162: CALDERDALE AND HUDDERSFIELD NHS FOUNDATION TRUST | D162: RWY02 | E162: Calderdale Royal Hospital | F162: 44 | G162: 1 | H162: 0 | I162: 37 | J162: 7 | K162: 0 | L162: 0 | M162: 0 | N162: 0
A163: QWO | B163: RR8 | C163: LEEDS TEACHING HOSPITALS NHS TRUST | D163: RR801 | E163: Leeds General Infirmary | F163: 61 | G163: 0.9508196721 | H163: 0.03278688525 | I163: 57 | J163: 1 | K163: 1 | L163: 1 | M163: 1 | N163: 0
A164: QWO | B164: RR8 | C164: LEEDS TEACHING HOSPITALS NHS TRUST | D164: RR813 | E164: St James's University Hospital | F164: 52 | G164: 1 | H164: 0 | I164: 45 | J164: 7 | K164: 0 | L164: 0 | M164: 0 | N164: 0
A165: QWO | B165: RXF | C165: MID YORKSHIRE TEACHING NHS TRUST | D165: RXF05 | E165: Pinderfields General Hospital | F165: 102 | G165: 0.9509803922 | H165: 0.01960784314 | I165: 76 | J165: 21 | K165: 2 | L165: 0 | M165: 2 | N165: 1
A166: QWU | B166: RLT | C166: GEORGE ELIOT HOSPITAL NHS TRUST | D166: RLT01 | E166: George Eliot Hospital - Acute Services | F166: 0 | G166: NA | H166: NA | I166: 0 | J166: 0 | K166: 0 | L166: 0 | M166: 0 | N166: 0
A167: QWU | B167: RJC | C167: SOUTH WARWICKSHIRE UNIVERSITY NHS FOUNDATION TRUST | D167: RJC02 | E167: Warwick Hospital | F167: 2 | G167: * | H167: * | I167: * | J167: * | K167: * | L167: * | M167: * | N167: *
A168: QWU | B168: RKB | C168: UNIVERSITY HOSPITALS COVENTRY AND WARWICKSHIRE NHS TRUST | D168: RKB01 | E168: University Hospital (Coventry) | F168: 100 | G168: 0.85 | H168: 0.04 | I168: * | J168: * | K168: * | L168: * | M168: * | N168: *
A169: QXU | B169: RTK | C169: ASHFORD AND ST PETER'S HOSPITALS NHS FOUNDATION TRUST | D169: RTK02 | E169: Ashford Hospital | F169: 0 | G169: NA | H169: NA | I169: 0 | J169: 0 | K169: 0 | L169: 0 | M169: 0 | N169: 0
A170: QXU | B170: RA2 | C170: ROYAL SURREY COUNTY HOSPITAL NHS FOUNDATION TRUST | D170: RA201 | E170: Royal Surrey County Hospital | F170: 16 | G170: 0.8125 | H170: 0 | I170: 12 | J170: 1 | K170: 3 | L170: 0 | M170: 0 | N170: 0
A171: QXU | B171: RTP | C171: SURREY AND SUSSEX HEALTHCARE NHS TRUST | D171: RTP04 | E171: East Surrey Hospital | F171: 9 | G171: 1 | H171: 0 | I171: 6 | J171: 3 | K171: 0 | L171: 0 | M171: 0 | N171: 0
A172: QYG | B172: REP | C172: LIVERPOOL WOMEN'S NHS FOUNDATION TRUST | D172: REP01 | E172: Liverpool Womens Hospital | F172: 33 | G172: 0.8181818182 | H172: 0.1818181818 | I172: 22 | J172: 5 | K172: 0 | L172: 3 | M172: 3 | N172: 0
A173: QYG | B173: RBN | C173: MERSEY AND WEST LANCASHIRE TEACHING HOSPITALS NHS TRUST | D173: RBN52 | E173: Ormskirk and District General Hospital | F173: 23 | G173: 0.8260869565 | H173: 0.1304347826 | I173: 17 | J173: 2 | K173: 1 | L173: 1 | M173: 2 | N173: 0
A174: QYG | B174: RBN | C174: MERSEY AND WEST LANCASHIRE TEACHING HOSPITALS NHS TRUST | D174: RBN01 | E174: Whiston Hospital | F174: 14 | G174: 0.9285714286 | H174: 0 | I174: 11 | J174: 2 | K174: 1 | L174: 0 | M174: 0 | N174: 0
A175: QYG | B175: RBT | C175: MID CHESHIRE HOSPITALS NHS FOUNDATION TRUST | D175: RBT20 | E175: Leighton Hospital | F175: 86 | G175: 0.9534883721 | H175: 0.04651162791 | I175: 72 | J175: 10 | K175: 0 | L175: 2 | M175: 2 | N175: 0
A176: QYG | B176: RWW | C176: WARRINGTON AND HALTON TEACHING HOSPITALS NHS FOUNDATION TRUST | D176: RWWWH | E176: Warrington Hospital | F176: 87 | G176: 0.9885057471 | H176: 0 | I176: 76 | J176: 10 | K176: 0 | L176: 0 | M176: 0 | N176: 1
A177: QYG | B177: RBL | C177: WIRRAL UNIVERSITY TEACHING HOSPITAL NHS FOUNDATION TRUST | D177: RBL14 | E177: Arrowe Park Hospital | F177: 78 | G177: 0.9615384615 | H177: 0.02564102564 | I177: 69 | J177: 6 | K177: 0 | L177: 0 | M177: 2 | N177: 1

Sheet ICB Q4
B6: Sort data by:
A9: ICB Code | B9: ICB Name | C9: Total Responses | D9: Percentage Positive | E9: Percentage Negative | F9: Breakdown of Responses
F10: Very Good | G10: Good | H10: Neither Good nor Poor | I10: Poor | J10: Very Poor | K10: Don't Know
B11: England (including Independent Sector providers) | C11: 1306 | D11: 0.911179173 | E11: 0.04594180704 | F11: 1022 | G11: 168 | H11: 32 | I11: 24 | J11: 36 | K11: 24
B12: England (excluding Independent Sector providers) | C12: 1306 | D12: 0.911179173 | E12: 0.04594180704 | F12: 1022 | G12: 168 | H12: 32 | I12: 24 | J12: 36 | K12: 24
B13: Selection (excluding suppressed data) | C13: =SUBTOTAL(9,C14:C55) -> 1306 | D13: =IFERROR((F13+G13)/SUM(F13:K13), "-") -> 0.9100775194 | E13: =IFERROR((I13+J13)/SUM(F13:K13), "-") -> 0.04651162791 | F13: =SUBTOTAL(9,F14:F55) -> 1007 | G13: =SUBTOTAL(9,G14:G55) -> 167 | H13: 32 | I13: 24 | J13: 36 | K13: 24
A14: QE1 | B14: LANCASHIRE AND SOUTH CUMBRIA ICB | C14: 47 | D14: 0.7872340426 | E14: 0.170212766 | F14: 28 | G14: 9 | H14: 2 | I14: 4 | J14: 4 | K14: 0
A15: QF7 | B15: SOUTH YORKSHIRE ICB | C15: 57 | D15: 0.8771929825 | E15: 0.0701754386 | F15: 38 | G15: 12 | H15: 3 | I15: 2 | J15: 2 | K15: 0
A16: QGH | B16: HEREFORDSHIRE AND WORCESTERSHIRE ICB | C16: 0 | D16: NA | E16: NA | F16: 0 | G16: 0 | H16: 0 | I16: 0 | J16: 0 | K16: 0
A17: QH8 | B17: MID AND SOUTH ESSEX ICB | C17: 0 | D17: NA | E17: NA | F17: 0 | G17: 0 | H17: 0 | I17: 0 | J17: 0 | K17: 0
A18: QHG | B18: BEDFORDSHIRE, LUTON AND MILTON KEYNES ICB | C18: 72 | D18: 0.9722222222 | E18: 0.01388888889 | F18: 54 | G18: 16 | H18: 1 | I18: 0 | J18: 1 | K18: 0
A19: QHL | B19: BIRMINGHAM AND SOLIHULL ICB | C19: 7 | D19: 1 | E19: 0 | F19: 7 | G19: 0 | H19: 0 | I19: 0 | J19: 0 | K19: 0
A20: QHM | B20: NORTH EAST AND NORTH CUMBRIA ICB | C20: 65 | D20: 0.8615384615 | E20: 0.1076923077 | F20: 44 | G20: 12 | H20: 2 | I20: 3 | J20: 4 | K20: 0
A21: QJ2 | B21: DERBY AND DERBYSHIRE ICB | C21: 4 | D21: * | E21: * | F21: * | G21: * | H21: * | I21: * | J21: * | K21: *
A22: QJG | B22: SUFFOLK AND NORTH EAST ESSEX ICB | C22: 6 | D22: 1 | E22: 0 | F22: 6 | G22: 0 | H22: 0 | I22: 0 | J22: 0 | K22: 0
A23: QJK | B23: DEVON ICB | C23: 7 | D23: 0.8571428571 | E23: 0.1428571429 | F23: 5 | G23: 1 | H23: 0 | I23: 0 | J23: 1 | K23: 0
A24: QJM | B24: LINCOLNSHIRE ICB | C24: 0 | D24: NA | E24: NA | F24: 0 | G24: 0 | H24: 0 | I24: 0 | J24: 0 | K24: 0
A25: QK1 | B25: LEICESTER, LEICESTERSHIRE AND RUTLAND ICB | C25: 61 | D25: 1 | E25: 0 | F25: 57 | G25: 4 | H25: 0 | I25: 0 | J25: 0 | K25: 0
A26: QKK | B26: SOUTH EAST LONDON ICB | C26: 44 | D26: 0.9318181818 | E26: 0.02272727273 | F26: 34 | G26: 7 | H26: 2 | I26: 1 | J26: 0 | K26: 0
A27: QKS | B27: KENT AND MEDWAY ICB | C27: 46 | D27: 0.9782608696 | E27: 0.02173913043 | F27: 45 | G27: 0 | H27: 0 | I27: 1 | J27: 0 | K27: 0
A28: QM7 | B28: HERTFORDSHIRE AND WEST ESSEX ICB | C28: 5 | D28: 1 | E28: 0 | F28: * | G28: * | H28: * | I28: * | J28: * | K28: *
A29: QMF | B29: NORTH EAST LONDON ICB | C29: 38 | D29: 0.9473684211 | E29: 0.05263157895 | F29: 32 | G29: 4 | H29: 0 | I29: 0 | J29: 2 | K29: 0
A30: QMJ | B30: NORTH CENTRAL LONDON ICB | C30: 25 | D30: 1 | E30: 0 | F30: 23 | G30: 2 | H30: 0 | I30: 0 | J30: 0 | K30: 0
A31: QMM | B31: NORFOLK AND WAVENEY ICB | C31: 13 | D31: 1 | E31: 0 | F31: 13 | G31: 0 | H31: 0 | I31: 0 | J31: 0 | K31: 0
A32: QNC | B32: STAFFORDSHIRE AND STOKE-ON-TRENT ICB | C32: 11 | D32: 0.9090909091 | E32: 0 | F32: 9 | G32: 1 | H32: 1 | I32: 0 | J32: 0 | K32: 0
A33: QNQ | B33: FRIMLEY ICB | C33: 4 | D33: * | E33: * | F33: * | G33: * | H33: * | I33: * | J33: * | K33: *
A34: QNX | B34: SUSSEX ICB | C34: 20 | D34: 0.85 | E34: 0.1 | F34: 15 | G34: 2 | H34: 1 | I34: 1 | J34: 1 | K34: 0
A35: QOC | B35: SHROPSHIRE, TELFORD AND WREKIN ICB | C35: 2 | D35: * | E35: * | F35: * | G35: * | H35: * | I35: * | J35: * | K35: *
A36: QOP | B36: GREATER MANCHESTER ICB | C36: 55 | D36: 0.9454545455 | E36: 0.01818181818 | F36: 47 | G36: 5 | H36: 2 | I36: 0 | J36: 1 | K36: 0
A37: QOQ | B37: HUMBER AND NORTH YORKSHIRE ICB | C37: 0 | D37: NA | E37: NA | F37: 0 | G37: 0 | H37: 0 | I37: 0 | J37: 0 | K37: 0
A38: QOX | B38: BATH AND NORTH EAST SOMERSET, SWINDON AND WILTSHIRE ICB | C38: 41 | D38: 0.9512195122 | E38: 0.0487804878 | F38: 37 | G38: 2 | H38: 0 | I38: 0 | J38: 2 | K38: 0
A39: QPM | B39: NORTHAMPTONSHIRE ICB | C39: 47 | D39: 1 | E39: 0 | F39: 38 | G39: 9 | H39: 0 | I39: 0 | J39: 0 | K39: 0
A40: QR1 | B40: GLOUCESTERSHIRE ICB | C40: 0 | D40: NA | E40: NA | F40: 0 | G40: 0 | H40: 0 | I40: 0 | J40: 0 | K40: 0
A41: QRL | B41: HAMPSHIRE AND ISLE OF WIGHT ICB | C41: 133 | D41: 0.7894736842 | E41: 0.01503759398 | F41: 74 | G41: 31 | H41: 5 | I41: 2 | J41: 0 | K41: 21
A42: QRV | B42: NORTH WEST LONDON ICB | C42: 42 | D42: 0.9523809524 | E42: 0 | F42: 33 | G42: 7 | H42: 1 | I42: 0 | J42: 0 | K42: 1
A43: QSL | B43: SOMERSET ICB | C43: 1 | D43: * | E43: * | F43: * | G43: * | H43: * | I43: * | J43: * | K43: *
A44: QT1 | B44: NOTTINGHAM AND NOTTINGHAMSHIRE ICB | C44: 8 | D44: 0.75 | E44: 0.125 | F44: 5 | G44: 1 | H44: 0 | I44: 0 | J44: 1 | K44: 1
A45: QT6 | B45: CORNWALL AND THE ISLES OF SCILLY ICB | C45: 0 | D45: NA | E45: NA | F45: 0 | G45: 0 | H45: 0 | I45: 0 | J45: 0 | K45: 0
A46: QU9 | B46: BUCKINGHAMSHIRE, OXFORDSHIRE AND BERKSHIRE WEST ICB | C46: 19 | D46: 0.8947368421 | E46: 0.1052631579 | F46: 14 | G46: 3 | H46: 0 | I46: 1 | J46: 1 | K46: 0
A47: QUA | B47: BLACK COUNTRY ICB | C47: 85 | D47: 0.9294117647 | E47: 0.07058823529 | F47: 74 | G47: 5 | H47: 0 | I47: 3 | J47: 3 | K47: 0
A48: QUE | B48: CAMBRIDGESHIRE AND PETERBOROUGH ICB | C48: 0 | D48: NA | E48: NA | F48: 0 | G48: 0 | H48: 0 | I48: 0 | J48: 0 | K48: 0
A49: QUY | B49: BRISTOL, NORTH SOMERSET AND SOUTH GLOUCESTERSHIRE ICB | C49: 101 | D49: 0.8712871287 | E49: 0.06930693069 | F49: 86 | G49: 2 | H49: 6 | I49: 1 | J49: 6 | K49: 0
A50: QVV | B50: DORSET ICB | C50: 39 | D50: 0.8974358974 | E50: 0.05128205128 | F50: 29 | G50: 6 | H50: 2 | I50: 0 | J50: 2 | K50: 0
A51: QWE | B51: SOUTH WEST LONDON ICB | C51: 19 | D51: 1 | E51: 0 | F51: 15 | G51: 4 | H51: 0 | I51: 0 | J51: 0 | K51: 0
A52: QWO | B52: WEST YORKSHIRE ICB | C52: 95 | D52: 0.9578947368 | E52: 0.02105263158 | F52: 77 | G52: 14 | H52: 2 | I52: 1 | J52: 1 | K52: 0
A53: QWU | B53: COVENTRY AND WARWICKSHIRE ICB | C53: 47 | D53: 0.8510638298 | E53: 0.1063829787 | F53: 33 | G53: 7 | H53: 2 | I53: 3 | J53: 2 | K53: 0
A54: QXU | B54: SURREY HEARTLANDS ICB | C54: 8 | D54: 0.875 | E54: 0.125 | F54: 6 | G54: 1 | H54: 0 | I54: 0 | J54: 1 | K54: 0
A55: QYG | B55: CHESHIRE AND MERSEYSIDE ICB | C55: 32 | D55: 0.90625 | E55: 0.0625 | F55: 29 | G55: 0 | H55: 0 | I55: 1 | J55: 1 | K55: 1

Sheet Trusts Q4
B6: Sort data by:
A9: ICB Code | B9: Trust Code | C9: Trust Name | D9: Total Responses | E9: Percentage Positive | F9: Percentage Negative | G9: Breakdown of Responses | M9: Mode of Collection
G10: Very Good | H10: Good | I10: Neither Good nor Poor | J10: Poor | K10: Very Poor | L10: Don't Know | M10: Mode SMS | N10: Mode Electronic Discharge | O10: Mode Electronic Home | P10: Mode Paper Discharge | Q10: Mode Paper Home | R10: Mode Telephone | S10: Mode Online | T10: Mode Other
C11: England (including Independent Sector providers) | D11: 1306 | E11: 0.911179173 | F11: 0.04594180704 | G11: 1022 | H11: 168 | I11: 32 | J11: 24 | K11: 36 | L11: 24 | M11: 550 | N11: 111 | O11: 3 | P11: 232 | Q11: 68 | R11: 14 | S11: 307 | T11: 21
C12: England (excluding Independent Sector providers) | D12: 1306 | E12: 0.911179173 | F12: 0.04594180704 | G12: 1022 | H12: 168 | I12: 32 | J12: 24 | K12: 36 | L12: 24 | M12: 550 | N12: 111 | O12: 3 | P12: 232 | Q12: 68 | R12: 14 | S12: 307 | T12: 21
C13: Selection (excluding suppressed data) | D13: =SUBTOTAL(9,D14:D299) -> 1306 | E13: =IFERROR((G13+H13)/SUM(G13:L13), "-") -> 0.8977272727 | F13: =IFERROR((J13+K13)/SUM(G13:L13), "-") -> 0.05208333333 | G13: =SUBTOTAL(9,G14:G299) -> 807 | H13: 141 | I13: 32 | J13: 23 | K13: 32 | L13: 21 | M13: 544 | N13: 110 | O13: 0 | P13: 146 | Q13: 1 | R13: 14 | S13: 223 | T13: 18
A14: QE1 | B14: RTX | C14: UNIVERSITY HOSPITALS OF MORECAMBE BAY NHS FOUNDATION TRUST | D14: 0 | E14: NA | F14: NA | G14: 0 | H14: 0 | I14: 0 | J14: 0 | K14: 0 | L14: 0 | M14: 0 | N14: 0 | O14: 0 | P14: 0 | Q14: 0 | R14: 0 | S14: 0 | T14: 0
A15: QE1 | B15: RXR | C15: EAST LANCASHIRE HOSPITALS NHS TRUST | D15: 0 | E15: NA | F15: NA | G15: 0 | H15: 0 | I15: 0 | J15: 0 | K15: 0 | L15: 0 | M15: 0 | N15: 0 | O15: 0 | P15: 0 | Q15: 0 | R15: 0 | S15: 0 | T15: 0
A16: QE1 | B16: RXL | C16: BLACKPOOL TEACHING HOSPITALS NHS FOUNDATION TRUST | D16: 23 | E16: 0.9130434783 | F16: 0.04347826087 | G16: 16 | H16: 5 | I16: 1 | J16: 1 | K16: 0 | L16: 0 | M16: 21 | N16: 0 | O16: 0 | P16: 0 | Q16: 0 | R16: 0 | S16: 2 | T16: 0
A17: QE1 | B17: RXN | C17: LANCASHIRE TEACHING HOSPITALS NHS FOUNDATION TRUST | D17: 24 | E17: 0.6666666667 | F17: 0.2916666667 | G17: 12 | H17: 4 | I17: 1 | J17: 3 | K17: 4 | L17: 0 | M17: 24 | N17: 0 | O17: 0 | P17: 0 | Q17: 0 | R17: 0 | S17: 0 | T17: 0
A18: QF7 | B18: RFR | C18: THE ROTHERHAM NHS FOUNDATION TRUST | D18: 0 | E18: NA | F18: NA | G18: 0 | H18: 0 | I18: 0 | J18: 0 | K18: 0 | L18: 0 | M18: 0 | N18: 0 | O18: 0 | P18: 0 | Q18: 0 | R18: 0 | S18: 0 | T18: 0
A19: QF7 | B19: RFF | C19: BARNSLEY HOSPITAL NHS FOUNDATION TRUST | D19: 1 | E19: * | F19: * | G19: * | H19: * | I19: * | J19: * | K19: * | L19: * | M19: * | N19: * | O19: * | P19: * | Q19: * | R19: * | S19: * | T19: *
A20: QF7 | B20: RP5 | C20: DONCASTER AND BASSETLAW TEACHING HOSPITALS NHS FOUNDATION TRUST | D20: 24 | E20: 0.9583333333 | F20: 0.04166666667 | G20: * | H20: * | I20: * | J20: * | K20: * | L20: * | M20: * | N20: * | O20: * | P20: * | Q20: * | R20: * | S20: * | T20: *
A21: QF7 | B21: RHQ | C21: SHEFFIELD TEACHING HOSPITALS NHS FOUNDATION TRUST | D21: 32 | E21: 0.8125 | F21: 0.09375 | G21: 16 | H21: 10 | I21: 3 | J21: 2 | K21: 1 | L21: 0 | M21: 32 | N21: 0 | O21: 0 | P21: 0 | Q21: 0 | R21: 0 | S21: 0 | T21: 0
A22: QGH | B22: RLQ | C22: WYE VALLEY NHS TRUST | D22: 0 | E22: NA | F22: NA | G22: 0 | H22: 0 | I22: 0 | J22: 0 | K22: 0 | L22: 0 | M22: 0 | N22: 0 | O22: 0 | P22: 0 | Q22: 0 | R22: 0 | S22: 0 | T22: 0
A23: QGH | B23: RWP | C23: WORCESTERSHIRE ACUTE HOSPITALS NHS TRUST | D23: 0 | E23: NA | F23: NA | G23: 0 | H23: 0 | I23: 0 | J23: 0 | K23: 0 | L23: 0 | M23: 0 | N23: 0 | O23: 0 | P23: 0 | Q23: 0 | R23: 0 | S23: 0 | T23: 0
A24: QH8 | B24: RAJ | C24: MID AND SOUTH ESSEX NHS FOUNDATION TRUST | D24: 0 | E24: NA | F24: NA | G24: 0 | H24: 0 | I24: 0 | J24: 0 | K24: 0 | L24: 0 | M24: 0 | N24: 0 | O24: 0 | P24: 0 | Q24: 0 | R24: 0 | S24: 0 | T24: 0
A25: QHG | B25: RD8 | C25: MILTON KEYNES UNIVERSITY HOSPITAL NHS FOUNDATION TRUST | D25: 31 | E25: 0.935483871 | F25: 0.03225806452 | G25: 23 | H25: 6 | I25: 1 | J25: 0 | K25: 1 | L25: 0 | M25: 25 | N25: 0 | O25: 0 | P25: 1 | Q25: 0 | R25: 0 | S25: 5 | T25: 0
A26: QHG | B26: RC9 | C26: BEDFORDSHIRE HOSPITALS NHS FOUNDATION TRUST | D26: 41 | E26: 1 | F26: 0 | G26: 31 | H26: 10 | I26: 0 | J26: 0 | K26: 0 | L26: 0 | M26: 0 | N26: 41 | O26: 0 | P26: 0 | Q26: 0 | R26: 0 | S26: 0 | T26: 0
A27: QHL | B27: RRK | C27: UNIVERSITY HOSPITALS BIRMINGHAM NHS FOUNDATION TRUST | D27: 0 | E27: NA | F27: NA | G27: 0 | H27: 0 | I27: 0 | J27: 0 | K27: 0 | L27: 0 | M27: 0 | N27: 0 | O27: 0 | P27: 0 | Q27: 0 | R27: 0 | S27: 0 | T27: 0
A28: QHL | B28: RXK | C28: SANDWELL AND WEST BIRMINGHAM HOSPITALS NHS TRUST | D28: 0 | E28: NA | F28: NA | G28: 0 | H28: 0 | I28: 0 | J28: 0 | K28: 0 | L28: 0 | M28: 0 | N28: 0 | O28: 0 | P28: 0 | Q28: 0 | R28: 0 | S28: 0 | T28: 0
A29: QHL | B29: RQ3 | C29: BIRMINGHAM WOMEN'S AND CHILDREN'S NHS FOUNDATION TRUST | D29: 7 | E29: 1 | F29: 0 | G29: 7 | H29: 0 | I29: 0 | J29: 0 | K29: 0 | L29: 0 | M29: 0 | N29: 0 | O29: 0 | P29: 0 | Q29: 0 | R29: 0 | S29: 7 | T29: 0
A30: QHM | B30: RR7 | C30: GATESHEAD HEALTH NHS FOUNDATION TRUST | D30: 0 | E30: NA | F30: NA | G30: 0 | H30: 0 | I30: 0 | J30: 0 | K30: 0 | L30: 0 | M30: 0 | N30: 0 | O30: 0 | P30: 0 | Q30: 0 | R30: 0 | S30: 0 | T30: 0
A31: QHM | B31: RTD | C31: THE NEWCASTLE UPON TYNE HOSPITALS NHS FOUNDATION TRUST | D31: 0 | E31: NA | F31: NA | G31: 0 | H31: 0 | I31: 0 | J31: 0 | K31: 0 | L31: 0 | M31: 0 | N31: 0 | O31: 0 | P31: 0 | Q31: 0 | R31: 0 | S31: 0 | T31: 0
A32: QHM | B32: RVW | C32: NORTH TEES AND HARTLEPOOL NHS FOUNDATION TRUST | D32: 0 | E32: NA | F32: NA | G32: 0 | H32: 0 | I32: 0 | J32: 0 | K32: 0 | L32: 0 | M32: 0 | N32: 0 | O32: 0 | P32: 0 | Q32: 0 | R32: 0 | S32: 0 | T32: 0
A33: QHM | B33: RXP | C33: COUNTY DURHAM AND DARLINGTON NHS FOUNDATION TRUST | D33: 0 | E33: NA | F33: NA | G33: 0 | H33: 0 | I33: 0 | J33: 0 | K33: 0 | L33: 0 | M33: 0 | N33: 0 | O33: 0 | P33: 0 | Q33: 0 | R33: 0 | S33: 0 | T33: 0
A34: QHM | B34: R0B | C34: SOUTH TYNESIDE AND SUNDERLAND NHS FOUNDATION TRUST | D34: 1 | E34: * | F34: * | G34: * | H34: * | I34: * | J34: * | K34: * | L34: * | M34: * | N34: * | O34: * | P34: * | Q34: * | R34: * | S34: * | T34: *
A35: QHM | B35: RNN | C35: NORTH CUMBRIA INTEGRATED CARE NHS FOUNDATION TRUST | D35: 1 | E35: * | F35: * | G35: * | H35: * | I35: * | J35: * | K35: * | L35: * | M35: * | N35: * | O35: * | P35: * | Q35: * | R35: * | S35: * | T35: *
A36: QHM | B36: RTR | C36: SOUTH TEES HOSPITALS NHS FOUNDATION TRUST | D36: 13 | E36: 0.9230769231 | F36: 0 | G36: 12 | H36: 0 | I36: 1 | J36: 0 | K36: 0 | L36: 0 | M36: 12 | N36: 1 | O36: 0 | P36: 0 | Q36: 0 | R36: 0 | S36: 0 | T36: 0
A37: QHM | B37: RTF | C37: NORTHUMBRIA HEALTHCARE NHS FOUNDATION TRUST | D37: 50 | E37: 0.84 | F37: 0.14 | G37: 30 | H37: 12 | I37: 1 | J37: 3 | K37: 4 | L37: 0 | M37: 50 | N37: 0 | O37: 0 | P37: 0 | Q37: 0 | R37: 0 | S37: 0 | T37: 0
A38: QJ2 | B38: RTG | C38: UNIVERSITY HOSPITALS OF DERBY AND BURTON NHS FOUNDATION TRUST | D38: 0 | E38: NA | F38: NA | G38: 0 | H38: 0 | I38: 0 | J38: 0 | K38: 0 | L38: 0 | M38: 0 | N38: 0 | O38: 0 | P38: 0 | Q38: 0 | R38: 0 | S38: 0 | T38: 0
A39: QJ2 | B39: RFS | C39: CHESTERFIELD ROYAL HOSPITAL NHS FOUNDATION TRUST | D39: 4 | E39: * | F39: * | G39: * | H39: * | I39: * | J39: * | K39: * | L39: * | M39: * | N39: * | O39: * | P39: * | Q39: * | R39: * | S39: * | T39: *
A40: QJG | B40: RDE | C40: EAST SUFFOLK AND NORTH ESSEX NHS FOUNDATION TRUST | D40: 1 | E40: * | F40: * | G40: * | H40: * | I40: * | J40: * | K40: * | L40: * | M40: * | N40: * | O40: * | P40: * | Q40: * | R40: * | S40: * | T40: *
A41: QJG | B41: RGR | C41: WEST SUFFOLK NHS FOUNDATION TRUST | D41: 5 | E41: 1 | F41: 0 | G41: * | H41: * | I41: * | J41: * | K41: * | L41: * | M41: * | N41: * | O41: * | P41: * | Q41: * | R41: * | S41: * | T41: *
A42: QJK | B42: RA9 | C42: TORBAY AND SOUTH DEVON NHS FOUNDATION TRUST | D42: 0 | E42: NA | F42: NA | G42: 0 | H42: 0 | I42: 0 | J42: 0 | K42: 0 | L42: 0 | M42: 0 | N42: 0 | O42: 0 | P42: 0 | Q42: 0 | R42: 0 | S42: 0 | T42: 0
A43: QJK | B43: RK9 | C43: UNIVERSITY HOSPITALS PLYMOUTH NHS TRUST | D43: 1 | E43: * | F43: * | G43: * | H43: * | I43: * | J43: * | K43: * | L43: * | M43: * | N43: * | O43: * | P43: * | Q43: * | R43: * | S43: * | T43: *
A44: QJK | B44: RH8 | C44: ROYAL DEVON UNIVERSITY HEALTHCARE NHS FOUNDATION TRUST | D44: 6 | E44: 1 | F44: 0 | G44: * | H44: * | I44: * | J44: * | K44: * | L44: * | M44: * | N44: * | O44: * | P44: * | Q44: * | R44: * | S44: * | T44: *
A45: QJM | B45: RWD | C45: UNITED LINCOLNSHIRE HOSPITALS NHS TRUST | D45: 0 | E45: NA | F45: NA | G45: 0 | H45: 0 | I45: 0 | J45: 0 | K45: 0 | L45: 0 | M45: 0 | N45: 0 | O45: 0 | P45: 0 | Q45: 0 | R45: 0 | S45: 0 | T45: 0
A46: QK1 | B46: RWE | C46: UNIVERSITY HOSPITALS OF LEICESTER NHS TRUST | D46: 61 | E46: 1 | F46: 0 | G46: 57 | H46: 4 | I46: 0 | J46: 0 | K46: 0 | L46: 0 | M46: 12 | N46: 20 | O46: 0 | P46: 29 | Q46: 0 | R46: 0 | S46: 0 | T46: 0
A47: QKK | B47: RJ1 | C47: GUY'S AND ST THOMAS' NHS FOUNDATION TRUST | D47: 3 | E47: * | F47: * | G47: * | H47: * | I47: * | J47: * | K47: * | L47: * | M47: * | N47: * | O47: * | P47: * | Q47: * | R47: * | S47: * | T47: *
A48: QKK | B48: RJ2 | C48: LEWISHAM AND GREENWICH NHS TRUST | D48: 4 | E48: * | F48: * | G48: * | H48: * | I48: * | J48: * | K48: * | L48: * | M48: * | N48: * | O48: * | P48: * | Q48: * | R48: * | S48: * | T48: *
A49: QKK | B49: RJZ | C49: KING'S COLLEGE HOSPITAL NHS FOUNDATION TRUST | D49: 37 | E49: 0.9189189189 | F49: 0.02702702703 | G49: 27 | H49: 7 | I49: 2 | J49: 1 | K49: 0 | L49: 0 | M49: 24 | N49: 0 | O49: 0 | P49: 0 | Q49: 0 | R49: 13 | S49: 0 | T49: 0
A50: QKS | B50: RVV | C50: EAST KENT HOSPITALS UNIVERSITY NHS FOUNDATION TRUST | D50: 0 | E50: NA | F50: NA | G50: 0 | H50: 0 | I50: 0 | J50: 0 | K50: 0 | L50: 0 | M50: 0 | N50: 0 | O50: 0 | P50: 0 | Q50: 0 | R50: 0 | S50: 0 | T50: 0
A51: QKS | B51: RPA | C51: MEDWAY NHS FOUNDATION TRUST | D51: 1 | E51: * | F51: * | G51: * | H51: * | I51: * | J51: * | K51: * | L51: * | M51: * | N51: * | O51: * | P51: * | Q51: * | R51: * | S51: * | T51: *
A52: QKS | B52: RN7 | C52: DARTFORD AND GRAVESHAM NHS TRUST | D52: 4 | E52: * | F52: * | G52: * | H52: * | I52: * | J52: * | K52: * | L52: * | M52: * | N52: * | O52: * | P52: * | Q52: * | R52: * | S52: * | T52: *
A53: QKS | B53: RWF | C53: MAIDSTONE AND TUNBRIDGE WELLS NHS TRUST | D53: 41 | E53: 1 | F53: 0 | G53: 41 | H53: 0 | I53: 0 | J53: 0 | K53: 0 | L53: 0 | M53: 0 | N53: 0 | O53: 0 | P53: 0 | Q53: 0 | R53: 0 | S53: 41 | T53: 0
A54: QM7 | B54: RQW | C54: THE PRINCESS ALEXANDRA HOSPITAL NHS TRUST | D54: 0 | E54: NA | F54: NA | G54: 0 | H54: 0 | I54: 0 | J54: 0 | K54: 0 | L54: 0 | M54: 0 | N54: 0 | O54: 0 | P54: 0 | Q54: 0 | R54: 0 | S54: 0 | T54: 0
A55: QM7 | B55: RWG | C55: WEST HERTFORDSHIRE TEACHING HOSPITALS NHS TRUST | D55: 0 | E55: NA | F55: NA | G55: 0 | H55: 0 | I55: 0 | J55: 0 | K55: 0 | L55: 0 | M55: 0 | N55: 0 | O55: 0 | P55: 0 | Q55: 0 | R55: 0 | S55: 0 | T55: 0
A56: QM7 | B56: RWH | C56: EAST AND NORTH HERTFORDSHIRE NHS TRUST | D56: 5 | E56: 1 | F56: 0 | G56: * | H56: * | I56: * | J56: * | K56: * | L56: * | M56: * | N56: * | O56: * | P56: * | Q56: * | R56: * | S56: * | T56: *
A57: QMF | B57: RQX | C57: HOMERTON HEALTHCARE NHS FOUNDATION TRUST | D57: 6 | E57: 1 | F57: 0 | G57: 3 | H57: 3 | I57: 0 | J57: 0 | K57: 0 | L57: 0 | M57: 6 | N57: 0 | O57: 0 | P57: 0 | Q57: 0 | R57: 0 | S57: 0 | T57: 0
A58: QMF | B58: RF4 | C58: BARKING, HAVERING AND REDBRIDGE UNIVERSITY HOSPITALS NHS TRUST | D58: 8 | E58: 1 | F58: 0 | G58: 7 | H58: 1 | I58: 0 | J58: 0 | K58: 0 | L58: 0 | M58: 0 | N58: 4 | O58: 0 | P58: 4 | Q58: 0 | R58: 0 | S58: 0 | T58: 0
A59: QMF | B59: R1H | C59: BARTS HEALTH NHS TRUST | D59: 24 | E59: 0.9166666667 | F59: 0.08333333333 | G59: 22 | H59: 0 | I59: 0 | J59: 0 | K59: 2 | L59: 0 | M59: 4 | N59: 0 | O59: 0 | P59: 0 | Q59: 0 | R59: 0 | S59: 20 | T59: 0
A60: QMJ | B60: RAP | C60: NORTH MIDDLESEX UNIVERSITY HOSPITAL NHS TRUST | D60: 0 | E60: NA | F60: NA | G60: 0 | H60: 0 | I60: 0 | J60: 0 | K60: 0 | L60: 0 | M60: 0 | N60: 0 | O60: 0 | P60: 0 | Q60: 0 | R60: 0 | S60: 0 | T60: 0
A61: QMJ | B61: RRV | C61: UNIVERSITY COLLEGE LONDON HOSPITALS NHS FOUNDATION TRUST | D61: 0 | E61: NA | F61: NA | G61: 0 | H61: 0 | I61: 0 | J61: 0 | K61: 0 | L61: 0 | M61: 0 | N61: 0 | O61: 0 | P61: 0 | Q61: 0 | R61: 0 | S61: 0 | T61: 0
A62: QMJ | B62: RAL | C62: ROYAL FREE LONDON NHS FOUNDATION TRUST | D62: 1 | E62: * | F62: * | G62: * | H62: * | I62: * | J62: * | K62: * | L62: * | M62: * | N62: * | O62: * | P62: * | Q62: * | R62: * | S62: * | T62: *
A63: QMJ | B63: RKE | C63: WHITTINGTON HEALTH NHS TRUST | D63: 24 | E63: 1 | F63: 0 | G63: * | H63: * | I63: * | J63: * | K63: * | L63: * | M63: * | N63: * | O63: * | P63: * | Q63: * | R63: * | S63: * | T63: *
A64: QMM | B64: RGP | C64: JAMES PAGET UNIVERSITY HOSPITALS NHS FOUNDATION TRUST | D64: 0 | E64: NA | F64: NA | G64: 0 | H64: 0 | I64: 0 | J64: 0 | K64: 0 | L64: 0 | M64: 0 | N64: 0 | O64: 0 | P64: 0 | Q64: 0 | R64: 0 | S64: 0 | T64: 0
A65: QMM | B65: RM1 | C65: NORFOLK AND NORWICH UNIVERSITY HOSPITALS NHS FOUNDATION TRUST | D65: 0 | E65: NA | F65: NA | G65: 0 | H65: 0 | I65: 0 | J65: 0 | K65: 0 | L65: 0 | M65: 0 | N65: 0 | O65: 0 | P65: 0 | Q65: 0 | R65: 0 | S65: 0 | T65: 0
A66: QMM | B66: RCX | C66: THE QUEEN ELIZABETH HOSPITAL, KING'S LYNN, NHS FOUNDATION TRUST | D66: 13 | E66: 1 | F66: 0 | G66: 13 | H66: 0 | I66: 0 | J66: 0 | K66: 0 | L66: 0 | M66: 0 | N66: 0 | O66: 0 | P66: 13 | Q66: 0 | R66: 0 | S66: 0 | T66: 0
A67: QNC | B67: RJE | C67: UNIVERSITY HOSPITALS OF NORTH MIDLANDS NHS TRUST | D67: 11 | E67: 0.9090909091 | F67: 0 | G67: 9 | H67: 1 | I67: 1 | J67: 0 | K67: 0 | L67: 0 | M67: 0 | N67: 0 | O67: 0 | P67: 0 | Q67: 0 | R67: 0 | S67: 11 | T67: 0
A68: QNQ | B68: RDU | C68: FRIMLEY HEALTH NHS FOUNDATION TRUST | D68: 4 | E68: * | F68: * | G68: * | H68: * | I68: * | J68: * | K68: * | L68: * | M68: * | N68: * | O68: * | P68: * | Q68: * | R68: * | S68: * | T68: *
A69: QNX | B69: RXC | C69: EAST SUSSEX HEALTHCARE NHS TRUST | D69: 0 | E69: NA | F69: NA | G69: 0 | H69: 0 | I69: 0 | J69: 0 | K69: 0 | L69: 0 | M69: 0 | N69: 0 | O69: 0 | P69: 0 | Q69: 0 | R69: 0 | S69: 0 | T69: 0
A70: QNX | B70: RYR | C70: UNIVERSITY HOSPITALS SUSSEX NHS FOUNDATION TRUST | D70: 20 | E70: 0.85 | F70: 0.1 | G70: 15 | H70: 2 | I70: 1 | J70: 1 | K70: 1 | L70: 0 | M70: 20 | N70: 0 | O70: 0 | P70: 0 | Q70: 0 | R70: 0 | S70: 0 | T70: 0
A71: QOC | B71: RXW | C71: THE SHREWSBURY AND TELFORD HOSPITAL NHS TRUST | D71: 2 | E71: * | F71: * | G71: * | H71: * | I71: * | J71: * | K71: * | L71: * | M71: * | N71: * | O71: * | P71: * | Q71: * | R71: * | S71: * | T71: *
A72: QOP | B72: RM3 | C72: NORTHERN CARE ALLIANCE NHS FOUNDATION TRUST | D72: 0 | E72: NA | F72: NA | G72: 0 | H72: 0 | I72: 0 | J72: 0 | K72: 0 | L72: 0 | M72: 0 | N72: 0 | O72: 0 | P72: 0 | Q72: 0 | R72: 0 | S72: 0 | T72: 0
A73: QOP | B73: RMP | C73: TAMESIDE AND GLOSSOP INTEGRATED CARE NHS FOUNDATION TRUST | D73: 0 | E73: NA | F73: NA | G73: 0 | H73: 0 | I73: 0 | J73: 0 | K73: 0 | L73: 0 | M73: 0 | N73: 0 | O73: 0 | P73: 0 | Q73: 0 | R73: 0 | S73: 0 | T73: 0
A74: QOP | B74: RWJ | C74: STOCKPORT NHS FOUNDATION TRUST | D74: 0 | E74: NA | F74: NA | G74: 0 | H74: 0 | I74: 0 | J74: 0 | K74: 0 | L74: 0 | M74: 0 | N74: 0 | O74: 0 | P74: 0 | Q74: 0 | R74: 0 | S74: 0 | T74: 0
A75: QOP | B75: RRF | C75: WRIGHTINGTON, WIGAN AND LEIGH NHS FOUNDATION TRUST | D75: 3 | E75: * | F75: * | G75: * | H75: * | I75: * | J75: * | K75: * | L75: * | M75: * | N75: * | O75: * | P75: * | Q75: * | R75: * | S75: * | T75: *
A76: QOP | B76: R0A | C76: MANCHESTER UNIVERSITY NHS FOUNDATION TRUST | D76: 18 | E76: 1 | F76: 0 | G76: * | H76: * | I76: * | J76: * | K76: * | L76: * | M76: * | N76: * | O76: * | P76: * | Q76: * | R76: * | S76: * | T76: *
A77: QOP | B77: RMC | C77: BOLTON NHS FOUNDATION TRUST | D77: 34 | E77: 0.9117647059 | F77: 0.02941176471 | G77: 26 | H77: 5 | I77: 2 | J77: 0 | K77: 1 | L77: 0 | M77: 34 | N77: 0 | O77: 0 | P77: 0 | Q77: 0 | R77: 0 | S77: 0 | T77: 0
A78: QOQ | B78: RCB | C78: YORK AND SCARBOROUGH TEACHING HOSPITALS NHS FOUNDATION TRUST | D78: 0 | E78: NA | F78: NA | G78: 0 | H78: 0 | I78: 0 | J78: 0 | K78: 0 | L78: 0 | M78: 0 | N78: 0 | O78: 0 | P78: 0 | Q78: 0 | R78: 0 | S78: 0 | T78: 0
A79: QOQ | B79: RCD | C79: HARROGATE AND DISTRICT NHS FOUNDATION TRUST | D79: 0 | E79: NA | F79: NA | G79: 0 | H79: 0 | I79: 0 | J79: 0 | K79: 0 | L79: 0 | M79: 0 | N79: 0 | O79: 0 | P79: 0 | Q79: 0 | R79: 0 | S79: 0 | T79: 0
A80: QOQ | B80: RJL | C80: NORTHERN LINCOLNSHIRE AND GOOLE NHS FOUNDATION TRUST | D80: 0 | E80: NA | F80: NA | G80: 0 | H80: 0 | I80: 0 | J80: 0 | K80: 0 | L80: 0 | M80: 0 | N80: 0 | O80: 0 | P80: 0 | Q80: 0 | R80: 0 | S80: 0 | T80: 0
A81: QOQ | B81: RWA | C81: HULL UNIVERSITY TEACHING HOSPITALS NHS TRUST | D81: 0 | E81: NA | F81: NA | G81: 0 | H81: 0 | I81: 0 | J81: 0 | K81: 0 | L81: 0 | M81: 0 | N81: 0 | O81: 0 | P81: 0 | Q81: 0 | R81: 0 | S81: 0 | T81: 0
A82: QOX | B82: RNZ | C82: SALISBURY NHS FOUNDATION TRUST | D82: 0 | E82: NA | F82: NA | G82: 0 | H82: 0 | I82: 0 | J82: 0 | K82: 0 | L82: 0 | M82: 0 | N82: 0 | O82: 0 | P82: 0 | Q82: 0 | R82: 0 | S82: 0 | T82: 0
A83: QOX | B83: RD1 | C83: ROYAL UNITED HOSPITALS BATH NHS FOUNDATION TRUST | D83: 6 | E83: 1 | F83: 0 | G83: 6 | H83: 0 | I83: 0 | J83: 0 | K83: 0 | L83: 0 | M83: 0 | N83: 0 | O83: 0 | P83: 6 | Q83: 0 | R83: 0 | S83: 0 | T83: 0
A84: QOX | B84: RN3 | C84: GREAT WESTERN HOSPITALS NHS FOUNDATION TRUST | D84: 35 | E84: 0.9428571429 | F84: 0.05714285714 | G84: 31 | H84: 2 | I84: 0 | J84: 0 | K84: 2 | L84: 0 | M84: 35 | N84: 0 | O84: 0 | P84: 0 | Q84: 0 | R84: 0 | S84: 0 | T84: 0
A85: QPM | B85: RNS | C85: NORTHAMPTON GENERAL HOSPITAL NHS TRUST | D85: 3 | E85: * | F85: * | G85: * | H85: * | I85: * | J85: * | K85: * | L85: * | M85: * | N85: * | O85: * | P85: * | Q85: * | R85: * | S85: * | T85: *
A86: QPM | B86: RNQ | C86: KETTERING GENERAL HOSPITAL NHS FOUNDATION TRUST | D86: 44 | E86: 1 | F86: 0 | G86: * | H86: * | I86: * | J86: * | K86: * | L86: * | M86: * | N86: * | O86: * | P86: * | Q86: * | R86: * | S86: * | T86: *
A87: QR1 | B87: RTE | C87: GLOUCESTERSHIRE HOSPITALS NHS FOUNDATION TRUST | D87: 0 | E87: NA | F87: NA | G87: 0 | H87: 0 | I87: 0 | J87: 0 | K87: 0 | L87: 0 | M87: 0 | N87: 0 | O87: 0 | P87: 0 | Q87: 0 | R87: 0 | S87: 0 | T87: 0
A88: QRL | B88: R1F | C88: ISLE OF WIGHT NHS TRUST | D88: 0 | E88: NA | F88: NA | G88: 0 | H88: 0 | I88: 0 | J88: 0 | K88: 0 | L88: 0 | M88: 0 | N88: 0 | O88: 0 | P88: 0 | Q88: 0 | R88: 0 | S88: 0 | T88: 0
A89: QRL | B89: RN5 | C89: HAMPSHIRE HOSPITALS NHS FOUNDATION TRUST | D89: 3 | E89: * | F89: * | G89: * | H89: * | I89: * | J89: * | K89: * | L89: * | M89: * | N89: * | O89: * | P89: * | Q89: * | R89: * | S89: * | T89: *
A90: QRL | B90: RHU | C90: PORTSMOUTH HOSPITALS UNIVERSITY NATIONAL HEALTH SERVICE TRUST | D90: 24 | E90: 0.9583333333 | F90: 0 | G90: * | H90: * | I90: * | J90: * | K90: * | L90: * | M90: * | N90: * | O90: * | P90: * | Q90: * | R90: * | S90: * | T90: *
A91: QRL | B91: RHM | C91: UNIVERSITY HOSPITAL SOUTHAMPTON NHS FOUNDATION TRUST | D91: 106 | E91: 0.7452830189 | F91: 0.01886792453 | G91: 52 | H91: 27 | I91: 5 | J91: 2 | K91: 0 | L91: 20 | M91: 0 | N91: 0 | O91: 0 | P91: 0 | Q91: 1 | R91: 0 | S91: 105 | T91: 0
A92: QRV | B92: R1K | C92: LONDON NORTH WEST UNIVERSITY HEALTHCARE NHS TRUST | D92: 0 | E92: NA | F92: NA | G92: 0 | H92: 0 | I92: 0 | J92: 0 | K92: 0 | L92: 0 | M92: 0 | N92: 0 | O92: 0 | P92: 0 | Q92: 0 | R92: 0 | S92: 0 | T92: 0
A93: QRV | B93: RQM | C93: CHELSEA AND WESTMINSTER HOSPITAL NHS FOUNDATION TRUST | D93: 1 | E93: * | F93: * | G93: * | H93: * | I93: * | J93: * | K93: * | L93: * | M93: * | N93: * | O93: * | P93: * | Q93: * | R93: * | S93: * | T93: *
A94: QRV | B94: RAS | C94: THE HILLINGDON HOSPITALS NHS FOUNDATION TRUST | D94: 12 | E94: 0.9166666667 | F94: 0 | G94: * | H94: * | I94: * | J94: * | K94: * | L94: * | M94: * | N94: * | O94: * | P94: * | Q94: * | R94: * | S94: * | T94: *
A95: QRV | B95: RYJ | C95: IMPERIAL COLLEGE HEALTHCARE NHS TRUST | D95: 29 | E95: 0.9655172414 | F95: 0 | G95: 23 | H95: 5 | I95: 1 | J95: 0 | K95: 0 | L95: 0 | M95: 0 | N95: 0 | O95: 0 | P95: 1 | Q95: 0 | R95: 0 | S95: 28 | T95: 0
A96: QSL | B96: RH5 | C96: SOMERSET NHS FOUNDATION TRUST | D96: 1 | E96: * | F96: * | G96: * | H96: * | I96: * | J96: * | K96: * | L96: * | M96: * | N96: * | O96: * | P96: * | Q96: * | R96: * | S96: * | T96: *
A97: QT1 | B97: RK5 | C97: SHERWOOD FOREST HOSPITALS NHS FOUNDATION TRUST | D97: 4 | E97: * | F97: * | G97: * | H97: * | I97: * | J97: * | K97: * | L97: * | M97: * | N97: * | O97: * | P97: * | Q97: * | R97: * | S97: * | T97: *
A98: QT1 | B98: RX1 | C98: NOTTINGHAM UNIVERSITY HOSPITALS NHS TRUST | D98: 4 | E98: * | F98: * | G98: * | H98: * | I98: * | J98: * | K98: * | L98: * | M98: * | N98: * | O98: * | P98: * | Q98: * | R98: * | S98: * | T98: *
A99: QT6 | B99: REF | C99: ROYAL CORNWALL HOSPITALS NHS TRUST | D99: 0 | E99: NA | F99: NA | G99: 0 | H99: 0 | I99: 0 | J99: 0 | K99: 0 | L99: 0 | M99: 0 | N99: 0 | O99: 0 | P99: 0 | Q99: 0 | R99: 0 | S99: 0 | T99: 0
A100: QU9 | B100: RTH | C100: OXFORD UNIVERSITY HOSPITALS NHS FOUNDATION TRUST | D100: 0 | E100: NA | F100: NA | G100: 0 | H100: 0 | I100: 0 | J100: 0 | K100: 0 | L100: 0 | M100: 0 | N100: 0 | O100: 0 | P100: 0 | Q100: 0 | R100: 0 | S100: 0 | T100: 0
A101: QU9 | B101: RHW | C101: ROYAL BERKSHIRE NHS FOUNDATION TRUST | D101: 5 | E101: 0.6 | F101: 0.4 | G101: 2 | H101: 1 | I101: 0 | J101: 1 | K101: 1 | L101: 0 | M101: 5 | N101: 0 | O101: 0 | P101: 0 | Q101: 0 | R101: 0 | S101: 0 | T101: 0
A102: QU9 | B102: RXQ | C102: BUCKINGHAMSHIRE HEALTHCARE NHS TRUST | D102: 14 | E102: 1 | F102: 0 | G102: 12 | H102: 2 | I102: 0 | J102: 0 | K102: 0 | L102: 0 | M102: 14 | N102: 0 | O102: 0 | P102: 0 | Q102: 0 | R102: 0 | S102: 0 | T102: 0
A103: QUA | B103: RNA | C103: THE DUDLEY GROUP NHS FOUNDATION TRUST | D103: 0 | E103: NA | F103: NA | G103: 0 | H103: 0 | I103: 0 | J103: 0 | K103: 0 | L103: 0 | M103: 0 | N103: 0 | O103: 0 | P103: 0 | Q103: 0 | R103: 0 | S103: 0 | T103: 0
A104: QUA | B104: RL4 | C104: THE ROYAL WOLVERHAMPTON NHS TRUST | D104: 33 | E104: 0.9090909091 | F104: 0.09090909091 | G104: 27 | H104: 3 | I104: 0 | J104: 2 | K104: 1 | L104: 0 | M104: 30 | N104: 0 | O104: 0 | P104: 0 | Q104: 0 | R104: 0 | S104: 3 | T104: 0
A105: QUA | B105: RBK | C105: WALSALL HEALTHCARE NHS TRUST | D105: 52 | E105: 0.9423076923 | F105: 0.05769230769 | G105: 47 | H105: 2 | I105: 0 | J105: 1 | K105: 2 | L105: 0 | M105: 7 | N105: 44 | O105: 0 | P105: 0 | Q105: 0 | R105: 1 | S105: 0 | T105: 0
A106: QUE | B106: RGN | C106: NORTH WEST ANGLIA NHS FOUNDATION TRUST | D106: 0 | E106: NA | F106: NA | G106: 0 | H106: 0 | I106: 0 | J106: 0 | K106: 0 | L106: 0 | M106: 0 | N106: 0 | O106: 0 | P106: 0 | Q106: 0 | R106: 0 | S106: 0 | T106: 0
A107: QUE | B107: RGT | C107: CAMBRIDGE UNIVERSITY HOSPITALS NHS FOUNDATION TRUST | D107: 0 | E107: NA | F107: NA | G107: 0 | H107: 0 | I107: 0 | J107: 0 | K107: 0 | L107: 0 | M107: 0 | N107: 0 | O107: 0 | P107: 0 | Q107: 0 | R107: 0 | S107: 0 | T107: 0
A108: QUY | B108: RA7 | C108: UNIVERSITY HOSPITALS BRISTOL AND WESTON NHS FOUNDATION TRUST | D108: 28 | E108: 1 | F108: 0 | G108: 28 | H108: 0 | I108: 0 | J108: 0 | K108: 0 | L108: 0 | M108: 0 | N108: 0 | O108: 0 | P108: 28 | Q108: 0 | R108: 0 | S108: 0 | T108: 0
A109: QUY | B109: RVJ | C109: NORTH BRISTOL NHS TRUST | D109: 73 | E109: 0.8219178082 | F109: 0.09589041096 | G109: 58 | H109: 2 | I109: 6 | J109: 1 | K109: 6 | L109: 0 | M109: 73 | N109: 0 | O109: 0 | P109: 0 | Q109: 0 | R109: 0 | S109: 0 | T109: 0
A110: QVV | B110: RBD | C110: DORSET COUNTY HOSPITAL NHS FOUNDATION TRUST | D110: 14 | E110: 0.9285714286 | F110: 0.07142857143 | G110: 10 | H110: 3 | I110: 0 | J110: 0 | K110: 1 | L110: 0 | M110: 14 | N110: 0 | O110: 0 | P110: 0 | Q110: 0 | R110: 0 | S110: 0 | T110: 0
A111: QVV | B111: R0D | C111: UNIVERSITY HOSPITALS DORSET NHS FOUNDATION TRUST | D111: 25 | E111: 0.88 | F111: 0.04 | G111: 19 | H111: 3 | I111: 2 | J111: 0 | K111: 1 | L111: 0 | M111: 25 | N111: 0 | O111: 0 | P111: 0 | Q111: 0 | R111: 0 | S111: 0 | T111: 0
A112: QWE | B112: RJ6 | C112: CROYDON HEALTH SERVICES NHS TRUST | D112: 0 | E112: NA | F112: NA | G112: 0 | H112: 0 | I112: 0 | J112: 0 | K112: 0 | L112: 0 | M112: 0 | N112: 0 | O112: 0 | P112: 0 | Q112: 0 | R112: 0 | S112: 0 | T112: 0
A113: QWE | B113: RJ7 | C113: ST GEORGE'S UNIVERSITY HOSPITALS NHS FOUNDATION TRUST | D113: 0 | E113: NA | F113: NA | G113: 0 | H113: 0 | I113: 0 | J113: 0 | K113: 0 | L113: 0 | M113: 0 | N113: 0 | O113: 0 | P113: 0 | Q113: 0 | R113: 0 | S113: 0 | T113: 0
A114: QWE | B114: RVR | C114: EPSOM AND ST HELIER UNIVERSITY HOSPITALS NHS TRUST | D114: 2 | E114: * | F114: * | G114: * | H114: * | I114: * | J114: * | K114: * | L114: * | M114: * | N114: * | O114: * | P114: * | Q114: * | R114: * | S114: * | T114: *
A115: QWE | B115: RAX | C115: KINGSTON HOSPITAL NHS FOUNDATION TRUST | D115: 17 | E115: 1 | F115: 0 | G115: * | H115: * | I115: * | J115: * | K115: * | L115: * | M115: * | N115: * | O115: * | P115: * | Q115: * | R115: * | S115: * | T115: *
A116: QWO | B116: RAE | C116: BRADFORD TEACHING HOSPITALS NHS FOUNDATION TRUST | D116: 0 | E116: NA | F116: NA | G116: 0 | H116: 0 | I116: 0 | J116: 0 | K116: 0 | L116: 0 | M116: 0 | N116: 0 | O116: 0 | P116: 0 | Q116: 0 | R116: 0 | S116: 0 | T116: 0
A117: QWO | B117: RCF | C117: AIREDALE NHS FOUNDATION TRUST | D117: 0 | E117: NA | F117: NA | G117: 0 | H117: 0 | I117: 0 | J117: 0 | K117: 0 | L117: 0 | M117: 0 | N117: 0 | O117: 0 | P117: 0 | Q117: 0 | R117: 0 | S117: 0 | T117: 0
A118: QWO | B118: RWY | C118: CALDERDALE AND HUDDERSFIELD NHS FOUNDATION TRUST | D118: 0 | E118: NA | F118: NA | G118: 0 | H118: 0 | I118: 0 | J118: 0 | K118: 0 | L118: 0 | M118: 0 | N118: 0 | O118: 0 | P118: 0 | Q118: 0 | R118: 0 | S118: 0 | T118: 0
A119: QWO | B119: RR8 | C119: LEEDS TEACHING HOSPITALS NHS TRUST | D119: 30 | E119: 0.9666666667 | F119: 0.03333333333 | G119: 26 | H119: 3 | I119: 0 | J119: 1 | K119: 0 | L119: 0 | M119: 30 | N119: 0 | O119: 0 | P119: 0 | Q119: 0 | R119: 0 | S119: 0 | T119: 0
A120: QWO | B120: RXF | C120: MID YORKSHIRE TEACHING NHS TRUST | D120: 65 | E120: 0.9538461538 | F120: 0.01538461538 | G120: 51 | H120: 11 | I120: 2 | J120: 0 | K120: 1 | L120: 0 | M120: 0 | N120: 0 | O120: 0 | P120: 64 | Q120: 0 | R120: 0 | S120: 1 | T120: 0
A121: QWU | B121: RJC | C121: SOUTH WARWICKSHIRE UNIVERSITY NHS FOUNDATION TRUST | D121: 0 | E121: NA | F121: NA | G121: 0 | H121: 0 | I121: 0 | J121: 0 | K121: 0 | L121: 0 | M121: 0 | N121: 0 | O121: 0 | P121: 0 | Q121: 0 | R121: 0 | S121: 0 | T121: 0
A122: QWU | B122: RLT | C122: GEORGE ELIOT HOSPITAL NHS TRUST | D122: 0 | E122: NA | F122: NA | G122: 0 | H122: 0 | I122: 0 | J122: 0 | K122: 0 | L122: 0 | M122: 0 | N122: 0 | O122: 0 | P122: 0 | Q122: 0 | R122: 0 | S122: 0 | T122: 0
A123: QWU | B123: RKB | C123: UNIVERSITY HOSPITALS COVENTRY AND WARWICKSHIRE NHS TRUST | D123: 47 | E123: 0.8510638298 | F123: 0.1063829787 | G123: 33 | H123: 7 | I123: 2 | J123: 3 | K123: 2 | L123: 0 | M123: 47 | N123: 0 | O123: 0 | P123: 0 | Q123: 0 | R123: 0 | S123: 0 | T123: 0
A124: QXU | B124: RTK | C124: ASHFORD AND ST PETER'S HOSPITALS NHS FOUNDATION TRUST | D124: 0 | E124: NA | F124: NA | G124: 0 | H124: 0 | I124: 0 | J124: 0 | K124: 0 | L124: 0 | M124: 0 | N124: 0 | O124: 0 | P124: 0 | Q124: 0 | R124: 0 | S124: 0 | T124: 0
A125: QXU | B125: RA2 | C125: ROYAL SURREY COUNTY HOSPITAL NHS FOUNDATION TRUST | D125: 2 | E125: * | F125: * | G125: * | H125: * | I125: * | J125: * | K125: * | L125: * | M125: * | N125: * | O125: * | P125: * | Q125: * | R125: * | S125: * | T125: *
A126: QXU | B126: RTP | C126: SURREY AND SUSSEX HEALTHCARE NHS TRUST | D126: 6 | E126: 0.8333333333 | F126: 0.1666666667 | G126: * | H126: * | I126: * | J126: * | K126: * | L126: * | M126: * | N126: * | O126: * | P126: * | Q126: * | R126: * | S126: * | T126: *
A127: QYG | B127: RBL | C127: WIRRAL UNIVERSITY TEACHING HOSPITAL NHS FOUNDATION TRUST | D127: 0 | E127: NA | F127: NA | G127: 0 | H127: 0 | I127: 0 | J127: 0 | K127: 0 | L127: 0 | M127: 0 | N127: 0 | O127: 0 | P127: 0 | Q127: 0 | R127: 0 | S127: 0 | T127: 0
A128: QYG | B128: RBT | C128: MID CHESHIRE HOSPITALS NHS FOUNDATION TRUST | D128: 0 | E128: NA | F128: NA | G128: 0 | H128: 0 | I128: 0 | J128: 0 | K128: 0 | L128: 0 | M128: 0 | N128: 0 | O128: 0 | P128: 0 | Q128: 0 | R128: 0 | S128: 0 | T128: 0
A129: QYG | B129: RWW | C129: WARRINGTON AND HALTON TEACHING HOSPITALS NHS FOUNDATION TRUST | D129: 1 | E129: * | F129: * | G129: * | H129: * | I129: * | J129: * | K129: * | L129: * | M129: * | N129: * | O129: * | P129: * | Q129: * | R129: * | S129: * | T129: *
A130: QYG | B130: RBN | C130: MERSEY AND WEST LANCASHIRE TEACHING HOSPITALS NHS TRUST | D130: 13 | E130: 1 | F130: 0 | G130: * | H130: * | I130: * | J130: * | K130: * | L130: * | M130: * | N130: * | O130: * | P130: * | Q130: * | R130: * | S130: * | T130: *
A131: QYG | B131: REP | C131: LIVERPOOL WOMEN'S NHS FOUNDATION TRUST | D131: 18 | E131: 0.8333333333 | F131: 0.1111111111 | G131: 15 | H131: 0 | I131: 0 | J131: 1 | K131: 1 | L131: 1 | M131: 0 | N131: 0 | O131: 0 | P131: 0 | Q131: 0 | R131: 0 | S131: 0 | T131: 18

Sheet BSQ1 (hidden)
B1: Sort | C1: ICB | D1: ICB | E1: Trusts | F1: Trusts | G1: Sites | H1: Sites | J1: Sort ranges: | K1: Sort range… | L1: Sort range… | M1: Sort range… | N1: Reference Region List: | O1: Code… | P1: Name… | Q1: Linked Region List: | R1: Code… | S1: Name… | T1: Reference Lists: | U1: Code… | V1: Code… | W1: Name… | X1: Code… | Y1: Name… | Z1: Trusts Linked Lists: | AA1: Code… | AB1: Name… | AC1: Site Linked Lists: | AD1: Code… | AE1: Name… | AF1: Code… | AG1: Name…
A2: ICB | B2: 1 | C2: 1 | D2: 1 | E2: - | F2: - | G2: - | H2: - | K2: ICB Code | L2: ICB Code | M2: ICB Code | O2: QE1 | P2: LANCASHIRE AND SOUTH CUMBRIA ICB | R2: QE1 | S2: LANCASHIRE AND SOUTH CUMBRIA ICB | U2: QE1 | V2: RXL | W2: BLACKPOOL TEACHING HOSPITALS NHS FOUNDATION TRUST | X2: RXL01 | Y2: Blackpool Victoria Hospital | AA2: R0A | AB2: ASHFORD AND ST PETER'S HOSPITALS NHS FOUNDATION TRUST | AD2: R0A | AE2: ASHFORD AND ST PETER'S HOSPITALS NHS FOUNDATION TRUST | AF2: R0A05 | AG2: Alexandra Hospital
A3: Trusts | B3: 1 | C3: 1 | D3: 1 | E3: 1 | F3: 1 | G3: - | H3: - | K3: ICB Name | L3: Trust Code | M3: Trust Code | O3: QF7 | P3: SOUTH YORKSHIRE ICB | R3: QF7 | S3: SOUTH YORKSHIRE ICB | U3: QE1 | V3: RXR | W3: EAST LANCASHIRE HOSPITALS NHS TRUST | X3: RXR20 | Y3: Royal Blackburn Hospital | AA3: R0B | AB3: BARKING, HAVERING AND REDBRIDGE UNIVERSITY HOSPITALS NHS TRUST | AD3: R0B | AE3: BARKING, HAVERING AND REDBRIDGE UNIVERSITY HOSPITALS NHS TRUST | AF3: R0B01 | AG3: Andover War Memorial Hospital
A4: Sites | B4: 1 | C4: 1 | D4: 1 | E4: 1 | F4: 1 | G4: 1 | H4: 1 | K4: Total Responses | L4: Trust Name | M4: Trust Name | O4: QGH | P4: HEREFORDSHIRE AND WORCESTERSHIRE ICB | R4: QGH | S4: HEREFORDSHIRE AND WORCESTERSHIRE ICB | U4: QE1 | V4: RXN | W4: LANCASHIRE TEACHING HOSPITALS NHS FOUNDATION TRUST | X4: RXN01 | Y4: Chorley and South Ribble Hospital | AA4: R0D | AB4: BARNSLEY HOSPITAL NHS FOUNDATION TRUST | AD4: R0D | AE4: BARNSLEY HOSPITAL NHS FOUNDATION TRUST | AF4: R0B0Q | AG4: Arrowe Park Hospital
K5: Percentage Positive | L5: Total Responses | M5: Site Code | O5: QH8 | P5: MID AND SOUTH ESSEX ICB | R5: QH8 | S5: MID AND SOUTH ESSEX ICB | U5: QE1 | V5: RXN | W5: LANCASHIRE TEACHING HOSPITALS NHS FOUNDATION TRUST | X5: RXN02 | Y5: Royal Preston Hospital | AA5: R1F | AB5: BARTS HEALTH NHS TRUST | AD5: R1F | AE5: BARTS HEALTH NHS TRUST | AF5: R0BXXX | AG5: Ashford Hospital
K6: Percentage Negative | L6: Percentage Positive | M6: Site Name | O6: QHG | P6: BEDFORDSHIRE, LUTON AND MILTON KEYNES ICB | R6: QHG | S6: BEDFORDSHIRE, LUTON AND MILTON KEYNES ICB | U6: QE1 | V6: RTX | W6: UNIVERSITY HOSPITALS OF MORECAMBE BAY NHS FOUNDATION TRUST | X6: RTXBU | Y6: Furness General Hospital | AA6: R1H | AB6: BEDFORDSHIRE HOSPITALS NHS FOUNDATION TRUST | AD6: R1H | AE6: BEDFORDSHIRE HOSPITALS NHS FOUNDATION TRUST | AF6: R0D01 | AG6: Barnet Hospital
K7: Very Good | L7: Percentage Negative | M7: Total Responses | O7: QHL | P7: BIRMINGHAM AND SOLIHULL ICB | R7: QHL | S7: BIRMINGHAM AND SOLIHULL ICB | U7: QE1 | V7: RTX | W7: UNIVERSITY HOSPITALS OF MORECAMBE BAY NHS FOUNDATION TRUST | X7: RTX02 | Y7: Royal Lancaster Infirmary | AA7: R1K | AB7: BIRMINGHAM WOMEN'S AND CHILDREN'S NHS FOUNDATION TRUST | AD7: R1K | AE7: BIRMINGHAM WOMEN'S AND CHILDREN'S NHS FOUNDATION TRUST | AF7: R0D02 | AG7: Barnsley Hospital NHS Foundation Trust HQ
K8: Good | L8: Very Good | M8: Percentage Positive | O8: QHM | P8: NORTH EAST AND NORTH CUMBRIA ICB | R8: QHM | S8: NORTH EAST AND NORTH CUMBRIA ICB | U8: QF7 | V8: RFF | W8: BARNSLEY HOSPITAL NHS FOUNDATION TRUST | X8: RFFAA | Y8: Barnsley Hospital NHS Foundation Trust HQ | AA8: RA2 | AB8: BLACKPOOL TEACHING HOSPITALS NHS FOUNDATION TRUST | AD8: RA2 | AE8: BLACKPOOL TEACHING HOSPITALS NHS FOUNDATION TRUST | AF8: R1F01 | AG8: BASILDON HOSPITAL
K9: Neither Good nor Poor | L9: Good | M9: Percentage Negative | O9: QJ2 | P9: DERBY AND DERBYSHIRE ICB | R9: QJ2 | S9: DERBY AND DERBYSHIRE ICB | U9: QF7 | V9: RP5 | W9: DONCASTER AND BASSETLAW TEACHING HOSPITALS NHS FOUNDATION TRUST | X9: RP5BA | Y9: Bassetlaw Hospital | AA9: RA7 | AB9: BOLTON NHS FOUNDATION TRUST | AD9: RA7 | AE9: BOLTON NHS FOUNDATION TRUST | AF9: R1H12 | AG9: Basingstoke and North Hampshire Hospital
K10: Poor | L10: Neither Good nor Poor | M10: Very Good | O10: QJG | P10: SUFFOLK AND NORTH EAST ESSEX ICB | R10: QJG | S10: SUFFOLK AND NORTH EAST ESSEX ICB | U10: QF7 | V10: RP5 | W10: DONCASTER AND BASSETLAW TEACHING HOSPITALS NHS FOUNDATION TRUST | X10: RP5DR | Y10: Doncaster Royal Infirmary | AA10: RA9 | AB10: BRADFORD TEACHING HOSPITALS NHS FOUNDATION TRUST | AD10: RA9 | AE10: BRADFORD TEACHING HOSPITALS NHS FOUNDATION TRUST | AF10: R1HKH | AG10: Bassetlaw Hospital
K11: Very Poor | L11: Poor | M11: Good | O11: QJK | P11: DEVON ICB | R11: QJK | S11: DEVON ICB | U11: QF7 | V11: RP5 | W11: DONCASTER AND BASSETLAW TEACHING HOSPITALS NHS FOUNDATION TRUST | X11: RP5XXX | Y11: Non-hospital site | AA11: RAE | AB11: BUCKINGHAMSHIRE HEALTHCARE NHS TRUST | AD11: RAE | AE11: BUCKINGHAMSHIRE HEALTHCARE NHS TRUST | AF11: R1HNH | AG11: BEDFORD HOSPITAL SOUTH WING
K12: Don't Know | L12: Very Poor | M12: Neither Good nor Poor | O12: QJM | P12: LINCOLNSHIRE ICB | R12: QJM | S12: LINCOLNSHIRE ICB | U12: QF7 | V12: RHQ | W12: SHEFFIELD TEACHING HOSPITALS NHS FOUNDATION TRUST | X12: RHQHH | Y12: Royal Hallamshire Hospital | AA12: RAJ | AB12: CALDERDALE AND HUDDERSFIELD NHS FOUNDATION TRUST | AD12: RAJ | AE12: CALDERDALE AND HUDDERSFIELD NHS FOUNDATION TRUST | AF12: R1K01 | AG12: Birmingham Women's Hospital
L13: Don't Know | M13: Poor | O13: QK1 | P13: LEICESTER, LEICESTERSHIRE AND RUTLAND ICB | R13: QK1 | S13: LEICESTER, LEICESTERSHIRE AND RUTLAND ICB | U13: QF7 | V13: RFR | W13: THE ROTHERHAM NHS FOUNDATION TRUST | X13: RFRPA | Y13: Rotherham District General Hospital | AA13: RAL | AB13: CAMBRIDGE UNIVERSITY HOSPITALS NHS FOUNDATION TRUST | AD13: RAL | AE13: CAMBRIDGE UNIVERSITY HOSPITALS NHS FOUNDATION TRUST | AF13: RA201 | AG13: Blackpool Victoria Hospital
L14: Mode SMS | M14: Very Poor | O14: QKK | P14: SOUTH EAST LONDON ICB | R14: QKK | S14: SOUTH EAST LONDON ICB | U14: QGH | V14: RWP | W14: WORCESTERSHIRE ACUTE HOSPITALS NHS TRUST | X14: RWP01 | Y14: Alexandra Hospital | AA14: RAP | AB14: CHELSEA AND WESTMINSTER HOSPITAL NHS FOUNDATION TRUST | AD14: RAP | AE14: CHELSEA AND WESTMINSTER HOSPITAL NHS FOUNDATION TRUST | AF14: RA707 | AG14: Bradford Royal Infirmary
L15: Mode Electronic Discharge | M15: Don't Know | O15: QKS | P15: KENT AND MEDWAY ICB | R15: QKS | S15: KENT AND MEDWAY ICB | U15: QGH | V15: RWP | W15: WORCESTERSHIRE ACUTE HOSPITALS NHS TRUST | X15: RWP31 | Y15: Kidderminster Hospital | AA15: RAS | AB15: CHESTERFIELD ROYAL HOSPITAL NHS FOUNDATION TRUST | AD15: RAS | AE15: CHESTERFIELD ROYAL HOSPITAL NHS FOUNDATION TRUST | AF15: RA901 | AG15: Bridgwater Hospital
L16: Mode Electronic Home | O16: QM7 | P16: HERTFORDSHIRE AND WEST ESSEX ICB | R16: QM7 | S16: HERTFORDSHIRE AND WEST ESSEX ICB | U16: QGH | V16: RWP | W16: WORCESTERSHIRE ACUTE HOSPITALS NHS TRUST | X16: RWP50 | Y16: Worcestershire Royal Hospital | AA16: RAX | AB16: DARTFORD AND GRAVESHAM NHS TRUST | AD16: RAX | AE16: DARTFORD AND GRAVESHAM NHS TRUST | AF16: RAE01 | AG16: Calderdale Royal Hospital
L17: Mode Paper Discharge | O17: QMF | P17: NORTH EAST LONDON ICB | R17: QMF | S17: NORTH EAST LONDON ICB | U17: QGH | V17: RLQ | W17: WYE VALLEY NHS TRUST | X17: RLQ01 | Y17: Hereford County Hospital | AA17: RBD | AB17: DONCASTER AND BASSETLAW TEACHING HOSPITALS NHS FOUNDATION TRUST | AD17: RBD | AE17: DONCASTER AND BASSETLAW TEACHING HOSPITALS NHS FOUNDATION TRUST | AF17: RAJ01 | AG17: Chelsea and Westminster Hospital
L18: Mode Paper Home | O18: QMJ | P18: NORTH CENTRAL LONDON ICB | R18: QMJ | S18: NORTH CENTRAL LONDON ICB | U18: QH8 | V18: RAJ | W18: MID AND SOUTH ESSEX NHS FOUNDATION TRUST | X18: RAJ12 | Y18: BASILDON HOSPITAL | AA18: RBK | AB18: DORSET COUNTY HOSPITAL NHS FOUNDATION TRUST | AD18: RBK | AE18: DORSET COUNTY HOSPITAL NHS FOUNDATION TRUST | AF18: RAJ12 | AG18: Chesterfield Royal Hospital
L19: Mode Telephone | O19: QMM | P19: NORFOLK AND WAVENEY ICB | R19: QMM | S19: NORFOLK AND WAVENEY ICB | U19: QH8 | V19: RAJ | W19: MID AND SOUTH ESSEX NHS FOUNDATION TRUST | X19: RAJ32 | Y19: MID ESSEX HOSPITAL | AA19: RBL | AB19: EAST AND NORTH HERTFORDSHIRE NHS TRUST | AD19: RBL | AE19: EAST AND NORTH HERTFORDSHIRE NHS TRUST | AF19: RAJ32 | AG19: Chorley and South Ribble Hospital
L20: Mode Online | O20: QNC | P20: STAFFORDSHIRE AND STOKE-ON-TRENT ICB | R20: QNC | S20: STAFFORDSHIRE AND STOKE-ON-TRENT ICB | U20: QH8 | V20: RAJ | W20: MID AND SOUTH ESSEX NHS FOUNDATION TRUST | X20: RAJ01 | Y20: Southend Hospital | AA20: RBN | AB20: EAST KENT HOSPITALS UNIVERSITY NHS FOUNDATION TRUST | AD20: RBN | AE20: EAST KENT HOSPITALS UNIVERSITY NHS FOUNDATION TRUST | AF20: RAL01 | AG20: City Hospital
L21: Mode Other | O21: QNQ | P21: FRIMLEY ICB | R21: QNQ | S21: FRIMLEY ICB | U21: QHG | V21: RC9 | W21: BEDFORDSHIRE HOSPITALS NHS FOUNDATION TRUST | X21: RC979 | Y21: BEDFORD HOSPITAL SOUTH WING | AA21: RBT | AB21: EAST LANCASHIRE HOSPITALS NHS TRUST | AD21: RBT | AE21: EAST LANCASHIRE HOSPITALS NHS TRUST | AF21: RAL26 | AG21: Colchester General Hospital
O22: QNX | P22: SUSSEX ICB | R22: QNX | S22: SUSSEX ICB | U22: QHG | V22: RC9 | W22: BEDFORDSHIRE HOSPITALS NHS FOUNDATION TRUST | X22: RC971 | Y22: Luton and Dunstable Hospital | AA22: RC9 | AB22: EAST SUFFOLK AND NORTH ESSEX NHS FOUNDATION TRUST | AD22: RC9 | AE22: EAST SUFFOLK AND NORTH ESSEX NHS FOUNDATION TRUST | AF22: RAPNM | AG22: Conquest Hospital
O23: QOC | P23: SHROPSHIRE, TELFORD AND WREKIN ICB | R23: QOC | S23: SHROPSHIRE, TELFORD AND WREKIN ICB | U23: QHG | V23: RD8 | W23: MILTON KEYNES UNIVERSITY HOSPITAL NHS FOUNDATION TRUST | X23: RD816 | Y23: Milton Keynes Hospital | AA23: RCB | AB23: EAST SUSSEX HEALTHCARE NHS TRUST | AD23: RCB | AE23: EAST SUSSEX HEALTHCARE NHS TRUST | AF23: RAS01 | AG23: Cumberland Infirmary
O24: QOP | P24: GREATER MANCHESTER ICB | R24: QOP | S24: GREATER MANCHESTER ICB | U24: QHL | V24: RQ3 | W24: BIRMINGHAM WOMEN'S AND CHILDREN'S NHS FOUNDATION TRUST | X24: RQ370 | Y24: Birmingham Women's Hospital | AA24: RCD | AB24: EPSOM AND ST HELIER UNIVERSITY HOSPITALS NHS TRUST | AD24: RCD | AE24: EPSOM AND ST HELIER UNIVERSITY HOSPITALS NHS TRUST | AF24: RAX01 | AG24: Darent Valley Hospital
O25: QOQ | P25: HUMBER AND NORTH YORKSHIRE ICB | R25: QOQ | S25: HUMBER AND NORTH YORKSHIRE ICB | U25: QHL | V25: RXK | W25: SANDWELL AND WEST BIRMINGHAM HOSPITALS NHS TRUST | X25: RXK02 | Y25: City Hospital | AA25: RCX | AB25: FRIMLEY HEALTH NHS FOUNDATION TRUST | AD25: RCX | AE25: FRIMLEY HEALTH NHS FOUNDATION TRUST | AF25: RBD01 | AG25: Derriford Hospital
O26: QOX | P26: BATH AND NORTH EAST SOMERSET, SWINDON AND WILTSHIRE ICB | R26: QOX | S26: BATH AND NORTH EAST SOMERSET, SWINDON AND WILTSHIRE ICB | U26: QHL | V26: RXK | W26: SANDWELL AND WEST BIRMINGHAM HOSPITALS NHS TRUST | X26: RXK01 | Y26: Sandwell General Hospital | AA26: RD1 | AB26: GATESHEAD HEALTH NHS FOUNDATION TRUST | AD26: RD1 | AE26: GATESHEAD HEALTH NHS FOUNDATION TRUST | AF26: RBK02 | AG26: Dewsbury and District Hospital
O27: QPM | P27: NORTHAMPTONSHIRE ICB | R27: QPM | S27: NORTHAMPTONSHIRE ICB | U27: QHM | V27: RR7 | W27: GATESHEAD HEALTH NHS FOUNDATION TRUST | X27: RR7EN | Y27: Queen Elizabeth Hospital | AA27: RD8 | AB27: GEORGE ELIOT HOSPITAL NHS TRUST | AD27: RD8 | AE27: GEORGE ELIOT HOSPITAL NHS TRUST | AF27: RBL14 | AG27: Diana, Princess Of Wales Hospital
O28: QR1 | P28: GLOUCESTERSHIRE ICB | R28: QR1 | S28: GLOUCESTERSHIRE ICB | U28: QHM | V28: RNN | W28: NORTH CUMBRIA INTEGRATED CARE NHS FOUNDATION TRUST | X28: RNN62 | Y28: Cumberland Infirmary | AA28: RDE | AB28: GREAT WESTERN HOSPITALS NHS FOUNDATION TRUST | AD28: RDE | AE28: GREAT WESTERN HOSPITALS NHS FOUNDATION TRUST | AF28: RBN01 | AG28: Doncaster Royal Infirmary
O29: QRL | P29: HAMPSHIRE AND ISLE OF WIGHT ICB | R29: QRL | S29: HAMPSHIRE AND ISLE OF WIGHT ICB | U29: QHM | V29: RNN | W29: NORTH CUMBRIA INTEGRATED CARE NHS FOUNDATION TRUST | X29: RNNXXX | Y29: Non-hospital site | AA29: RDU | AB29: GUY'S AND ST THOMAS' NHS FOUNDATION TRUST | AD29: RDU | AE29: GUY'S AND ST THOMAS' NHS FOUNDATION TRUST | AF29: RBN52 | AG29: Dorset County Hospital
O30: QRV | P30: NORTH WEST LONDON ICB | R30: QRV | S30: NORTH WEST LONDON ICB | U30: QHM | V30: RNN | W30: NORTH CUMBRIA INTEGRATED CARE NHS FOUNDATION TRUST | X30: RNNBX | Y30: West Cumberland Hospital | AA30: REF | AB30: HAMPSHIRE HOSPITALS NHS FOUNDATION TRUST | AD30: REF | AE30: HAMPSHIRE HOSPITALS NHS FOUNDATION TRUST | AF30: RBT20 | AG30: East Surrey Hospital
O31: QSL | P31: SOMERSET ICB | R31: QSL | S31: SOMERSET ICB | U31: QHM | V31: RVW | W31: NORTH TEES AND HARTLEPOOL NHS FOUNDATION TRUST | X31: RVWXXX | Y31: Non-hospital site | AA31: REP | AB31: HARROGATE AND DISTRICT NHS FOUNDATION TRUST | AD31: REP | AE31: HARROGATE AND DISTRICT NHS FOUNDATION TRUST | AF31: RC971 | AG31: Eastbourne District General Hospital
O32: QT1 | P32: NOTTINGHAM AND NOTTINGHAMSHIRE ICB | R32: QT1 | S32: NOTTINGHAM AND NOTTINGHAMSHIRE ICB | U32: QHM | V32: RVW | W32: NORTH TEES AND HARTLEPOOL NHS FOUNDATION TRUST | X32: RVWAE | Y32: University Hospital Of North Tees | AA32: RF4 | AB32: HOMERTON HEALTHCARE NHS FOUNDATION TRUST | AD32: RF4 | AE32: HOMERTON HEALTHCARE NHS FOUNDATION TRUST | AF32: RC979 | AG32: Epsom Hospital
O33: QT6 | P33: CORNWALL AND THE ISLES OF SCILLY ICB | R33: QT6 | S33: CORNWALL AND THE ISLES OF SCILLY ICB | U33: QHM | V33: RTR | W33: SOUTH TEES HOSPITALS NHS FOUNDATION TRUST | X33: RTR45 | Y33: Friarage Hospital Site | AA33: RFF | AB33: HULL UNIVERSITY TEACHING HOSPITALS NHS TRUST | AD33: RFF | AE33: HULL UNIVERSITY TEACHING HOSPITALS NHS TRUST | AF33: RCB55 | AG33: Friarage Hospital Site
O34: QU9 | P34: BUCKINGHAMSHIRE, OXFORDSHIRE AND BERKSHIRE WEST ICB | R34: QU9 | S34: BUCKINGHAMSHIRE, OXFORDSHIRE AND BERKSHIRE WEST ICB | U34: QHM | V34: RTR | W34: SOUTH TEES HOSPITALS NHS FOUNDATION TRUST | X34: RTRAT | Y34: The James Cook University Hospital | AA34: RFR | AB34: IMPERIAL COLLEGE HEALTHCARE NHS TRUST | AD34: RFR | AE34: IMPERIAL COLLEGE HEALTHCARE NHS TRUST | AF34: RCBCA | AG34: Frimley Park Hospital
O35: QUA | P35: BLACK COUNTRY ICB | R35: QUA | S35: BLACK COUNTRY ICB | U35: QHM | V35: R0B | W35: SOUTH TYNESIDE AND SUNDERLAND NHS FOUNDATION TRUST | X35: R0BXXX | Y35: Non-hospital site | AA35: RFS | AB35: ISLE OF WIGHT NHS TRUST | AD35: RFS | AE35: ISLE OF WIGHT NHS TRUST | AF35: RCD01 | AG35: Furness General Hospital
O36: QUE | P36: CAMBRIDGESHIRE AND PETERBOROUGH ICB | R36: QUE | S36: CAMBRIDGESHIRE AND PETERBOROUGH ICB | U36: QHM | V36: R0B | W36: SOUTH TYNESIDE AND SUNDERLAND NHS FOUNDATION TRUST | X36: R0B0Q | Y36: South Tyneside District Hospital | AA36: RGN | AB36: JAMES PAGET UNIVERSITY HOSPITALS NHS FOUNDATION TRUST | AD36: RGN | AE36: JAMES PAGET UNIVERSITY HOSPITALS NHS FOUNDATION TRUST | AF36: RCX66 | AG36: George Eliot Hospital - Acute Services
O37: QUY | P37: BRISTOL, NORTH SOMERSET AND SOUTH GLOUCESTERSHIRE ICB | R37: QUY | S37: BRISTOL, NORTH SOMERSET AND SOUTH GLOUCESTERSHIRE ICB | U37: QHM | V37: R0B | W37: SOUTH TYNESIDE AND SUNDERLAND NHS FOUNDATION TRUST | X37: R0B01 | Y37: Sunderland Royal Hospital | AA37: RGP | AB37: KETTERING GENERAL HOSPITAL NHS FOUNDATION TRUST | AD37: RGP | AE37: KETTERING GENERAL HOSPITAL NHS FOUNDATION TRUST | AF37: RCX70 | AG37: Gosport War Memorial Hospital
O38: QVV | P38: DORSET ICB | R38: QVV | S38: DORSET ICB | U38: QHM | V38: RTD | W38: THE NEWCASTLE UPON TYNE HOSPITALS NHS FOUNDATION TRUST | X38: RTD02 | Y38: The Royal Victoria Infirmary | AA38: RGR | AB38: KING'S COLLEGE HOSPITAL NHS FOUNDATION TRUST | AD38: RGR | AE38: KING'S COLLEGE HOSPITAL NHS FOUNDATION TRUST | AF38: RCXXXX | AG38: Grantham and District Hospital
O39: QWE | P39: SOUTH WEST LONDON ICB | R39: QWE | S39: SOUTH WEST LONDON ICB | U39: QJ2 | V39: RFS | W39: CHESTERFIELD ROYAL HOSPITAL NHS FOUNDATION TRUST | X39: RFSDA | Y39: Chesterfield Royal Hospital | AA39: RGT | AB39: KINGSTON HOSPITAL NHS FOUNDATION TRUST | AD39: RGT | AE39: KINGSTON HOSPITAL NHS FOUNDATION TRUST | AF39: RD108 | AG39: Harrogate District Hospital
O40: QWO | P40: WEST YORKSHIRE ICB | R40: QWO | S40: WEST YORKSHIRE ICB | U40: QJ2 | V40: RTG | W40: UNIVERSITY HOSPITALS OF DERBY AND BURTON NHS FOUNDATION TRUST | X40: RTG02 | Y40: Queens Hospital, Burton Upon Trent | AA40: RH5 | AB40: LANCASHIRE TEACHING HOSPITALS NHS FOUNDATION TRUST | AD40: RH5 | AE40: LANCASHIRE TEACHING HOSPITALS NHS FOUNDATION TRUST | AF40: RD130 | AG40: Hereford County Hospital
O41: QWU | P41: COVENTRY AND WARWICKSHIRE ICB | R41: QWU | S41: COVENTRY AND WARWICKSHIRE ICB | U41: QJ2 | V41: RTG | W41: UNIVERSITY HOSPITALS OF DERBY AND BURTON NHS FOUNDATION TRUST | X41: RTGFG | Y41: Royal Derby Hospital | AA41: RH8 | AB41: LEEDS TEACHING HOSPITALS NHS TRUST | AD41: RH8 | AE41: LEEDS TEACHING HOSPITALS NHS TRUST | AF41: RD816 | AG41: Hillingdon Hospital
O42: QXU | P42: SURREY HEARTLANDS ICB | R42: QXU | S42: SURREY HEARTLANDS ICB | U42: QJG | V42: RDE | W42: EAST SUFFOLK AND NORTH ESSEX NHS FOUNDATION TRUST | X42: RDEE4 | Y42: Colchester General Hospital | AA42: RHM | AB42: LEWISHAM AND GREENWICH NHS TRUST | AD42: RHM | AE42: LEWISHAM AND GREENWICH NHS TRUST | AF42: RDE03 | AG42: Hinchingbrooke Hospital
O43: QYG | P43: CHESHIRE AND MERSEYSIDE ICB | R43: QYG | S43: CHESHIRE AND MERSEYSIDE ICB | U43: QJG | V43: RDE | W43: EAST SUFFOLK AND NORTH ESSEX NHS FOUNDATION TRUST | X43: RDE03 | Y43: Ipswich Hospital | AA43: RHQ | AB43: LIVERPOOL WOMEN'S NHS FOUNDATION TRUST | AD43: RHQ | AE43: LIVERPOOL WOMEN'S NHS FOUNDATION TRUST | AF43: RDEE4 | AG43: Homerton University Hospital
U44: QJG | V44: RGR | W44: WEST SUFFOLK NHS FOUNDATION TRUST | X44: RGR50 | Y44: West Suffolk Hospital | AA44: RHU | AB44: LONDON NORTH WEST UNIVERSITY HEALTHCARE NHS TRUST | AD44: RHU | AE44: LONDON NORTH WEST UNIVERSITY HEALTHCARE NHS TRUST | AF44: RDU01 | AG44: Horton General Hospital
U45: QJK | V45: RH8 | W45: ROYAL DEVON UNIVERSITY HEALTHCARE NHS FOUNDATION TRUST | X45: RH880 | Y45: North Devon District Hospital | AA45: RHW | AB45: MAIDSTONE AND TUNBRIDGE WELLS NHS TRUST | AD45: RHW | AE45: MAIDSTONE AND TUNBRIDGE WELLS NHS TRUST | AF45: REF12 | AG45: Hospital Of St Cross
U46: QJK | V46: RH8 | W46: ROYAL DEVON UNIVERSITY HEALTHCARE NHS FOUNDATION TRUST | X46: RH801 | Y46: Royal Devon and Exeter Hospital (Wonford) | AA46: RJ1 | AB46: MANCHESTER UNIVERSITY NHS FOUNDATION TRUST | AD46: RJ1 | AE46: MANCHESTER UNIVERSITY NHS FOUNDATION TRUST | AF46: REFXXX | AG46: Huddersfield Royal Infirmary
U47: QJK | V47: RA9 | W47: TORBAY AND SOUTH DEVON NHS FOUNDATION TRUST | X47: RA901 | Y47: Torbay Hospital | AA47: RJ2 | AB47: MEDWAY NHS FOUNDATION TRUST | AD47: RJ2 | AE47: MEDWAY NHS FOUNDATION TRUST | AF47: REP01 | AG47: Hull Royal Infirmary
U48: QJK | V48: RK9 | W48: UNIVERSITY HOSPITALS PLYMOUTH NHS TRUST | X48: RK950 | Y48: Derriford Hospital | AA48: RJ7 | AB48: MERSEY AND WEST LANCASHIRE TEACHING HOSPITALS NHS TRUST | AD48: RJ7 | AE48: MERSEY AND WEST LANCASHIRE TEACHING HOSPITALS NHS TRUST | AF48: RF4XXX | AG48: Ipswich Hospital
U49: QJK | V49: RK9 | W49: UNIVERSITY HOSPITALS PLYMOUTH NHS TRUST | X49: RK9XXX | Y49: Non-hospital site | AA49: RJC | AB49: MID AND SOUTH ESSEX NHS FOUNDATION TRUST | AD49: RJC | AE49: MID AND SOUTH ESSEX NHS FOUNDATION TRUST | AF49: RFFAA | AG49: James Paget University Hospital
U50: QJM | V50: RWD | W50: UNITED LINCOLNSHIRE HOSPITALS NHS TRUST | X50: RWDLP | Y50: Grantham and District Hospital | AA50: RJE | AB50: MID CHESHIRE HOSPITALS NHS FOUNDATION TRUST | AD50: RJE | AE50: MID CHESHIRE HOSPITALS NHS FOUNDATION TRUST | AF50: RFRPA | AG50: Kettering General Hospital
U51: QJM | V51: RWD | W51: UNITED LINCOLNSHIRE HOSPITALS NHS TRUST | X51: RWDDA | Y51: Lincoln County Hospital | AA51: RJL | AB51: MID YORKSHIRE TEACHING NHS TRUST | AD51: RJL | AE51: MID YORKSHIRE TEACHING NHS TRUST | AF51: RFSDA | AG51: Kidderminster Hospital
U52: QJM | V52: RWD | W52: UNITED LINCOLNSHIRE HOSPITALS NHS TRUST | X52: RWDLA | Y52: Pilgrim Hospital | AA52: RJZ | AB52: MILTON KEYNES UNIVERSITY HOSPITAL NHS FOUNDATION TRUST | AD52: RJZ | AE52: MILTON KEYNES UNIVERSITY HOSPITAL NHS FOUNDATION TRUST | AF52: RGN80 | AG52: King's College Hospital (Denmark Hill)
U53: QK1 | V53: RWE | W53: UNIVERSITY HOSPITALS OF LEICESTER NHS TRUST | X53: RWEAK | Y53: Leicester General Hospital | AA53: RK5 | AB53: NORFOLK AND NORWICH UNIVERSITY HOSPITALS NHS FOUNDATION TRUST | AD53: RK5 | AE53: NORFOLK AND NORWICH UNIVERSITY HOSPITALS NHS FOUNDATION TRUST | AF53: RGN90 | AG53: King's Mill Hospital
U54: QK1 | V54: RWE | W54: UNIVERSITY HOSPITALS OF LEICESTER NHS TRUST | X54: RWEAA | Y54: Leicester Royal Infirmary | AA54: RK9 | AB54: NORTH BRISTOL NHS TRUST | AD54: RK9 | AE54: NORTH BRISTOL NHS TRUST | AF54: RGP75 | AG54: Kingston Hospital
U55: QK1 | V55: RWE | W55: UNIVERSITY HOSPITALS OF LEICESTER NHS TRUST | X55: RWEXXX | Y55: Non-hospital site | AA55: RKB | AB55: NORTH CUMBRIA INTEGRATED CARE NHS FOUNDATION TRUST | AD55: RKB | AE55: NORTH CUMBRIA INTEGRATED CARE NHS FOUNDATION TRUST | AF55: RGR50 | AG55: Leeds General Infirmary
U56: QK1 | V56: RWE | W56: UNIVERSITY HOSPITALS OF LEICESTER NHS TRUST | X56: RWE10 | Y56: St Mary's Hospital | AA56: RKE | AB56: NORTH MIDDLESEX UNIVERSITY HOSPITAL NHS TRUST | AD56: RKE | AE56: NORTH MIDDLESEX UNIVERSITY HOSPITAL NHS TRUST | AF56: RGT32 | AG56: Leicester General Hospital
U57: QKK | V57: RJ1 | W57: GUY'S AND ST THOMAS' NHS FOUNDATION TRUST | X57: RJ122 | Y57: St Thomas' Hospital | AA57: RL4 | AB57: NORTH TEES AND HARTLEPOOL NHS FOUNDATION TRUST | AD57: RL4 | AE57: NORTH TEES AND HARTLEPOOL NHS FOUNDATION TRUST | AF57: RH5A8 | AG57: Leicester Royal Infirmary
U58: QKK | V58: RJZ | W58: KING'S COLLEGE HOSPITAL NHS FOUNDATION TRUST | X58: RJZ01 | Y58: King's College Hospital (Denmark Hill) | AA58: RLQ | AB58: NORTH WEST ANGLIA NHS FOUNDATION TRUST | AD58: RLQ | AE58: NORTH WEST ANGLIA NHS FOUNDATION TRUST | AF58: RH5K6 | AG58: Leighton Hospital
U59: QKK | V59: RJZ | W59: KING'S COLLEGE HOSPITAL NHS FOUNDATION TRUST | X59: RJZ30 | Y59: Princess Royal University Hospital | AA59: RLT | AB59: NORTHAMPTON GENERAL HOSPITAL NHS TRUST | AD59: RLT | AE59: NORTHAMPTON GENERAL HOSPITAL NHS TRUST | AF59: RH5O4 | AG59: Lincoln County Hospital
U60: QKK | V60: RJ2 | W60: LEWISHAM AND GREENWICH NHS TRUST | X60: RJ231 | Y60: Queen Elizabeth Hospital | AA60: RM1 | AB60: NORTHERN CARE ALLIANCE NHS FOUNDATION TRUST | AD60: RM1 | AE60: NORTHERN CARE ALLIANCE NHS FOUNDATION TRUST | AF60: RH5XXXX | AG60: Lister Hospital
U61: QKK | V61: RJ2 | W61: LEWISHAM AND GREENWICH NHS TRUST | X61: RJ224 | Y61: University Hospital Lewisham | AA61: RM3 | AB61: NORTHERN LINCOLNSHIRE AND GOOLE NHS FOUNDATION TRUST | AD61: RM3 | AE61: NORTHERN LINCOLNSHIRE AND GOOLE NHS FOUNDATION TRUST | AF61: RH801 | AG61: Liverpool Womens Hospital
U62: QKS | V62: RN7 | W62: DARTFORD AND GRAVESHAM NHS TRUST | X62: RN707 | Y62: Darent Valley Hospital | AA62: RMC | AB62: NOTTINGHAM UNIVERSITY HOSPITALS NHS TRUST | AD62: RMC | AE62: NOTTINGHAM UNIVERSITY HOSPITALS NHS TRUST | AF62: RH880 | AG62: Luton and Dunstable Hospital
U63: QKS | V63: RVV | W63: EAST KENT HOSPITALS UNIVERSITY NHS FOUNDATION TRUST | X63: RVV01 | Y63: William Harvey Hospital (Ashford) | AA63: RMP | AB63: OXFORD UNIVERSITY HOSPITALS NHS FOUNDATION TRUST | AD63: RMP | AE63: OXFORD UNIVERSITY HOSPITALS NHS FOUNDATION TRUST | AF63: RHM01 | AG63: Maidstone District General Hospital
U64: QKS | V64: RWF | W64: MAIDSTONE AND TUNBRIDGE WELLS NHS TRUST | X64: RWF03 | Y64: Maidstone District General Hospital | AA64: RN3 | AB64: PORTSMOUTH HOSPITALS UNIVERSITY NATIONAL HEALTH SERVICE TRUST | AD64: RN3 | AE64: PORTSMOUTH HOSPITALS UNIVERSITY NATIONAL HEALTH SERVICE TRUST | AF64: RHQHH | AG64: Manor Hospital
U65: QKS | V65: RWF | W65: MAIDSTONE AND TUNBRIDGE WELLS NHS TRUST | X65: RWFXXX | Y65: Non-hospital site | AA65: RN5 | AB65: ROYAL BERKSHIRE NHS FOUNDATION TRUST | AD65: RN5 | AE65: ROYAL BERKSHIRE NHS FOUNDATION TRUST | AF65: RHU02 | AG65: Medway Maritime Hospital
U66: QKS | V66: RWF | W66: MAIDSTONE AND TUNBRIDGE WELLS NHS TRUST | X66: RWFTW | Y66: The Tunbridge Wells Hospital | AA66: RN7 | AB66: ROYAL CORNWALL HOSPITALS NHS TRUST | AD66: RN7 | AE66: ROYAL CORNWALL HOSPITALS NHS TRUST | AF66: RHU03 | AG66: MID ESSEX HOSPITAL
U67: QKS | V67: RPA | W67: MEDWAY NHS FOUNDATION TRUST | X67: RPA02 | Y67: Medway Maritime Hospital | AA67: RNA | AB67: ROYAL DEVON UNIVERSITY HEALTHCARE NHS FOUNDATION TRUST | AD67: RNA | AE67: ROYAL DEVON UNIVERSITY HEALTHCARE NHS FOUNDATION TRUST | AF67: RHU10 | AG67: Milton Keynes Hospital
U68: QM7 | V68: RWH | W68: EAST AND NORTH HERTFORDSHIRE NHS TRUST | X68: RWH01 | Y68: Lister Hospital | AA68: RNN | AB68: ROYAL FREE LONDON NHS FOUNDATION TRUST | AD68: RNN | AE68: ROYAL FREE LONDON NHS FOUNDATION TRUST | AF68: RHW01 | AG68: MUSGROVE PARK HOSPITAL
U69: QM7 | V69: RWH | W69: EAST AND NORTH HERTFORDSHIRE NHS TRUST | X69: RWHXXX | Y69: Non-hospital site | AA69: RNQ | AB69: ROYAL SURREY COUNTY HOSPITAL NHS FOUNDATION TRUST | AD69: RNQ | AE69: ROYAL SURREY COUNTY HOSPITAL NHS FOUNDATION TRUST | AF69: RJ122 | AG69: New Cross Hospital
U70: QM7 | V70: RQW | W70: THE PRINCESS ALEXANDRA HOSPITAL NHS TRUST | X70: RQWG0 | Y70: Princess Alexandra Hospital | AA70: RNS | AB70: ROYAL UNITED HOSPITALS BATH NHS FOUNDATION TRUST | AD70: RNS | AE70: ROYAL UNITED HOSPITALS BATH NHS FOUNDATION TRUST | AF70: RJ224 | AG70: Newham General Hospital
U71: QM7 | V71: RWG | W71: WEST HERTFORDSHIRE TEACHING HOSPITALS NHS TRUST | X71: RWG02 | Y71: Watford General Hospital | AA71: RNZ | AB71: SALISBURY NHS FOUNDATION TRUST | AD71: RNZ | AE71: SALISBURY NHS FOUNDATION TRUST | AF71: RJ231 | AG71: Non-hospital site
U72: QMF | V72: RF4 | W72: BARKING, HAVERING AND REDBRIDGE UNIVERSITY HOSPITALS NHS TRUST | X72: RF4XXX | Y72: Non-hospital site | AA72: RP5 | AB72: SANDWELL AND WEST BIRMINGHAM HOSPITALS NHS TRUST | AD72: RP5 | AE72: SANDWELL AND WEST BIRMINGHAM HOSPITALS NHS TRUST | AF72: RJ701 | AG72: Non-hospital site
U73: QMF | V73: R1H | W73: BARTS HEALTH NHS TRUST | X73: R1HNH | Y73: Newham General Hospital | AA73: RPA | AB73: SHEFFIELD TEACHING HOSPITALS NHS FOUNDATION TRUST | AD73: RPA | AE73: SHEFFIELD TEACHING HOSPITALS NHS FOUNDATION TRUST | AF73: RJC02 | AG73: Non-hospital site
U74: QMF | V74: R1H | W74: BARTS HEALTH NHS TRUST | X74: R1H12 | Y74: The Royal London Hospital | AA74: RQ3 | AB74: SHERWOOD FOREST HOSPITALS NHS FOUNDATION TRUST | AD74: RQ3 | AE74: SHERWOOD FOREST HOSPITALS NHS FOUNDATION TRUST | AF74: RJCXXX | AG74: Non-hospital site
U75: QMF | V75: R1H | W75: BARTS HEALTH NHS TRUST | X75: R1HKH | Y75: Whipps Cross University Hospital | AA75: RQM | AB75: SOMERSET NHS FOUNDATION TRUST | AD75: RQM | AE75: SOMERSET NHS FOUNDATION TRUST | AF75: RJE01 | AG75: Non-hospital site
U76: QMF | V76: RQX | W76: HOMERTON HEALTHCARE NHS FOUNDATION TRUST | X76: RQXM1 | Y76: Homerton University Hospital | AA76: RQW | AB76: SOUTH TEES HOSPITALS NHS FOUNDATION TRUST | AD76: RQW | AE76: SOUTH TEES HOSPITALS NHS FOUNDATION TRUST | AF76: RJEXXX | AG76: Non-hospital site
U77: QMJ | V77: RAP | W77: NORTH MIDDLESEX UNIVERSITY HOSPITAL NHS TRUST | X77: RAPNM | Y77: North Middlesex Hospital | AA77: RQX | AB77: SOUTH TYNESIDE AND SUNDERLAND NHS FOUNDATION TRUST | AD77: RQX | AE77: SOUTH TYNESIDE AND SUNDERLAND NHS FOUNDATION TRUST | AF77: RJL30 | AG77: Non-hospital site
U78: QMJ | V78: RAL | W78: ROYAL FREE LONDON NHS FOUNDATION TRUST | X78: RAL26 | Y78: Barnet Hospital | AA78: RR7 | AB78: SOUTH WARWICKSHIRE UNIVERSITY NHS FOUNDATION TRUST | AD78: RR7 | AE78: SOUTH WARWICKSHIRE UNIVERSITY NHS FOUNDATION TRUST | AF78: RJL32 | AG78: Non-hospital site
U79: QMJ | V79: RAL | W79: ROYAL FREE LONDON NHS FOUNDATION TRUST | X79: RAL01 | Y79: Royal Free Hospital | AA79: RR8 | AB79: ST GEORGE'S UNIVERSITY HOSPITALS NHS FOUNDATION TRUST | AD79: RR8 | AE79: ST GEORGE'S UNIVERSITY HOSPITALS NHS FOUNDATION TRUST | AF79: RJZ01 | AG79: Non-hospital site
U80: QMJ | V80: RRV | W80: UNIVERSITY COLLEGE LONDON HOSPITALS NHS FOUNDATION TRUST | X80: RRV11 | Y80: University College Hospital Elizabeth Garrett Anderson Wing | AA80: RRF | AB80: STOCKPORT NHS FOUNDATION TRUST | AD80: RRF | AE80: STOCKPORT NHS FOUNDATION TRUST | AF80: RJZ30 | AG80: Non-hospital site
U81: QMJ | V81: RKE | W81: WHITTINGTON HEALTH NHS TRUST | X81: RKEXXX | Y81: Non-hospital site | AA81: RRV | AB81: SURREY AND SUSSEX HEALTHCARE NHS TRUST | AD81: RRV | AE81: SURREY AND SUSSEX HEALTHCARE NHS TRUST | AF81: RK5BC | AG81: Non-hospital site
U82: QMJ | V82: RKE | W82: WHITTINGTON HEALTH NHS TRUST | X82: RKEQ4 | Y82: The Whittington Hospital | AA82: RTD | AB82: TAMESIDE AND GLOSSOP INTEGRATED CARE NHS FOUNDATION TRUST | AD82: RTD | AE82: TAMESIDE AND GLOSSOP INTEGRATED CARE NHS FOUNDATION TRUST | AF82: RK950 | AG82: Non-hospital site
U83: QMM | V83: RGP | W83: JAMES PAGET UNIVERSITY HOSPITALS NHS FOUNDATION TRUST | X83: RGP75 | Y83: James Paget University Hospital | AA83: RTG | AB83: THE DUDLEY GROUP NHS FOUNDATION TRUST | AD83: RTG | AE83: THE DUDLEY GROUP NHS FOUNDATION TRUST | AF83: RK9XXX | AG83: Non-hospital site
U84: QMM | V84: RM1 | W84: NORFOLK AND NORWICH UNIVERSITY HOSPITALS NHS FOUNDATION TRUST | X84: RM102 | Y84: Norfolk and Norwich University Hospital | AA84: RTH | AB84: THE HILLINGDON HOSPITALS NHS FOUNDATION TRUST | AD84: RTH | AE84: THE HILLINGDON HOSPITALS NHS FOUNDATION TRUST | AF84: RKB01 | AG84: Non-hospital site
U85: QMM | V85: RCX | W85: THE QUEEN ELIZABETH HOSPITAL, KING'S LYNN, NHS FOUNDATION TRUST | X85: RCXXXX | Y85: Non-hospital site | AA85: RTK | AB85: THE NEWCASTLE UPON TYNE HOSPITALS NHS FOUNDATION TRUST | AD85: RTK | AE85: THE NEWCASTLE UPON TYNE HOSPITALS NHS FOUNDATION TRUST | AF85: RKB03 | AG85: Non-hospital site
U86: QMM | V86: RCX | W86: THE QUEEN ELIZABETH HOSPITAL, KING'S LYNN, NHS FOUNDATION TRUST | X86: RCX66 | Y86: North Cambridgeshire Hospital | AA86: RTP | AB86: THE PRINCESS ALEXANDRA HOSPITAL NHS TRUST | AD86: RTP | AE86: THE PRINCESS ALEXANDRA HOSPITAL NHS TRUST | AF86: RKBXXX | AG86: Non-hospital site
U87: QMM | V87: RCX | W87: THE QUEEN ELIZABETH HOSPITAL, KING'S LYNN, NHS FOUNDATION TRUST | X87: RCX70 | Y87: The Queen Elizabeth Hospital | AA87: RTR | AB87: THE QUEEN ELIZABETH HOSPITAL, KING'S LYNN, NHS FOUNDATION TRUST | AD87: RTR | AE87: THE QUEEN ELIZABETH HOSPITAL, KING'S LYNN, NHS FOUNDATION TRUST | AF87: RKEQ4 | AG87: Non-hospital site
U88: QNC | V88: RJE | W88: UNIVERSITY HOSPITALS OF NORTH MIDLANDS NHS TRUST | X88: RJEXXX | Y88: Non-hospital site | AA88: RTX | AB88: THE ROTHERHAM NHS FOUNDATION TRUST | AD88: RTX | AE88: THE ROTHERHAM NHS FOUNDATION TRUST | AF88: RKEXXX | AG88: Non-hospital site
U89: QNC | V89: RJE | W89: UNIVERSITY HOSPITALS OF NORTH MIDLANDS NHS TRUST | X89: RJE01 | Y89: Royal Stoke University Hospital | AA89: RVJ | AB89: THE ROYAL WOLVERHAMPTON NHS TRUST | AD89: RVJ | AE89: THE ROYAL WOLVERHAMPTON NHS TRUST | AF89: RL403 | AG89: Non-hospital site
U90: QNQ | V90: RDU | W90: FRIMLEY HEALTH NHS FOUNDATION TRUST | X90: RDU01 | Y90: Frimley Park Hospital | AA90: RVR | AB90: THE SHREWSBURY AND TELFORD HOSPITAL NHS TRUST | AD90: RVR | AE90: THE SHREWSBURY AND TELFORD HOSPITAL NHS TRUST | AF90: RLQ01 | AG90: Non-hospital site
U91: QNX | V91: RXC | W91: EAST SUSSEX HEALTHCARE NHS TRUST | X91: RXC01 | Y91: Conquest Hospital | AA91: RVV | AB91: TORBAY AND SOUTH DEVON NHS FOUNDATION TRUST | AD91: RVV | AE91: TORBAY AND SOUTH DEVON NHS FOUNDATION TRUST | AF91: RLT01 | AG91: Non-hospital site
U92: QNX | V92: RXC | W92: EAST SUSSEX HEALTHCARE NHS TRUST | X92: RXC02 | Y92: Eastbourne District General Hospital | AA92: RVW | AB92: UNITED LINCOLNSHIRE HOSPITALS NHS TRUST | AD92: RVW | AE92: UNITED LINCOLNSHIRE HOSPITALS NHS TRUST | AF92: RM102 | AG92: Non-hospital site
U93: QNX | V93: RXC | W93: EAST SUSSEX HEALTHCARE NHS TRUST | X93: RXCXXX | Y93: Non-hospital site | AA93: RWA | AB93: UNIVERSITY COLLEGE LONDON HOSPITALS NHS FOUNDATION TRUST | AD93: RWA | AE93: UNIVERSITY COLLEGE LONDON HOSPITALS NHS FOUNDATION TRUST | AF93: RMC01 | AG93: Non-hospital site home/in-transit births
U94: QOC | V94: RXW | W94: THE SHREWSBURY AND TELFORD HOSPITAL NHS TRUST | X94: RXWXXX | Y94: Non-hospital site | AA94: RWD | AB94: UNIVERSITY HOSPITAL SOUTHAMPTON NHS FOUNDATION TRUST | AD94: RWD | AE94: UNIVERSITY HOSPITAL SOUTHAMPTON NHS FOUNDATION TRUST | AF94: RMP01 | AG94: Norfolk and Norwich University Hospital
U95: QOP | V95: RMC | W95: BOLTON NHS FOUNDATION TRUST | X95: RMC01 | Y95: Royal Bolton Hospital | AA95: RWE | AB95: UNIVERSITY HOSPITALS BRISTOL AND WESTON NHS FOUNDATION TRUST | AD95: RWE | AE95: UNIVERSITY HOSPITALS BRISTOL AND WESTON NHS FOUNDATION TRUST | AF95: RN325 | AG95: North Cambridgeshire Hospital
